Workbook

Sheet Clima Canal
B2: Selectiontool Clima Canal
G4: Taal/Language/Sprache | H4: 0 | I4: 0 | J4: 0 | K4: English
G5: Langue/Språk/Lengua/Jazyk
G6: =IF(cal!$S$7=1,"Uitvoering",IF(cal!$S$7=2,"Version",IF(cal!$S$7=3,"Ausfürhung",IF(cal!$S$7=4,"Version",IF(cal!$S$7=5,"Modell",IF(cal!$S$7=6,"Version",IF(cal!$S$7=7,"Modell",IF(cal!$S$7=8,"Verze",IF(cal!$S$7=9,"Version",IF(cal!$S$7=10,"Version",IF(cal!$S$7=11,"Version",))))))))))) -> Version | K6: Clima H13 B32 2P
B8: =cal!B7 -> Temperatures | M8: =cal!M7 -> Altitude
B9: =cal!B8 -> Heating: | G9: =cal!G8 -> Cooling: | M9: 0 | N9: 0 | O9: =cal!O8 -> m
B10: =cal!B9 -> Inlet temp. | C10: =cal!C9 -> 0 | D10: =cal!D9 -> 0 | E10: 75 | G10: =cal!G9 -> Inlet temp. | H10: =cal!H9 -> 0 | I10: =cal!I9 -> 0 | J10: =cal!J9 -> 0 | K10: 16 | M10: =cal!M9 -> Unit conversion
B11: =cal!B10 -> Return temp. | C11: =cal!C10 -> 0 | D11: =cal!D10 -> 0 | E11: 65 | G11: =cal!G10 -> Return temp. | H11: =cal!H10 -> 0 | I11: =cal!I10 -> 0 | J11: =cal!J10 -> 0 | K11: 18
B12: =cal!B11 -> Room temp. | C12: =cal!C11 -> 0 | D12: =cal!D11 -> 0 | E12: 20 | G12: =cal!G11 -> Room temp. | H12: =cal!H11 -> 0 | I12: =cal!I11 -> 0 | J12: =cal!J11 -> 0 | K12: 27
G13: =cal!G12 -> Relative humidity | K13: 50%
D15: =cal!D14 -> 0.0000 | E15: =cal!E14 -> 1.0000 | F15: =cal!F14 -> 1.0000 | G15: 3.4121 | H15: =cal!H14 -> 1.0000 | I15: =cal!I14 -> 1.0000 | J15: =cal!J14 -> 1.0000 | K15: =cal!K14 -> 0 | L15: =cal!L14 -> 0 | M15: =cal!M14 -> 0 | N15: =cal!N14 -> 1.0000
B16: =cal!B15 -> Speed level: | C16: =cal!C15 -> Control voltage [V] | D16: =cal!D15 -> Heat output * 75/65/20 [W] | E16: =cal!E15 -> Water flowrate, heating [l/h] | F16: =cal!F15 -> Watersided pressure loss [kPa] | G16: =cal!G15 -> Sens. cooling capacity * 16/18/27 [W] | H16: =cal!H15 -> Tot. cooling capacity 16/18/27 [W] | I16: =cal!I15 -> Water flowrate, cooling [l/h] | J16: =cal!J15 -> Watersided pressure loss [kPa] | K16: =cal!K15 -> Sound pressure *** [dB(A)] | L16: =cal!L15 -> Sound power ** [dB(A)] | M16: =cal!M15 -> Electrical power [W] | N16: =cal!N15 -> Air flowrate [m³/h] | O16: =cal!O15 -> Air exhaust temp. heating [°C] | P16: =cal!P15 -> Air exhaust temp. cooling [°C]
B17: =cal!B16 -> Clima Canal height 13 cm width 32 cm length 70 cm (Type 1)
B18: =cal!B17 -> 20% | C18: =cal!C17 -> 2 | D18: =IF($E$10<=$E$11,cal!$AC$3,cal!D17) -> 313 | E18: =IF($E$10<=$E$11,"",cal!E17) -> 27 | F18: =IF($E$10<=$E$11,"",cal!F17) -> 0.01 | G18: =IF($K$10>=$K$11,cal!$AC$3,cal!G17) -> 67 | H18: =IF($K$10>=$K$11,"",cal!H17) -> 67 | I18: =IF($K$10>=$K$11,"",cal!I17) -> 29 | J18: =IF($K$10>=$K$11,"",cal!J17) -> 0.01 | K18: =cal!K17 -> 16.0 | L18: =cal!L17 -> 24.0 | M18: =cal!M17 -> 1.0 | N18: =cal!N17 -> 35
B19: =cal!B18 -> 40% | C19: =cal!C18 -> 4 | D19: =IF($E$10<=$E$11,cal!$AC$4,cal!D18) -> 692 | E19: =IF($E$10<=$E$11,"",cal!E18) -> 59 | F19: =IF($E$10<=$E$11,"",cal!F18) -> 0.05 | G19: =IF($K$10>=$K$11,cal!$AC$5,cal!G18) -> 122 | H19: =IF($K$10>=$K$11,"",cal!H18) -> 122 | I19: =IF($K$10>=$K$11,"",cal!I18) -> 53 | J19: =IF($K$10>=$K$11,"",cal!J18) -> 0.04 | K19: =cal!K18 -> 19.0 | L19: =cal!L18 -> 27.0 | M19: =cal!M18 -> 1.6 | N19: =cal!N18 -> 44
B20: =cal!B19 -> 60% | C20: =cal!C19 -> 6 | D20: =IF($E$10<=$E$11,"",cal!D19) -> 1031 | E20: =IF($E$10<=$E$11,"",cal!E19) -> 89 | F20: =IF($E$10<=$E$11,"",cal!F19) -> 0.11 | G20: =IF($K$10>=$K$11,"",cal!G19) -> 175 | H20: =IF($K$10>=$K$11,"",cal!H19) -> 175 | I20: =IF($K$10>=$K$11,"",cal!I19) -> 75 | J20: =IF($K$10>=$K$11,"",cal!J19) -> 0.08 | K20: =cal!K19 -> 27.0 | L20: =cal!L19 -> 35.0 | M20: =cal!M19 -> 3.2 | N20: =cal!N19 -> 85
B21: =cal!B20 -> 80% | C21: =cal!C20 -> 8 | D21: =IF($E$10<=$E$11,"",cal!D20) -> 1331 | E21: =IF($E$10<=$E$11,"",cal!E20) -> 114 | F21: =IF($E$10<=$E$11,"",cal!F20) -> 0.18 | G21: =IF($K$10>=$K$11,"",cal!G20) -> 224 | H21: =IF($K$10>=$K$11,"",cal!H20) -> 224 | I21: =IF($K$10>=$K$11,"",cal!I20) -> 96 | J21: =IF($K$10>=$K$11,"",cal!J20) -> 0.13 | K21: =cal!K20 -> 35.0 | L21: =cal!L20 -> 43.0 | M21: =cal!M20 -> 5.9 | N21: =cal!N20 -> 117
B22: =cal!B21 -> 100% | C22: =cal!C21 -> 10 | D22: =IF($E$10<=$E$11,"",cal!D21) -> 1592 | E22: =IF($E$10<=$E$11,"",cal!E21) -> 137 | F22: =IF($E$10<=$E$11,"",cal!F21) -> 0.26 | G22: =IF($K$10>=$K$11,"",cal!G21) -> 271 | H22: =IF($K$10>=$K$11,"",cal!H21) -> 271 | I22: =IF($K$10>=$K$11,"",cal!I21) -> 117 | J22: =IF($K$10>=$K$11,"",cal!J21) -> 0.19 | K22: =cal!K21 -> 38.0 | L22: =cal!L21 -> 46.0 | M22: =cal!M21 -> 8.8 | N22: =cal!N21 -> 137
B23: =cal!B22 -> Clima Canal height 13 cm width 32 cm length 100 cm (Type 2)
B24: =cal!B23 -> 20% | C24: =cal!C23 -> 2 | D24: =IF($E$10<=$E$11,cal!$AC$3,cal!D23) -> 593 | E24: =IF($E$10<=$E$11,"",cal!E23) -> 51 | F24: =IF($E$10<=$E$11,"",cal!F23) -> 0.05 | G24: =IF($K$10>=$K$11,cal!$AC$3,cal!G23) -> 128 | H24: =IF($K$10>=$K$11,"",cal!H23) -> 128 | I24: =IF($K$10>=$K$11,"",cal!I23) -> 55 | J24: =IF($K$10>=$K$11,"",cal!J23) -> 0.06 | K24: =cal!K23 -> 20.0 | L24: =cal!L23 -> 28.0 | M24: =cal!M23 -> 1.0 | N24: =cal!N23 -> 44
B25: =cal!B24 -> 40% | C25: =cal!C24 -> 4 | D25: =IF($E$10<=$E$11,cal!$AC$4,cal!D24) -> 1311 | E25: =IF($E$10<=$E$11,"",cal!E24) -> 113 | F25: =IF($E$10<=$E$11,"",cal!F24) -> 0.22 | G25: =IF($K$10>=$K$11,cal!$AC$5,cal!G24) -> 232 | H25: =IF($K$10>=$K$11,"",cal!H24) -> 232 | I25: =IF($K$10>=$K$11,"",cal!I24) -> 100 | J25: =IF($K$10>=$K$11,"",cal!J24) -> 0.18 | K25: =cal!K24 -> 25.0 | L25: =cal!L24 -> 33.0 | M25: =cal!M24 -> 1.8 | N25: =cal!N24 -> 85
B26: =cal!B25 -> 60% | C26: =cal!C25 -> 6 | D26: =IF($E$10<=$E$11,"",cal!D25) -> 1955 | E26: =IF($E$10<=$E$11,"",cal!E25) -> 168 | F26: =IF($E$10<=$E$11,"",cal!F25) -> 0.47 | G26: =IF($K$10>=$K$11,"",cal!G25) -> 331 | H26: =IF($K$10>=$K$11,"",cal!H25) -> 331 | I26: =IF($K$10>=$K$11,"",cal!I25) -> 142 | J26: =IF($K$10>=$K$11,"",cal!J25) -> 0.34 | K26: =cal!K25 -> 29.0 | L26: =cal!L25 -> 37.0 | M26: =cal!M25 -> 3.2 | N26: =cal!N25 -> 133
B27: =cal!B26 -> 80% | C27: =cal!C26 -> 8 | D27: =IF($E$10<=$E$11,"",cal!D26) -> 2523 | E27: =IF($E$10<=$E$11,"",cal!E26) -> 217 | F27: =IF($E$10<=$E$11,"",cal!F26) -> 0.77 | G27: =IF($K$10>=$K$11,"",cal!G26) -> 425 | H27: =IF($K$10>=$K$11,"",cal!H26) -> 425 | I27: =IF($K$10>=$K$11,"",cal!I26) -> 183 | J27: =IF($K$10>=$K$11,"",cal!J26) -> 0.56 | K27: =cal!K26 -> 36.0 | L27: =cal!L26 -> 44.0 | M27: =cal!M26 -> 6.4 | N27: =cal!N26 -> 168
B28: =cal!B27 -> 100% | C28: =cal!C27 -> 10 | D28: =IF($E$10<=$E$11,"",cal!D27) -> 3017 | E28: =IF($E$10<=$E$11,"",cal!E27) -> 259 | F28: =IF($E$10<=$E$11,"",cal!F27) -> 1.07 | G28: =IF($K$10>=$K$11,"",cal!G27) -> 515 | H28: =IF($K$10>=$K$11,"",cal!H27) -> 515 | I28: =IF($K$10>=$K$11,"",cal!I27) -> 221 | J28: =IF($K$10>=$K$11,"",cal!J27) -> 0.80 | K28: =cal!K27 -> 39.0 | L28: =cal!L27 -> 47.0 | M28: =cal!M27 -> 10.3 | N28: =cal!N27 -> 202
B29: =cal!B28 -> Clima Canal height 13 cm width 32 cm length 120 cm (Type 3)
B30: =cal!B29 -> 20% | C30: =cal!C29 -> 2 | D30: =IF($E$10<=$E$11,cal!$AC$3,cal!D29) -> 780 | E30: =IF($E$10<=$E$11,"",cal!E29) -> 67 | F30: =IF($E$10<=$E$11,"",cal!F29) -> 0.10 | G30: =IF($K$10>=$K$11,cal!$AC$3,cal!G29) -> 168 | H30: =IF($K$10>=$K$11,"",cal!H29) -> 168 | I30: =IF($K$10>=$K$11,"",cal!I29) -> 72 | J30: =IF($K$10>=$K$11,"",cal!J29) -> 0.11 | K30: =cal!K29 -> 20.0 | L30: =cal!L29 -> 28.0 | M30: =cal!M29 -> 1.4 | N30: =cal!N29 -> 49
B31: =cal!B30 -> 40% | C31: =cal!C30 -> 4 | D31: =IF($E$10<=$E$11,cal!$AC$4,cal!D30) -> 1724 | E31: =IF($E$10<=$E$11,"",cal!E30) -> 148 | F31: =IF($E$10<=$E$11,"",cal!F30) -> 0.42 | G31: =IF($K$10>=$K$11,cal!$AC$5,cal!G30) -> 305 | H31: =IF($K$10>=$K$11,"",cal!H30) -> 305 | I31: =IF($K$10>=$K$11,"",cal!I30) -> 131 | J31: =IF($K$10>=$K$11,"",cal!J30) -> 0.34 | K31: =cal!K30 -> 26.0 | L31: =cal!L30 -> 34.0 | M31: =cal!M30 -> 2.4 | N31: =cal!N30 -> 114
B32: =cal!B31 -> 60% | C32: =cal!C31 -> 6 | D32: =IF($E$10<=$E$11,"",cal!D31) -> 2570 | E32: =IF($E$10<=$E$11,"",cal!E31) -> 221 | F32: =IF($E$10<=$E$11,"",cal!F31) -> 0.90 | G32: =IF($K$10>=$K$11,"",cal!G31) -> 435 | H32: =IF($K$10>=$K$11,"",cal!H31) -> 435 | I32: =IF($K$10>=$K$11,"",cal!I31) -> 187 | J32: =IF($K$10>=$K$11,"",cal!J31) -> 0.66 | K32: =cal!K31 -> 30.0 | L32: =cal!L31 -> 38.0 | M32: =cal!M31 -> 4.2 | N32: =cal!N31 -> 174
B33: =cal!B32 -> 80% | C33: =cal!C32 -> 8 | D33: =IF($E$10<=$E$11,"",cal!D32) -> 3318 | E33: =IF($E$10<=$E$11,"",cal!E32) -> 285 | F33: =IF($E$10<=$E$11,"",cal!F32) -> 1.44 | G33: =IF($K$10>=$K$11,"",cal!G32) -> 559 | H33: =IF($K$10>=$K$11,"",cal!H32) -> 559 | I33: =IF($K$10>=$K$11,"",cal!I32) -> 240 | J33: =IF($K$10>=$K$11,"",cal!J32) -> 1.05 | K33: =cal!K32 -> 37.0 | L33: =cal!L32 -> 45.0 | M33: =cal!M32 -> 7.2 | N33: =cal!N32 -> 235
B34: =cal!B33 -> 100% | C34: =cal!C33 -> 10 | D34: =IF($E$10<=$E$11,"",cal!D33) -> 3967 | E34: =IF($E$10<=$E$11,"",cal!E33) -> 341 | F34: =IF($E$10<=$E$11,"",cal!F33) -> 2.02 | G34: =IF($K$10>=$K$11,"",cal!G33) -> 677 | H34: =IF($K$10>=$K$11,"",cal!H33) -> 677 | I34: =IF($K$10>=$K$11,"",cal!I33) -> 291 | J34: =IF($K$10>=$K$11,"",cal!J33) -> 1.50 | K34: =cal!K33 -> 40.0 | L34: =cal!L33 -> 48.0 | M34: =cal!M33 -> 10.6 | N34: =cal!N33 -> 273
B35: =cal!B34 -> Clima Canal height 13 cm width 32 cm length 140 cm (Type 4)
B36: =cal!B35 -> 20% | C36: =cal!C35 -> 2 | D36: =IF($E$10<=$E$11,cal!$AC$3,cal!D35) -> 966 | E36: =IF($E$10<=$E$11,"",cal!E35) -> 83 | F36: =IF($E$10<=$E$11,"",cal!F35) -> 0.16 | G36: =IF($K$10>=$K$11,cal!$AC$3,cal!G35) -> 208 | H36: =IF($K$10>=$K$11,"",cal!H35) -> 208 | I36: =IF($K$10>=$K$11,"",cal!I35) -> 89 | J36: =IF($K$10>=$K$11,"",cal!J35) -> 0.18 | K36: =cal!K35 -> 21.5 | L36: =cal!L35 -> 29.5 | M36: =cal!M35 -> 2.0 | N36: =cal!N35 -> 79
B37: =cal!B36 -> 40% | C37: =cal!C36 -> 4 | D37: =IF($E$10<=$E$11,cal!$AC$4,cal!D36) -> 2137 | E37: =IF($E$10<=$E$11,"",cal!E36) -> 184 | F37: =IF($E$10<=$E$11,"",cal!F36) -> 0.71 | G37: =IF($K$10>=$K$11,cal!$AC$5,cal!G36) -> 378 | H37: =IF($K$10>=$K$11,"",cal!H36) -> 378 | I37: =IF($K$10>=$K$11,"",cal!I36) -> 162 | J37: =IF($K$10>=$K$11,"",cal!J36) -> 0.56 | K37: =cal!K36 -> 26.0 | L37: =cal!L36 -> 34.0 | M37: =cal!M36 -> 3.4 | N37: =cal!N36 -> 129
B38: =cal!B37 -> 60% | C38: =cal!C37 -> 6 | D38: =IF($E$10<=$E$11,"",cal!D37) -> 3186 | E38: =IF($E$10<=$E$11,"",cal!E37) -> 274 | F38: =IF($E$10<=$E$11,"",cal!F37) -> 1.49 | G38: =IF($K$10>=$K$11,"",cal!G37) -> 539 | H38: =IF($K$10>=$K$11,"",cal!H37) -> 539 | I38: =IF($K$10>=$K$11,"",cal!I37) -> 232 | J38: =IF($K$10>=$K$11,"",cal!J37) -> 1.09 | K38: =cal!K37 -> 31.0 | L38: =cal!L37 -> 39.0 | M38: =cal!M37 -> 6.4 | N38: =cal!N37 -> 218
B39: =cal!B38 -> 80% | C39: =cal!C38 -> 8 | D39: =IF($E$10<=$E$11,"",cal!D38) -> 4113 | E39: =IF($E$10<=$E$11,"",cal!E38) -> 354 | F39: =IF($E$10<=$E$11,"",cal!F38) -> 2.40 | G39: =IF($K$10>=$K$11,"",cal!G38) -> 693 | H39: =IF($K$10>=$K$11,"",cal!H38) -> 693 | I39: =IF($K$10>=$K$11,"",cal!I38) -> 298 | J39: =IF($K$10>=$K$11,"",cal!J38) -> 1.74 | K39: =cal!K38 -> 38.5 | L39: =cal!L38 -> 46.5 | M39: =cal!M38 -> 12.3 | N39: =cal!N38 -> 285
B40: =cal!B39 -> 100% | C40: =cal!C39 -> 10 | D40: =IF($E$10<=$E$11,"",cal!D39) -> 4917 | E40: =IF($E$10<=$E$11,"",cal!E39) -> 423 | F40: =IF($E$10<=$E$11,"",cal!F39) -> 3.35 | G40: =IF($K$10>=$K$11,"",cal!G39) -> 839 | H40: =IF($K$10>=$K$11,"",cal!H39) -> 839 | I40: =IF($K$10>=$K$11,"",cal!I39) -> 361 | J40: =IF($K$10>=$K$11,"",cal!J39) -> 2.49 | K40: =cal!K39 -> 41.5 | L40: =cal!L39 -> 49.5 | M40: =cal!M39 -> 19.1 | N40: =cal!N39 -> 339
B41: =IF(cal!$X$16=1,"",IF(cal!$X$16=2,"",cal!B40)) -> Clima Canal height 13 cm width 32 cm length 170 cm (Type 5)
B42: =cal!B41 -> 20% | C42: =cal!C41 -> 2 | D42: =IF($E$10<=$E$11,cal!$AC$3,cal!D41) -> 1246 | E42: =IF($E$10<=$E$11,"",cal!E41) -> 107 | F42: =IF($E$10<=$E$11,"",cal!F41) -> 0.30 | G42: =IF($K$10>=$K$11,cal!$AC$3,cal!G41) -> 268 | H42: =IF($K$10>=$K$11,"",cal!H41) -> 268 | I42: =IF($K$10>=$K$11,"",cal!I41) -> 115 | J42: =IF($K$10>=$K$11,"",cal!J41) -> 0.34 | K42: =IF(cal!K41=-8,"",cal!K41) -> 22.0 | L42: =IF(cal!L41=0,"",cal!L41) -> 30.0 | M42: =IF(cal!M41=0,"",cal!M41) -> 2.4 | N42: =IF(cal!N41=0,"",cal!N41) -> 84
B43: =cal!B42 -> 40% | C43: =cal!C42 -> 4 | D43: =IF($E$10<=$E$11,cal!$AC$4,cal!D42) -> 2757 | E43: =IF($E$10<=$E$11,"",cal!E42) -> 237 | F43: =IF($E$10<=$E$11,"",cal!F42) -> 1.31 | G43: =IF($K$10>=$K$11,cal!$AC$5,cal!G42) -> 487 | H43: =IF($K$10>=$K$11,"",cal!H42) -> 487 | I43: =IF($K$10>=$K$11,"",cal!I42) -> 209 | J43: =IF($K$10>=$K$11,"",cal!J42) -> 1.04 | K43: =IF(cal!K42=-8,"",cal!K42) -> 27.0 | L43: =IF(cal!L42=0,"",cal!L42) -> 35.0 | M43: =IF(cal!M42=0,"",cal!M42) -> 4.0 | N43: =IF(cal!N42=0,"",cal!N42) -> 158
B44: =cal!B43 -> 60% | C44: =cal!C43 -> 6 | D44: =IF($E$10<=$E$11,"",cal!D43) -> 4110 | E44: =IF($E$10<=$E$11,"",cal!E43) -> 353 | F44: =IF($E$10<=$E$11,"",cal!F43) -> 2.74 | G44: =IF($K$10>=$K$11,"",cal!G43) -> 696 | H44: =IF($K$10>=$K$11,"",cal!H43) -> 696 | I44: =IF($K$10>=$K$11,"",cal!I43) -> 299 | J44: =IF($K$10>=$K$11,"",cal!J43) -> 2.01 | K44: =IF(cal!K43=-8,"",cal!K43) -> 32.0 | L44: =IF(cal!L43=0,"",cal!L43) -> 40.0 | M44: =IF(cal!M43=0,"",cal!M43) -> 7.4 | N44: =IF(cal!N43=0,"",cal!N43) -> 259
B45: =cal!B44 -> 80% | C45: =cal!C44 -> 8 | D45: =IF($E$10<=$E$11,"",cal!D44) -> 5305 | E45: =IF($E$10<=$E$11,"",cal!E44) -> 456 | F45: =IF($E$10<=$E$11,"",cal!F44) -> 4.39 | G45: =IF($K$10>=$K$11,"",cal!G44) -> 894 | H45: =IF($K$10>=$K$11,"",cal!H44) -> 894 | I45: =IF($K$10>=$K$11,"",cal!I44) -> 384 | J45: =IF($K$10>=$K$11,"",cal!J44) -> 3.20 | K45: =IF(cal!K44=-8,"",cal!K44) -> 39.0 | L45: =IF(cal!L44=0,"",cal!L44) -> 47.0 | M45: =IF(cal!M44=0,"",cal!M44) -> 13.1 | N45: =IF(cal!N44=0,"",cal!N44) -> 352
B46: =cal!B45 -> 100% | C46: =cal!C45 -> 10 | D46: =IF($E$10<=$E$11,"",cal!D45) -> 6343 | E46: =IF($E$10<=$E$11,"",cal!E45) -> 545 | F46: =IF($E$10<=$E$11,"",cal!F45) -> 6.10 | G46: =IF($K$10>=$K$11,"",cal!G45) -> 1082 | H46: =IF($K$10>=$K$11,"",cal!H45) -> 1082 | I46: =IF($K$10>=$K$11,"",cal!I45) -> 465 | J46: =IF($K$10>=$K$11,"",cal!J45) -> 4.55 | K46: =IF(cal!K45=-8,"",cal!K45) -> 42.0 | L46: =IF(cal!L45=0,"",cal!L45) -> 50.0 | M46: =IF(cal!M45=0,"",cal!M45) -> 19.4 | N46: =IF(cal!N45=0,"",cal!N45) -> 410
B47: =IF(cal!$X$16=1,"",IF(cal!$X$16=2,"",cal!B46)) -> Clima Canal height 13 cm width 32 cm length 200 cm (Type 6)
B48: =cal!B47 -> 20% | C48: =cal!C47 -> 2 | D48: =IF($E$10<=$E$11,cal!$AC$3,cal!D47) -> 1527 | E48: =IF($E$10<=$E$11,"",cal!E47) -> 131 | F48: =IF($E$10<=$E$11,"",cal!F47) -> 0.50 | G48: =IF($K$10>=$K$11,cal!$AC$3,cal!G47) -> 328 | H48: =IF($K$10>=$K$11,"",cal!H47) -> 328 | I48: =IF($K$10>=$K$11,"",cal!I47) -> 141 | J48: =IF($K$10>=$K$11,"",cal!J47) -> 0.57 | K48: =IF(cal!K47=-8,"",cal!K47) -> 23.0 | L48: =IF(cal!L47=0,"",cal!L47) -> 31.0 | M48: =IF(cal!M47=0,"",cal!M47) -> 2.4 | N48: =IF(cal!N47=0,"",cal!N47) -> 93
B49: =cal!B48 -> 40% | C49: =cal!C48 -> 4 | D49: =IF($E$10<=$E$11,cal!$AC$4,cal!D48) -> 3376 | E49: =IF($E$10<=$E$11,"",cal!E48) -> 290 | F49: =IF($E$10<=$E$11,"",cal!F48) -> 2.15 | G49: =IF($K$10>=$K$11,cal!$AC$5,cal!G48) -> 596 | H49: =IF($K$10>=$K$11,"",cal!H48) -> 596 | I49: =IF($K$10>=$K$11,"",cal!I48) -> 256 | J49: =IF($K$10>=$K$11,"",cal!J48) -> 1.71 | K49: =IF(cal!K48=-8,"",cal!K48) -> 28.5 | L49: =IF(cal!L48=0,"",cal!L48) -> 36.5 | M49: =IF(cal!M48=0,"",cal!M48) -> 4.2 | N49: =IF(cal!N48=0,"",cal!N48) -> 199
B50: =cal!B49 -> 60% | C50: =cal!C49 -> 6 | D50: =IF($E$10<=$E$11,"",cal!D49) -> 5033 | E50: =IF($E$10<=$E$11,"",cal!E49) -> 433 | F50: =IF($E$10<=$E$11,"",cal!F49) -> 4.48 | G50: =IF($K$10>=$K$11,"",cal!G49) -> 852 | H50: =IF($K$10>=$K$11,"",cal!H49) -> 852 | I50: =IF($K$10>=$K$11,"",cal!I49) -> 366 | J50: =IF($K$10>=$K$11,"",cal!J49) -> 3.29 | K50: =IF(cal!K49=-8,"",cal!K49) -> 32.5 | L50: =IF(cal!L49=0,"",cal!L49) -> 40.5 | M50: =IF(cal!M49=0,"",cal!M49) -> 7.4 | N50: =IF(cal!N49=0,"",cal!N49) -> 307
B51: =cal!B50 -> 80% | C51: =cal!C50 -> 8 | D51: =IF($E$10<=$E$11,"",cal!D50) -> 6497 | E51: =IF($E$10<=$E$11,"",cal!E50) -> 559 | F51: =IF($E$10<=$E$11,"",cal!F50) -> 7.16 | G51: =IF($K$10>=$K$11,"",cal!G50) -> 1095 | H51: =IF($K$10>=$K$11,"",cal!H50) -> 1095 | I51: =IF($K$10>=$K$11,"",cal!I50) -> 471 | J51: =IF($K$10>=$K$11,"",cal!J50) -> 5.23 | K51: =IF(cal!K50=-8,"",cal!K50) -> 39.5 | L51: =IF(cal!L50=0,"",cal!L50) -> 47.5 | M51: =IF(cal!M50=0,"",cal!M50) -> 13.6 | N51: =IF(cal!N50=0,"",cal!N50) -> 403
B52: =cal!B51 -> 100% | C52: =cal!C51 -> 10 | D52: =IF($E$10<=$E$11,"",cal!D51) -> 7768 | E52: =IF($E$10<=$E$11,"",cal!E51) -> 668 | F52: =IF($E$10<=$E$11,"",cal!F51) -> 9.93 | G52: =IF($K$10>=$K$11,"",cal!G51) -> 1325 | H52: =IF($K$10>=$K$11,"",cal!H51) -> 1325 | I52: =IF($K$10>=$K$11,"",cal!I51) -> 570 | J52: =IF($K$10>=$K$11,"",cal!J51) -> 7.42 | K52: =IF(cal!K51=-8,"",cal!K51) -> 42.5 | L52: =IF(cal!L51=0,"",cal!L51) -> 50.5 | M52: =IF(cal!M51=0,"",cal!M51) -> 20.9 | N52: =IF(cal!N51=0,"",cal!N51) -> 475
B53: =IF(cal!$X$16=1,"",IF(cal!$X$16=2,"",cal!B52)) -> Clima Canal height 13 cm width 32 cm length 230 cm (Type 7)
B54: =cal!B53 -> 20% | C54: =cal!C53 -> 2 | D54: =IF($E$10<=$E$11,cal!$AC$3,cal!D53) -> 1807 | E54: =IF($E$10<=$E$11,"",cal!E53) -> 155 | F54: =IF($E$10<=$E$11,"",cal!F53) -> 0.76 | G54: =IF($K$10>=$K$11,cal!$AC$3,cal!G53) -> 389 | H54: =IF($K$10>=$K$11,"",cal!H53) -> 389 | I54: =IF($K$10>=$K$11,"",cal!I53) -> 167 | J54: =IF($K$10>=$K$11,"",cal!J53) -> 0.87 | K54: =IF(cal!K53=-8,"",cal!K53) -> 23.0 | L54: =IF(cal!L53=0,"",cal!L53) -> 31.0 | M54: =IF(cal!M53=0,"",cal!M53) -> 2.8 | N54: =IF(cal!N53=0,"",cal!N53) -> 98
B55: =cal!B54 -> 40% | C55: =cal!C54 -> 4 | D55: =IF($E$10<=$E$11,cal!$AC$4,cal!D54) -> 3996 | E55: =IF($E$10<=$E$11,"",cal!E54) -> 344 | F55: =IF($E$10<=$E$11,"",cal!F54) -> 3.27 | G55: =IF($K$10>=$K$11,cal!$AC$5,cal!G54) -> 706 | H55: =IF($K$10>=$K$11,"",cal!H54) -> 706 | I55: =IF($K$10>=$K$11,"",cal!I54) -> 303 | J55: =IF($K$10>=$K$11,"",cal!J54) -> 2.59 | K55: =IF(cal!K54=-8,"",cal!K54) -> 29.0 | L55: =IF(cal!L54=0,"",cal!L54) -> 37.0 | M55: =IF(cal!M54=0,"",cal!M54) -> 4.8 | N55: =IF(cal!N54=0,"",cal!N54) -> 228
B56: =cal!B55 -> 60% | C56: =cal!C55 -> 6 | D56: =IF($E$10<=$E$11,"",cal!D55) -> 5957 | E56: =IF($E$10<=$E$11,"",cal!E55) -> 512 | F56: =IF($E$10<=$E$11,"",cal!F55) -> 6.75 | G56: =IF($K$10>=$K$11,"",cal!G55) -> 1008 | H56: =IF($K$10>=$K$11,"",cal!H55) -> 1008 | I56: =IF($K$10>=$K$11,"",cal!I55) -> 433 | J56: =IF($K$10>=$K$11,"",cal!J55) -> 4.97 | K56: =IF(cal!K55=-8,"",cal!K55) -> 33.0 | L56: =IF(cal!L55=0,"",cal!L55) -> 41.0 | M56: =IF(cal!M55=0,"",cal!M55) -> 8.4 | N56: =IF(cal!N55=0,"",cal!N55) -> 348
B57: =cal!B56 -> 80% | C57: =cal!C56 -> 8 | D57: =IF($E$10<=$E$11,"",cal!D56) -> 7689 | E57: =IF($E$10<=$E$11,"",cal!E56) -> 661 | F57: =IF($E$10<=$E$11,"",cal!F56) -> 10.76 | G57: =IF($K$10>=$K$11,"",cal!G56) -> 1295 | H57: =IF($K$10>=$K$11,"",cal!H56) -> 1295 | I57: =IF($K$10>=$K$11,"",cal!I56) -> 557 | J57: =IF($K$10>=$K$11,"",cal!J56) -> 7.88 | K57: =IF(cal!K56=-8,"",cal!K56) -> 40.0 | L57: =IF(cal!L56=0,"",cal!L56) -> 48.0 | M57: =IF(cal!M56=0,"",cal!M56) -> 14.4 | N57: =IF(cal!N56=0,"",cal!N56) -> 470
B58: =cal!B57 -> 100% | C58: =cal!C57 -> 10 | D58: =IF($E$10<=$E$11,"",cal!D57) -> 9193 | E58: =IF($E$10<=$E$11,"",cal!E57) -> 790 | F58: =IF($E$10<=$E$11,"",cal!F57) -> 14.91 | G58: =IF($K$10>=$K$11,"",cal!G57) -> 1568 | H58: =IF($K$10>=$K$11,"",cal!H57) -> 1568 | I58: =IF($K$10>=$K$11,"",cal!I57) -> 674 | J58: =IF($K$10>=$K$11,"",cal!J57) -> 11.15 | K58: =IF(cal!K57=-8,"",cal!K57) -> 43.0 | L58: =IF(cal!L57=0,"",cal!L57) -> 51.0 | M58: =IF(cal!M57=0,"",cal!M57) -> 21.2 | N58: =IF(cal!N57=0,"",cal!N57) -> 546
B59: =IF(cal!$X$16=1,"",IF(cal!$X$16=2,"",cal!B58)) -> Clima Canal height 13 cm width 32 cm length 280 cm (Type 8)
B60: =cal!B59 -> 20% | C60: =cal!C59 -> 2 | D60: =IF($E$10<=$E$11,cal!$AC$3,cal!D59) -> 2273 | E60: =IF($E$10<=$E$11,"",cal!E59) -> 195 | F60: =IF($E$10<=$E$11,"",cal!F59) -> 1.41 | G60: =IF($K$10>=$K$11,cal!$AC$3,cal!G59) -> 489 | H60: =IF($K$10>=$K$11,"",cal!H59) -> 489 | I60: =IF($K$10>=$K$11,"",cal!I59) -> 210 | J60: =IF($K$10>=$K$11,"",cal!J59) -> 1.56 | K60: =IF(cal!K59=-8,"",cal!K59) -> 24.0 | L60: =IF(cal!L59=0,"",cal!L59) -> 32.0 | M60: =IF(cal!M59=0,"",cal!M59) -> 3.8 | N60: =IF(cal!N59=0,"",cal!N59) -> 133
B61: =cal!B60 -> 40% | C61: =cal!C60 -> 4 | D61: =IF($E$10<=$E$11,cal!$AC$4,cal!D60) -> 5028 | E61: =IF($E$10<=$E$11,"",cal!E60) -> 432 | F61: =IF($E$10<=$E$11,"",cal!F60) -> 5.97 | G61: =IF($K$10>=$K$11,cal!$AC$5,cal!G60) -> 888 | H61: =IF($K$10>=$K$11,"",cal!H60) -> 888 | I61: =IF($K$10>=$K$11,"",cal!I60) -> 382 | J61: =IF($K$10>=$K$11,"",cal!J60) -> 4.62 | K61: =IF(cal!K60=-8,"",cal!K60) -> 29.5 | L61: =IF(cal!L60=0,"",cal!L60) -> 37.5 | M61: =IF(cal!M60=0,"",cal!M60) -> 6.4 | N61: =IF(cal!N60=0,"",cal!N60) -> 272
B62: =cal!B61 -> 60% | C62: =cal!C61 -> 6 | D62: =IF($E$10<=$E$11,"",cal!D61) -> 7496 | E62: =IF($E$10<=$E$11,"",cal!E61) -> 645 | F62: =IF($E$10<=$E$11,"",cal!F61) -> 12.33 | G62: =IF($K$10>=$K$11,"",cal!G61) -> 1269 | H62: =IF($K$10>=$K$11,"",cal!H61) -> 1269 | I62: =IF($K$10>=$K$11,"",cal!I61) -> 545 | J62: =IF($K$10>=$K$11,"",cal!J61) -> 8.80 | K62: =IF(cal!K61=-8,"",cal!K61) -> 34.0 | L62: =IF(cal!L61=0,"",cal!L61) -> 42.0 | M62: =IF(cal!M61=0,"",cal!M61) -> 11.6 | N62: =IF(cal!N61=0,"",cal!N61) -> 433
B63: =cal!B62 -> 80% | C63: =cal!C62 -> 8 | D63: =IF($E$10<=$E$11,"",cal!D62) -> 9676 | E63: =IF($E$10<=$E$11,"",cal!E62) -> 832 | F63: =IF($E$10<=$E$11,"",cal!F62) -> 19.54 | G63: =IF($K$10>=$K$11,"",cal!G62) -> 1630 | H63: =IF($K$10>=$K$11,"",cal!H62) -> 1630 | I63: =IF($K$10>=$K$11,"",cal!I62) -> 701 | J63: =IF($K$10>=$K$11,"",cal!J62) -> 13.88 | K63: =IF(cal!K62=-8,"",cal!K62) -> 41.0 | L63: =IF(cal!L62=0,"",cal!L62) -> 49.0 | M63: =IF(cal!M62=0,"",cal!M62) -> 20.3 | N63: =IF(cal!N62=0,"",cal!N62) -> 587
B64: =cal!B63 -> 100% | C64: =cal!C63 -> 10 | D64: =IF($E$10<=$E$11,"",cal!D63) -> 11569 | E64: =IF($E$10<=$E$11,"",cal!E63) -> 995 | F64: =IF($E$10<=$E$11,"",cal!F63) -> 27.02 | G64: =IF($K$10>=$K$11,"",cal!G63) -> 1973 | H64: =IF($K$10>=$K$11,"",cal!H63) -> 1973 | I64: =IF($K$10>=$K$11,"",cal!I63) -> 848 | J64: =IF($K$10>=$K$11,"",cal!J63) -> 19.60 | K64: =IF(cal!K63=-8,"",cal!K63) -> 44.0 | L64: =IF(cal!L63=0,"",cal!L63) -> 52.0 | M64: =IF(cal!M63=0,"",cal!M63) -> 30.0 | N64: =IF(cal!N63=0,"",cal!N63) -> 683
B65: =IF(cal!$X$16=1,"",IF(cal!$X$16=2,"",cal!B64)) -> Clima Canal height 13 cm width 32 cm length 300 cm (Type 9)
B66: =cal!B65 -> 20% | C66: =cal!C65 -> 2 | D66: =IF($E$10<=$E$11,cal!$AC$3,cal!D65) -> 2460 | E66: =IF($E$10<=$E$11,"",cal!E65) -> 212 | F66: =IF($E$10<=$E$11,"",cal!F65) -> 1.64 | G66: =IF($K$10>=$K$11,cal!$AC$3,cal!G65) -> 529 | H66: =IF($K$10>=$K$11,"",cal!H65) -> 529 | I66: =IF($K$10>=$K$11,"",cal!I65) -> 228 | J66: =IF($K$10>=$K$11,"",cal!J65) -> 1.88 | K66: =IF(cal!K65=-8,"",cal!K65) -> 25.0 | L66: =IF(cal!L65=0,"",cal!L65) -> 33.0 | M66: =IF(cal!M65=0,"",cal!M65) -> 4.8 | N66: =IF(cal!N65=0,"",cal!N65) -> 142
B67: =cal!B66 -> 40% | C67: =cal!C66 -> 4 | D67: =IF($E$10<=$E$11,cal!$AC$4,cal!D66) -> 5441 | E67: =IF($E$10<=$E$11,"",cal!E66) -> 468 | F67: =IF($E$10<=$E$11,"",cal!F66) -> 6.90 | G67: =IF($K$10>=$K$11,cal!$AC$5,cal!G66) -> 961 | H67: =IF($K$10>=$K$11,"",cal!H66) -> 961 | I67: =IF($K$10>=$K$11,"",cal!I66) -> 413 | J67: =IF($K$10>=$K$11,"",cal!J66) -> 5.50 | K67: =IF(cal!K66=-8,"",cal!K66) -> 31.0 | L67: =IF(cal!L66=0,"",cal!L66) -> 39.0 | M67: =IF(cal!M66=0,"",cal!M66) -> 8.0 | N67: =IF(cal!N66=0,"",cal!N66) -> 313
B68: =cal!B67 -> 60% | C68: =cal!C67 -> 6 | D68: =IF($E$10<=$E$11,"",cal!D67) -> 8111 | E68: =IF($E$10<=$E$11,"",cal!E67) -> 697 | F68: =IF($E$10<=$E$11,"",cal!F67) -> 14.18 | G68: =IF($K$10>=$K$11,"",cal!G67) -> 1373 | H68: =IF($K$10>=$K$11,"",cal!H67) -> 1373 | I68: =IF($K$10>=$K$11,"",cal!I67) -> 590 | J68: =IF($K$10>=$K$11,"",cal!J67) -> 10.49 | K68: =IF(cal!K67=-8,"",cal!K67) -> 35.0 | L68: =IF(cal!L67=0,"",cal!L67) -> 43.0 | M68: =IF(cal!M67=0,"",cal!M67) -> 14.8 | N68: =IF(cal!N67=0,"",cal!N67) -> 481
B69: =cal!B68 -> 80% | C69: =cal!C68 -> 8 | D69: =IF($E$10<=$E$11,"",cal!D68) -> 10471 | E69: =IF($E$10<=$E$11,"",cal!E68) -> 900 | F69: =IF($E$10<=$E$11,"",cal!F68) -> 22.53 | G69: =IF($K$10>=$K$11,"",cal!G68) -> 1764 | H69: =IF($K$10>=$K$11,"",cal!H68) -> 1764 | I69: =IF($K$10>=$K$11,"",cal!I68) -> 758 | J69: =IF($K$10>=$K$11,"",cal!J68) -> 16.51 | K69: =IF(cal!K68=-8,"",cal!K68) -> 42.0 | L69: =IF(cal!L68=0,"",cal!L68) -> 50.0 | M69: =IF(cal!M68=0,"",cal!M68) -> 26.2 | N69: =IF(cal!N68=0,"",cal!N68) -> 638
B70: =cal!B69 -> 100% | C70: =cal!C69 -> 10 | D70: =IF($E$10<=$E$11,"",cal!D69) -> 12519 | E70: =IF($E$10<=$E$11,"",cal!E69) -> 1076 | F70: =IF($E$10<=$E$11,"",cal!F69) -> 31.13 | G70: =IF($K$10>=$K$11,"",cal!G69) -> 2135 | H70: =IF($K$10>=$K$11,"",cal!H69) -> 2135 | I70: =IF($K$10>=$K$11,"",cal!I69) -> 918 | J70: =IF($K$10>=$K$11,"",cal!J69) -> 23.35 | K70: =IF(cal!K69=-8,"",cal!K69) -> 45.0 | L70: =IF(cal!L69=0,"",cal!L69) -> 53.0 | M70: =IF(cal!M69=0,"",cal!M69) -> 38.8 | N70: =IF(cal!N69=0,"",cal!N69) -> 748
B71: =cal!B70 -> *Values according to EN 16430 | P71: v2022-12-13
B72: =cal!B71 -> **Sound power according to ISO 3741:2010
B73: =cal!B72 -> ***Sound pressure with an assumed room damping of 8dB(A)

Sheet cal (hidden)
G1: Nederlands | H1: English | I1: Deutsch | J1: Français | K1: Norsk | L1: Español | M1: Svenska | N1: Čeština | O1: ExtraTaal1 | P1: ExtraTaal2 | Q1: ExtraTaal3 | U1: =IF($S$7=1,NL!Q7,IF($S$7=2,EN!Q7,IF($S$7=3,DE!Q7,IF($S$7=4,FR!Q7,IF($S$7=5,NR!Q7,IF($S$7=6,SP!Q7,IF($S$7=7,SW!Q7,IF($S$7=8,TS!Q7,IF($S$7=9,ExtraTaal1!Q7,IF($S$7=10,ExtraTaal2!Q7,IF($S$7=11,ExtraTaal3!Q7,))))))))))) -> Copy all data | AF1: Clima Canal
U2: =IF($S$7=1,NL!Q8,IF($S$7=2,EN!Q8,IF($S$7=3,DE!Q8,IF($S$7=4,FR!Q8,IF($S$7=5,NR!Q8,IF($S$7=6,SP!Q8,IF($S$7=7,SW!Q8,IF($S$7=8,TS!Q8,IF($S$7=9,ExtraTaal1!Q8,IF($S$7=10,ExtraTaal2!Q8,IF($S$7=11,ExtraTaal3!Q8,))))))))))) -> SI-units | AE2: Clima H8 B18 | AF2: =AE16 -> Clima H8 B18
B3: =IF($S$7=1,NL!A2,IF(cal!$S$7=2,EN!A2,IF(cal!$S$7=3,DE!A2,IF(cal!$S$7=4,FR!A2,)))) -> Formulary | U3: =IF($S$7=1,NL!Q9,IF($S$7=2,EN!Q9,IF($S$7=3,DE!Q9,IF($S$7=4,FR!Q9,IF($S$7=5,NR!Q9,IF($S$7=6,SP!Q9,IF($S$7=7,SW!Q9,IF($S$7=8,TS!Q9,IF($S$7=9,ExtraTaal1!Q9,IF($S$7=10,ExtraTaal2!Q9,IF($S$7=11,ExtraTaal3!Q9,))))))))))) -> Imperial-units | AC3: =IF($S$7=1,NL!Q15,IF(cal!$S$7=2,EN!Q15,IF(cal!$S$7=3,DE!Q15,IF(cal!$S$7=4,FR!Q15,IF(cal!$S$7=5,NR!Q15,IF(cal!$S$7=6,SP!Q15,)))))) -> Temp. | AE3: Clima H10 B18 | AF3: =AL16 -> Clima H10 B18
X4: 1 | AC4: =IF($S$7=1,NL!Q16,IF(cal!$S$7=2,EN!Q16,IF(cal!$S$7=3,DE!Q16,IF(cal!$S$7=4,FR!Q16,IF(cal!$S$7=5,NR!Q16,IF(cal!$S$7=6,SP!Q16,)))))) -> heating! | AE4: Clima H13 B27 4P | AF4: =AW16 -> Clima H13 B27 4P
B5: =IF($S$7=1,NL!A4,IF(cal!$S$7=2,EN!A4,IF(cal!$S$7=3,DE!A4,IF(cal!$S$7=4,FR!A4,)))) -> Conditions | AC5: =IF($S$7=1,NL!Q17,IF(cal!$S$7=2,EN!Q17,IF(cal!$S$7=3,DE!Q17,IF(cal!$S$7=4,FR!Q17,IF(cal!$S$7=5,NR!Q17,IF(cal!$S$7=6,SP!Q17,)))))) -> cooling! | AE5: Clima H13 B32 2P | AF5: =BK16 -> Clima H13 B32 2P
AE6: Clima H13 B32 4P | AF6: =BD16 -> Clima H13 B32 4P
B7: =IF($S$7=1,NL!A6,IF(cal!$S$7=2,EN!A6,IF(cal!$S$7=3,DE!A6,IF(cal!$S$7=4,FR!A6,IF(cal!$S$7=5,NR!A6,IF(cal!$S$7=6,SP!A6,IF(cal!$S$7=7,SW!A6,IF(cal!$S$7=8,TS!A6,IF(cal!$S$7=9,ExtraTaal1!A6,IF(cal!$S$7=10,ExtraTaal2!A6,IF(cal!$S$7=11,ExtraTaal3!A6,))))))))))) -> Temperatures | M7: =IF($S$7=1,NL!L6,IF(cal!$S$7=2,EN!L6,IF(cal!$S$7=3,DE!L6,IF(cal!$S$7=4,FR!L6,IF(cal!$S$7=5,NR!L6,IF(cal!$S$7=6,SP!L6,IF(cal!$S$7=7,SW!L6,IF(cal!$S$7=8,TS!L6,IF(cal!$S$7=9,ExtraTaal1!L6,IF(cal!$S$7=10,ExtraTaal2!L6,IF(cal!$S$7=11,ExtraTaal3!L6,))))))))))) -> Altitude | N7: =IF($S$7=1,NL!M6,IF(cal!$S$7=2,EN!M6,IF(cal!$S$7=3,DE!M6,IF(cal!$S$7=4,FR!M6,IF(cal!$S$7=5,NR!M6,IF(cal!$S$7=6,SP!M6,IF(cal!$S$7=7,SW!M6,IF(cal!$S$7=8,TS!M6,IF(cal!$S$7=9,ExtraTaal1!M6,IF(cal!$S$7=10,ExtraTaal2!M6,IF(cal!$S$7=11,ExtraTaal3!M6,))))))))))) -> 0 | S7: =IF('Clima Canal'!$K$4=cal!G1,1,IF('Clima Canal'!$K$4=cal!H1,2,IF('Clima Canal'!$K$4=cal!I1,3,IF('Clima Canal'!$K$4=cal!J1,4,IF('Clima Canal'!$K$4=cal!K1,5,IF('Clima Canal'!$K$4=cal!L1,6,IF('Clima Canal'!$K$4=cal!M1,7,IF('Clima Canal'!$K$4=cal!N1,8,IF('Clima Canal'!$K$4=cal!O1,9,IF('Clima Canal'!$K$4=cal!P1,10,IF('Clima Canal'!$K$4=cal!Q1,11,))))))))))) -> 2 | AE7: Clima H15 B32 2P | AF7: =CH16 -> Clima H15 B32 4P
B8: =IF($S$7=1,NL!A7,IF(cal!$S$7=2,EN!A7,IF(cal!$S$7=3,DE!A7,IF(cal!$S$7=4,FR!A7,IF(cal!$S$7=5,NR!A7,IF(cal!$S$7=6,SP!A7,IF(cal!$S$7=7,SW!A7,IF(cal!$S$7=8,TS!A7,IF(cal!$S$7=9,ExtraTaal1!A7,IF(cal!$S$7=10,ExtraTaal2!A7,IF(cal!$S$7=11,ExtraTaal3!A7,))))))))))) -> Heating: | G8: =IF($S$7=1,NL!F7,IF(cal!$S$7=2,EN!F7,IF(cal!$S$7=3,DE!F7,IF(cal!$S$7=4,FR!F7,IF(cal!$S$7=5,NR!F7,IF(cal!$S$7=6,SP!F7,IF(cal!$S$7=7,SW!F7,IF(cal!$S$7=8,TS!F7,IF(cal!$S$7=9,ExtraTaal1!F7,IF(cal!$S$7=10,ExtraTaal2!F7,IF(cal!$S$7=11,ExtraTaal3!F7,))))))))))) -> Cooling: | M8: ='Clima Canal'!M9:N9 -> 0.00 | N8: 0.00 | O8: =IF($X$4=1,"m",IF($X$4=2,"ft")) -> m | S8: Temp | X8: Temp | AE8: Clima H15 B32 4P | AF8: =CO16 -> Clima H15 B32 2P
B9: =IF($S$7=1,NL!A8,IF(cal!$S$7=2,EN!A8,IF(cal!$S$7=3,DE!A8,IF(cal!$S$7=4,FR!A8,IF(cal!$S$7=5,NR!A8,IF(cal!$S$7=6,SP!A8,IF(cal!$S$7=7,SW!A8,IF(cal!$S$7=8,TS!A8,IF(cal!$S$7=9,ExtraTaal1!A8,IF(cal!$S$7=10,ExtraTaal2!A8,IF(cal!$S$7=11,ExtraTaal3!A8,))))))))))) -> Inlet temp. | C9: =IF($S$7=1,NL!B8,IF(cal!$S$7=2,EN!B8,IF(cal!$S$7=3,DE!B8,IF(cal!$S$7=4,FR!B8,IF(cal!$S$7=5,NR!B8,IF(cal!$S$7=6,SP!B8,IF(cal!$S$7=7,SW!B8,IF(cal!$S$7=8,TS!B8,IF(cal!$S$7=9,ExtraTaal1!B8,IF(cal!$S$7=10,ExtraTaal2!B8,IF(cal!$S$7=11,ExtraTaal3!B8,))))))))))) -> 0 | D9: =IF($S$7=1,NL!C8,IF(cal!$S$7=2,EN!C8,IF(cal!$S$7=3,DE!C8,IF(cal!$S$7=4,FR!C8,IF(cal!$S$7=5,NR!C8,IF(cal!$S$7=6,SP!C8,IF(cal!$S$7=7,SW!C8,IF(cal!$S$7=8,TS!C8,IF(cal!$S$7=9,ExtraTaal1!C8,IF(cal!$S$7=10,ExtraTaal2!C8,IF(cal!$S$7=11,ExtraTaal3!C8,))))))))))) -> 0 | E9: ='Clima Canal'!E10 -> 75 | G9: =B9 -> Inlet temp. | H9: =IF($S$7=1,NL!G8,IF(cal!$S$7=2,EN!G8,IF(cal!$S$7=3,DE!G8,IF(cal!$S$7=4,FR!G8,)))) -> 0 | I9: =IF($S$7=1,NL!H8,IF(cal!$S$7=2,EN!H8,IF(cal!$S$7=3,DE!H8,IF(cal!$S$7=4,FR!H8,)))) -> 0 | J9: =IF($S$7=1,NL!I8,IF(cal!$S$7=2,EN!I8,IF(cal!$S$7=3,DE!I8,IF(cal!$S$7=4,FR!I8,)))) -> 0 | K9: ='Clima Canal'!K10 -> 16 | M9: =IF($S$7=1,NL!L8,IF(cal!$S$7=2,EN!L8,IF(cal!$S$7=3,DE!L8,IF(cal!$S$7=4,FR!L8,IF(cal!$S$7=5,NR!L8,IF(cal!$S$7=6,SP!L8,IF(cal!$S$7=7,SW!L8,IF(cal!$S$7=8,TS!L8,IF(cal!$S$7=9,ExtraTaal1!L8,IF(cal!$S$7=10,ExtraTaal2!L8,IF(cal!$S$7=11,ExtraTaal3!L8,))))))))))) -> Unit conversion | N9: =IF($S$7=1,NL!M8,IF(cal!$S$7=2,EN!M8,IF(cal!$S$7=3,DE!M8,IF(cal!$S$7=4,FR!M8,IF(cal!$S$7=5,NR!M8,IF(cal!$S$7=6,SP!M8,IF(cal!$S$7=7,SW!M8,IF(cal!$S$7=8,TS!M8,IF(cal!$S$7=9,ExtraTaal1!M8,IF(cal!$S$7=10,ExtraTaal2!M8,IF(cal!$S$7=11,ExtraTaal3!M8,))))))))))) -> 0 | S9: =IF($X$4=1,E9,IF($X$4=2,(E9-32)/1.8)) -> 75.0 | X9: =IF($X$4=1,K9,IF($X$4=2,(K9-32)/1.8)) -> 16.0 | AE9: Clima H19 B34 2P | AF9: =BZ16 -> Clima H19 B34 2P
B10: =IF($S$7=1,NL!A9,IF(cal!$S$7=2,EN!A9,IF(cal!$S$7=3,DE!A9,IF(cal!$S$7=4,FR!A9,IF(cal!$S$7=5,NR!A9,IF(cal!$S$7=6,SP!A9,IF(cal!$S$7=7,SW!A9,IF(cal!$S$7=8,TS!A9,IF(cal!$S$7=9,ExtraTaal1!A9,IF(cal!$S$7=10,ExtraTaal2!A9,IF(cal!$S$7=11,ExtraTaal3!A9,))))))))))) -> Return temp. | C10: =IF($S$7=1,NL!B9,IF(cal!$S$7=2,EN!B9,IF(cal!$S$7=3,DE!B9,IF(cal!$S$7=4,FR!B9,IF(cal!$S$7=5,NR!B9,IF(cal!$S$7=6,SP!B9,IF(cal!$S$7=7,SW!B9,IF(cal!$S$7=8,TS!B9,IF(cal!$S$7=9,ExtraTaal1!B9,IF(cal!$S$7=10,ExtraTaal2!B9,IF(cal!$S$7=11,ExtraTaal3!B9,))))))))))) -> 0 | D10: =IF($S$7=1,NL!C9,IF(cal!$S$7=2,EN!C9,IF(cal!$S$7=3,DE!C9,IF(cal!$S$7=4,FR!C9,IF(cal!$S$7=5,NR!C9,IF(cal!$S$7=6,SP!C9,IF(cal!$S$7=7,SW!C9,IF(cal!$S$7=8,TS!C9,IF(cal!$S$7=9,ExtraTaal1!C9,IF(cal!$S$7=10,ExtraTaal2!C9,IF(cal!$S$7=11,ExtraTaal3!C9,))))))))))) -> 0 | E10: ='Clima Canal'!E11 -> 65 | G10: =B10 -> Return temp. | H10: =IF($S$7=1,NL!G9,IF(cal!$S$7=2,EN!G9,IF(cal!$S$7=3,DE!G9,IF(cal!$S$7=4,FR!G9,)))) -> 0 | I10: =IF($S$7=1,NL!H9,IF(cal!$S$7=2,EN!H9,IF(cal!$S$7=3,DE!H9,IF(cal!$S$7=4,FR!H9,)))) -> 0 | J10: =IF($S$7=1,NL!I9,IF(cal!$S$7=2,EN!I9,IF(cal!$S$7=3,DE!I9,IF(cal!$S$7=4,FR!I9,)))) -> 0 | K10: ='Clima Canal'!K11 -> 18 | S10: =IF($X$4=1,E10,IF($X$4=2,(E10-32)/1.8)) -> 65.0 | T10: CF,h | W10: CF,c | X10: =IF($X$4=1,K10,IF($X$4=2,(K10-32)/1.8)) -> 18.0 | Z10: p_atm | AA10: h[mm] | AB10: cf_h | AE10: Clima H19 B34 4P | AF10: =BS16 -> Clima H19 B34 4P
B11: =IF($S$7=1,NL!A10,IF(cal!$S$7=2,EN!A10,IF(cal!$S$7=3,DE!A10,IF(cal!$S$7=4,FR!A10,IF(cal!$S$7=5,NR!A10,IF(cal!$S$7=6,SP!A10,IF(cal!$S$7=7,SW!A10,IF(cal!$S$7=8,TS!A10,IF(cal!$S$7=9,ExtraTaal1!A10,IF(cal!$S$7=10,ExtraTaal2!A10,IF(cal!$S$7=11,ExtraTaal3!A10,))))))))))) -> Room temp. | C11: =IF($S$7=1,NL!B10,IF(cal!$S$7=2,EN!B10,IF(cal!$S$7=3,DE!B10,IF(cal!$S$7=4,FR!B10,IF(cal!$S$7=5,NR!B10,IF(cal!$S$7=6,SP!B10,IF(cal!$S$7=7,SW!B10,IF(cal!$S$7=8,TS!B10,IF(cal!$S$7=9,ExtraTaal1!B10,IF(cal!$S$7=10,ExtraTaal2!B10,IF(cal!$S$7=11,ExtraTaal3!B10,))))))))))) -> 0 | D11: =IF($S$7=1,NL!C10,IF(cal!$S$7=2,EN!C10,IF(cal!$S$7=3,DE!C10,IF(cal!$S$7=4,FR!C10,IF(cal!$S$7=5,NR!C10,IF(cal!$S$7=6,SP!C10,IF(cal!$S$7=7,SW!C10,IF(cal!$S$7=8,TS!C10,IF(cal!$S$7=9,ExtraTaal1!C10,IF(cal!$S$7=10,ExtraTaal2!C10,IF(cal!$S$7=11,ExtraTaal3!C10,))))))))))) -> 0 | E11: ='Clima Canal'!E12 -> 20 | G11: =B11 -> Room temp. | H11: =IF($S$7=1,NL!G10,IF(cal!$S$7=2,EN!G10,IF(cal!$S$7=3,DE!G10,IF(cal!$S$7=4,FR!G10,)))) -> 0 | K11: ='Clima Canal'!K12 -> 27 | S11: =IF($X$4=1,E11,IF($X$4=2,(E11-32)/1.8)) -> 20.0 | T11: =(($S$9-$S$10)/LN(($S$9-$S$11)/($S$10-$S$11)))/((75-65)/LN((75-20)/(65-20))) -> 1.000 | W11: =(($X$9-$X$10)/LN(($X$9-$X$11)/($X$10-$X$11)))/((16-18)/LN((16-27)/(18-27))) -> 1.000 | X11: =IF($X$4=1,K11,IF($X$4=2,(K11-32)/1.8)) -> 27.0 | Z11: =IF($X$4=1,(101325*(1-((0.0065*M8)/(288.15)))^((9.81*0.028964)/(8.31447*0.0065))),IF($X$4=2,(101325*(1-((0.0065*(M8*0.3048))/(288.15)))^((9.81*0.028964)/(8.31447*0.0065))))) -> 101325 | AA11: =IF($X$4=1,M8/1000,IF($X$4=2,M8*0.0003048)) -> 0 | AB11: =-(0.000265264729874266*AA11^6)+(0.000957582908802335*AA11^5)+(0.00470250661483425*AA11^4)-(0.0298716926548353*AA11^3)+(0.0557086806557086*AA11^2)-(0.0484008125693582*AA11)+1 -> 1
B12: =G12 -> Relative humidity | E12: 50% | G12: =IF($S$7=1,NL!F11,IF(cal!$S$7=2,EN!F11,IF(cal!$S$7=3,DE!F11,IF(cal!$S$7=4,FR!F11,IF(cal!$S$7=5,NR!F11,IF(cal!$S$7=6,SP!F11,IF(cal!$S$7=7,SW!F11,IF(cal!$S$7=8,TS!F11,IF(cal!$S$7=9,ExtraTaal1!F11,IF(cal!$S$7=10,ExtraTaal2!F11,IF(cal!$S$7=11,ExtraTaal3!F11,))))))))))) -> Relative humidity | K12: ='Clima Canal'!K13 -> 50%
E14: =IF($X$4=1,1,IF($X$4=2,0.004403)) -> 1.0000 | F14: =IF($X$4=1,1,IF($X$4=2,4.0147)) -> 1.0000 | G14: =IF($X$4=1,0.000334444444444444,IF($X$4=2,0.000568224721372)) -> 0.0003 | H14: =IF($X$4=1,1,IF($X$4=2,3.4121416331)) -> 1.0000 | I14: =IF($X$4=1,1,IF($X$4=2,0.004403)) -> 1.0000 | J14: =IF($X$4=1,1,IF($X$4=2,4.0147)) -> 1.0000 | N14: =IF($X$4=1,1,IF($X$4=2,0.588575)) -> 1.0000 | O14: =IF($X$4=1,1,1.8) -> 1.0000 | P14: =IF($X$4=1,0,32) -> 0.0000 | S14: 8 & 10 | T14: 13/27 | U14: 13/32 | V14: 19
B15: =IF($S$7=1,NL!A14,IF(cal!$S$7=2,EN!A14,IF(cal!$S$7=3,DE!A14,IF(cal!$S$7=4,FR!A14,IF(cal!$S$7=5,NR!A14,IF(cal!$S$7=6,SP!A14,IF(cal!$S$7=7,SW!A14,IF(cal!$S$7=8,TS!A14,IF(cal!$S$7=9,ExtraTaal1!A14,IF(cal!$S$7=10,ExtraTaal2!A14,IF(cal!$S$7=11,ExtraTaal3!A14,))))))))))) -> Speed level: | C15: =IF($S$7=1,NL!B14,IF(cal!$S$7=2,EN!B14,IF(cal!$S$7=3,DE!B14,IF(cal!$S$7=4,FR!B14,IF(cal!$S$7=5,NR!B14,IF(cal!$S$7=6,SP!B14,IF(cal!$S$7=7,SW!B14,IF(cal!$S$7=8,TS!B14,IF(cal!$S$7=9,ExtraTaal1!B14,IF(cal!$S$7=10,ExtraTaal2!B14,IF(cal!$S$7=11,ExtraTaal3!B14,))))))))))) -> Control voltage [V] | D15: =IF($S$7=1,NL!C14,IF(cal!$S$7=2,EN!C14,IF(cal!$S$7=3,DE!C14,IF(cal!$S$7=4,FR!C14,IF(cal!$S$7=5,NR!C14,IF(cal!$S$7=6,SP!C14,IF(cal!$S$7=7,SW!C14,IF(cal!$S$7=8,TS!C14,IF(cal!$S$7=9,ExtraTaal1!C14,IF(cal!$S$7=10,ExtraTaal2!C14,IF(cal!$S$7=11,ExtraTaal3!C14,))))))))))) -> Heat output * 75/65/20 [W] | E15: =IF($S$7=1,NL!D14,IF(cal!$S$7=2,EN!D14,IF(cal!$S$7=3,DE!D14,IF(cal!$S$7=4,FR!D14,IF(cal!$S$7=5,NR!D14,IF(cal!$S$7=6,SP!D14,IF(cal!$S$7=7,SW!D14,IF(cal!$S$7=8,TS!D14,IF(cal!$S$7=9,ExtraTaal1!D14,IF(cal!$S$7=10,ExtraTaal2!D14,IF(cal!$S$7=11,ExtraTaal3!D14,))))))))))) -> Water flowrate, heating [l/h] | F15: =IF($S$7=1,NL!E14,IF(cal!$S$7=2,EN!E14,IF(cal!$S$7=3,DE!E14,IF(cal!$S$7=4,FR!E14,IF(cal!$S$7=5,NR!E14,IF(cal!$S$7=6,SP!E14,IF(cal!$S$7=7,SW!E14,IF(cal!$S$7=8,TS!E14,IF(cal!$S$7=9,ExtraTaal1!E14,IF(cal!$S$7=10,ExtraTaal2!E14,IF(cal!$S$7=11,ExtraTaal3!E14,))))))))))) -> Watersided pressure loss [kPa] | G15: =IF($S$7=1,NL!F14,IF(cal!$S$7=2,EN!F14,IF(cal!$S$7=3,DE!F14,IF(cal!$S$7=4,FR!F14,IF(cal!$S$7=5,NR!F14,IF(cal!$S$7=6,SP!F14,IF(cal!$S$7=7,SW!F14,IF(cal!$S$7=8,TS!F14,IF(cal!$S$7=9,ExtraTaal1!F14,IF(cal!$S$7=10,ExtraTaal2!F14,IF(cal!$S$7=11,ExtraTaal3!F14,))))))))))) -> Sens. cooling capacity * 16/18/27 [W] | H15: =IF($S$7=1,NL!G14,IF(cal!$S$7=2,EN!G14,IF(cal!$S$7=3,DE!G14,IF(cal!$S$7=4,FR!G14,IF(cal!$S$7=5,NR!G14,IF(cal!$S$7=6,SP!G14,IF(cal!$S$7=7,SW!G14,IF(cal!$S$7=8,TS!G14,IF(cal!$S$7=9,ExtraTaal1!G14,IF(cal!$S$7=10,ExtraTaal2!G14,IF(cal!$S$7=11,ExtraTaal3!G14,))))))))))) -> Tot. cooling capacity 16/18/27 [W] | I15: =IF($S$7=1,NL!H14,IF(cal!$S$7=2,EN!H14,IF(cal!$S$7=3,DE!H14,IF(cal!$S$7=4,FR!H14,IF(cal!$S$7=5,NR!H14,IF(cal!$S$7=6,SP!H14,IF(cal!$S$7=7,SW!H14,IF(cal!$S$7=8,TS!H14,IF(cal!$S$7=9,ExtraTaal1!H14,IF(cal!$S$7=10,ExtraTaal2!H14,IF(cal!$S$7=11,ExtraTaal3!H14,))))))))))) -> Water flowrate, cooling [l/h] | J15: =IF($S$7=1,NL!I14,IF(cal!$S$7=2,EN!I14,IF(cal!$S$7=3,DE!I14,IF(cal!$S$7=4,FR!I14,IF(cal!$S$7=5,NR!I14,IF(cal!$S$7=6,SP!I14,IF(cal!$S$7=7,SW!I14,IF(cal!$S$7=8,TS!I14,IF(cal!$S$7=9,ExtraTaal1!I14,IF(cal!$S$7=10,ExtraTaal2!I14,IF(cal!$S$7=11,ExtraTaal3!I14,))))))))))) -> Watersided pressure loss [kPa] | K15: =IF($S$7=1,NL!J14,IF(cal!$S$7=2,EN!J14,IF(cal!$S$7=3,DE!J14,IF(cal!$S$7=4,FR!J14,IF(cal!$S$7=5,NR!J14,IF(cal!$S$7=6,SP!J14,IF(cal!$S$7=7,SW!J14,IF(cal!$S$7=8,TS!J14,IF(cal!$S$7=9,ExtraTaal1!J14,IF(cal!$S$7=10,ExtraTaal2!J14,IF(cal!$S$7=11,ExtraTaal3!J14,))))))))))) -> Sound pressure *** [dB(A)] | L15: =IF($S$7=1,NL!K14,IF(cal!$S$7=2,EN!K14,IF(cal!$S$7=3,DE!K14,IF(cal!$S$7=4,FR!K14,IF(cal!$S$7=5,NR!K14,IF(cal!$S$7=6,SP!K14,IF(cal!$S$7=7,SW!K14,IF(cal!$S$7=8,TS!K14,IF(cal!$S$7=9,ExtraTaal1!K14,IF(cal!$S$7=10,ExtraTaal2!K14,IF(cal!$S$7=11,ExtraTaal3!K14,))))))))))) -> Sound power ** [dB(A)] | M15: =IF($S$7=1,NL!L14,IF(cal!$S$7=2,EN!L14,IF(cal!$S$7=3,DE!L14,IF(cal!$S$7=4,FR!L14,IF(cal!$S$7=5,NR!L14,IF(cal!$S$7=6,SP!L14,IF(cal!$S$7=7,SW!L14,IF(cal!$S$7=8,TS!L14,IF(cal!$S$7=9,ExtraTaal1!L14,IF(cal!$S$7=10,ExtraTaal2!L14,IF(cal!$S$7=11,ExtraTaal3!L14,))))))))))) -> Electrical power [W] | N15: =IF($S$7=1,NL!M14,IF(cal!$S$7=2,EN!M14,IF(cal!$S$7=3,DE!M14,IF(cal!$S$7=4,FR!M14,IF(cal!$S$7=5,NR!M14,IF(cal!$S$7=6,SP!M14,IF(cal!$S$7=7,SW!M14,IF(cal!$S$7=8,TS!M14,IF(cal!$S$7=9,ExtraTaal1!M14,IF(cal!$S$7=10,ExtraTaal2!M14,IF(cal!$S$7=11,ExtraTaal3!M14,))))))))))) -> Air flowrate [m³/h] | O15: =IF($S$7=1,NL!N14,IF(cal!$S$7=2,EN!N14,IF(cal!$S$7=3,DE!N14,IF(cal!$S$7=4,FR!N14,IF(cal!$S$7=5,NR!N14,IF(cal!$S$7=6,SP!N14,IF(cal!$S$7=7,SW!N14,IF(cal!$S$7=8,TS!N14,IF(cal!$S$7=9,ExtraTaal1!N14,IF(cal!$S$7=10,ExtraTaal2!N14,IF(cal!$S$7=11,ExtraTaal3!N14,))))))))))) -> Air exhaust temp. heating [°C] | P15: =IF($S$7=1,NL!O14,IF(cal!$S$7=2,EN!O14,IF(cal!$S$7=3,DE!O14,IF(cal!$S$7=4,FR!O14,IF(cal!$S$7=5,NR!O14,IF(cal!$S$7=6,SP!O14,IF(cal!$S$7=7,SW!O14,IF(cal!$S$7=8,TS!O14,IF(cal!$S$7=9,ExtraTaal1!O14,IF(cal!$S$7=10,ExtraTaal2!O14,IF(cal!$S$7=11,ExtraTaal3!O14,))))))))))) -> Air exhaust temp. cooling [°C] | Q15: n- heating | R15: n- cooling | S15: n- cooling | T15: n- cooling | U15: n- cooling | V15: n- cooling | X15: Q_verw | Y15: dP_verw | Z15: Q_voelb_c | AA15: dP_cool | AB15: Geluid_P | AC15: P_elek | AD15: V_air | AE15: Q_verw | AF15: dP_verw | AG15: Q_voelb_c | AH15: dP_cool | AI15: Geluid_P | AJ15: P_elek | AK15: V_air | AL15: Q_verw | AM15: dP_verw | AN15: Q_voelb_c | AO15: dP_cool | AP15: Geluid_P | AQ15: P_elek | AR15: V_air | AW15: Q_verw | AX15: dP_verw | AY15: Q_voelb_c | AZ15: dP_cool | BA15: Geluid_P | BB15: P_elek | BC15: V_air | BD15: Q_verw | BE15: dP_verw | BF15: Q_voelb_c | BG15: dP_cool | BH15: Geluid_P | BI15: P_elek | BJ15: V_air | BK15: Q_verw | BL15: dP_verw | BM15: Q_voelb_c | BN15: dP_cool | BO15: Geluid_P | BP15: P_elek | BQ15: V_air | BS15: Q_verw | BT15: dP_verw | BU15: Q_voelb_c | BV15: dP_cool | BW15: Geluid_P | BX15: P_elek | BY15: V_air | BZ15: Q_verw | CA15: dP_verw | CB15: Q_voelb_c | CC15: dP_cool | CD15: Geluid_P | CE15: P_elek | CF15: V_air | CH15: Q_verw | CI15: dP_verw | CJ15: Q_voelb_c | CK15: dP_cool | CL15: Geluid_P | CM15: P_elek | CN15: V_air | CO15: Q_verw | CP15: dP_verw | CQ15: Q_voelb_c | CR15: dP_cool | CS15: Geluid_P | CT15: P_elek | CU15: V_air
B16: =IF($S$7=1,NL!A15,IF(cal!$S$7=2,EN!A15,IF(cal!$S$7=3,DE!A15,IF(cal!$S$7=4,FR!A15,IF(cal!$S$7=5,NR!A15,IF(cal!$S$7=6,SP!A15,IF(cal!$S$7=7,SW!A15,IF(cal!$S$7=8,TS!A15,IF(cal!$S$7=9,ExtraTaal1!A15,IF(cal!$S$7=10,ExtraTaal2!A15,IF(cal!$S$7=11,ExtraTaal3!A15,))))))))))) -> Clima Canal height 13 cm width 32 cm length 70 cm (Type 1) | C16: =IF($S$7=1,NL!B15,IF(cal!$S$7=2,EN!B15,IF(cal!$S$7=3,DE!B15,IF(cal!$S$7=4,FR!B15,IF(cal!$S$7=5,NR!B15,IF(cal!$S$7=6,SP!B15,IF(cal!$S$7=7,SW!B15,IF(cal!$S$7=8,TS!B15,IF(cal!$S$7=9,ExtraTaal1!B15,IF(cal!$S$7=10,ExtraTaal2!B15,IF(cal!$S$7=11,ExtraTaal3!B15,))))))))))) -> 0 | D16: =IF($S$7=1,NL!C15,IF(cal!$S$7=2,EN!C15,IF(cal!$S$7=3,DE!C15,IF(cal!$S$7=4,FR!C15,IF(cal!$S$7=5,NR!C15,IF(cal!$S$7=6,SP!C15,IF(cal!$S$7=7,SW!C15,IF(cal!$S$7=8,TS!C15,IF(cal!$S$7=9,ExtraTaal1!C15,IF(cal!$S$7=10,ExtraTaal2!C15,IF(cal!$S$7=11,ExtraTaal3!C15,))))))))))) -> 0 | E16: =IF($S$7=1,NL!D15,IF(cal!$S$7=2,EN!D15,IF(cal!$S$7=3,DE!D15,IF(cal!$S$7=4,FR!D15,IF(cal!$S$7=5,NR!D15,IF(cal!$S$7=6,SP!D15,IF(cal!$S$7=7,SW!D15,IF(cal!$S$7=8,TS!D15,IF(cal!$S$7=9,ExtraTaal1!D15,IF(cal!$S$7=10,ExtraTaal2!D15,IF(cal!$S$7=11,ExtraTaal3!D15,))))))))))) -> 0 | F16: =IF($S$7=1,NL!E15,IF(cal!$S$7=2,EN!E15,IF(cal!$S$7=3,DE!E15,IF(cal!$S$7=4,FR!E15,IF(cal!$S$7=5,NR!E15,IF(cal!$S$7=6,SP!E15,IF(cal!$S$7=7,SW!E15,IF(cal!$S$7=8,TS!E15,IF(cal!$S$7=9,ExtraTaal1!E15,IF(cal!$S$7=10,ExtraTaal2!E15,IF(cal!$S$7=11,ExtraTaal3!E15,))))))))))) -> 0 | G16: =IF($S$7=1,NL!F15,IF(cal!$S$7=2,EN!F15,IF(cal!$S$7=3,DE!F15,IF(cal!$S$7=4,FR!F15,IF(cal!$S$7=5,NR!F15,IF(cal!$S$7=6,SP!F15,IF(cal!$S$7=7,SW!F15,IF(cal!$S$7=8,TS!F15,IF(cal!$S$7=9,ExtraTaal1!F15,IF(cal!$S$7=10,ExtraTaal2!F15,IF(cal!$S$7=11,ExtraTaal3!F15,))))))))))) -> 0 | H16: =IF($S$7=1,NL!G15,IF(cal!$S$7=2,EN!G15,IF(cal!$S$7=3,DE!G15,IF(cal!$S$7=4,FR!G15,IF(cal!$S$7=5,NR!G15,IF(cal!$S$7=6,SP!G15,IF(cal!$S$7=7,SW!G15,IF(cal!$S$7=8,TS!G15,IF(cal!$S$7=9,ExtraTaal1!G15,IF(cal!$S$7=10,ExtraTaal2!G15,IF(cal!$S$7=11,ExtraTaal3!G15,))))))))))) -> 0 | I16: =IF($S$7=1,NL!H15,IF(cal!$S$7=2,EN!H15,IF(cal!$S$7=3,DE!H15,IF(cal!$S$7=4,FR!H15,IF(cal!$S$7=5,NR!H15,IF(cal!$S$7=6,SP!H15,IF(cal!$S$7=7,SW!H15,IF(cal!$S$7=8,TS!H15,IF(cal!$S$7=9,ExtraTaal1!H15,IF(cal!$S$7=10,ExtraTaal2!H15,IF(cal!$S$7=11,ExtraTaal3!H15,))))))))))) -> 0 | J16: =IF($S$7=1,NL!I15,IF(cal!$S$7=2,EN!I15,IF(cal!$S$7=3,DE!I15,IF(cal!$S$7=4,FR!I15,IF(cal!$S$7=5,NR!I15,IF(cal!$S$7=6,SP!I15,IF(cal!$S$7=7,SW!I15,IF(cal!$S$7=8,TS!I15,IF(cal!$S$7=9,ExtraTaal1!I15,IF(cal!$S$7=10,ExtraTaal2!I15,IF(cal!$S$7=11,ExtraTaal3!I15,))))))))))) -> 0 | K16: =IF($S$7=1,NL!J15,IF(cal!$S$7=2,EN!J15,IF(cal!$S$7=3,DE!J15,IF(cal!$S$7=4,FR!J15,IF(cal!$S$7=5,NR!J15,IF(cal!$S$7=6,SP!J15,IF(cal!$S$7=7,SW!J15,IF(cal!$S$7=8,TS!J15,IF(cal!$S$7=9,ExtraTaal1!J15,IF(cal!$S$7=10,ExtraTaal2!J15,IF(cal!$S$7=11,ExtraTaal3!J15,))))))))))) -> 0 | L16: =IF($S$7=1,NL!K15,IF(cal!$S$7=2,EN!K15,IF(cal!$S$7=3,DE!K15,IF(cal!$S$7=4,FR!K15,IF(cal!$S$7=5,NR!K15,IF(cal!$S$7=6,SP!K15,IF(cal!$S$7=7,SW!K15,IF(cal!$S$7=8,TS!K15,IF(cal!$S$7=9,ExtraTaal1!K15,IF(cal!$S$7=10,ExtraTaal2!K15,IF(cal!$S$7=11,ExtraTaal3!K15,))))))))))) -> 0 | M16: =IF($S$7=1,NL!L15,IF(cal!$S$7=2,EN!L15,IF(cal!$S$7=3,DE!L15,IF(cal!$S$7=4,FR!L15,IF(cal!$S$7=5,NR!L15,IF(cal!$S$7=6,SP!L15,IF(cal!$S$7=7,SW!L15,IF(cal!$S$7=8,TS!L15,IF(cal!$S$7=9,ExtraTaal1!L15,IF(cal!$S$7=10,ExtraTaal2!L15,IF(cal!$S$7=11,ExtraTaal3!L15,))))))))))) -> 0 | N16: =IF($S$7=1,NL!M15,IF(cal!$S$7=2,EN!M15,IF(cal!$S$7=3,DE!M15,IF(cal!$S$7=4,FR!M15,IF(cal!$S$7=5,NR!M15,IF(cal!$S$7=6,SP!M15,IF(cal!$S$7=7,SW!M15,IF(cal!$S$7=8,TS!M15,IF(cal!$S$7=9,ExtraTaal1!M15,IF(cal!$S$7=10,ExtraTaal2!M15,IF(cal!$S$7=11,ExtraTaal3!M15,))))))))))) -> 0 | O16: =IF($S$7=1,NL!N15,IF(cal!$S$7=2,EN!N15,IF(cal!$S$7=3,DE!N15,IF(cal!$S$7=4,FR!N15,IF(cal!$S$7=5,NR!N15,IF(cal!$S$7=6,SP!N15,IF(cal!$S$7=7,SW!N15,IF(cal!$S$7=8,TS!N15,IF(cal!$S$7=9,ExtraTaal1!N15,IF(cal!$S$7=10,ExtraTaal2!N15,IF(cal!$S$7=11,ExtraTaal3!N15,))))))))))) -> 0 | P16: =IF($S$7=1,NL!O15,IF(cal!$S$7=2,EN!O15,IF(cal!$S$7=3,DE!O15,IF(cal!$S$7=4,FR!O15,IF(cal!$S$7=5,NR!O15,IF(cal!$S$7=6,SP!O15,IF(cal!$S$7=7,SW!O15,IF(cal!$S$7=8,TS!O15,IF(cal!$S$7=9,ExtraTaal1!O15,IF(cal!$S$7=10,ExtraTaal2!O15,IF(cal!$S$7=11,ExtraTaal3!O15,))))))))))) -> 0 | Q16: n-value | R16: n-value | S16: n-value | T16: n-value | U16: n-value | V16: n-value | X16: =IF('Clima Canal'!$K$6=cal!AE2,1,IF('Clima Canal'!$K$6=cal!AE3,2,IF('Clima Canal'!$K$6=cal!AE5,3,IF('Clima Canal'!$K$6=cal!AE6,4,IF('Clima Canal'!$K$6=cal!AE9,5,IF('Clima Canal'!$K$6=cal!AE10,6,IF('Clima Canal'!$K$6=cal!AE4,7,IF('Clima Canal'!$K$6=AE7,8,IF('Clima Canal'!$K$6=AE8,9,))))))))) -> 3 | AE16: =CONCATENATE("Clima H",AF22," B",AH22) -> Clima H8 B18 | AL16: =CONCATENATE("Clima H",AM22," B",AO22) -> Clima H10 B18 | AT16: voelbare koelcapaciteit | AU16: totale koelcapaciteit | AW16: =CONCATENATE("Clima H",AX22," B",AZ22," 4P") -> Clima H13 B27 4P | BD16: =CONCATENATE("Clima H",BE22," B",BG22," 4P") -> Clima H13 B32 4P | BK16: =CONCATENATE("Clima H",BL22," B",BN22," 2P") -> Clima H13 B32 2P | BS16: =CONCATENATE("Clima H",BT22," B",BV22," 4P") -> Clima H19 B34 4P | BZ16: =CONCATENATE("Clima H",CA22," B",CC22," 2P") -> Clima H19 B34 2P | CH16: =CONCATENATE("Clima H",CI22," B",CK22," 4P") -> Clima H15 B32 4P | CO16: =CONCATENATE("Clima H",CP22," B",CR22," 2P") -> Clima H15 B32 2P
B17: 20% | C17: 2 | D17: =(X17*($T$11^$Q17))*Watts*CF_Altit -> 313 | E17: =ROUND(((D17/Watts)/(($S$9-$S$10)*1.163))*$E$14,IF($X$4=1,0,IF($X$4=2,2))) -> 27 | F17: =($Y$18*(E17/$E$14)^$Y$20)*$F$14 -> 0.01 | G17: =(Z17*($W$11^R17))*Watts*CF_Altit -> 67 | H17: =((G17/Watts)/(IF((237.3*LN((RH*EXP(17.27*(Tl_cool/(Tl_cool+237.3))))))/(17.27-LN((RH*EXP(17.27*(Tl_cool/(Tl_cool+237.3))))))<Tavg_cold,1,IF(1/(1+((2258*((0.622/(($Z$11/(1*611*EXP(17.27*(Tavg_cold/(Tavg_cold+237.3))))))-1)*1000-(0.622/(($Z$11/(RH*611*EXP(17.27*(Tl_cool/(Tl_cool+237.3))))))-1)*1000))/(1005*(Tavg_cold-Tl_cool))))*1.039+((-0.000729*$C17+0.001448)*(Tl_cool-Tavg_cold)+(0.016908*$C17-0.033574))*1.039>1,1,1/(1+((2258*((0.622/(($Z$11/(1*611*EXP(17.27*(Tavg_cold/(Tavg_cold+237.3))))))-1)*1000-(0.622/(($Z$11/(RH*611*EXP(17.27*(Tl_cool/(Tl_cool+237.3))))))-1)*1000))/(1005*(Tavg_cold-Tl_cool))))*1.039+((-0.000729*$C17+0.001448)*(Tl_cool-Tavg_cold)+(0.016908*$C17-0.033574))*1.039))))*Watts -> 67 | I17: =ROUND(((H17/Watts)/((Tr_cool-Tv_cool)*1.163))*$I$14,IF($X$4=1,0,IF($X$4=2,2))) -> 29 | J17: =($AA$18*(I17/$I$14)^$AA$20)*$J$14 -> 0.01 | K17: =L17-8 -> 16.0 | L17: =AB17 -> 24.0 | M17: 1.0 | N17: =AD17*Cubics -> 35 | O17: =((($D17/Watts)/(((p_atm*0.028964)/(8.31447*(20+273.15)))*(($N17/3600)/Cubics)*(1005+1870*((0.622)/(((p_atm)/($E$12*Pvs_Heat_in))-1)))))+Tl_heat)*Celc1+Celc2 -> 46 | P17: =(Tl_cool-(($G17/Watts)/(1006*$N17*kgss)))*Celc1+Celc2 -> 21 | Q17: 1 | R17: =IF($X$16=1,S17,IF($X$16=2,S17,IF($X$16=3,U17,IF($X$16=4,U17,IF(OR($X$16=5,$X$16=8),V17,IF(OR($X$16=6,$X$16=9),V17,IF($X$16=7,T17,))))))) -> 0.781 | S17: 0.600 | T17: 1.160 | U17: 0.781 | V17: 0.877 | W17: =(H17-G17)/H17 -> 0.0% | X17: =IF($X$16=1,AE17,IF($X$16=2,AL17,IF($X$16=3,BK17,IF($X$16=4,BD17,IF($X$16=5,BZ17,IF($X$16=6,BS17,IF($X$16=7,AW17,IF($X$16=9,CH17,IF($X$16=8,CO17,))))))))) -> 312.780864 | Y17: =IF($X$16=1,AF17,IF($X$16=2,AM17,IF($X$16=3,BL17,IF($X$16=4,BE17,IF($X$16=5,CA17,IF($X$16=6,BT17,IF($X$16=7,AX17,IF($X$16=9,CI17,IF($X$16=8,CP17,))))))))) -> a | Z17: 67.30637192 | AA17: a | AB17: 24.0 | AC17: 1.0 | AD17: 35 | AE17: 276 | AF17: a | AG17: 30 | AH17: a | AI17: 22.0 | AJ17: 0.5 | AK17: 24 | AL17: =AE17 -> 276 | AM17: a | AN17: 30 | AO17: a | AP17: =AI17 -> 22.0 | AQ17: =AJ17 -> 0.5 | AR17: =AK17 -> 24 | AT17: =(AG17*((((Tv_cool-Tr_cool)/LN((Tv_cool-Tl_cool)/(Tr_cool-Tl_cool)))/((16-18)/LN((16-27)/(18-27))))^S17))*$G$14 -> 0.01003333333 | AU17: =((AT17/$G$14)/(IF((237.3*LN((RH*EXP(17.27*(Tl_cool/(Tl_cool+237.3))))))/(17.27-LN((RH*EXP(17.27*(Tl_cool/(Tl_cool+237.3))))))<((Tv_cool+Tr_cool)/2),1,1/(1+((2258*((0.622/((p_atm/(1*611*EXP(17.27*(((Tv_cool+Tr_cool)/2)/(((Tv_cool+Tr_cool)/2)+237.3))))))-1)*1000-(0.622/((p_atm/(RH*611*EXP(17.27*(Tl_cool/(Tl_cool+237.3))))))-1)*1000))/(1005*(((Tv_cool+Tr_cool)/2)-Tl_cool))))+-((-0.000625*$C17+0.00625)*(Tl_cool-(Tv_cool+Tr_cool)/2)-(-0.000625*$C17+0.00625)*10))))*$H$14 -> 30 | AW17: 362 | AX17: a | AY17: 41 | AZ17: a | BA17: 24.0 | BB17: 1.0 | BC17: 38 | BD17: 268.32763 | BE17: a | BF17: 64.62350779 | BG17: a | BH17: 24.0 | BI17: 1.0 | BJ17: 35 | BK17: 312.780864 | BL17: a | BM17: 67.30637192 | BN17: a | BO17: =BH17 -> 24.0 | BP17: =BI17 -> 1.0 | BQ17: 35 | BS17: 830.2698509 | BT17: a | BU17: 149.1476951 | BV17: a | BW17: 25.0 | BX17: 1.5 | BY17: 97 | BZ17: 1245.404776 | CA17: a | CB17: 164.0624646 | CC17: a | CD17: 25.0 | CE17: 1.5 | CF17: 97 | CH17: =BS17*0.9 -> 747.2428658 | CI17: a | CJ17: =BU17*0.9 -> 134.2329256 | CK17: a | CL17: 25.0 | CM17: 1.5 | CN17: 97 | CO17: =BZ17*0.9 -> 1120.864299 | CP17: a | CQ17: =CB17*0.9 -> 147.6562182 | CR17: a | CS17: 25.0 | CT17: 1.5 | CU17: 97
B18: 40% | C18: 4 | D18: =(X18*($T$11^$Q18))*Watts*CF_Altit -> 692 | E18: =ROUND(((D18/Watts)/(($S$9-$S$10)*1.163))*$E$14,IF($X$4=1,0,IF($X$4=2,2))) -> 59 | F18: =($Y$18*(E18/$E$14)^$Y$20)*$F$14 -> 0.05 | G18: =(Z18*($W$11^R18))*Watts*CF_Altit -> 122 | H18: =((G18/Watts)/(IF((237.3*LN((RH*EXP(17.27*(Tl_cool/(Tl_cool+237.3))))))/(17.27-LN((RH*EXP(17.27*(Tl_cool/(Tl_cool+237.3))))))<Tavg_cold,1,IF(1/(1+((2258*((0.622/(($Z$11/(1*611*EXP(17.27*(Tavg_cold/(Tavg_cold+237.3))))))-1)*1000-(0.622/(($Z$11/(RH*611*EXP(17.27*(Tl_cool/(Tl_cool+237.3))))))-1)*1000))/(1005*(Tavg_cold-Tl_cool))))*1.039+((-0.000729*$C18+0.001448)*(Tl_cool-Tavg_cold)+(0.016908*$C18-0.033574))*1.039>1,1,1/(1+((2258*((0.622/(($Z$11/(1*611*EXP(17.27*(Tavg_cold/(Tavg_cold+237.3))))))-1)*1000-(0.622/(($Z$11/(RH*611*EXP(17.27*(Tl_cool/(Tl_cool+237.3))))))-1)*1000))/(1005*(Tavg_cold-Tl_cool))))*1.039+((-0.000729*$C18+0.001448)*(Tl_cool-Tavg_cold)+(0.016908*$C18-0.033574))*1.039))))*Watts -> 122 | I18: =ROUND(((H18/Watts)/((Tr_cool-Tv_cool)*1.163))*$I$14,IF($X$4=1,0,IF($X$4=2,2))) -> 53 | J18: =($AA$18*(I18/$I$14)^$AA$20)*$J$14 -> 0.04 | K18: =L18-8 -> 19.0 | L18: 27.0 | M18: 1.6 | N18: =AD18*Cubics -> 44 | O18: =((($D18/Watts)/(((p_atm*0.028964)/(8.31447*(20+273.15)))*(($N18/3600)/Cubics)*(1005+1870*((0.622)/(((p_atm)/($E$12*Pvs_Heat_in))-1)))))+Tl_heat)*Celc1+Celc2 -> 66 | P18: =(Tl_cool-(($G18/Watts)/(1006*$N18*kgss)))*Celc1+Celc2 -> 19 | Q18: 1 | R18: =IF($X$16=1,S18,IF($X$16=2,S18,IF($X$16=3,U18,IF($X$16=4,U18,IF(OR($X$16=5,$X$16=8),V18,IF(OR($X$16=6,$X$16=9),V18,IF($X$16=7,T18,))))))) -> 0.859 | S18: 0.680 | T18: 1.040 | U18: 0.859 | V18: 0.878 | W18: =(H18-G18)/H18 -> 0.0% | X18: =IF($X$16=1,AE18,IF($X$16=2,AL18,IF($X$16=3,BK18,IF($X$16=4,BD18,IF($X$16=5,BZ18,IF($X$16=6,BS18,IF($X$16=7,AW18,IF($X$16=9,CH18,IF($X$16=8,CO18,))))))))) -> 691.7684115 | Y18: =IF($X$16=1,AF18,IF($X$16=2,AM18,IF($X$16=3,BL18,IF($X$16=4,BE18,IF($X$16=5,CA18,IF($X$16=6,BT18,IF($X$16=7,AX18,IF($X$16=9,CI18,IF($X$16=8,CP18,))))))))) -> 2.014474704e-05 | Z18: =IF($X$16=1,AG18,IF($X$16=2,AN18,IF($X$16=3,BM18,IF($X$16=4,BF18,IF($X$16=5,CB18,IF($X$16=6,BU18,IF($X$16=7,AY18,IF($X$16=9,CJ18,IF($X$16=8,CQ18,))))))))) -> 122.2114853 | AA18: =IF($X$16=1,AH18,IF($X$16=2,AO18,IF($X$16=3,BN18,IF($X$16=4,BG18,IF($X$16=5,CC18,IF($X$16=6,BV18,IF($X$16=7,AZ18,IF($X$16=9,CK18,IF($X$16=8,CR18,))))))))) -> 2.014474704e-05 | AB18: =IF($X$16=1,AI18,IF($X$16=2,AP18,IF($X$16=3,BO18,IF($X$16=4,BH18,IF($X$16=5,CD18,IF($X$16=6,BW18,IF($X$16=7,BA18,IF($X$16=9,CL18,IF($X$16=8,CS18,))))))))) -> 27.0 | AC18: =IF($X$16=1,AJ18,IF($X$16=2,AQ18,IF($X$16=3,BP18,IF($X$16=4,BI18,IF($X$16=5,CE18,IF($X$16=6,BX18,IF($X$16=7,BB18,IF($X$16=9,CM18,IF($X$16=8,CT18,))))))))) -> 1.6 | AD18: =IF($X$16=1,AK18,IF($X$16=2,AR18,IF($X$16=3,BQ18,IF($X$16=4,BJ18,IF($X$16=5,CF18,IF($X$16=6,BY18,IF($X$16=7,BC18,IF($X$16=9,CN18,IF($X$16=8,CU18,))))))))) -> 44 | AE18: 496 | AF18: 0.0002564981899 | AG18: 66 | AH18: =AF18 -> 0.0002564981899 | AI18: 23.0 | AJ18: 0.8 | AK18: 37 | AL18: =AE18 -> 496 | AM18: =AH18 -> 0.0002564981899 | AN18: 66 | AO18: =AM18 -> 0.0002564981899 | AP18: =AI18 -> 23.0 | AQ18: 0.8 | AR18: 37 | AT18: =(AG18*((((Tv_cool-Tr_cool)/LN((Tv_cool-Tl_cool)/(Tr_cool-Tl_cool)))/((16-18)/LN((16-27)/(18-27))))^S18))*$G$14 -> 0.02207333333 | AU18: =((AT18/$G$14)/(IF((237.3*LN((RH*EXP(17.27*(Tl_cool/(Tl_cool+237.3))))))/(17.27-LN((RH*EXP(17.27*(Tl_cool/(Tl_cool+237.3))))))<((Tv_cool+Tr_cool)/2),1,1/(1+((2258*((0.622/((p_atm/(1*611*EXP(17.27*(((Tv_cool+Tr_cool)/2)/(((Tv_cool+Tr_cool)/2)+237.3))))))-1)*1000-(0.622/((p_atm/(RH*611*EXP(17.27*(Tl_cool/(Tl_cool+237.3))))))-1)*1000))/(1005*(((Tv_cool+Tr_cool)/2)-Tl_cool))))+-((-0.000625*$C18+0.00625)*(Tl_cool-(Tv_cool+Tr_cool)/2)-(-0.000625*$C18+0.00625)*10))))*$H$14 -> 66 | AW18: 590 | AX18: 2.55e-05 | AY18: 84 | AZ18: 5.81E-06 | BA18: 27.0 | BB18: 1.6 | BC18: 55 | BD18: 535.13637 | BE18: 2.92985e-05 | BF18: 117.358534 | BG18: 1.199687682e-05 | BH18: 27.0 | BI18: 1.6 | BJ18: 44 | BK18: 691.7684115 | BL18: 2.014474704e-05 | BM18: 122.2114853 | BN18: =BL18 -> 2.014474704e-05 | BO18: =BH18 -> 27.0 | BP18: 1.6 | BQ18: 44 | BS18: 1310.300049 | BT18: 2.203548057e-05 | BU18: 291.4004809 | BV18: 6.606631444e-05 | BW18: 29.0 | BX18: 2.7 | BY18: 167 | BZ18: 1965.450074 | CA18: 2.773457631e-05 | CB18: 320.540529 | CC18: 2.773457631e-05 | CD18: 29.0 | CE18: 2.7 | CF18: 167 | CH18: =BS18*0.9 -> 1179.270045 | CI18: 2.203548057e-05 | CJ18: =BU18*0.9 -> 262.2604329 | CK18: 6.606631444e-05 | CL18: 29.0 | CM18: 2.7 | CN18: 167 | CO18: =BZ18*0.9 -> 1768.905067 | CP18: 2.773457631e-05 | CQ18: =CB18*0.9 -> 288.4864761 | CR18: 2.773457631e-05 | CS18: 29.0 | CT18: 2.7 | CU18: 167
B19: 60% | C19: 6 | D19: =(X19*($T$11^$Q19))*Watts*CF_Altit -> 1031 | E19: =ROUND(((D19/Watts)/(($S$9-$S$10)*1.163))*$E$14,IF($X$4=1,0,IF($X$4=2,2))) -> 89 | F19: =($Y$18*(E19/$E$14)^$Y$20)*$F$14 -> 0.11 | G19: =(Z19*($W$11^R19))*Watts*CF_Altit -> 175 | H19: =((G19/Watts)/(IF((237.3*LN((RH*EXP(17.27*(Tl_cool/(Tl_cool+237.3))))))/(17.27-LN((RH*EXP(17.27*(Tl_cool/(Tl_cool+237.3))))))<Tavg_cold,1,IF(1/(1+((2258*((0.622/(($Z$11/(1*611*EXP(17.27*(Tavg_cold/(Tavg_cold+237.3))))))-1)*1000-(0.622/(($Z$11/(RH*611*EXP(17.27*(Tl_cool/(Tl_cool+237.3))))))-1)*1000))/(1005*(Tavg_cold-Tl_cool))))*1.039+((-0.000729*$C19+0.001448)*(Tl_cool-Tavg_cold)+(0.016908*$C19-0.033574))*1.039>1,1,1/(1+((2258*((0.622/(($Z$11/(1*611*EXP(17.27*(Tavg_cold/(Tavg_cold+237.3))))))-1)*1000-(0.622/(($Z$11/(RH*611*EXP(17.27*(Tl_cool/(Tl_cool+237.3))))))-1)*1000))/(1005*(Tavg_cold-Tl_cool))))*1.039+((-0.000729*$C19+0.001448)*(Tl_cool-Tavg_cold)+(0.016908*$C19-0.033574))*1.039))))*Watts -> 175 | I19: =ROUND(((H19/Watts)/((Tr_cool-Tv_cool)*1.163))*$I$14,IF($X$4=1,0,IF($X$4=2,2))) -> 75 | J19: =($AA$18*(I19/$I$14)^$AA$20)*$J$14 -> 0.08 | K19: =L19-8 -> 27.0 | L19: 35.0 | M19: 3.2 | N19: =AD19*Cubics -> 85 | O19: =((($D19/Watts)/(((p_atm*0.028964)/(8.31447*(20+273.15)))*(($N19/3600)/Cubics)*(1005+1870*((0.622)/(((p_atm)/($E$12*Pvs_Heat_in))-1)))))+Tl_heat)*Celc1+Celc2 -> 56 | P19: =(Tl_cool-(($G19/Watts)/(1006*$N19*kgss)))*Celc1+Celc2 -> 21 | Q19: 1 | R19: 0.883 | S19: 0.790 | T19: 0.950 | U19: 0.883 | V19: 0.882 | W19: =(H19-G19)/H19 -> 0.0% | X19: 1031.235904 | Y19: b | Z19: 174.536075 | AA19: b | AB19: 35.0 | AC19: 3.2 | AD19: 85 | AE19: 699 | AF19: b | AG19: 104 | AH19: b | AI19: 31.0 | AJ19: 1.3 | AK19: 52 | AL19: =AE19 -> 699 | AM19: b | AN19: 104 | AO19: b | AP19: 31.0 | AQ19: 1.3 | AR19: 52 | AT19: =(AG19*((((Tv_cool-Tr_cool)/LN((Tv_cool-Tl_cool)/(Tr_cool-Tl_cool)))/((16-18)/LN((16-27)/(18-27))))^S19))*$G$14 -> 0.03478222222 | AU19: =((AT19/$G$14)/(IF((237.3*LN((RH*EXP(17.27*(Tl_cool/(Tl_cool+237.3))))))/(17.27-LN((RH*EXP(17.27*(Tl_cool/(Tl_cool+237.3))))))<((Tv_cool+Tr_cool)/2),1,1/(1+((2258*((0.622/((p_atm/(1*611*EXP(17.27*(((Tv_cool+Tr_cool)/2)/(((Tv_cool+Tr_cool)/2)+237.3))))))-1)*1000-(0.622/((p_atm/(RH*611*EXP(17.27*(Tl_cool/(Tl_cool+237.3))))))-1)*1000))/(1005*(((Tv_cool+Tr_cool)/2)-Tl_cool))))+-((-0.000625*$C19+0.00625)*(Tl_cool-(Tv_cool+Tr_cool)/2)-(-0.000625*$C19+0.00625)*10))))*$H$14 -> 104 | AW19: 786 | AX19: b | AY19: 127 | AZ19: b | BA19: 35.1 | BB19: 2.9 | BC19: 85 | BD19: 754.79587 | BE19: b | BF19: 168.7157513 | BG19: b | BH19: 35.0 | BI19: 3.2 | BJ19: 85 | BK19: 1031.235904 | BL19: b | BM19: 174.536075 | BN19: b | BO19: =BH19 -> 35.0 | BP19: 3.2 | BQ19: 85 | BS19: 1711.125834 | BT19: b | BU19: 431.1620039 | BV19: b | BW19: 35.0 | BX19: 4.8 | BY19: 236 | BZ19: 2566.688751 | CA19: b | CB19: 474.2782043 | CC19: b | CD19: 35.0 | CE19: 4.8 | CF19: 236 | CH19: 1540.013251 | CI19: b | CJ19: 388.0458035 | CK19: b | CL19: 35.0 | CM19: 4.8 | CN19: 236 | CO19: 2310.019876 | CP19: b | CQ19: 426.8503838 | CR19: b | CS19: 35.0 | CT19: 4.8 | CU19: 236
B20: 80% | C20: 8 | D20: =(X20*($T$11^$Q20))*Watts*CF_Altit -> 1331 | E20: =ROUND(((D20/Watts)/(($S$9-$S$10)*1.163))*$E$14,IF($X$4=1,0,IF($X$4=2,2))) -> 114 | F20: =($Y$18*(E20/$E$14)^$Y$20)*$F$14 -> 0.18 | G20: =(Z20*($W$11^R20))*Watts*CF_Altit -> 224 | H20: =((G20/Watts)/(IF((237.3*LN((RH*EXP(17.27*(Tl_cool/(Tl_cool+237.3))))))/(17.27-LN((RH*EXP(17.27*(Tl_cool/(Tl_cool+237.3))))))<Tavg_cold,1,IF(1/(1+((2258*((0.622/(($Z$11/(1*611*EXP(17.27*(Tavg_cold/(Tavg_cold+237.3))))))-1)*1000-(0.622/(($Z$11/(RH*611*EXP(17.27*(Tl_cool/(Tl_cool+237.3))))))-1)*1000))/(1005*(Tavg_cold-Tl_cool))))*1.039+((-0.000729*$C20+0.001448)*(Tl_cool-Tavg_cold)+(0.016908*$C20-0.033574))*1.039>1,1,1/(1+((2258*((0.622/(($Z$11/(1*611*EXP(17.27*(Tavg_cold/(Tavg_cold+237.3))))))-1)*1000-(0.622/(($Z$11/(RH*611*EXP(17.27*(Tl_cool/(Tl_cool+237.3))))))-1)*1000))/(1005*(Tavg_cold-Tl_cool))))*1.039+((-0.000729*$C20+0.001448)*(Tl_cool-Tavg_cold)+(0.016908*$C20-0.033574))*1.039))))*Watts -> 224 | I20: =ROUND(((H20/Watts)/((Tr_cool-Tv_cool)*1.163))*$I$14,IF($X$4=1,0,IF($X$4=2,2))) -> 96 | J20: =($AA$18*(I20/$I$14)^$AA$20)*$J$14 -> 0.13 | K20: =L20-8 -> 35.0 | L20: 43.0 | M20: 5.9 | N20: =AD20*Cubics -> 117 | O20: =((($D20/Watts)/(((p_atm*0.028964)/(8.31447*(20+273.15)))*(($N20/3600)/Cubics)*(1005+1870*((0.622)/(((p_atm)/($E$12*Pvs_Heat_in))-1)))))+Tl_heat)*Celc1+Celc2 -> 53 | P20: =(Tl_cool-(($G20/Watts)/(1006*$N20*kgss)))*Celc1+Celc2 -> 21 | Q20: 1 | R20: 0.854 | S20: 0.870 | T20: 0.950 | U20: 0.854 | V20: 0.895 | W20: =(H20-G20)/H20 -> 0.0% | X20: 1331.183342 | Y20: 1.921304905 | Z20: 224.2801411 | AA20: 1.921304905 | AB20: 43.0 | AC20: 5.9 | AD20: 117 | AE20: 891 | AF20: 1.823515585 | AG20: 144 | AH20: =AF20 -> 1.823515585 | AI20: 36.0 | AJ20: 2.1 | AK20: 68 | AL20: =AE20 -> 891 | AM20: =AH20 -> 1.823515585 | AN20: 144 | AO20: =AM20 -> 1.823515585 | AP20: 36.0 | AQ20: 2.1 | AR20: 68 | AT20: =(AG20*((((Tv_cool-Tr_cool)/LN((Tv_cool-Tl_cool)/(Tr_cool-Tl_cool)))/((16-18)/LN((16-27)/(18-27))))^S20))*$G$14 -> 0.04816 | AU20: =((AT20/$G$14)/(IF((237.3*LN((RH*EXP(17.27*(Tl_cool/(Tl_cool+237.3))))))/(17.27-LN((RH*EXP(17.27*(Tl_cool/(Tl_cool+237.3))))))<((Tv_cool+Tr_cool)/2),1,1/(1+((2258*((0.622/((p_atm/(1*611*EXP(17.27*(((Tv_cool+Tr_cool)/2)/(((Tv_cool+Tr_cool)/2)+237.3))))))-1)*1000-(0.622/((p_atm/(RH*611*EXP(17.27*(Tl_cool/(Tl_cool+237.3))))))-1)*1000))/(1005*(((Tv_cool+Tr_cool)/2)-Tl_cool))))+-((-0.000625*$C20+0.00625)*(Tl_cool-(Tv_cool+Tr_cool)/2)-(-0.000625*$C20+0.00625)*10))))*$H$14 -> 144 | AW20: 962 | AX20: 1.8 | AY20: 170 | AZ20: 2 | BA20: 43.0 | BB20: 5.0 | BC20: 117 | BD20: 927.30613 | BE20: 1.91852 | BF20: 218.6951595 | BG20: 1.95207237 | BH20: 43.0 | BI20: 5.9 | BJ20: 117 | BK20: 1331.183342 | BL20: 1.921304905 | BM20: 224.2801411 | BN20: =BL20 -> 1.921304905 | BO20: =BH20 -> 43.0 | BP20: 5.9 | BQ20: 117 | BS20: 2067.865306 | BT20: 2 | BU20: 569.3298863 | BV20: 2 | BW20: 43.0 | BX20: 9.3 | BY20: 309 | BZ20: 3101.79796 | CA20: 2 | CB20: 626.2628749 | CC20: 2 | CD20: 43.0 | CE20: 9.3 | CF20: 309 | CH20: 1861.078776 | CI20: 2 | CJ20: 512.3968977 | CK20: 2 | CL20: 43.0 | CM20: 9.3 | CN20: 309 | CO20: 2791.618164 | CP20: 2 | CQ20: 563.6365874 | CR20: 2 | CS20: 43.0 | CT20: 9.3 | CU20: 309
B21: 100% | C21: 10 | D21: =(X21*($T$11^$Q21))*Watts*CF_Altit -> 1592 | E21: =ROUND(((D21/Watts)/(($S$9-$S$10)*1.163))*$E$14,IF($X$4=1,0,IF($X$4=2,2))) -> 137 | F21: =($Y$18*(E21/$E$14)^$Y$20)*$F$14 -> 0.26 | G21: =(Z21*($W$11^R21))*Watts*CF_Altit -> 271 | H21: =((G21/Watts)/(IF((237.3*LN((RH*EXP(17.27*(Tl_cool/(Tl_cool+237.3))))))/(17.27-LN((RH*EXP(17.27*(Tl_cool/(Tl_cool+237.3))))))<Tavg_cold,1,IF(1/(1+((2258*((0.622/(($Z$11/(1*611*EXP(17.27*(Tavg_cold/(Tavg_cold+237.3))))))-1)*1000-(0.622/(($Z$11/(RH*611*EXP(17.27*(Tl_cool/(Tl_cool+237.3))))))-1)*1000))/(1005*(Tavg_cold-Tl_cool))))*1.039+((-0.000729*$C21+0.001448)*(Tl_cool-Tavg_cold)+(0.016908*$C21-0.033574))*1.039>1,1,1/(1+((2258*((0.622/(($Z$11/(1*611*EXP(17.27*(Tavg_cold/(Tavg_cold+237.3))))))-1)*1000-(0.622/(($Z$11/(RH*611*EXP(17.27*(Tl_cool/(Tl_cool+237.3))))))-1)*1000))/(1005*(Tavg_cold-Tl_cool))))*1.039+((-0.000729*$C21+0.001448)*(Tl_cool-Tavg_cold)+(0.016908*$C21-0.033574))*1.039))))*Watts -> 271 | I21: =ROUND(((H21/Watts)/((Tr_cool-Tv_cool)*1.163))*$I$14,IF($X$4=1,0,IF($X$4=2,2))) -> 117 | J21: =($AA$18*(I21/$I$14)^$AA$20)*$J$14 -> 0.19 | K21: =L21-8 -> 38.0 | L21: 46.0 | M21: 8.8 | N21: =AD21*Cubics -> 137 | O21: =((($D21/Watts)/(((p_atm*0.028964)/(8.31447*(20+273.15)))*(($N21/3600)/Cubics)*(1005+1870*((0.622)/(((p_atm)/($E$12*Pvs_Heat_in))-1)))))+Tl_heat)*Celc1+Celc2 -> 54 | P21: =(Tl_cool-(($G21/Watts)/(1006*$N21*kgss)))*Celc1+Celc2 -> 21 | Q21: 1 | R21: 0.771 | S21: 0.910 | T21: 0.980 | U21: 0.771 | V21: 0.911 | W21: =(H21-G21)/H21 -> 0.0% | X21: 1591.610726 | Y21: 0 | Z21: 271.4436836 | AA21: 0 | AB21: 46.0 | AC21: 8.8 | AD21: 137 | AE21: 1075 | AG21: 185 | AI21: 42.0 | AJ21: 3.0 | AK21: 79 | AL21: =AE21 -> 1075 | AN21: 185 | AP21: 42.0 | AQ21: 3.0 | AR21: 79 | AT21: =(AG21*((((Tv_cool-Tr_cool)/LN((Tv_cool-Tl_cool)/(Tr_cool-Tl_cool)))/((16-18)/LN((16-27)/(18-27))))^S21))*$G$14 -> 0.06187222222 | AU21: =((AT21/$G$14)/(IF((237.3*LN((RH*EXP(17.27*(Tl_cool/(Tl_cool+237.3))))))/(17.27-LN((RH*EXP(17.27*(Tl_cool/(Tl_cool+237.3))))))<((Tv_cool+Tr_cool)/2),1,1/(1+((2258*((0.622/((p_atm/(1*611*EXP(17.27*(((Tv_cool+Tr_cool)/2)/(((Tv_cool+Tr_cool)/2)+237.3))))))-1)*1000-(0.622/((p_atm/(RH*611*EXP(17.27*(Tl_cool/(Tl_cool+237.3))))))-1)*1000))/(1005*(((Tv_cool+Tr_cool)/2)-Tl_cool))))+-((-0.000625*$C21+0.00625)*(Tl_cool-(Tv_cool+Tr_cool)/2)-(-0.000625*$C21+0.00625)*10))))*$H$14 -> 185 | AW21: 1126 | AY21: 214 | BA21: 46.0 | BB21: 7.7 | BC21: 147 | BD21: 1052.66715 | BF21: 267.2967588 | BH21: 46.0 | BI21: 8.8 | BJ21: 137 | BK21: 1591.610726 | BM21: 271.4436836 | BO21: =BH21 -> 46.0 | BP21: 8.8 | BQ21: 137 | BS21: 2395.040041 | BU21: 706.3247169 | BW21: 48.0 | BX21: 15.0 | BY21: 351 | BZ21: 3592.560061 | CB21: 776.9571886 | CD21: 48.0 | CE21: 15.0 | CF21: 351 | CH21: 2155.536037 | CJ21: 635.6922452 | CL21: 48.0 | CM21: 15.0 | CN21: 351 | CO21: 3233.304055 | CQ21: 699.2614697 | CS21: 48.0 | CT21: 15.0 | CU21: 351
B22: =IF($S$7=1,NL!A21,IF(cal!$S$7=2,EN!A21,IF(cal!$S$7=3,DE!A21,IF(cal!$S$7=4,FR!A21,IF(cal!$S$7=5,NR!A21,IF(cal!$S$7=6,SP!A21,IF(cal!$S$7=7,SW!A21,IF(cal!$S$7=8,TS!A21,IF(cal!$S$7=9,ExtraTaal1!A21,IF(cal!$S$7=10,ExtraTaal2!A21,IF(cal!$S$7=11,ExtraTaal3!A21,))))))))))) -> Clima Canal height 13 cm width 32 cm length 100 cm (Type 2) | C22: =IF($S$7=1,NL!B21,IF(cal!$S$7=2,EN!B21,IF(cal!$S$7=3,DE!B21,IF(cal!$S$7=4,FR!B21,IF(cal!$S$7=5,NR!B21,IF(cal!$S$7=6,SP!B21,IF(cal!$S$7=7,SW!B21,IF(cal!$S$7=8,TS!B21,IF(cal!$S$7=9,ExtraTaal1!B21,IF(cal!$S$7=10,ExtraTaal2!B21,IF(cal!$S$7=11,ExtraTaal3!B21,))))))))))) -> 0 | D22: =IF($S$7=1,NL!C21,IF(cal!$S$7=2,EN!C21,IF(cal!$S$7=3,DE!C21,IF(cal!$S$7=4,FR!C21,IF(cal!$S$7=5,NR!C21,IF(cal!$S$7=6,SP!C21,IF(cal!$S$7=7,SW!C21,IF(cal!$S$7=8,TS!C21,IF(cal!$S$7=9,ExtraTaal1!C21,IF(cal!$S$7=10,ExtraTaal2!C21,IF(cal!$S$7=11,ExtraTaal3!C21,))))))))))) -> 0 | E22: =IF($S$7=1,NL!D21,IF(cal!$S$7=2,EN!D21,IF(cal!$S$7=3,DE!D21,IF(cal!$S$7=4,FR!D21,IF(cal!$S$7=5,NR!D21,IF(cal!$S$7=6,SP!D21,IF(cal!$S$7=7,SW!D21,IF(cal!$S$7=8,TS!D21,IF(cal!$S$7=9,ExtraTaal1!D21,IF(cal!$S$7=10,ExtraTaal2!D21,IF(cal!$S$7=11,ExtraTaal3!D21,))))))))))) -> 0 | F22: =IF($S$7=1,NL!E21,IF(cal!$S$7=2,EN!E21,IF(cal!$S$7=3,DE!E21,IF(cal!$S$7=4,FR!E21,IF(cal!$S$7=5,NR!E21,IF(cal!$S$7=6,SP!E21,IF(cal!$S$7=7,SW!E21,IF(cal!$S$7=8,TS!E21,IF(cal!$S$7=9,ExtraTaal1!E21,IF(cal!$S$7=10,ExtraTaal2!E21,IF(cal!$S$7=11,ExtraTaal3!E21,))))))))))) -> 0 | G22: =IF($S$7=1,NL!F21,IF(cal!$S$7=2,EN!F21,IF(cal!$S$7=3,DE!F21,IF(cal!$S$7=4,FR!F21,IF(cal!$S$7=5,NR!F21,IF(cal!$S$7=6,SP!F21,IF(cal!$S$7=7,SW!F21,IF(cal!$S$7=8,TS!F21,IF(cal!$S$7=9,ExtraTaal1!F21,IF(cal!$S$7=10,ExtraTaal2!F21,IF(cal!$S$7=11,ExtraTaal3!F21,))))))))))) -> 0 | H22: =IF($S$7=1,NL!G21,IF(cal!$S$7=2,EN!G21,IF(cal!$S$7=3,DE!G21,IF(cal!$S$7=4,FR!G21,IF(cal!$S$7=5,NR!G21,IF(cal!$S$7=6,SP!G21,IF(cal!$S$7=7,SW!G21,IF(cal!$S$7=8,TS!G21,IF(cal!$S$7=9,ExtraTaal1!G21,IF(cal!$S$7=10,ExtraTaal2!G21,IF(cal!$S$7=11,ExtraTaal3!G21,))))))))))) -> 0 | I22: =IF($S$7=1,NL!H21,IF(cal!$S$7=2,EN!H21,IF(cal!$S$7=3,DE!H21,IF(cal!$S$7=4,FR!H21,IF(cal!$S$7=5,NR!H21,IF(cal!$S$7=6,SP!H21,IF(cal!$S$7=7,SW!H21,IF(cal!$S$7=8,TS!H21,IF(cal!$S$7=9,ExtraTaal1!H21,IF(cal!$S$7=10,ExtraTaal2!H21,IF(cal!$S$7=11,ExtraTaal3!H21,))))))))))) -> 0 | J22: =IF($S$7=1,NL!I21,IF(cal!$S$7=2,EN!I21,IF(cal!$S$7=3,DE!I21,IF(cal!$S$7=4,FR!I21,IF(cal!$S$7=5,NR!I21,IF(cal!$S$7=6,SP!I21,IF(cal!$S$7=7,SW!I21,IF(cal!$S$7=8,TS!I21,IF(cal!$S$7=9,ExtraTaal1!I21,IF(cal!$S$7=10,ExtraTaal2!I21,IF(cal!$S$7=11,ExtraTaal3!I21,))))))))))) -> 0 | K22: =IF($S$7=1,NL!J21,IF(cal!$S$7=2,EN!J21,IF(cal!$S$7=3,DE!J21,IF(cal!$S$7=4,FR!J21,IF(cal!$S$7=5,NR!J21,IF(cal!$S$7=6,SP!J21,IF(cal!$S$7=7,SW!J21,IF(cal!$S$7=8,TS!J21,IF(cal!$S$7=9,ExtraTaal1!J21,IF(cal!$S$7=10,ExtraTaal2!J21,IF(cal!$S$7=11,ExtraTaal3!J21,))))))))))) -> 0 | L22: =IF($S$7=1,NL!K21,IF(cal!$S$7=2,EN!K21,IF(cal!$S$7=3,DE!K21,IF(cal!$S$7=4,FR!K21,IF(cal!$S$7=5,NR!K21,IF(cal!$S$7=6,SP!K21,IF(cal!$S$7=7,SW!K21,IF(cal!$S$7=8,TS!K21,IF(cal!$S$7=9,ExtraTaal1!K21,IF(cal!$S$7=10,ExtraTaal2!K21,IF(cal!$S$7=11,ExtraTaal3!K21,))))))))))) -> 0 | M22: =IF($S$7=1,NL!L21,IF(cal!$S$7=2,EN!L21,IF(cal!$S$7=3,DE!L21,IF(cal!$S$7=4,FR!L21,IF(cal!$S$7=5,NR!L21,IF(cal!$S$7=6,SP!L21,IF(cal!$S$7=7,SW!L21,IF(cal!$S$7=8,TS!L21,IF(cal!$S$7=9,ExtraTaal1!L21,IF(cal!$S$7=10,ExtraTaal2!L21,IF(cal!$S$7=11,ExtraTaal3!L21,))))))))))) -> 0 | N22: =IF($S$7=1,NL!M21,IF(cal!$S$7=2,EN!M21,IF(cal!$S$7=3,DE!M21,IF(cal!$S$7=4,FR!M21,IF(cal!$S$7=5,NR!M21,IF(cal!$S$7=6,SP!M21,IF(cal!$S$7=7,SW!M21,IF(cal!$S$7=8,TS!M21,IF(cal!$S$7=9,ExtraTaal1!M21,IF(cal!$S$7=10,ExtraTaal2!M21,IF(cal!$S$7=11,ExtraTaal3!M21,))))))))))) -> 0 | O22: =IF($S$7=1,NL!N21,IF(cal!$S$7=2,EN!N21,IF(cal!$S$7=3,DE!N21,IF(cal!$S$7=4,FR!N21,IF(cal!$S$7=5,NR!N21,IF(cal!$S$7=6,SP!N21,IF(cal!$S$7=7,SW!N21,IF(cal!$S$7=8,TS!N21,IF(cal!$S$7=9,ExtraTaal1!N21,IF(cal!$S$7=10,ExtraTaal2!N21,IF(cal!$S$7=11,ExtraTaal3!N21,))))))))))) -> 0 | P22: =IF($S$7=1,NL!O21,IF(cal!$S$7=2,EN!O21,IF(cal!$S$7=3,DE!O21,IF(cal!$S$7=4,FR!O21,IF(cal!$S$7=5,NR!O21,IF(cal!$S$7=6,SP!O21,IF(cal!$S$7=7,SW!O21,IF(cal!$S$7=8,TS!O21,IF(cal!$S$7=9,ExtraTaal1!O21,IF(cal!$S$7=10,ExtraTaal2!O21,IF(cal!$S$7=11,ExtraTaal3!O21,))))))))))) -> 0 | Q22: n-value | R22: n-value | S22: n-value | T22: n-value | U22: n-value | V22: n-value | X22: H | Y22: 13 | Z22: B | AA22: 32 | AB22: L | AC22: 70 | AD22: 0 | AE22: H | AF22: =ROUND(8*IF($X$4=1,1,IF($X$4=2,1/2.54)),1) -> 8 | AG22: B | AH22: =ROUND(18*IF($X$4=1,1,IF($X$4=2,1/2.54)),1) -> 18 | AI22: L | AJ22: =72*IF($X$4=1,1,IF($X$4=2,1/2.54)) -> 72 | AL22: H | AM22: =ROUND(10*IF($X$4=1,1,IF($X$4=2,1/2.54)),1) -> 10 | AN22: B | AO22: =AH22 -> 18 | AP22: L | AQ22: =AJ22 -> 72 | AW22: H | AX22: =ROUND(IF($X$4=1,13,13/2.54),1) -> 13 | AY22: B | AZ22: =ROUND(IF($X$4=1,27,27/2.54),1) -> 27 | BA22: L | BB22: =IF($X$4=1,79.8,79.8/2.54) -> 79.8 | BD22: H | BE22: =ROUND(IF($X$4=1,13,13/2.54),1) -> 13 | BF22: B | BG22: =ROUND(IF($X$4=1,32,32/2.54),1) -> 32 | BH22: L | BI22: =IF($X$4=1,70,70/2.54) -> 70 | BK22: H | BL22: =ROUND(IF($X$4=1,13,13/2.54),1) -> 13 | BM22: B | BN22: =ROUND(IF($X$4=1,32,32/2.54),1) -> 32 | BO22: L | BP22: =IF($X$4=1,70,70/2.54) -> 70 | BS22: H | BT22: =ROUND(19*IF($X$4=1,1,IF($X$4=2,1/2.54)),1) -> 19 | BU22: B | BV22: =ROUND(34*IF($X$4=1,1,IF($X$4=2,1/2.54)),1) -> 34 | BW22: L | BX22: =105*IF($X$4=1,1,IF($X$4=2,1/2.54)) -> 105 | BZ22: H | CA22: =BT22 -> 19 | CB22: B | CC22: =BV22 -> 34 | CD22: L | CE22: =BX22 -> 105 | CH22: H | CI22: 15 | CJ22: B | CK22: 32 | CL22: L | CM22: =105*IF($X$4=1,1,IF($X$4=2,1/2.54)) -> 105 | CO22: H | CP22: =CI22 -> 15 | CQ22: B | CR22: =CK22 -> 32 | CS22: L | CT22: =CM22 -> 105
B23: 20% | C23: 2 | D23: =(X23*($T$11^$Q23))*Watts*CF_Altit -> 593 | E23: =ROUND(((D23/Watts)/(($S$9-$S$10)*1.163))*$E$14,IF($X$4=1,0,IF($X$4=2,2))) -> 51 | F23: =($Y$24*(E23/$E$14)^$Y$26)*$F$14 -> 0.05 | G23: =(Z23*($W$11^R23))*Watts*CF_Altit -> 128 | H23: =((G23/Watts)/(IF((237.3*LN((RH*EXP(17.27*(Tl_cool/(Tl_cool+237.3))))))/(17.27-LN((RH*EXP(17.27*(Tl_cool/(Tl_cool+237.3))))))<Tavg_cold,1,IF(1/(1+((2258*((0.622/(($Z$11/(1*611*EXP(17.27*(Tavg_cold/(Tavg_cold+237.3))))))-1)*1000-(0.622/(($Z$11/(RH*611*EXP(17.27*(Tl_cool/(Tl_cool+237.3))))))-1)*1000))/(1005*(Tavg_cold-Tl_cool))))*1.039+((-0.000729*$C23+0.001448)*(Tl_cool-Tavg_cold)+(0.016908*$C23-0.033574))*1.039>1,1,1/(1+((2258*((0.622/(($Z$11/(1*611*EXP(17.27*(Tavg_cold/(Tavg_cold+237.3))))))-1)*1000-(0.622/(($Z$11/(RH*611*EXP(17.27*(Tl_cool/(Tl_cool+237.3))))))-1)*1000))/(1005*(Tavg_cold-Tl_cool))))*1.039+((-0.000729*$C23+0.001448)*(Tl_cool-Tavg_cold)+(0.016908*$C23-0.033574))*1.039))))*Watts -> 128 | I23: =ROUND(((H23/Watts)/((Tr_cool-Tv_cool)*1.163))*$I$14,IF($X$4=1,0,IF($X$4=2,2))) -> 55 | J23: =($AA$24*(I23/$I$14)^$AA$26)*$J$14 -> 0.06 | K23: =L23-8 -> 20.0 | L23: =AB23 -> 28.0 | M23: 1.0 | N23: =AD23*Cubics -> 44 | O23: =((($D23/Watts)/(((p_atm*0.028964)/(8.31447*(20+273.15)))*(($N23/3600)/Cubics)*(1005+1870*((0.622)/(((p_atm)/($E$12*Pvs_Heat_in))-1)))))+Tl_heat)*Celc1+Celc2 -> 60 | P23: =(Tl_cool-(($G23/Watts)/(1006*$N23*kgss)))*Celc1+Celc2 -> 18 | Q23: 1 | R23: 0.781 | S23: 0.600 | T23: 1.160 | U23: 0.781 | V23: 0.877 | W23: =(H23-G23)/H23 -> 0.0% | X23: 592.8831302 | Y23: a | Z23: =IF($X$16=1,AG23,IF($X$16=2,AN23,IF($X$16=3,BM23,IF($X$16=4,BF23,IF($X$16=5,CB23,IF($X$16=6,BU23,IF($X$16=7,AY23,IF($X$16=9,CJ23,IF($X$16=8,CQ23,))))))))) -> 127.5807348 | AA23: a | AB23: 28.0 | AC23: 1.0 | AD23: 44 | AE23: 569 | AF23: a | AG23: 62 | AH23: a | AI23: 23.0 | AJ23: 0.6 | AK23: 42 | AL23: =AE23 -> 569 | AM23: a | AN23: 62 | AO23: a | AP23: =AI23 -> 23.0 | AQ23: 0.6 | AR23: 42 | AT23: =(AG23*((((Tv_cool-Tr_cool)/LN((Tv_cool-Tl_cool)/(Tr_cool-Tl_cool)))/((16-18)/LN((16-27)/(18-27))))^S23))*$G$14 -> 0.02073555556 | AU23: =((AT23/$G$14)/(IF((237.3*LN((RH*EXP(17.27*(Tl_cool/(Tl_cool+237.3))))))/(17.27-LN((RH*EXP(17.27*(Tl_cool/(Tl_cool+237.3))))))<((Tv_cool+Tr_cool)/2),1,1/(1+((2258*((0.622/((p_atm/(1*611*EXP(17.27*(((Tv_cool+Tr_cool)/2)/(((Tv_cool+Tr_cool)/2)+237.3))))))-1)*1000-(0.622/((p_atm/(RH*611*EXP(17.27*(Tl_cool/(Tl_cool+237.3))))))-1)*1000))/(1005*(((Tv_cool+Tr_cool)/2)-Tl_cool))))+-((-0.000625*$C23+0.00625)*(Tl_cool-(Tv_cool+Tr_cool)/2)-(-0.000625*$C23+0.00625)*10))))*$H$14 -> 62 | AW23: 622 | AX23: a | AY23: 71 | AZ23: a | BA23: 27.0 | BB23: 1.0 | BC23: 52 | BD23: 508.62103 | BE23: a | BF23: 122.4953058 | BG23: a | BH23: 28.0 | BI23: 1.0 | BJ23: 44 | BK23: 592.8831302 | BL23: a | BM23: 127.5807348 | BN23: a | BO23: =BH23 -> 28.0 | BP23: 1.0 | BQ23: 44 | BS23: 1031.696264 | BT23: a | BU23: 185.3314555 | BV23: a | BW23: 27.0 | BX23: 3.2 | BY23: 82 | BZ23: 1547.544397 | CA23: a | CB23: 203.864601 | CC23: a | CD23: 27.0 | CE23: 3.2 | CF23: 82 | CH23: =BS23*0.9 -> 928.526638 | CI23: a | CJ23: =BU23*0.9 -> 166.7983099 | CK23: a | CL23: 27.0 | CM23: 3.2 | CN23: 82 | CO23: =BZ23*0.9 -> 1392.789957 | CP23: a | CQ23: =CB23*0.9 -> 183.4781409 | CR23: a | CS23: 27.0 | CT23: 3.2 | CU23: 82
B24: 40% | C24: 4 | D24: =(X24*($T$11^$Q24))*Watts*CF_Altit -> 1311 | E24: =ROUND(((D24/Watts)/(($S$9-$S$10)*1.163))*$E$14,IF($X$4=1,0,IF($X$4=2,2))) -> 113 | F24: =($Y$24*(E24/$E$14)^$Y$26)*$F$14 -> 0.22 | G24: =(Z24*($W$11^R24))*Watts*CF_Altit -> 232 | H24: =((G24/Watts)/(IF((237.3*LN((RH*EXP(17.27*(Tl_cool/(Tl_cool+237.3))))))/(17.27-LN((RH*EXP(17.27*(Tl_cool/(Tl_cool+237.3))))))<Tavg_cold,1,IF(1/(1+((2258*((0.622/(($Z$11/(1*611*EXP(17.27*(Tavg_cold/(Tavg_cold+237.3))))))-1)*1000-(0.622/(($Z$11/(RH*611*EXP(17.27*(Tl_cool/(Tl_cool+237.3))))))-1)*1000))/(1005*(Tavg_cold-Tl_cool))))*1.039+((-0.000729*$C24+0.001448)*(Tl_cool-Tavg_cold)+(0.016908*$C24-0.033574))*1.039>1,1,1/(1+((2258*((0.622/(($Z$11/(1*611*EXP(17.27*(Tavg_cold/(Tavg_cold+237.3))))))-1)*1000-(0.622/(($Z$11/(RH*611*EXP(17.27*(Tl_cool/(Tl_cool+237.3))))))-1)*1000))/(1005*(Tavg_cold-Tl_cool))))*1.039+((-0.000729*$C24+0.001448)*(Tl_cool-Tavg_cold)+(0.016908*$C24-0.033574))*1.039))))*Watts -> 232 | I24: =ROUND(((H24/Watts)/((Tr_cool-Tv_cool)*1.163))*$I$14,IF($X$4=1,0,IF($X$4=2,2))) -> 100 | J24: =($AA$24*(I24/$I$14)^$AA$26)*$J$14 -> 0.18 | K24: =L24-8 -> 25.0 | L24: 33.0 | M24: 1.8 | N24: =AD24*Cubics -> 85 | O24: =((($D24/Watts)/(((p_atm*0.028964)/(8.31447*(20+273.15)))*(($N24/3600)/Cubics)*(1005+1870*((0.622)/(((p_atm)/($E$12*Pvs_Heat_in))-1)))))+Tl_heat)*Celc1+Celc2 -> 65 | P24: =(Tl_cool-(($G24/Watts)/(1006*$N24*kgss)))*Celc1+Celc2 -> 19 | Q24: 1 | R24: 0.859 | S24: 0.680 | T24: 1.040 | U24: 0.859 | V24: 0.878 | W24: =(H24-G24)/H24 -> 0.0% | X24: 1311.262511 | Y24: 2.943963778e-05 | Z24: 231.6546064 | AA24: 2.943963778e-05 | AB24: 33.0 | AC24: 1.8 | AD24: 85 | AE24: 1021 | AF24: 0.0004020200901 | AG24: 135 | AH24: =AF24 -> 0.0004020200901 | AI24: 27.0 | AJ24: 1.3 | AK24: 75 | AL24: =AE24 -> 1021 | AM24: =AH24 -> 0.0004020200901 | AN24: 135 | AO24: =AM24 -> 0.0004020200901 | AP24: 27.0 | AQ24: 1.3 | AR24: 75 | AT24: =(AG24*((((Tv_cool-Tr_cool)/LN((Tv_cool-Tl_cool)/(Tr_cool-Tl_cool)))/((16-18)/LN((16-27)/(18-27))))^S24))*$G$14 -> 0.04515 | AU24: =((AT24/$G$14)/(IF((237.3*LN((RH*EXP(17.27*(Tl_cool/(Tl_cool+237.3))))))/(17.27-LN((RH*EXP(17.27*(Tl_cool/(Tl_cool+237.3))))))<((Tv_cool+Tr_cool)/2),1,1/(1+((2258*((0.622/((p_atm/(1*611*EXP(17.27*(((Tv_cool+Tr_cool)/2)/(((Tv_cool+Tr_cool)/2)+237.3))))))-1)*1000-(0.622/((p_atm/(RH*611*EXP(17.27*(Tl_cool/(Tl_cool+237.3))))))-1)*1000))/(1005*(((Tv_cool+Tr_cool)/2)-Tl_cool))))+-((-0.000625*$C24+0.00625)*(Tl_cool-(Tv_cool+Tr_cool)/2)-(-0.000625*$C24+0.00625)*10))))*$H$14 -> 135 | AW24: 1015 | AX24: 4.5e-05 | AY24: 144 | AZ24: 6.08E-06 | BA24: 31.9 | BB24: 1.8 | BC24: 78 | BD24: 1014.36297 | BE24: 4.01952e-05 | BF24: 222.4557287 | BG24: 1.330251087e-05 | BH24: 33.0 | BI24: 1.8 | BJ24: 85 | BK24: 1311.262511 | BL24: 2.943963778e-05 | BM24: 231.6546064 | BN24: =BL24 -> 2.943963778e-05 | BO24: 33.0 | BP24: 1.8 | BQ24: 85 | BS24: 1628.183493 | BT24: 2.397886107e-05 | BU24: 362.0952722 | BV24: 7.174325797e-05 | BW24: 30.0 | BX24: 6.7 | BY24: 179 | BZ24: 2442.27524 | CA24: 2.877714503e-05 | CB24: 398.3047994 | CC24: 2.877714503e-05 | CD24: 30.0 | CE24: 6.7 | CF24: 179 | CH24: =BS24*0.9 -> 1465.365144 | CI24: 2.397886107e-05 | CJ24: =BU24*0.9 -> 325.885745 | CK24: 7.174325797e-05 | CL24: 30.0 | CM24: 6.7 | CN24: 179 | CO24: =BZ24*0.9 -> 2198.047716 | CP24: 2.877714503e-05 | CQ24: =CB24*0.9 -> 358.4743195 | CR24: 2.877714503e-05 | CS24: 30.0 | CT24: 6.7 | CU24: 179
B25: 60% | C25: 6 | D25: =(X25*($T$11^$Q25))*Watts*CF_Altit -> 1955 | E25: =ROUND(((D25/Watts)/(($S$9-$S$10)*1.163))*$E$14,IF($X$4=1,0,IF($X$4=2,2))) -> 168 | F25: =($Y$24*(E25/$E$14)^$Y$26)*$F$14 -> 0.47 | G25: =(Z25*($W$11^R25))*Watts*CF_Altit -> 331 | H25: =((G25/Watts)/(IF((237.3*LN((RH*EXP(17.27*(Tl_cool/(Tl_cool+237.3))))))/(17.27-LN((RH*EXP(17.27*(Tl_cool/(Tl_cool+237.3))))))<Tavg_cold,1,IF(1/(1+((2258*((0.622/(($Z$11/(1*611*EXP(17.27*(Tavg_cold/(Tavg_cold+237.3))))))-1)*1000-(0.622/(($Z$11/(RH*611*EXP(17.27*(Tl_cool/(Tl_cool+237.3))))))-1)*1000))/(1005*(Tavg_cold-Tl_cool))))*1.039+((-0.000729*$C25+0.001448)*(Tl_cool-Tavg_cold)+(0.016908*$C25-0.033574))*1.039>1,1,1/(1+((2258*((0.622/(($Z$11/(1*611*EXP(17.27*(Tavg_cold/(Tavg_cold+237.3))))))-1)*1000-(0.622/(($Z$11/(RH*611*EXP(17.27*(Tl_cool/(Tl_cool+237.3))))))-1)*1000))/(1005*(Tavg_cold-Tl_cool))))*1.039+((-0.000729*$C25+0.001448)*(Tl_cool-Tavg_cold)+(0.016908*$C25-0.033574))*1.039))))*Watts -> 331 | I25: =ROUND(((H25/Watts)/((Tr_cool-Tv_cool)*1.163))*$I$14,IF($X$4=1,0,IF($X$4=2,2))) -> 142 | J25: =($AA$24*(I25/$I$14)^$AA$26)*$J$14 -> 0.34 | K25: =L25-8 -> 29.0 | L25: 37.0 | M25: 3.2 | N25: =AD25*Cubics -> 133 | O25: =((($D25/Watts)/(((p_atm*0.028964)/(8.31447*(20+273.15)))*(($N25/3600)/Cubics)*(1005+1870*((0.622)/(((p_atm)/($E$12*Pvs_Heat_in))-1)))))+Tl_heat)*Celc1+Celc2 -> 63 | P25: =(Tl_cool-(($G25/Watts)/(1006*$N25*kgss)))*Celc1+Celc2 -> 20 | Q25: 1 | R25: 0.883 | S25: 0.790 | T25: 0.950 | U25: 0.883 | V25: 0.882 | W25: =(H25-G25)/H25 -> 0.0% | X25: 1954.730744 | Y25: b | Z25: 330.8370376 | AA25: b | AB25: 37.0 | AC25: 3.2 | AD25: 133 | AE25: 1438 | AF25: b | AG25: 214 | AH25: b | AI25: 37.0 | AJ25: 2.7 | AK25: 98 | AL25: =AE25 -> 1438 | AM25: b | AN25: 214 | AO25: b | AP25: 37.0 | AQ25: 2.7 | AR25: 98 | AT25: =(AG25*((((Tv_cool-Tr_cool)/LN((Tv_cool-Tl_cool)/(Tr_cool-Tl_cool)))/((16-18)/LN((16-27)/(18-27))))^S25))*$G$14 -> 0.07157111111 | AU25: =((AT25/$G$14)/(IF((237.3*LN((RH*EXP(17.27*(Tl_cool/(Tl_cool+237.3))))))/(17.27-LN((RH*EXP(17.27*(Tl_cool/(Tl_cool+237.3))))))<((Tv_cool+Tr_cool)/2),1,1/(1+((2258*((0.622/((p_atm/(1*611*EXP(17.27*(((Tv_cool+Tr_cool)/2)/(((Tv_cool+Tr_cool)/2)+237.3))))))-1)*1000-(0.622/((p_atm/(RH*611*EXP(17.27*(Tl_cool/(Tl_cool+237.3))))))-1)*1000))/(1005*(((Tv_cool+Tr_cool)/2)-Tl_cool))))+-((-0.000625*$C25+0.00625)*(Tl_cool-(Tv_cool+Tr_cool)/2)-(-0.000625*$C25+0.00625)*10))))*$H$14 -> 214 | AW25: 1351 | AX25: b | AY25: 218 | AZ25: b | BA25: 37.0 | BB25: 3.6 | BC25: 123 | BD25: 1430.73247 | BE25: b | BF25: 319.8044838 | BG25: b | BH25: 37.0 | BI25: 3.2 | BJ25: 133 | BK25: 1954.730744 | BL25: b | BM25: 330.8370376 | BN25: b | BO25: 37.0 | BP25: 3.2 | BQ25: 133 | BS25: 2126.251037 | BT25: b | BU25: 535.7634368 | BV25: b | BW25: 36.0 | BX25: 12.1 | BY25: 260 | BZ25: 3189.376555 | CA25: b | CB25: 589.3397804 | CC25: b | CD25: 36.0 | CE25: 12.1 | CF25: 260 | CH25: 1913.625933 | CI25: b | CJ25: 482.1870931 | CK25: b | CL25: 36.0 | CM25: 12.1 | CN25: 260 | CO25: 2870.438899 | CP25: b | CQ25: 530.4058024 | CR25: b | CS25: 36.0 | CT25: 12.1 | CU25: 260
B26: 80% | C26: 8 | D26: =(X26*($T$11^$Q26))*Watts*CF_Altit -> 2523 | E26: =ROUND(((D26/Watts)/(($S$9-$S$10)*1.163))*$E$14,IF($X$4=1,0,IF($X$4=2,2))) -> 217 | F26: =($Y$24*(E26/$E$14)^$Y$26)*$F$14 -> 0.77 | G26: =(Z26*($W$11^R26))*Watts*CF_Altit -> 425 | H26: =((G26/Watts)/(IF((237.3*LN((RH*EXP(17.27*(Tl_cool/(Tl_cool+237.3))))))/(17.27-LN((RH*EXP(17.27*(Tl_cool/(Tl_cool+237.3))))))<Tavg_cold,1,IF(1/(1+((2258*((0.622/(($Z$11/(1*611*EXP(17.27*(Tavg_cold/(Tavg_cold+237.3))))))-1)*1000-(0.622/(($Z$11/(RH*611*EXP(17.27*(Tl_cool/(Tl_cool+237.3))))))-1)*1000))/(1005*(Tavg_cold-Tl_cool))))*1.039+((-0.000729*$C26+0.001448)*(Tl_cool-Tavg_cold)+(0.016908*$C26-0.033574))*1.039>1,1,1/(1+((2258*((0.622/(($Z$11/(1*611*EXP(17.27*(Tavg_cold/(Tavg_cold+237.3))))))-1)*1000-(0.622/(($Z$11/(RH*611*EXP(17.27*(Tl_cool/(Tl_cool+237.3))))))-1)*1000))/(1005*(Tavg_cold-Tl_cool))))*1.039+((-0.000729*$C26+0.001448)*(Tl_cool-Tavg_cold)+(0.016908*$C26-0.033574))*1.039))))*Watts -> 425 | I26: =ROUND(((H26/Watts)/((Tr_cool-Tv_cool)*1.163))*$I$14,IF($X$4=1,0,IF($X$4=2,2))) -> 183 | J26: =($AA$24*(I26/$I$14)^$AA$26)*$J$14 -> 0.56 | K26: =L26-8 -> 36.0 | L26: 44.0 | M26: 6.4 | N26: =AD26*Cubics -> 168 | O26: =((($D26/Watts)/(((p_atm*0.028964)/(8.31447*(20+273.15)))*(($N26/3600)/Cubics)*(1005+1870*((0.622)/(((p_atm)/($E$12*Pvs_Heat_in))-1)))))+Tl_heat)*Celc1+Celc2 -> 64 | P26: =(Tl_cool-(($G26/Watts)/(1006*$N26*kgss)))*Celc1+Celc2 -> 19 | Q26: 1 | R26: 0.854 | S26: 0.870 | T26: 0.950 | U26: 0.854 | V26: 0.895 | W26: =(H26-G26)/H26 -> 0.0% | X26: 2523.287828 | Y26: 1.890318987 | Z26: 425.1280286 | AA26: 1.890318987 | AB26: 44.0 | AC26: 6.4 | AD26: 168 | AE26: 1834 | AF26: 1.823515585 | AG26: 296 | AH26: =AF26 -> 1.823515585 | AI26: 40.0 | AJ26: 4.6 | AK26: 125 | AL26: =AE26 -> 1834 | AM26: =AH26 -> 1.823515585 | AN26: 296 | AO26: =AM26 -> 1.823515585 | AP26: 40.0 | AQ26: 4.6 | AR26: 125 | AT26: =(AG26*((((Tv_cool-Tr_cool)/LN((Tv_cool-Tl_cool)/(Tr_cool-Tl_cool)))/((16-18)/LN((16-27)/(18-27))))^S26))*$G$14 -> 0.09899555556 | AU26: =((AT26/$G$14)/(IF((237.3*LN((RH*EXP(17.27*(Tl_cool/(Tl_cool+237.3))))))/(17.27-LN((RH*EXP(17.27*(Tl_cool/(Tl_cool+237.3))))))<((Tv_cool+Tr_cool)/2),1,1/(1+((2258*((0.622/((p_atm/(1*611*EXP(17.27*(((Tv_cool+Tr_cool)/2)/(((Tv_cool+Tr_cool)/2)+237.3))))))-1)*1000-(0.622/((p_atm/(RH*611*EXP(17.27*(Tl_cool/(Tl_cool+237.3))))))-1)*1000))/(1005*(((Tv_cool+Tr_cool)/2)-Tl_cool))))+-((-0.000625*$C26+0.00625)*(Tl_cool-(Tv_cool+Tr_cool)/2)-(-0.000625*$C26+0.00625)*10))))*$H$14 -> 296 | AW26: 1654 | AX26: 1.8 | AY26: 293 | AZ26: 2 | BA26: 44.0 | BB26: 6.5 | BC26: 168 | BD26: 1757.72953 | BE26: 1.89443 | BF26: 414.541571 | BG26: 1.943563381 | BH26: 44.0 | BI26: 6.4 | BJ26: 168 | BK26: 2523.287828 | BL26: 1.890318987 | BM26: 425.1280286 | BN26: =BL26 -> 1.890318987 | BO26: 44.0 | BP26: 6.4 | BQ26: 168 | BS26: 2569.536771 | BT26: 2 | BU26: 707.451338 | BV26: 2 | BW26: 44.0 | BX26: 18.4 | BY26: 351 | BZ26: 3854.305157 | CA26: 2 | CB26: 778.1964718 | CC26: 2 | CD26: 44.0 | CE26: 18.4 | CF26: 351 | CH26: 2312.583094 | CI26: 2 | CJ26: 636.7062042 | CK26: 2 | CL26: 44.0 | CM26: 18.4 | CN26: 351 | CO26: 3468.874641 | CP26: 2 | CQ26: 700.3768246 | CR26: 2 | CS26: 44.0 | CT26: 18.4 | CU26: 351
B27: 100% | C27: 10 | D27: =(X27*($T$11^$Q27))*Watts*CF_Altit -> 3017 | E27: =ROUND(((D27/Watts)/(($S$9-$S$10)*1.163))*$E$14,IF($X$4=1,0,IF($X$4=2,2))) -> 259 | F27: =($Y$24*(E27/$E$14)^$Y$26)*$F$14 -> 1.07 | G27: =(Z27*($W$11^R27))*Watts*CF_Altit -> 515 | H27: =((G27/Watts)/(IF((237.3*LN((RH*EXP(17.27*(Tl_cool/(Tl_cool+237.3))))))/(17.27-LN((RH*EXP(17.27*(Tl_cool/(Tl_cool+237.3))))))<Tavg_cold,1,IF(1/(1+((2258*((0.622/(($Z$11/(1*611*EXP(17.27*(Tavg_cold/(Tavg_cold+237.3))))))-1)*1000-(0.622/(($Z$11/(RH*611*EXP(17.27*(Tl_cool/(Tl_cool+237.3))))))-1)*1000))/(1005*(Tavg_cold-Tl_cool))))*1.039+((-0.000729*$C27+0.001448)*(Tl_cool-Tavg_cold)+(0.016908*$C27-0.033574))*1.039>1,1,1/(1+((2258*((0.622/(($Z$11/(1*611*EXP(17.27*(Tavg_cold/(Tavg_cold+237.3))))))-1)*1000-(0.622/(($Z$11/(RH*611*EXP(17.27*(Tl_cool/(Tl_cool+237.3))))))-1)*1000))/(1005*(Tavg_cold-Tl_cool))))*1.039+((-0.000729*$C27+0.001448)*(Tl_cool-Tavg_cold)+(0.016908*$C27-0.033574))*1.039))))*Watts -> 515 | I27: =ROUND(((H27/Watts)/((Tr_cool-Tv_cool)*1.163))*$I$14,IF($X$4=1,0,IF($X$4=2,2))) -> 221 | J27: =($AA$24*(I27/$I$14)^$AA$26)*$J$14 -> 0.80 | K27: =L27-8 -> 39.0 | L27: 47.0 | M27: 10.3 | N27: =AD27*Cubics -> 202 | O27: =((($D27/Watts)/(((p_atm*0.028964)/(8.31447*(20+273.15)))*(($N27/3600)/Cubics)*(1005+1870*((0.622)/(((p_atm)/($E$12*Pvs_Heat_in))-1)))))+Tl_heat)*Celc1+Celc2 -> 64 | P27: =(Tl_cool-(($G27/Watts)/(1006*$N27*kgss)))*Celc1+Celc2 -> 19 | Q27: 1 | R27: 0.771 | S27: 0.910 | T27: 0.98 | U27: 0.771 | V27: 0.911 | W27: =(H27-G27)/H27 -> 0.0% | X27: 3016.933764 | Y27: 0 | Z27: 514.5275794 | AA27: 0 | AB27: 47.0 | AC27: 10.3 | AD27: 202 | AE27: 2214 | AG27: 381 | AI27: 45.0 | AJ27: 7.1 | AK27: 160 | AL27: =AE27 -> 2214 | AN27: 381 | AP27: 45.0 | AQ27: 7.1 | AR27: 160 | AT27: =(AG27*((((Tv_cool-Tr_cool)/LN((Tv_cool-Tl_cool)/(Tr_cool-Tl_cool)))/((16-18)/LN((16-27)/(18-27))))^S27))*$G$14 -> 0.1274233333 | AU27: =((AT27/$G$14)/(IF((237.3*LN((RH*EXP(17.27*(Tl_cool/(Tl_cool+237.3))))))/(17.27-LN((RH*EXP(17.27*(Tl_cool/(Tl_cool+237.3))))))<((Tv_cool+Tr_cool)/2),1,1/(1+((2258*((0.622/((p_atm/(1*611*EXP(17.27*(((Tv_cool+Tr_cool)/2)/(((Tv_cool+Tr_cool)/2)+237.3))))))-1)*1000-(0.622/((p_atm/(RH*611*EXP(17.27*(Tl_cool/(Tl_cool+237.3))))))-1)*1000))/(1005*(((Tv_cool+Tr_cool)/2)-Tl_cool))))+-((-0.000625*$C27+0.00625)*(Tl_cool-(Tv_cool+Tr_cool)/2)-(-0.000625*$C27+0.00625)*10))))*$H$14 -> 381 | AW27: 1936 | AY27: 368 | BA27: 47.1 | BB27: 9.8 | BC27: 202 | BD27: 1995.35415 | BF27: 506.6669905 | BH27: 47.0 | BI27: 10.3 | BJ27: 202 | BK27: 3016.933764 | BM27: 514.5275794 | BO27: 47.0 | BP27: 10.3 | BQ27: 202 | BS27: 2976.085258 | BU27: 877.6816009 | BW27: 49.0 | BX27: 24.0 | BY27: 401 | BZ27: 4464.127887 | CB27: 965.449761 | CD27: 49.0 | CE27: 24.0 | CF27: 401 | CH27: 2678.476732 | CJ27: 789.9134408 | CL27: 49.0 | CM27: 24.0 | CN27: 401 | CO27: 4017.715098 | CQ27: 868.9047849 | CS27: 49.0 | CT27: 24.0 | CU27: 401
B28: =IF($S$7=1,NL!A27,IF(cal!$S$7=2,EN!A27,IF(cal!$S$7=3,DE!A27,IF(cal!$S$7=4,FR!A27,IF(cal!$S$7=5,NR!A27,IF(cal!$S$7=6,SP!A27,IF(cal!$S$7=7,SW!A27,IF(cal!$S$7=8,TS!A27,IF(cal!$S$7=9,ExtraTaal1!A27,IF(cal!$S$7=10,ExtraTaal2!A27,IF(cal!$S$7=11,ExtraTaal3!A27,))))))))))) -> Clima Canal height 13 cm width 32 cm length 120 cm (Type 3) | C28: =IF($S$7=1,NL!B27,IF(cal!$S$7=2,EN!B27,IF(cal!$S$7=3,DE!B27,IF(cal!$S$7=4,FR!B27,IF(cal!$S$7=5,NR!B27,IF(cal!$S$7=6,SP!B27,IF(cal!$S$7=7,SW!B27,IF(cal!$S$7=8,TS!B27,IF(cal!$S$7=9,ExtraTaal1!B27,IF(cal!$S$7=10,ExtraTaal2!B27,IF(cal!$S$7=11,ExtraTaal3!B27,))))))))))) -> 0 | D28: =IF($S$7=1,NL!C27,IF(cal!$S$7=2,EN!C27,IF(cal!$S$7=3,DE!C27,IF(cal!$S$7=4,FR!C27,IF(cal!$S$7=5,NR!C27,IF(cal!$S$7=6,SP!C27,IF(cal!$S$7=7,SW!C27,IF(cal!$S$7=8,TS!C27,IF(cal!$S$7=9,ExtraTaal1!C27,IF(cal!$S$7=10,ExtraTaal2!C27,IF(cal!$S$7=11,ExtraTaal3!C27,))))))))))) -> 0 | E28: =IF($S$7=1,NL!D27,IF(cal!$S$7=2,EN!D27,IF(cal!$S$7=3,DE!D27,IF(cal!$S$7=4,FR!D27,IF(cal!$S$7=5,NR!D27,IF(cal!$S$7=6,SP!D27,IF(cal!$S$7=7,SW!D27,IF(cal!$S$7=8,TS!D27,IF(cal!$S$7=9,ExtraTaal1!D27,IF(cal!$S$7=10,ExtraTaal2!D27,IF(cal!$S$7=11,ExtraTaal3!D27,))))))))))) -> 0 | F28: =IF($S$7=1,NL!E27,IF(cal!$S$7=2,EN!E27,IF(cal!$S$7=3,DE!E27,IF(cal!$S$7=4,FR!E27,IF(cal!$S$7=5,NR!E27,IF(cal!$S$7=6,SP!E27,IF(cal!$S$7=7,SW!E27,IF(cal!$S$7=8,TS!E27,IF(cal!$S$7=9,ExtraTaal1!E27,IF(cal!$S$7=10,ExtraTaal2!E27,IF(cal!$S$7=11,ExtraTaal3!E27,))))))))))) -> 0 | G28: =IF($S$7=1,NL!F27,IF(cal!$S$7=2,EN!F27,IF(cal!$S$7=3,DE!F27,IF(cal!$S$7=4,FR!F27,IF(cal!$S$7=5,NR!F27,IF(cal!$S$7=6,SP!F27,IF(cal!$S$7=7,SW!F27,IF(cal!$S$7=8,TS!F27,IF(cal!$S$7=9,ExtraTaal1!F27,IF(cal!$S$7=10,ExtraTaal2!F27,IF(cal!$S$7=11,ExtraTaal3!F27,))))))))))) -> 0 | H28: =IF($S$7=1,NL!G27,IF(cal!$S$7=2,EN!G27,IF(cal!$S$7=3,DE!G27,IF(cal!$S$7=4,FR!G27,IF(cal!$S$7=5,NR!G27,IF(cal!$S$7=6,SP!G27,IF(cal!$S$7=7,SW!G27,IF(cal!$S$7=8,TS!G27,IF(cal!$S$7=9,ExtraTaal1!G27,IF(cal!$S$7=10,ExtraTaal2!G27,IF(cal!$S$7=11,ExtraTaal3!G27,))))))))))) -> 0 | I28: =IF($S$7=1,NL!H27,IF(cal!$S$7=2,EN!H27,IF(cal!$S$7=3,DE!H27,IF(cal!$S$7=4,FR!H27,IF(cal!$S$7=5,NR!H27,IF(cal!$S$7=6,SP!H27,IF(cal!$S$7=7,SW!H27,IF(cal!$S$7=8,TS!H27,IF(cal!$S$7=9,ExtraTaal1!H27,IF(cal!$S$7=10,ExtraTaal2!H27,IF(cal!$S$7=11,ExtraTaal3!H27,))))))))))) -> 0 | J28: =IF($S$7=1,NL!I27,IF(cal!$S$7=2,EN!I27,IF(cal!$S$7=3,DE!I27,IF(cal!$S$7=4,FR!I27,IF(cal!$S$7=5,NR!I27,IF(cal!$S$7=6,SP!I27,IF(cal!$S$7=7,SW!I27,IF(cal!$S$7=8,TS!I27,IF(cal!$S$7=9,ExtraTaal1!I27,IF(cal!$S$7=10,ExtraTaal2!I27,IF(cal!$S$7=11,ExtraTaal3!I27,))))))))))) -> 0 | K28: =IF($S$7=1,NL!J27,IF(cal!$S$7=2,EN!J27,IF(cal!$S$7=3,DE!J27,IF(cal!$S$7=4,FR!J27,IF(cal!$S$7=5,NR!J27,IF(cal!$S$7=6,SP!J27,IF(cal!$S$7=7,SW!J27,IF(cal!$S$7=8,TS!J27,IF(cal!$S$7=9,ExtraTaal1!J27,IF(cal!$S$7=10,ExtraTaal2!J27,IF(cal!$S$7=11,ExtraTaal3!J27,))))))))))) -> 0 | L28: =IF($S$7=1,NL!K27,IF(cal!$S$7=2,EN!K27,IF(cal!$S$7=3,DE!K27,IF(cal!$S$7=4,FR!K27,IF(cal!$S$7=5,NR!K27,IF(cal!$S$7=6,SP!K27,IF(cal!$S$7=7,SW!K27,IF(cal!$S$7=8,TS!K27,IF(cal!$S$7=9,ExtraTaal1!K27,IF(cal!$S$7=10,ExtraTaal2!K27,IF(cal!$S$7=11,ExtraTaal3!K27,))))))))))) -> 0 | M28: =IF($S$7=1,NL!L27,IF(cal!$S$7=2,EN!L27,IF(cal!$S$7=3,DE!L27,IF(cal!$S$7=4,FR!L27,IF(cal!$S$7=5,NR!L27,IF(cal!$S$7=6,SP!L27,IF(cal!$S$7=7,SW!L27,IF(cal!$S$7=8,TS!L27,IF(cal!$S$7=9,ExtraTaal1!L27,IF(cal!$S$7=10,ExtraTaal2!L27,IF(cal!$S$7=11,ExtraTaal3!L27,))))))))))) -> 0 | N28: =IF($S$7=1,NL!M27,IF(cal!$S$7=2,EN!M27,IF(cal!$S$7=3,DE!M27,IF(cal!$S$7=4,FR!M27,IF(cal!$S$7=5,NR!M27,IF(cal!$S$7=6,SP!M27,IF(cal!$S$7=7,SW!M27,IF(cal!$S$7=8,TS!M27,IF(cal!$S$7=9,ExtraTaal1!M27,IF(cal!$S$7=10,ExtraTaal2!M27,IF(cal!$S$7=11,ExtraTaal3!M27,))))))))))) -> 0 | O28: =IF($S$7=1,NL!N27,IF(cal!$S$7=2,EN!N27,IF(cal!$S$7=3,DE!N27,IF(cal!$S$7=4,FR!N27,IF(cal!$S$7=5,NR!N27,IF(cal!$S$7=6,SP!N27,IF(cal!$S$7=7,SW!N27,IF(cal!$S$7=8,TS!N27,IF(cal!$S$7=9,ExtraTaal1!N27,IF(cal!$S$7=10,ExtraTaal2!N27,IF(cal!$S$7=11,ExtraTaal3!N27,))))))))))) -> 0 | P28: =IF($S$7=1,NL!O27,IF(cal!$S$7=2,EN!O27,IF(cal!$S$7=3,DE!O27,IF(cal!$S$7=4,FR!O27,IF(cal!$S$7=5,NR!O27,IF(cal!$S$7=6,SP!O27,IF(cal!$S$7=7,SW!O27,IF(cal!$S$7=8,TS!O27,IF(cal!$S$7=9,ExtraTaal1!O27,IF(cal!$S$7=10,ExtraTaal2!O27,IF(cal!$S$7=11,ExtraTaal3!O27,))))))))))) -> 0 | Q28: n-value | R28: n-value | S28: n-value | T28: n-value | U28: n-value | V28: n-value | X28: H | Y28: 13 | Z28: B | AA28: 32 | AB28: L | AC28: 100 | AD28: 0 | AE28: H | AF28: =AF22 -> 8 | AG28: B | AH28: =AH22 -> 18 | AI28: L | AJ28: =108*IF($X$4=1,1,IF($X$4=2,1/2.54)) -> 108 | AL28: H | AM28: =AM22 -> 10 | AN28: B | AO28: =AO22 -> 18 | AP28: L | AQ28: =AJ28 -> 108 | AW28: H | AX28: =AX22 -> 13 | AY28: B | AZ28: =AZ22 -> 27 | BA28: L | BB28: =IF($X$4=1,108.3,108.3/2.54) -> 108.3 | BD28: H | BE28: =BE22 -> 13 | BF28: B | BG28: =BG22 -> 32 | BH28: L | BI28: =IF($X$4=1,100,100/2.54) -> 100 | BK28: H | BL28: =BL22 -> 13 | BM28: B | BN28: =BN22 -> 32 | BO28: L | BP28: =IF($X$4=1,100,100/2.54) -> 100 | BS28: H | BT28: =BT22 -> 19 | BU28: B | BV28: =BV22 -> 34 | BW28: L | BX28: =120*IF($X$4=1,1,IF($X$4=2,1/2.54)) -> 120 | BZ28: H | CA28: =CA22 -> 19 | CB28: B | CC28: =CC22 -> 34 | CD28: L | CE28: =BX28 -> 120 | CH28: H | CI28: =CI22 -> 15 | CJ28: B | CK28: =CK22 -> 32 | CL28: L | CM28: =120*IF($X$4=1,1,IF($X$4=2,1/2.54)) -> 120 | CO28: H | CP28: =CP22 -> 15 | CQ28: B | CR28: =CR22 -> 32 | CS28: L | CT28: =CM28 -> 120
B29: 20% | C29: 2 | D29: =(X29*($T$11^$Q29))*Watts*CF_Altit -> 780 | E29: =ROUND(((D29/Watts)/(($S$9-$S$10)*1.163))*$E$14,IF($X$4=1,0,IF($X$4=2,2))) -> 67 | F29: =($Y$30*(E29/$E$14)^$Y$32)*$F$14 -> 0.10 | G29: =(Z29*($W$11^R29))*Watts*CF_Altit -> 168 | H29: =((G29/Watts)/(IF((237.3*LN((RH*EXP(17.27*(Tl_cool/(Tl_cool+237.3))))))/(17.27-LN((RH*EXP(17.27*(Tl_cool/(Tl_cool+237.3))))))<Tavg_cold,1,IF(1/(1+((2258*((0.622/(($Z$11/(1*611*EXP(17.27*(Tavg_cold/(Tavg_cold+237.3))))))-1)*1000-(0.622/(($Z$11/(RH*611*EXP(17.27*(Tl_cool/(Tl_cool+237.3))))))-1)*1000))/(1005*(Tavg_cold-Tl_cool))))*1.039+((-0.000729*$C29+0.001448)*(Tl_cool-Tavg_cold)+(0.016908*$C29-0.033574))*1.039>1,1,1/(1+((2258*((0.622/(($Z$11/(1*611*EXP(17.27*(Tavg_cold/(Tavg_cold+237.3))))))-1)*1000-(0.622/(($Z$11/(RH*611*EXP(17.27*(Tl_cool/(Tl_cool+237.3))))))-1)*1000))/(1005*(Tavg_cold-Tl_cool))))*1.039+((-0.000729*$C29+0.001448)*(Tl_cool-Tavg_cold)+(0.016908*$C29-0.033574))*1.039))))*Watts -> 168 | I29: =ROUND(((H29/Watts)/((Tr_cool-Tv_cool)*1.163))*$I$14,IF($X$4=1,0,IF($X$4=2,2))) -> 72 | J29: =($AA$30*(I29/$I$14)^$AA$32)*$J$14 -> 0.11 | K29: =L29-8 -> 20.0 | L29: =AB29 -> 28.0 | M29: 1.4 | N29: =AD29*Cubics -> 49 | O29: =((($D29/Watts)/(((p_atm*0.028964)/(8.31447*(20+273.15)))*(($N29/3600)/Cubics)*(1005+1870*((0.622)/(((p_atm)/($E$12*Pvs_Heat_in))-1)))))+Tl_heat)*Celc1+Celc2 -> 67 | P29: =(Tl_cool-(($G29/Watts)/(1006*$N29*kgss)))*Celc1+Celc2 -> 17 | Q29: 1 | R29: 0.781 | S29: 0.600 | T29: 1.160 | U29: 0.781 | V29: 0.877 | W29: =(H29-G29)/H29 -> 0.0% | X29: 779.6179744 | Y29: a | Z29: 167.7636434 | AA29: a | AB29: 28.0 | AC29: 1.4 | AD29: 49 | AE29: 894 | AF29: a | AG29: 97 | AH29: a | AI29: 24.0 | AJ29: 1.1 | AK29: 66 | AL29: =AE29 -> 894 | AM29: a | AN29: 97 | AO29: a | AP29: =AI29 -> 24.0 | AQ29: 1.1 | AR29: 66 | AT29: =(AG29*((((Tv_cool-Tr_cool)/LN((Tv_cool-Tl_cool)/(Tr_cool-Tl_cool)))/((16-18)/LN((16-27)/(18-27))))^S29))*$G$14 -> 0.03244111111 | AU29: =((AT29/$G$14)/(IF((237.3*LN((RH*EXP(17.27*(Tl_cool/(Tl_cool+237.3))))))/(17.27-LN((RH*EXP(17.27*(Tl_cool/(Tl_cool+237.3))))))<((Tv_cool+Tr_cool)/2),1,1/(1+((2258*((0.622/((p_atm/(1*611*EXP(17.27*(((Tv_cool+Tr_cool)/2)/(((Tv_cool+Tr_cool)/2)+237.3))))))-1)*1000-(0.622/((p_atm/(RH*611*EXP(17.27*(Tl_cool/(Tl_cool+237.3))))))-1)*1000))/(1005*(((Tv_cool+Tr_cool)/2)-Tl_cool))))+-((-0.000625*$C29+0.00625)*(Tl_cool-(Tv_cool+Tr_cool)/2)-(-0.000625*$C29+0.00625)*10))))*$H$14 -> 97 | AW29: 1091 | AX29: a | AY29: 125 | AZ29: a | BA29: 28.8 | BB29: 2.0 | BC29: 90 | BD29: 668.81663 | BE29: a | BF29: 161.0765045 | BG29: a | BH29: 28.0 | BI29: 1.4 | BJ29: 49 | BK29: 779.6179744 | BL29: a | BM29: 167.7636434 | BN29: a | BO29: =BH29 -> 28.0 | BP29: 1.4 | BQ29: 49 | BS29: 2014.264135 | BT29: a | BU29: 361.8376035 | BV29: a | BW29: 29.1 | BX29: 4.6 | BY29: 179 | BZ29: 3021.396203 | CA29: a | CB29: 398.0213639 | CC29: a | CD29: 29.1 | CE29: 4.6 | CF29: 179 | CH29: =BS29*0.9 -> 1812.837722 | CI29: a | CJ29: =BU29*0.9 -> 325.6538432 | CK29: a | CL29: 29.1 | CM29: 4.6 | CN29: 179 | CO29: =BZ29*0.9 -> 2719.256583 | CP29: a | CQ29: =CB29*0.9 -> 358.2192275 | CR29: a | CS29: 29.1 | CT29: 4.6 | CU29: 179
B30: 40% | C30: 4 | D30: =(X30*($T$11^$Q30))*Watts*CF_Altit -> 1724 | E30: =ROUND(((D30/Watts)/(($S$9-$S$10)*1.163))*$E$14,IF($X$4=1,0,IF($X$4=2,2))) -> 148 | F30: =($Y$30*(E30/$E$14)^$Y$32)*$F$14 -> 0.42 | G30: =(Z30*($W$11^R30))*Watts*CF_Altit -> 305 | H30: =((G30/Watts)/(IF((237.3*LN((RH*EXP(17.27*(Tl_cool/(Tl_cool+237.3))))))/(17.27-LN((RH*EXP(17.27*(Tl_cool/(Tl_cool+237.3))))))<Tavg_cold,1,IF(1/(1+((2258*((0.622/(($Z$11/(1*611*EXP(17.27*(Tavg_cold/(Tavg_cold+237.3))))))-1)*1000-(0.622/(($Z$11/(RH*611*EXP(17.27*(Tl_cool/(Tl_cool+237.3))))))-1)*1000))/(1005*(Tavg_cold-Tl_cool))))*1.039+((-0.000729*$C30+0.001448)*(Tl_cool-Tavg_cold)+(0.016908*$C30-0.033574))*1.039>1,1,1/(1+((2258*((0.622/(($Z$11/(1*611*EXP(17.27*(Tavg_cold/(Tavg_cold+237.3))))))-1)*1000-(0.622/(($Z$11/(RH*611*EXP(17.27*(Tl_cool/(Tl_cool+237.3))))))-1)*1000))/(1005*(Tavg_cold-Tl_cool))))*1.039+((-0.000729*$C30+0.001448)*(Tl_cool-Tavg_cold)+(0.016908*$C30-0.033574))*1.039))))*Watts -> 305 | I30: =ROUND(((H30/Watts)/((Tr_cool-Tv_cool)*1.163))*$I$14,IF($X$4=1,0,IF($X$4=2,2))) -> 131 | J30: =($AA$30*(I30/$I$14)^$AA$32)*$J$14 -> 0.34 | K30: =L30-8 -> 26.0 | L30: 34.0 | M30: 2.4 | N30: =AD30*Cubics -> 114 | O30: =((($D30/Watts)/(((p_atm*0.028964)/(8.31447*(20+273.15)))*(($N30/3600)/Cubics)*(1005+1870*((0.622)/(((p_atm)/($E$12*Pvs_Heat_in))-1)))))+Tl_heat)*Celc1+Celc2 -> 64 | P30: =(Tl_cool-(($G30/Watts)/(1006*$N30*kgss)))*Celc1+Celc2 -> 19 | Q30: 1 | R30: 0.859 | S30: 0.680 | T30: 1.040 | U30: 0.859 | V30: 0.878 | W30: =(H30-G30)/H30 -> 0.0% | X30: 1724.258578 | Y30: 3.605212283e-05 | Z30: 304.6166871 | AA30: 3.605212283e-05 | AB30: 34.0 | AC30: 2.4 | AD30: 114 | AE30: 1605 | AF30: 0.0005605474778 | AG30: 212 | AH30: =AF30 -> 0.0005605474778 | AI30: 28.0 | AJ30: 2.1 | AK30: 112 | AL30: =AE30 -> 1605 | AM30: =AH30 -> 0.0005605474778 | AN30: 212 | AO30: =AM30 -> 0.0005605474778 | AP30: 28.0 | AQ30: 2.1 | AR30: 112 | AT30: =(AG30*((((Tv_cool-Tr_cool)/LN((Tv_cool-Tl_cool)/(Tr_cool-Tl_cool)))/((16-18)/LN((16-27)/(18-27))))^S30))*$G$14 -> 0.07090222222 | AU30: =((AT30/$G$14)/(IF((237.3*LN((RH*EXP(17.27*(Tl_cool/(Tl_cool+237.3))))))/(17.27-LN((RH*EXP(17.27*(Tl_cool/(Tl_cool+237.3))))))<((Tv_cool+Tr_cool)/2),1,1/(1+((2258*((0.622/((p_atm/(1*611*EXP(17.27*(((Tv_cool+Tr_cool)/2)/(((Tv_cool+Tr_cool)/2)+237.3))))))-1)*1000-(0.622/((p_atm/(RH*611*EXP(17.27*(Tl_cool/(Tl_cool+237.3))))))-1)*1000))/(1005*(((Tv_cool+Tr_cool)/2)-Tl_cool))))+-((-0.000625*$C30+0.00625)*(Tl_cool-(Tv_cool+Tr_cool)/2)-(-0.000625*$C30+0.00625)*10))))*$H$14 -> 212 | AW30: 1779 | AX30: 6.85e-05 | AY30: 253 | AZ30: 6.45E-06 | BA30: 33.1 | BB30: 3.5 | BC30: 133 | BD30: 1333.84737 | BE30: 4.82908e-05 | BF30: 292.5205251 | BG30: 1.411968325e-05 | BH30: 34.0 | BI30: 2.4 | BJ30: 114 | BK30: 1724.258578 | BL30: 3.605212283e-05 | BM30: 304.6166871 | BN30: =BL30 -> 3.605212283e-05 | BO30: 34.0 | BP30: 2.4 | BQ30: 114 | BS30: 3178.83444 | BT30: 3.302632322e-05 | BU30: 706.9479124 | BV30: 9.854279118e-05 | BW30: 32.6 | BX30: 9.4 | BY30: 346 | BZ30: 4768.251659 | CA30: 3.362264451e-05 | CB30: 777.6427036 | CC30: 3.362264451e-05 | CD30: 32.6 | CE30: 9.4 | CF30: 346 | CH30: =BS30*0.9 -> 2860.950996 | CI30: 3.302632322e-05 | CJ30: =BU30*0.9 -> 636.2531211 | CK30: 9.854279118e-05 | CL30: 32.6 | CM30: 9.4 | CN30: 346 | CO30: =BZ30*0.9 -> 4291.426493 | CP30: 3.362264451e-05 | CQ30: =CB30*0.9 -> 699.8784332 | CR30: 3.362264451e-05 | CS30: 32.6 | CT30: 9.4 | CU30: 346
B31: 60% | C31: 6 | D31: =(X31*($T$11^$Q31))*Watts*CF_Altit -> 2570 | E31: =ROUND(((D31/Watts)/(($S$9-$S$10)*1.163))*$E$14,IF($X$4=1,0,IF($X$4=2,2))) -> 221 | F31: =($Y$30*(E31/$E$14)^$Y$32)*$F$14 -> 0.90 | G31: =(Z31*($W$11^R31))*Watts*CF_Altit -> 435 | H31: =((G31/Watts)/(IF((237.3*LN((RH*EXP(17.27*(Tl_cool/(Tl_cool+237.3))))))/(17.27-LN((RH*EXP(17.27*(Tl_cool/(Tl_cool+237.3))))))<Tavg_cold,1,IF(1/(1+((2258*((0.622/(($Z$11/(1*611*EXP(17.27*(Tavg_cold/(Tavg_cold+237.3))))))-1)*1000-(0.622/(($Z$11/(RH*611*EXP(17.27*(Tl_cool/(Tl_cool+237.3))))))-1)*1000))/(1005*(Tavg_cold-Tl_cool))))*1.039+((-0.000729*$C31+0.001448)*(Tl_cool-Tavg_cold)+(0.016908*$C31-0.033574))*1.039>1,1,1/(1+((2258*((0.622/(($Z$11/(1*611*EXP(17.27*(Tavg_cold/(Tavg_cold+237.3))))))-1)*1000-(0.622/(($Z$11/(RH*611*EXP(17.27*(Tl_cool/(Tl_cool+237.3))))))-1)*1000))/(1005*(Tavg_cold-Tl_cool))))*1.039+((-0.000729*$C31+0.001448)*(Tl_cool-Tavg_cold)+(0.016908*$C31-0.033574))*1.039))))*Watts -> 435 | I31: =ROUND(((H31/Watts)/((Tr_cool-Tv_cool)*1.163))*$I$14,IF($X$4=1,0,IF($X$4=2,2))) -> 187 | J31: =($AA$30*(I31/$I$14)^$AA$32)*$J$14 -> 0.66 | K31: =L31-8 -> 30.0 | L31: 38.0 | M31: 4.2 | N31: =AD31*Cubics -> 174 | O31: =((($D31/Watts)/(((p_atm*0.028964)/(8.31447*(20+273.15)))*(($N31/3600)/Cubics)*(1005+1870*((0.622)/(((p_atm)/($E$12*Pvs_Heat_in))-1)))))+Tl_heat)*Celc1+Celc2 -> 63 | P31: =(Tl_cool-(($G31/Watts)/(1006*$N31*kgss)))*Celc1+Celc2 -> 20 | Q31: 1 | R31: 0.883 | S31: 0.790 | T31: 0.950 | U31: 0.883 | V31: 0.882 | W31: =(H31-G31)/H31 -> 0.0% | X31: 2570.39397 | Y31: b | Z31: 435.0376794 | AA31: b | AB31: 38.0 | AC31: 4.2 | AD31: 174 | AE31: 2260 | AF31: b | AG31: 336 | AH31: b | AI31: 38.0 | AJ31: 4.0 | AK31: 150 | AL31: =AE31 -> 2260 | AM31: b | AN31: 336 | AO31: b | AP31: 38.0 | AQ31: 4.0 | AR31: 150 | AT31: =(AG31*((((Tv_cool-Tr_cool)/LN((Tv_cool-Tl_cool)/(Tr_cool-Tl_cool)))/((16-18)/LN((16-27)/(18-27))))^S31))*$G$14 -> 0.1123733333 | AU31: =((AT31/$G$14)/(IF((237.3*LN((RH*EXP(17.27*(Tl_cool/(Tl_cool+237.3))))))/(17.27-LN((RH*EXP(17.27*(Tl_cool/(Tl_cool+237.3))))))<((Tv_cool+Tr_cool)/2),1,1/(1+((2258*((0.622/((p_atm/(1*611*EXP(17.27*(((Tv_cool+Tr_cool)/2)/(((Tv_cool+Tr_cool)/2)+237.3))))))-1)*1000-(0.622/((p_atm/(RH*611*EXP(17.27*(Tl_cool/(Tl_cool+237.3))))))-1)*1000))/(1005*(((Tv_cool+Tr_cool)/2)-Tl_cool))))+-((-0.000625*$C31+0.00625)*(Tl_cool-(Tv_cool+Tr_cool)/2)-(-0.000625*$C31+0.00625)*10))))*$H$14 -> 336 | AW31: 2367 | AX31: b | AY31: 383 | AZ31: b | BA31: 39.2 | BB31: 6.5 | BC31: 208 | BD31: 1881.35687 | BE31: b | BF31: 420.5303054 | BG31: b | BH31: 38.0 | BI31: 4.2 | BJ31: 174 | BK31: 2570.39397 | BL31: b | BM31: 435.0376794 | BN31: b | BO31: 38.0 | BP31: 4.2 | BQ31: 174 | BS31: 4151.252024 | BT31: b | BU31: 1046.014329 | BV31: b | BW31: 38.5 | BX31: 16.9 | BY31: 496 | BZ31: 6226.878036 | CA31: b | CB31: 1150.615762 | CC31: b | CD31: 38.5 | CE31: 16.9 | CF31: 496 | CH31: 3736.126822 | CI31: b | CJ31: 941.412896 | CK31: b | CL31: 38.5 | CM31: 16.9 | CN31: 496 | CO31: 5604.190232 | CP31: b | CQ31: 1035.554186 | CR31: b | CS31: 38.5 | CT31: 16.9 | CU31: 496
B32: 80% | C32: 8 | D32: =(X32*($T$11^$Q32))*Watts*CF_Altit -> 3318 | E32: =ROUND(((D32/Watts)/(($S$9-$S$10)*1.163))*$E$14,IF($X$4=1,0,IF($X$4=2,2))) -> 285 | F32: =($Y$30*(E32/$E$14)^$Y$32)*$F$14 -> 1.44 | G32: =(Z32*($W$11^R32))*Watts*CF_Altit -> 559 | H32: =((G32/Watts)/(IF((237.3*LN((RH*EXP(17.27*(Tl_cool/(Tl_cool+237.3))))))/(17.27-LN((RH*EXP(17.27*(Tl_cool/(Tl_cool+237.3))))))<Tavg_cold,1,IF(1/(1+((2258*((0.622/(($Z$11/(1*611*EXP(17.27*(Tavg_cold/(Tavg_cold+237.3))))))-1)*1000-(0.622/(($Z$11/(RH*611*EXP(17.27*(Tl_cool/(Tl_cool+237.3))))))-1)*1000))/(1005*(Tavg_cold-Tl_cool))))*1.039+((-0.000729*$C32+0.001448)*(Tl_cool-Tavg_cold)+(0.016908*$C32-0.033574))*1.039>1,1,1/(1+((2258*((0.622/(($Z$11/(1*611*EXP(17.27*(Tavg_cold/(Tavg_cold+237.3))))))-1)*1000-(0.622/(($Z$11/(RH*611*EXP(17.27*(Tl_cool/(Tl_cool+237.3))))))-1)*1000))/(1005*(Tavg_cold-Tl_cool))))*1.039+((-0.000729*$C32+0.001448)*(Tl_cool-Tavg_cold)+(0.016908*$C32-0.033574))*1.039))))*Watts -> 559 | I32: =ROUND(((H32/Watts)/((Tr_cool-Tv_cool)*1.163))*$I$14,IF($X$4=1,0,IF($X$4=2,2))) -> 240 | J32: =($AA$30*(I32/$I$14)^$AA$32)*$J$14 -> 1.05 | K32: =L32-8 -> 37.0 | L32: 45.0 | M32: 7.2 | N32: =AD32*Cubics -> 235 | O32: =((($D32/Watts)/(((p_atm*0.028964)/(8.31447*(20+273.15)))*(($N32/3600)/Cubics)*(1005+1870*((0.622)/(((p_atm)/($E$12*Pvs_Heat_in))-1)))))+Tl_heat)*Celc1+Celc2 -> 61 | P32: =(Tl_cool-(($G32/Watts)/(1006*$N32*kgss)))*Celc1+Celc2 -> 20 | Q32: 1 | R32: 0.854 | S32: 0.870 | T32: 0.95 | U32: 0.854 | V32: 0.895 | W32: =(H32-G32)/H32 -> 0.0% | X32: 3318.024152 | Y32: 1.875000958 | Z32: 559.0266203 | AA32: 1.875000958 | AB32: 45.0 | AC32: 7.2 | AD32: 235 | AE32: 2881 | AF32: 1.823515585 | AG32: 465 | AH32: =AF32 -> 1.823515585 | AI32: 43.0 | AJ32: 6.6 | AK32: 193 | AL32: =AE32 -> 2881 | AM32: =AH32 -> 1.823515585 | AN32: 465 | AO32: =AM32 -> 1.823515585 | AP32: 43.0 | AQ32: 6.6 | AR32: 193 | AT32: =(AG32*((((Tv_cool-Tr_cool)/LN((Tv_cool-Tl_cool)/(Tr_cool-Tl_cool)))/((16-18)/LN((16-27)/(18-27))))^S32))*$G$14 -> 0.1555166667 | AU32: =((AT32/$G$14)/(IF((237.3*LN((RH*EXP(17.27*(Tl_cool/(Tl_cool+237.3))))))/(17.27-LN((RH*EXP(17.27*(Tl_cool/(Tl_cool+237.3))))))<((Tv_cool+Tr_cool)/2),1,1/(1+((2258*((0.622/((p_atm/(1*611*EXP(17.27*(((Tv_cool+Tr_cool)/2)/(((Tv_cool+Tr_cool)/2)+237.3))))))-1)*1000-(0.622/((p_atm/(RH*611*EXP(17.27*(Tl_cool/(Tl_cool+237.3))))))-1)*1000))/(1005*(((Tv_cool+Tr_cool)/2)-Tl_cool))))+-((-0.000625*$C32+0.00625)*(Tl_cool-(Tv_cool+Tr_cool)/2)-(-0.000625*$C32+0.00625)*10))))*$H$14 -> 465 | AW32: 2900 | AX32: 1.8 | AY32: 513 | AZ32: 2 | BA32: 46.5 | BB32: 11.5 | BC32: 285 | BD32: 2311.34513 | BE32: 1.88069 | BF32: 545.1058454 | BG32: 1.939087556 | BH32: 45.0 | BI32: 7.2 | BJ32: 235 | BK32: 3318.024152 | BL32: 1.875000958 | BM32: 559.0266203 | BN32: =BL32 -> 1.875000958 | BO32: 45.0 | BP32: 7.2 | BQ32: 235 | BS32: 5016.714649 | BT32: 2 | BU32: 1381.214517 | BV32: 2 | BW32: 46.5 | BX32: 27.7 | BY32: 660 | BZ32: 7525.071973 | CA32: 2 | CB32: 1519.335969 | CC32: 2 | CD32: 46.5 | CE32: 27.7 | CF32: 660 | CH32: 4515.043184 | CI32: 2 | CJ32: 1243.093065 | CK32: 2 | CL32: 46.5 | CM32: 27.7 | CN32: 660 | CO32: 6772.564776 | CP32: 2 | CQ32: 1367.402372 | CR32: 2 | CS32: 46.5 | CT32: 27.7 | CU32: 660
B33: 100% | C33: 10 | D33: =(X33*($T$11^$Q33))*Watts*CF_Altit -> 3967 | E33: =ROUND(((D33/Watts)/(($S$9-$S$10)*1.163))*$E$14,IF($X$4=1,0,IF($X$4=2,2))) -> 341 | F33: =($Y$30*(E33/$E$14)^$Y$32)*$F$14 -> 2.02 | G33: =(Z33*($W$11^R33))*Watts*CF_Altit -> 677 | H33: =((G33/Watts)/(IF((237.3*LN((RH*EXP(17.27*(Tl_cool/(Tl_cool+237.3))))))/(17.27-LN((RH*EXP(17.27*(Tl_cool/(Tl_cool+237.3))))))<Tavg_cold,1,IF(1/(1+((2258*((0.622/(($Z$11/(1*611*EXP(17.27*(Tavg_cold/(Tavg_cold+237.3))))))-1)*1000-(0.622/(($Z$11/(RH*611*EXP(17.27*(Tl_cool/(Tl_cool+237.3))))))-1)*1000))/(1005*(Tavg_cold-Tl_cool))))*1.039+((-0.000729*$C33+0.001448)*(Tl_cool-Tavg_cold)+(0.016908*$C33-0.033574))*1.039>1,1,1/(1+((2258*((0.622/(($Z$11/(1*611*EXP(17.27*(Tavg_cold/(Tavg_cold+237.3))))))-1)*1000-(0.622/(($Z$11/(RH*611*EXP(17.27*(Tl_cool/(Tl_cool+237.3))))))-1)*1000))/(1005*(Tavg_cold-Tl_cool))))*1.039+((-0.000729*$C33+0.001448)*(Tl_cool-Tavg_cold)+(0.016908*$C33-0.033574))*1.039))))*Watts -> 677 | I33: =ROUND(((H33/Watts)/((Tr_cool-Tv_cool)*1.163))*$I$14,IF($X$4=1,0,IF($X$4=2,2))) -> 291 | J33: =($AA$30*(I33/$I$14)^$AA$32)*$J$14 -> 1.50 | K33: =L33-8 -> 40.0 | L33: 48.0 | M33: 10.6 | N33: =AD33*Cubics -> 273 | O33: =((($D33/Watts)/(((p_atm*0.028964)/(8.31447*(20+273.15)))*(($N33/3600)/Cubics)*(1005+1870*((0.622)/(((p_atm)/($E$12*Pvs_Heat_in))-1)))))+Tl_heat)*Celc1+Celc2 -> 63 | P33: =(Tl_cool-(($G33/Watts)/(1006*$N33*kgss)))*Celc1+Celc2 -> 20 | Q33: 1 | R33: 0.771 | S33: 0.910 | T33: 0.980 | U33: 0.771 | V33: 0.911 | W33: =(H33-G33)/H33 -> 0.0% | X33: 3967.149123 | Y33: 0 | Z33: 676.5835099 | AA33: 0 | AB33: 48.0 | AC33: 10.6 | AD33: 273 | AE33: 3479 | AG33: 598 | AI33: 47.0 | AJ33: 10.1 | AK33: 239 | AL33: =AE33 -> 3479 | AN33: 598 | AP33: 47.0 | AQ33: 10.1 | AR33: 239 | AT33: =(AG33*((((Tv_cool-Tr_cool)/LN((Tv_cool-Tl_cool)/(Tr_cool-Tl_cool)))/((16-18)/LN((16-27)/(18-27))))^S33))*$G$14 -> 0.1999977778 | AU33: =((AT33/$G$14)/(IF((237.3*LN((RH*EXP(17.27*(Tl_cool/(Tl_cool+237.3))))))/(17.27-LN((RH*EXP(17.27*(Tl_cool/(Tl_cool+237.3))))))<((Tv_cool+Tr_cool)/2),1,1/(1+((2258*((0.622/((p_atm/(1*611*EXP(17.27*(((Tv_cool+Tr_cool)/2)/(((Tv_cool+Tr_cool)/2)+237.3))))))-1)*1000-(0.622/((p_atm/(RH*611*EXP(17.27*(Tl_cool/(Tl_cool+237.3))))))-1)*1000))/(1005*(((Tv_cool+Tr_cool)/2)-Tl_cool))))+-((-0.000625*$C33+0.00625)*(Tl_cool-(Tv_cool+Tr_cool)/2)-(-0.000625*$C33+0.00625)*10))))*$H$14 -> 598 | AW33: 3394 | AY33: 645 | BA33: 49.6 | BB33: 17.5 | BC33: 349 | BD33: 2623.81215 | BF33: 666.247145 | BH33: 48.0 | BI33: 10.6 | BJ33: 273 | BK33: 3967.149123 | BM33: 676.5835099 | BO33: 48.0 | BP33: 10.6 | BQ33: 273 | BS33: 5810.45217 | BU33: 1713.56884 | BW33: 51.5 | BX33: 38.9 | BY33: 752 | BZ33: 8715.678255 | CB33: 1884.925724 | CD33: 51.5 | CE33: 38.9 | CF33: 752 | CH33: 5229.406953 | CJ33: 1542.211956 | CL33: 51.5 | CM33: 38.9 | CN33: 752 | CO33: 7844.110429 | CQ33: 1696.433151 | CS33: 51.5 | CT33: 38.9 | CU33: 752
B34: =IF($S$7=1,NL!A33,IF(cal!$S$7=2,EN!A33,IF(cal!$S$7=3,DE!A33,IF(cal!$S$7=4,FR!A33,IF(cal!$S$7=5,NR!A33,IF(cal!$S$7=6,SP!A33,IF(cal!$S$7=7,SW!A33,IF(cal!$S$7=8,TS!A33,IF(cal!$S$7=9,ExtraTaal1!A33,IF(cal!$S$7=10,ExtraTaal2!A33,IF(cal!$S$7=11,ExtraTaal3!A33,))))))))))) -> Clima Canal height 13 cm width 32 cm length 140 cm (Type 4) | C34: =IF($S$7=1,NL!B33,IF(cal!$S$7=2,EN!B33,IF(cal!$S$7=3,DE!B33,IF(cal!$S$7=4,FR!B33,IF(cal!$S$7=5,NR!B33,IF(cal!$S$7=6,SP!B33,IF(cal!$S$7=7,SW!B33,IF(cal!$S$7=8,TS!B33,IF(cal!$S$7=9,ExtraTaal1!B33,IF(cal!$S$7=10,ExtraTaal2!B33,IF(cal!$S$7=11,ExtraTaal3!B33,))))))))))) -> 0 | D34: =IF($S$7=1,NL!C33,IF(cal!$S$7=2,EN!C33,IF(cal!$S$7=3,DE!C33,IF(cal!$S$7=4,FR!C33,IF(cal!$S$7=5,NR!C33,IF(cal!$S$7=6,SP!C33,IF(cal!$S$7=7,SW!C33,IF(cal!$S$7=8,TS!C33,IF(cal!$S$7=9,ExtraTaal1!C33,IF(cal!$S$7=10,ExtraTaal2!C33,IF(cal!$S$7=11,ExtraTaal3!C33,))))))))))) -> 0 | E34: =IF($S$7=1,NL!D33,IF(cal!$S$7=2,EN!D33,IF(cal!$S$7=3,DE!D33,IF(cal!$S$7=4,FR!D33,IF(cal!$S$7=5,NR!D33,IF(cal!$S$7=6,SP!D33,IF(cal!$S$7=7,SW!D33,IF(cal!$S$7=8,TS!D33,IF(cal!$S$7=9,ExtraTaal1!D33,IF(cal!$S$7=10,ExtraTaal2!D33,IF(cal!$S$7=11,ExtraTaal3!D33,))))))))))) -> 0 | F34: =IF($S$7=1,NL!E33,IF(cal!$S$7=2,EN!E33,IF(cal!$S$7=3,DE!E33,IF(cal!$S$7=4,FR!E33,IF(cal!$S$7=5,NR!E33,IF(cal!$S$7=6,SP!E33,IF(cal!$S$7=7,SW!E33,IF(cal!$S$7=8,TS!E33,IF(cal!$S$7=9,ExtraTaal1!E33,IF(cal!$S$7=10,ExtraTaal2!E33,IF(cal!$S$7=11,ExtraTaal3!E33,))))))))))) -> 0 | G34: =IF($S$7=1,NL!F33,IF(cal!$S$7=2,EN!F33,IF(cal!$S$7=3,DE!F33,IF(cal!$S$7=4,FR!F33,IF(cal!$S$7=5,NR!F33,IF(cal!$S$7=6,SP!F33,IF(cal!$S$7=7,SW!F33,IF(cal!$S$7=8,TS!F33,IF(cal!$S$7=9,ExtraTaal1!F33,IF(cal!$S$7=10,ExtraTaal2!F33,IF(cal!$S$7=11,ExtraTaal3!F33,))))))))))) -> 0 | H34: =IF($S$7=1,NL!G33,IF(cal!$S$7=2,EN!G33,IF(cal!$S$7=3,DE!G33,IF(cal!$S$7=4,FR!G33,IF(cal!$S$7=5,NR!G33,IF(cal!$S$7=6,SP!G33,IF(cal!$S$7=7,SW!G33,IF(cal!$S$7=8,TS!G33,IF(cal!$S$7=9,ExtraTaal1!G33,IF(cal!$S$7=10,ExtraTaal2!G33,IF(cal!$S$7=11,ExtraTaal3!G33,))))))))))) -> 0 | I34: =IF($S$7=1,NL!H33,IF(cal!$S$7=2,EN!H33,IF(cal!$S$7=3,DE!H33,IF(cal!$S$7=4,FR!H33,IF(cal!$S$7=5,NR!H33,IF(cal!$S$7=6,SP!H33,IF(cal!$S$7=7,SW!H33,IF(cal!$S$7=8,TS!H33,IF(cal!$S$7=9,ExtraTaal1!H33,IF(cal!$S$7=10,ExtraTaal2!H33,IF(cal!$S$7=11,ExtraTaal3!H33,))))))))))) -> 0 | J34: =IF($S$7=1,NL!I33,IF(cal!$S$7=2,EN!I33,IF(cal!$S$7=3,DE!I33,IF(cal!$S$7=4,FR!I33,IF(cal!$S$7=5,NR!I33,IF(cal!$S$7=6,SP!I33,IF(cal!$S$7=7,SW!I33,IF(cal!$S$7=8,TS!I33,IF(cal!$S$7=9,ExtraTaal1!I33,IF(cal!$S$7=10,ExtraTaal2!I33,IF(cal!$S$7=11,ExtraTaal3!I33,))))))))))) -> 0 | K34: =IF($S$7=1,NL!J33,IF(cal!$S$7=2,EN!J33,IF(cal!$S$7=3,DE!J33,IF(cal!$S$7=4,FR!J33,IF(cal!$S$7=5,NR!J33,IF(cal!$S$7=6,SP!J33,IF(cal!$S$7=7,SW!J33,IF(cal!$S$7=8,TS!J33,IF(cal!$S$7=9,ExtraTaal1!J33,IF(cal!$S$7=10,ExtraTaal2!J33,IF(cal!$S$7=11,ExtraTaal3!J33,))))))))))) -> 0 | L34: =IF($S$7=1,NL!K33,IF(cal!$S$7=2,EN!K33,IF(cal!$S$7=3,DE!K33,IF(cal!$S$7=4,FR!K33,IF(cal!$S$7=5,NR!K33,IF(cal!$S$7=6,SP!K33,IF(cal!$S$7=7,SW!K33,IF(cal!$S$7=8,TS!K33,IF(cal!$S$7=9,ExtraTaal1!K33,IF(cal!$S$7=10,ExtraTaal2!K33,IF(cal!$S$7=11,ExtraTaal3!K33,))))))))))) -> 0 | M34: =IF($S$7=1,NL!L33,IF(cal!$S$7=2,EN!L33,IF(cal!$S$7=3,DE!L33,IF(cal!$S$7=4,FR!L33,IF(cal!$S$7=5,NR!L33,IF(cal!$S$7=6,SP!L33,IF(cal!$S$7=7,SW!L33,IF(cal!$S$7=8,TS!L33,IF(cal!$S$7=9,ExtraTaal1!L33,IF(cal!$S$7=10,ExtraTaal2!L33,IF(cal!$S$7=11,ExtraTaal3!L33,))))))))))) -> 0 | N34: =IF($S$7=1,NL!M33,IF(cal!$S$7=2,EN!M33,IF(cal!$S$7=3,DE!M33,IF(cal!$S$7=4,FR!M33,IF(cal!$S$7=5,NR!M33,IF(cal!$S$7=6,SP!M33,IF(cal!$S$7=7,SW!M33,IF(cal!$S$7=8,TS!M33,IF(cal!$S$7=9,ExtraTaal1!M33,IF(cal!$S$7=10,ExtraTaal2!M33,IF(cal!$S$7=11,ExtraTaal3!M33,))))))))))) -> 0 | O34: =IF($S$7=1,NL!N33,IF(cal!$S$7=2,EN!N33,IF(cal!$S$7=3,DE!N33,IF(cal!$S$7=4,FR!N33,IF(cal!$S$7=5,NR!N33,IF(cal!$S$7=6,SP!N33,IF(cal!$S$7=7,SW!N33,IF(cal!$S$7=8,TS!N33,IF(cal!$S$7=9,ExtraTaal1!N33,IF(cal!$S$7=10,ExtraTaal2!N33,IF(cal!$S$7=11,ExtraTaal3!N33,))))))))))) -> 0 | P34: =IF($S$7=1,NL!O33,IF(cal!$S$7=2,EN!O33,IF(cal!$S$7=3,DE!O33,IF(cal!$S$7=4,FR!O33,IF(cal!$S$7=5,NR!O33,IF(cal!$S$7=6,SP!O33,IF(cal!$S$7=7,SW!O33,IF(cal!$S$7=8,TS!O33,IF(cal!$S$7=9,ExtraTaal1!O33,IF(cal!$S$7=10,ExtraTaal2!O33,IF(cal!$S$7=11,ExtraTaal3!O33,))))))))))) -> 0 | Q34: n-value | R34: n-value | S34: n-value | T34: n-value | U34: n-value | V34: n-value | X34: H | Y34: 13 | Z34: B | AA34: 32 | AB34: L | AC34: 120 | AD34: 0 | AE34: H | AF34: =AF28 -> 8 | AG34: B | AH34: =AH28 -> 18 | AI34: L | AJ34: =144*IF($X$4=1,1,IF($X$4=2,1/2.54)) -> 144 | AL34: H | AM34: =AM28 -> 10 | AN34: B | AO34: =AO28 -> 18 | AP34: L | AQ34: =AJ34 -> 144 | AW34: H | AX34: =AX22 -> 13 | AY34: B | AZ34: =AZ22 -> 27 | BA34: L | BB34: =IF($X$4=1,160.8,160.8/2.54) -> 160.8 | BD34: H | BE34: =BE22 -> 13 | BF34: B | BG34: =BG22 -> 32 | BH34: L | BI34: =IF($X$4=1,120,120/2.54) -> 120 | BK34: H | BL34: =BL22 -> 13 | BM34: B | BN34: =BN22 -> 32 | BO34: L | BP34: =IF($X$4=1,120,120/2.54) -> 120 | BS34: H | BT34: =BT28 -> 19 | BU34: B | BV34: =BV28 -> 34 | BW34: L | BX34: =200*IF($X$4=1,1,IF($X$4=2,1/2.54)) -> 200 | BZ34: H | CA34: =CA28 -> 19 | CB34: B | CC34: =CC28 -> 34 | CD34: L | CE34: =BX34 -> 200 | CH34: H | CI34: =CI28 -> 15 | CJ34: B | CK34: =CK28 -> 32 | CL34: L | CM34: =200*IF($X$4=1,1,IF($X$4=2,1/2.54)) -> 200 | CO34: H | CP34: =CP28 -> 15 | CQ34: B | CR34: =CR28 -> 32 | CS34: L | CT34: =CM34 -> 200
B35: 20% | C35: 2 | D35: =(X35*($T$11^$Q35))*Watts*CF_Altit -> 966 | E35: =ROUND(((D35/Watts)/(($S$9-$S$10)*1.163))*$E$14,IF($X$4=1,0,IF($X$4=2,2))) -> 83 | F35: =($Y$36*(E35/$E$14)^$Y$38)*$F$14 -> 0.16 | G35: =(Z35*($W$11^R35))*Watts*CF_Altit -> 208 | H35: =((G35/Watts)/(IF((237.3*LN((RH*EXP(17.27*(Tl_cool/(Tl_cool+237.3))))))/(17.27-LN((RH*EXP(17.27*(Tl_cool/(Tl_cool+237.3))))))<Tavg_cold,1,IF(1/(1+((2258*((0.622/(($Z$11/(1*611*EXP(17.27*(Tavg_cold/(Tavg_cold+237.3))))))-1)*1000-(0.622/(($Z$11/(RH*611*EXP(17.27*(Tl_cool/(Tl_cool+237.3))))))-1)*1000))/(1005*(Tavg_cold-Tl_cool))))*1.039+((-0.000729*$C35+0.001448)*(Tl_cool-Tavg_cold)+(0.016908*$C35-0.033574))*1.039>1,1,1/(1+((2258*((0.622/(($Z$11/(1*611*EXP(17.27*(Tavg_cold/(Tavg_cold+237.3))))))-1)*1000-(0.622/(($Z$11/(RH*611*EXP(17.27*(Tl_cool/(Tl_cool+237.3))))))-1)*1000))/(1005*(Tavg_cold-Tl_cool))))*1.039+((-0.000729*$C35+0.001448)*(Tl_cool-Tavg_cold)+(0.016908*$C35-0.033574))*1.039))))*Watts -> 208 | I35: =ROUND(((H35/Watts)/((Tr_cool-Tv_cool)*1.163))*$I$14,IF($X$4=1,0,IF($X$4=2,2))) -> 89 | J35: =($AA$36*(I35/$I$14)^$AA$38)*$J$14 -> 0.18 | K35: =L35-8 -> 21.5 | L35: =AB35 -> 29.5 | M35: 2.0 | N35: =AD35*Cubics -> 79 | O35: =((($D35/Watts)/(((p_atm*0.028964)/(8.31447*(20+273.15)))*(($N35/3600)/Cubics)*(1005+1870*((0.622)/(((p_atm)/($E$12*Pvs_Heat_in))-1)))))+Tl_heat)*Celc1+Celc2 -> 56 | P35: =(Tl_cool-(($G35/Watts)/(1006*$N35*kgss)))*Celc1+Celc2 -> 19 | Q35: 1 | R35: 0.781 | S35: 0.600 | T35: 1.160 | U35: 0.781 | V35: 0.877 | W35: =(H35-G35)/H35 -> 0.0% | X35: 966.3528186 | Y35: a | Z35: 207.946552 | AA35: a | AB35: 29.5 | AC35: 2.0 | AD35: 79 | AE35: 1219 | AF35: a | AG35: 132 | AH35: a | AI35: 26.0 | AJ35: 1.2 | AK35: 84 | AL35: =AE35 -> 1219 | AM35: a | AN35: 132 | AO35: a | AP35: =AI35 -> 26.0 | AQ35: 1.2 | AR35: 84 | AT35: =(AG35*((((Tv_cool-Tr_cool)/LN((Tv_cool-Tl_cool)/(Tr_cool-Tl_cool)))/((16-18)/LN((16-27)/(18-27))))^S35))*$G$14 -> 0.04414666667 | AU35: =((AT35/$G$14)/(IF((237.3*LN((RH*EXP(17.27*(Tl_cool/(Tl_cool+237.3))))))/(17.27-LN((RH*EXP(17.27*(Tl_cool/(Tl_cool+237.3))))))<((Tv_cool+Tr_cool)/2),1,1/(1+((2258*((0.622/((p_atm/(1*611*EXP(17.27*(((Tv_cool+Tr_cool)/2)/(((Tv_cool+Tr_cool)/2)+237.3))))))-1)*1000-(0.622/((p_atm/(RH*611*EXP(17.27*(Tl_cool/(Tl_cool+237.3))))))-1)*1000))/(1005*(((Tv_cool+Tr_cool)/2)-Tl_cool))))+-((-0.000625*$C35+0.00625)*(Tl_cool-(Tv_cool+Tr_cool)/2)-(-0.000625*$C35+0.00625)*10))))*$H$14 -> 132 | AW35: 1367 | AX35: a | AY35: 156 | AZ35: a | BA35: 30.1 | BB35: 2.0 | BC35: 104 | BD35: 829.01223 | BE35: a | BF35: 199.6577032 | BG35: a | BH35: 29.5 | BI35: 2.0 | BJ35: 79 | BK35: 966.3528186 | BL35: a | BM35: 207.946552 | BN35: a | BO35: =BH35 -> 29.5 | BP35: 2.0 | BQ35: 79 | BS35: 2996.832006 | BT35: a | BU35: 538.3437516 | BV35: a | BW35: 30.5 | BX35: 6.1 | BY35: 276 | BZ35: 4495.248009 | CA35: a | CB35: 592.1781267 | CC35: a | CD35: 30.5 | CE35: 6.1 | CF35: 276 | CH35: =BS35*0.9 -> 2697.148806 | CI35: a | CJ35: =BU35*0.9 -> 484.5093764 | CK35: a | CL35: 30.5 | CM35: 6.1 | CN35: 276 | CO35: =BZ35*0.9 -> 4045.723208 | CP35: a | CQ35: =CB35*0.9 -> 532.960314 | CR35: a | CS35: 30.5 | CT35: 6.1 | CU35: 276
B36: 40% | C36: 4 | D36: =(X36*($T$11^$Q36))*Watts*CF_Altit -> 2137 | E36: =ROUND(((D36/Watts)/(($S$9-$S$10)*1.163))*$E$14,IF($X$4=1,0,IF($X$4=2,2))) -> 184 | F36: =($Y$36*(E36/$E$14)^$Y$38)*$F$14 -> 0.71 | G36: =(Z36*($W$11^R36))*Watts*CF_Altit -> 378 | H36: =((G36/Watts)/(IF((237.3*LN((RH*EXP(17.27*(Tl_cool/(Tl_cool+237.3))))))/(17.27-LN((RH*EXP(17.27*(Tl_cool/(Tl_cool+237.3))))))<Tavg_cold,1,IF(1/(1+((2258*((0.622/(($Z$11/(1*611*EXP(17.27*(Tavg_cold/(Tavg_cold+237.3))))))-1)*1000-(0.622/(($Z$11/(RH*611*EXP(17.27*(Tl_cool/(Tl_cool+237.3))))))-1)*1000))/(1005*(Tavg_cold-Tl_cool))))*1.039+((-0.000729*$C36+0.001448)*(Tl_cool-Tavg_cold)+(0.016908*$C36-0.033574))*1.039>1,1,1/(1+((2258*((0.622/(($Z$11/(1*611*EXP(17.27*(Tavg_cold/(Tavg_cold+237.3))))))-1)*1000-(0.622/(($Z$11/(RH*611*EXP(17.27*(Tl_cool/(Tl_cool+237.3))))))-1)*1000))/(1005*(Tavg_cold-Tl_cool))))*1.039+((-0.000729*$C36+0.001448)*(Tl_cool-Tavg_cold)+(0.016908*$C36-0.033574))*1.039))))*Watts -> 378 | I36: =ROUND(((H36/Watts)/((Tr_cool-Tv_cool)*1.163))*$I$14,IF($X$4=1,0,IF($X$4=2,2))) -> 162 | J36: =($AA$36*(I36/$I$14)^$AA$38)*$J$14 -> 0.56 | K36: =L36-8 -> 26.0 | L36: 34.0 | M36: 3.4 | N36: =AD36*Cubics -> 129 | O36: =((($D36/Watts)/(((p_atm*0.028964)/(8.31447*(20+273.15)))*(($N36/3600)/Cubics)*(1005+1870*((0.622)/(((p_atm)/($E$12*Pvs_Heat_in))-1)))))+Tl_heat)*Celc1+Celc2 -> 69 | P36: =(Tl_cool-(($G36/Watts)/(1006*$N36*kgss)))*Celc1+Celc2 -> 18 | Q36: 1 | R36: 0.859 | S36: 0.680 | T36: 1.040 | U36: 0.859 | V36: 0.878 | W36: =(H36-G36)/H36 -> 0.0% | X36: 2137.254644 | Y36: 4.307344432e-05 | Z36: 377.5787679 | AA36: 4.307344432e-05 | AB36: 34.0 | AC36: 3.4 | AD36: 129 | AE36: 2188 | AF36: 0.0007398952517 | AG36: 290 | AH36: =AF36 -> 0.0007398952517 | AI36: 30.0 | AJ36: 2.5 | AK36: 150 | AL36: =AE36 -> 2188 | AM36: =AH36 -> 0.0007398952517 | AN36: 290 | AO36: =AM36 -> 0.0007398952517 | AP36: 30.0 | AQ36: 2.5 | AR36: 150 | AT36: =(AG36*((((Tv_cool-Tr_cool)/LN((Tv_cool-Tl_cool)/(Tr_cool-Tl_cool)))/((16-18)/LN((16-27)/(18-27))))^S36))*$G$14 -> 0.09698888889 | AU36: =((AT36/$G$14)/(IF((237.3*LN((RH*EXP(17.27*(Tl_cool/(Tl_cool+237.3))))))/(17.27-LN((RH*EXP(17.27*(Tl_cool/(Tl_cool+237.3))))))<((Tv_cool+Tr_cool)/2),1,1/(1+((2258*((0.622/((p_atm/(1*611*EXP(17.27*(((Tv_cool+Tr_cool)/2)/(((Tv_cool+Tr_cool)/2)+237.3))))))-1)*1000-(0.622/((p_atm/(RH*611*EXP(17.27*(Tl_cool/(Tl_cool+237.3))))))-1)*1000))/(1005*(((Tv_cool+Tr_cool)/2)-Tl_cool))))+-((-0.000625*$C36+0.00625)*(Tl_cool-(Tv_cool+Tr_cool)/2)-(-0.000625*$C36+0.00625)*10))))*$H$14 -> 290 | AW36: 2229 | AX36: 8.8e-05 | AY36: 317 | AZ36: 6.73E-06 | BA36: 34.9 | BB36: 3.6 | BC36: 156 | BD36: 1653.33177 | BE36: 5.62805e-05 | BF36: 362.5853216 | BG36: 1.502272831e-05 | BH36: 34.0 | BI36: 3.4 | BJ36: 129 | BK36: 2137.254644 | BL36: 4.307344432e-05 | BM36: 377.5787679 | BN36: =BL36 -> 4.307344432e-05 | BO36: 34.0 | BP36: 3.4 | BQ36: 129 | BS36: 4729.485386 | BT36: 4.150874885e-05 | BU36: 1051.800553 | BV36: 0.0001230293899 | BW36: 34.1 | BX36: 12.1 | BY36: 513 | BZ36: 7094.228079 | CA36: 3.78151165e-05 | CB36: 1156.980608 | CC36: 3.78151165e-05 | CD36: 34.1 | CE36: 12.1 | CF36: 513 | CH36: =BS36*0.9 -> 4256.536847 | CI36: 4.150874885e-05 | CJ36: =BU36*0.9 -> 946.6204973 | CK36: 0.0001230293899 | CL36: 34.1 | CM36: 12.1 | CN36: 513 | CO36: =BZ36*0.9 -> 6384.805271 | CP36: 3.78151165e-05 | CQ36: =CB36*0.9 -> 1041.282547 | CR36: 3.78151165e-05 | CS36: 34.1 | CT36: 12.1 | CU36: 513
B37: 60% | C37: 6 | D37: =(X37*($T$11^$Q37))*Watts*CF_Altit -> 3186 | E37: =ROUND(((D37/Watts)/(($S$9-$S$10)*1.163))*$E$14,IF($X$4=1,0,IF($X$4=2,2))) -> 274 | F37: =($Y$36*(E37/$E$14)^$Y$38)*$F$14 -> 1.49 | G37: =(Z37*($W$11^R37))*Watts*CF_Altit -> 539 | H37: =((G37/Watts)/(IF((237.3*LN((RH*EXP(17.27*(Tl_cool/(Tl_cool+237.3))))))/(17.27-LN((RH*EXP(17.27*(Tl_cool/(Tl_cool+237.3))))))<Tavg_cold,1,IF(1/(1+((2258*((0.622/(($Z$11/(1*611*EXP(17.27*(Tavg_cold/(Tavg_cold+237.3))))))-1)*1000-(0.622/(($Z$11/(RH*611*EXP(17.27*(Tl_cool/(Tl_cool+237.3))))))-1)*1000))/(1005*(Tavg_cold-Tl_cool))))*1.039+((-0.000729*$C37+0.001448)*(Tl_cool-Tavg_cold)+(0.016908*$C37-0.033574))*1.039>1,1,1/(1+((2258*((0.622/(($Z$11/(1*611*EXP(17.27*(Tavg_cold/(Tavg_cold+237.3))))))-1)*1000-(0.622/(($Z$11/(RH*611*EXP(17.27*(Tl_cool/(Tl_cool+237.3))))))-1)*1000))/(1005*(Tavg_cold-Tl_cool))))*1.039+((-0.000729*$C37+0.001448)*(Tl_cool-Tavg_cold)+(0.016908*$C37-0.033574))*1.039))))*Watts -> 539 | I37: =ROUND(((H37/Watts)/((Tr_cool-Tv_cool)*1.163))*$I$14,IF($X$4=1,0,IF($X$4=2,2))) -> 232 | J37: =($AA$36*(I37/$I$14)^$AA$38)*$J$14 -> 1.09 | K37: =L37-8 -> 31.0 | L37: 39.0 | M37: 6.4 | N37: =AD37*Cubics -> 218 | O37: =((($D37/Watts)/(((p_atm*0.028964)/(8.31447*(20+273.15)))*(($N37/3600)/Cubics)*(1005+1870*((0.622)/(((p_atm)/($E$12*Pvs_Heat_in))-1)))))+Tl_heat)*Celc1+Celc2 -> 63 | P37: =(Tl_cool-(($G37/Watts)/(1006*$N37*kgss)))*Celc1+Celc2 -> 20 | Q37: 1 | R37: 0.883 | S37: 0.790 | T37: 0.95 | U37: 0.883 | V37: 0.882 | W37: =(H37-G37)/H37 -> 0.0% | X37: 3186.057197 | Y37: b | Z37: 539.2383212 | AA37: b | AB37: 39.0 | AC37: 6.4 | AD37: 218 | AE37: 3082 | AF37: b | AG37: 458 | AH37: b | AI37: 40.0 | AJ37: 5.4 | AK37: 196 | AL37: =AE37 -> 3082 | AM37: b | AN37: 458 | AO37: b | AP37: 40.0 | AQ37: 5.4 | AR37: 196 | AT37: =(AG37*((((Tv_cool-Tr_cool)/LN((Tv_cool-Tl_cool)/(Tr_cool-Tl_cool)))/((16-18)/LN((16-27)/(18-27))))^S37))*$G$14 -> 0.1531755556 | AU37: =((AT37/$G$14)/(IF((237.3*LN((RH*EXP(17.27*(Tl_cool/(Tl_cool+237.3))))))/(17.27-LN((RH*EXP(17.27*(Tl_cool/(Tl_cool+237.3))))))<((Tv_cool+Tr_cool)/2),1,1/(1+((2258*((0.622/((p_atm/(1*611*EXP(17.27*(((Tv_cool+Tr_cool)/2)/(((Tv_cool+Tr_cool)/2)+237.3))))))-1)*1000-(0.622/((p_atm/(RH*611*EXP(17.27*(Tl_cool/(Tl_cool+237.3))))))-1)*1000))/(1005*(((Tv_cool+Tr_cool)/2)-Tl_cool))))+-((-0.000625*$C37+0.00625)*(Tl_cool-(Tv_cool+Tr_cool)/2)-(-0.000625*$C37+0.00625)*10))))*$H$14 -> 458 | AW37: 2967 | AX37: b | AY37: 480 | AZ37: b | BA37: 40.0 | BB37: 7.2 | BC37: 246 | BD37: 2331.98127 | BE37: b | BF37: 521.2561271 | BG37: b | BH37: 39.0 | BI37: 6.4 | BJ37: 218 | BK37: 3186.057197 | BL37: b | BM37: 539.2383212 | BN37: b | BO37: 39.0 | BP37: 6.4 | BQ37: 218 | BS37: 6176.253011 | BT37: b | BU37: 1556.265221 | BV37: b | BW37: 40.1 | BX37: 21.7 | BY37: 732 | BZ37: 9264.379517 | CA37: b | CB37: 1711.891743 | CC37: b | CD37: 40.1 | CE37: 21.7 | CF37: 732 | CH37: 5558.62771 | CI37: b | CJ37: 1400.638699 | CK37: b | CL37: 40.1 | CM37: 21.7 | CN37: 732 | CO37: 8337.941565 | CP37: b | CQ37: 1540.702569 | CR37: b | CS37: 40.1 | CT37: 21.7 | CU37: 732
B38: 80% | C38: 8 | D38: =(X38*($T$11^$Q38))*Watts*CF_Altit -> 4113 | E38: =ROUND(((D38/Watts)/(($S$9-$S$10)*1.163))*$E$14,IF($X$4=1,0,IF($X$4=2,2))) -> 354 | F38: =($Y$36*(E38/$E$14)^$Y$38)*$F$14 -> 2.40 | G38: =(Z38*($W$11^R38))*Watts*CF_Altit -> 693 | H38: =((G38/Watts)/(IF((237.3*LN((RH*EXP(17.27*(Tl_cool/(Tl_cool+237.3))))))/(17.27-LN((RH*EXP(17.27*(Tl_cool/(Tl_cool+237.3))))))<Tavg_cold,1,IF(1/(1+((2258*((0.622/(($Z$11/(1*611*EXP(17.27*(Tavg_cold/(Tavg_cold+237.3))))))-1)*1000-(0.622/(($Z$11/(RH*611*EXP(17.27*(Tl_cool/(Tl_cool+237.3))))))-1)*1000))/(1005*(Tavg_cold-Tl_cool))))*1.039+((-0.000729*$C38+0.001448)*(Tl_cool-Tavg_cold)+(0.016908*$C38-0.033574))*1.039>1,1,1/(1+((2258*((0.622/(($Z$11/(1*611*EXP(17.27*(Tavg_cold/(Tavg_cold+237.3))))))-1)*1000-(0.622/(($Z$11/(RH*611*EXP(17.27*(Tl_cool/(Tl_cool+237.3))))))-1)*1000))/(1005*(Tavg_cold-Tl_cool))))*1.039+((-0.000729*$C38+0.001448)*(Tl_cool-Tavg_cold)+(0.016908*$C38-0.033574))*1.039))))*Watts -> 693 | I38: =ROUND(((H38/Watts)/((Tr_cool-Tv_cool)*1.163))*$I$14,IF($X$4=1,0,IF($X$4=2,2))) -> 298 | J38: =($AA$36*(I38/$I$14)^$AA$38)*$J$14 -> 1.74 | K38: =L38-8 -> 38.5 | L38: 46.5 | M38: 12.3 | N38: =AD38*Cubics -> 285 | O38: =((($D38/Watts)/(((p_atm*0.028964)/(8.31447*(20+273.15)))*(($N38/3600)/Cubics)*(1005+1870*((0.622)/(((p_atm)/($E$12*Pvs_Heat_in))-1)))))+Tl_heat)*Celc1+Celc2 -> 62 | P38: =(Tl_cool-(($G38/Watts)/(1006*$N38*kgss)))*Celc1+Celc2 -> 20 | Q38: 1 | R38: 0.854 | S38: 0.870 | T38: 0.950 | U38: 0.854 | V38: 0.895 | W38: =(H38-G38)/H38 -> 0.0% | X38: 4112.760476 | Y38: 1.862013137 | Z38: 692.925212 | AA38: 1.862013137 | AB38: 46.5 | AC38: 12.3 | AD38: 285 | AE38: 3929 | AF38: 1.823515585 | AG38: 634 | AH38: =AF38 -> 1.823515585 | AI38: 45.0 | AJ38: 9.1 | AK38: 250 | AL38: =AE38 -> 3929 | AM38: =AH38 -> 1.823515585 | AN38: 634 | AO38: =AM38 -> 1.823515585 | AP38: 45.0 | AQ38: 9.1 | AR38: 250 | AT38: =(AG38*((((Tv_cool-Tr_cool)/LN((Tv_cool-Tl_cool)/(Tr_cool-Tl_cool)))/((16-18)/LN((16-27)/(18-27))))^S38))*$G$14 -> 0.2120377778 | AU38: =((AT38/$G$14)/(IF((237.3*LN((RH*EXP(17.27*(Tl_cool/(Tl_cool+237.3))))))/(17.27-LN((RH*EXP(17.27*(Tl_cool/(Tl_cool+237.3))))))<((Tv_cool+Tr_cool)/2),1,1/(1+((2258*((0.622/((p_atm/(1*611*EXP(17.27*(((Tv_cool+Tr_cool)/2)/(((Tv_cool+Tr_cool)/2)+237.3))))))-1)*1000-(0.622/((p_atm/(RH*611*EXP(17.27*(Tl_cool/(Tl_cool+237.3))))))-1)*1000))/(1005*(((Tv_cool+Tr_cool)/2)-Tl_cool))))+-((-0.000625*$C38+0.00625)*(Tl_cool-(Tv_cool+Tr_cool)/2)-(-0.000625*$C38+0.00625)*10))))*$H$14 -> 634 | AW38: 3635 | AX38: 1.8 | AY38: 643 | AZ38: 2 | BA38: 47.0 | BB38: 13.0 | BC38: 336 | BD38: 2864.96073 | BE38: 1.87032 | BF38: 675.6701197 | BG38: 1.934141163 | BH38: 46.5 | BI38: 12.3 | BJ38: 285 | BK38: 4112.760476 | BL38: 1.862013137 | BM38: 692.925212 | BN38: =BL38 -> 1.862013137 | BO38: 46.5 | BP38: 12.3 | BQ38: 285 | BS38: 7463.892526 | BT38: 2 | BU38: 2054.977696 | BV38: 2 | BW38: 48.1 | BX38: 37.0 | BY38: 969 | BZ38: 11195.83879 | CA38: 2 | CB38: 2260.475466 | CC38: 2 | CD38: 48.1 | CE38: 37.0 | CF38: 969 | CH38: 6717.503274 | CI38: 2 | CJ38: 1849.479927 | CK38: 2 | CL38: 48.1 | CM38: 37.0 | CN38: 969 | CO38: 10076.25491 | CP38: 2 | CQ38: 2034.427919 | CR38: 2 | CS38: 48.1 | CT38: 37.0 | CU38: 969
B39: 100% | C39: 10 | D39: =(X39*($T$11^$Q39))*Watts*CF_Altit -> 4917 | E39: =ROUND(((D39/Watts)/(($S$9-$S$10)*1.163))*$E$14,IF($X$4=1,0,IF($X$4=2,2))) -> 423 | F39: =($Y$36*(E39/$E$14)^$Y$38)*$F$14 -> 3.35 | G39: =(Z39*($W$11^R39))*Watts*CF_Altit -> 839 | H39: =((G39/Watts)/(IF((237.3*LN((RH*EXP(17.27*(Tl_cool/(Tl_cool+237.3))))))/(17.27-LN((RH*EXP(17.27*(Tl_cool/(Tl_cool+237.3))))))<Tavg_cold,1,IF(1/(1+((2258*((0.622/(($Z$11/(1*611*EXP(17.27*(Tavg_cold/(Tavg_cold+237.3))))))-1)*1000-(0.622/(($Z$11/(RH*611*EXP(17.27*(Tl_cool/(Tl_cool+237.3))))))-1)*1000))/(1005*(Tavg_cold-Tl_cool))))*1.039+((-0.000729*$C39+0.001448)*(Tl_cool-Tavg_cold)+(0.016908*$C39-0.033574))*1.039>1,1,1/(1+((2258*((0.622/(($Z$11/(1*611*EXP(17.27*(Tavg_cold/(Tavg_cold+237.3))))))-1)*1000-(0.622/(($Z$11/(RH*611*EXP(17.27*(Tl_cool/(Tl_cool+237.3))))))-1)*1000))/(1005*(Tavg_cold-Tl_cool))))*1.039+((-0.000729*$C39+0.001448)*(Tl_cool-Tavg_cold)+(0.016908*$C39-0.033574))*1.039))))*Watts -> 839 | I39: =ROUND(((H39/Watts)/((Tr_cool-Tv_cool)*1.163))*$I$14,IF($X$4=1,0,IF($X$4=2,2))) -> 361 | J39: =($AA$36*(I39/$I$14)^$AA$38)*$J$14 -> 2.49 | K39: =L39-8 -> 41.5 | L39: 49.5 | M39: 19.1 | N39: =AD39*Cubics -> 339 | O39: =((($D39/Watts)/(((p_atm*0.028964)/(8.31447*(20+273.15)))*(($N39/3600)/Cubics)*(1005+1870*((0.622)/(((p_atm)/($E$12*Pvs_Heat_in))-1)))))+Tl_heat)*Celc1+Celc2 -> 63 | P39: =(Tl_cool-(($G39/Watts)/(1006*$N39*kgss)))*Celc1+Celc2 -> 20 | Q39: 1 | R39: 0.771 | S39: 0.910 | T39: 0.980 | U39: 0.771 | V39: 0.911 | W39: =(H39-G39)/H39 -> 0.0% | X39: 4917.364482 | Y39: 0 | Z39: 838.6394404 | AA39: 0 | AB39: 49.5 | AC39: 19.1 | AD39: 339 | AE39: 4744 | AG39: 816 | AI39: 49.0 | AJ39: 14.1 | AK39: 320 | AL39: =AE39 -> 4744 | AN39: 816 | AP39: 49.0 | AQ39: 14.1 | AR39: 320 | AT39: =(AG39*((((Tv_cool-Tr_cool)/LN((Tv_cool-Tl_cool)/(Tr_cool-Tl_cool)))/((16-18)/LN((16-27)/(18-27))))^S39))*$G$14 -> 0.2729066667 | AU39: =((AT39/$G$14)/(IF((237.3*LN((RH*EXP(17.27*(Tl_cool/(Tl_cool+237.3))))))/(17.27-LN((RH*EXP(17.27*(Tl_cool/(Tl_cool+237.3))))))<((Tv_cool+Tr_cool)/2),1,1/(1+((2258*((0.622/((p_atm/(1*611*EXP(17.27*(((Tv_cool+Tr_cool)/2)/(((Tv_cool+Tr_cool)/2)+237.3))))))-1)*1000-(0.622/((p_atm/(RH*611*EXP(17.27*(Tl_cool/(Tl_cool+237.3))))))-1)*1000))/(1005*(((Tv_cool+Tr_cool)/2)-Tl_cool))))+-((-0.000625*$C39+0.00625)*(Tl_cool-(Tv_cool+Tr_cool)/2)-(-0.000625*$C39+0.00625)*10))))*$H$14 -> 816 | AW39: 4255 | AY39: 808 | BA39: 50.1 | BB39: 19.7 | BC39: 404 | BD39: 3252.27015 | BF39: 825.8272995 | BH39: 49.5 | BI39: 19.1 | BJ39: 339 | BK39: 4917.364482 | BM39: 838.6394404 | BO39: 49.5 | BP39: 19.1 | BQ39: 339 | BS39: 8644.819082 | BU39: 2549.456079 | BW39: 53.1 | BX39: 53.8 | BY39: 1103 | BZ39: 12967.22862 | CB39: 2804.401687 | CD39: 53.1 | CE39: 53.8 | CF39: 1103 | CH39: 7780.337174 | CJ39: 2294.510471 | CL39: 53.1 | CM39: 53.8 | CN39: 1103 | CO39: 11670.50576 | CQ39: 2523.961518 | CS39: 53.1 | CT39: 53.8 | CU39: 1103
B40: =IF($S$7=1,NL!A39,IF(cal!$S$7=2,EN!A39,IF(cal!$S$7=3,DE!A39,IF(cal!$S$7=4,FR!A39,IF(cal!$S$7=5,NR!A39,IF(cal!$S$7=6,SP!A39,IF(cal!$S$7=7,SW!A39,IF(cal!$S$7=8,TS!A39,IF(cal!$S$7=9,ExtraTaal1!A39,IF(cal!$S$7=10,ExtraTaal2!A39,IF(cal!$S$7=11,ExtraTaal3!A39,))))))))))) -> Clima Canal height 13 cm width 32 cm length 170 cm (Type 5) | C40: =IF($S$7=1,NL!B39,IF(cal!$S$7=2,EN!B39,IF(cal!$S$7=3,DE!B39,IF(cal!$S$7=4,FR!B39,IF(cal!$S$7=5,NR!B39,IF(cal!$S$7=6,SP!B39,IF(cal!$S$7=7,SW!B39,IF(cal!$S$7=8,TS!B39,IF(cal!$S$7=9,ExtraTaal1!B39,IF(cal!$S$7=10,ExtraTaal2!B39,IF(cal!$S$7=11,ExtraTaal3!B39,))))))))))) -> 0 | D40: =IF($S$7=1,NL!C39,IF(cal!$S$7=2,EN!C39,IF(cal!$S$7=3,DE!C39,IF(cal!$S$7=4,FR!C39,IF(cal!$S$7=5,NR!C39,IF(cal!$S$7=6,SP!C39,IF(cal!$S$7=7,SW!C39,IF(cal!$S$7=8,TS!C39,IF(cal!$S$7=9,ExtraTaal1!C39,IF(cal!$S$7=10,ExtraTaal2!C39,IF(cal!$S$7=11,ExtraTaal3!C39,))))))))))) -> 0 | E40: =IF($S$7=1,NL!D39,IF(cal!$S$7=2,EN!D39,IF(cal!$S$7=3,DE!D39,IF(cal!$S$7=4,FR!D39,IF(cal!$S$7=5,NR!D39,IF(cal!$S$7=6,SP!D39,IF(cal!$S$7=7,SW!D39,IF(cal!$S$7=8,TS!D39,IF(cal!$S$7=9,ExtraTaal1!D39,IF(cal!$S$7=10,ExtraTaal2!D39,IF(cal!$S$7=11,ExtraTaal3!D39,))))))))))) -> 0 | F40: =IF($S$7=1,NL!E39,IF(cal!$S$7=2,EN!E39,IF(cal!$S$7=3,DE!E39,IF(cal!$S$7=4,FR!E39,IF(cal!$S$7=5,NR!E39,IF(cal!$S$7=6,SP!E39,IF(cal!$S$7=7,SW!E39,IF(cal!$S$7=8,TS!E39,IF(cal!$S$7=9,ExtraTaal1!E39,IF(cal!$S$7=10,ExtraTaal2!E39,IF(cal!$S$7=11,ExtraTaal3!E39,))))))))))) -> 0 | G40: =IF($S$7=1,NL!F39,IF(cal!$S$7=2,EN!F39,IF(cal!$S$7=3,DE!F39,IF(cal!$S$7=4,FR!F39,IF(cal!$S$7=5,NR!F39,IF(cal!$S$7=6,SP!F39,IF(cal!$S$7=7,SW!F39,IF(cal!$S$7=8,TS!F39,IF(cal!$S$7=9,ExtraTaal1!F39,IF(cal!$S$7=10,ExtraTaal2!F39,IF(cal!$S$7=11,ExtraTaal3!F39,))))))))))) -> 0 | H40: =IF($S$7=1,NL!G39,IF(cal!$S$7=2,EN!G39,IF(cal!$S$7=3,DE!G39,IF(cal!$S$7=4,FR!G39,IF(cal!$S$7=5,NR!G39,IF(cal!$S$7=6,SP!G39,IF(cal!$S$7=7,SW!G39,IF(cal!$S$7=8,TS!G39,IF(cal!$S$7=9,ExtraTaal1!G39,IF(cal!$S$7=10,ExtraTaal2!G39,IF(cal!$S$7=11,ExtraTaal3!G39,))))))))))) -> 0 | I40: =IF($S$7=1,NL!H39,IF(cal!$S$7=2,EN!H39,IF(cal!$S$7=3,DE!H39,IF(cal!$S$7=4,FR!H39,IF(cal!$S$7=5,NR!H39,IF(cal!$S$7=6,SP!H39,IF(cal!$S$7=7,SW!H39,IF(cal!$S$7=8,TS!H39,IF(cal!$S$7=9,ExtraTaal1!H39,IF(cal!$S$7=10,ExtraTaal2!H39,IF(cal!$S$7=11,ExtraTaal3!H39,))))))))))) -> 0 | J40: =IF($S$7=1,NL!I39,IF(cal!$S$7=2,EN!I39,IF(cal!$S$7=3,DE!I39,IF(cal!$S$7=4,FR!I39,IF(cal!$S$7=5,NR!I39,IF(cal!$S$7=6,SP!I39,IF(cal!$S$7=7,SW!I39,IF(cal!$S$7=8,TS!I39,IF(cal!$S$7=9,ExtraTaal1!I39,IF(cal!$S$7=10,ExtraTaal2!I39,IF(cal!$S$7=11,ExtraTaal3!I39,))))))))))) -> 0 | K40: =IF($S$7=1,NL!J39,IF(cal!$S$7=2,EN!J39,IF(cal!$S$7=3,DE!J39,IF(cal!$S$7=4,FR!J39,IF(cal!$S$7=5,NR!J39,IF(cal!$S$7=6,SP!J39,IF(cal!$S$7=7,SW!J39,IF(cal!$S$7=8,TS!J39,IF(cal!$S$7=9,ExtraTaal1!J39,IF(cal!$S$7=10,ExtraTaal2!J39,IF(cal!$S$7=11,ExtraTaal3!J39,))))))))))) -> 0 | L40: =IF($S$7=1,NL!K39,IF(cal!$S$7=2,EN!K39,IF(cal!$S$7=3,DE!K39,IF(cal!$S$7=4,FR!K39,IF(cal!$S$7=5,NR!K39,IF(cal!$S$7=6,SP!K39,IF(cal!$S$7=7,SW!K39,IF(cal!$S$7=8,TS!K39,IF(cal!$S$7=9,ExtraTaal1!K39,IF(cal!$S$7=10,ExtraTaal2!K39,IF(cal!$S$7=11,ExtraTaal3!K39,))))))))))) -> 0 | M40: =IF($S$7=1,NL!L39,IF(cal!$S$7=2,EN!L39,IF(cal!$S$7=3,DE!L39,IF(cal!$S$7=4,FR!L39,IF(cal!$S$7=5,NR!L39,IF(cal!$S$7=6,SP!L39,IF(cal!$S$7=7,SW!L39,IF(cal!$S$7=8,TS!L39,IF(cal!$S$7=9,ExtraTaal1!L39,IF(cal!$S$7=10,ExtraTaal2!L39,IF(cal!$S$7=11,ExtraTaal3!L39,))))))))))) -> 0 | N40: =IF($S$7=1,NL!M39,IF(cal!$S$7=2,EN!M39,IF(cal!$S$7=3,DE!M39,IF(cal!$S$7=4,FR!M39,IF(cal!$S$7=5,NR!M39,IF(cal!$S$7=6,SP!M39,IF(cal!$S$7=7,SW!M39,IF(cal!$S$7=8,TS!M39,IF(cal!$S$7=9,ExtraTaal1!M39,IF(cal!$S$7=10,ExtraTaal2!M39,IF(cal!$S$7=11,ExtraTaal3!M39,))))))))))) -> 0 | O40: =IF($S$7=1,NL!N39,IF(cal!$S$7=2,EN!N39,IF(cal!$S$7=3,DE!N39,IF(cal!$S$7=4,FR!N39,IF(cal!$S$7=5,NR!N39,IF(cal!$S$7=6,SP!N39,IF(cal!$S$7=7,SW!N39,IF(cal!$S$7=8,TS!N39,IF(cal!$S$7=9,ExtraTaal1!N39,IF(cal!$S$7=10,ExtraTaal2!N39,IF(cal!$S$7=11,ExtraTaal3!N39,))))))))))) -> 0 | P40: =IF($S$7=1,NL!O39,IF(cal!$S$7=2,EN!O39,IF(cal!$S$7=3,DE!O39,IF(cal!$S$7=4,FR!O39,IF(cal!$S$7=5,NR!O39,IF(cal!$S$7=6,SP!O39,IF(cal!$S$7=7,SW!O39,IF(cal!$S$7=8,TS!O39,IF(cal!$S$7=9,ExtraTaal1!O39,IF(cal!$S$7=10,ExtraTaal2!O39,IF(cal!$S$7=11,ExtraTaal3!O39,))))))))))) -> 0 | Q40: n-value | R40: n-value | S40: n-value | T40: n-value | U40: n-value | V40: n-value | X40: H | Y40: 13 | Z40: B | AA40: 32 | AB40: L | AC40: 140 | AD40: 0 | AE40: H | AF40: =AF34 -> 8 | AG40: B | AH40: =AH34 -> 18 | AI40: L | AJ40: =180*IF($X$4=1,1,IF($X$4=2,1/2.54)) -> 180 | AL40: H | AM40: =AM34 -> 10 | AN40: B | AO40: =AO34 -> 18 | AP40: L | AQ40: =AJ40 -> 180 | AW40: H | AX40: =AX22 -> 13 | AY40: B | AZ40: =AZ22 -> 27 | BA40: L | BB40: =IF($X$4=1,180.3,180.3/2.54) -> 180.3 | BD40: H | BE40: =BE22 -> 13 | BF40: B | BG40: =BG22 -> 32 | BH40: L | BI40: =IF($X$4=1,140,140/2.54) -> 140 | BK40: H | BL40: =BL22 -> 13 | BM40: B | BN40: =BN22 -> 32 | BO40: L | BP40: =IF($X$4=1,140,140/2.54) -> 140 | BS40: H | BT40: =BT34 -> 19 | BU40: B | BV40: =BV34 -> 34 | BW40: L | BX40: =280*IF($X$4=1,1,IF($X$4=2,1/2.54)) -> 280 | BZ40: H | CA40: =CA34 -> 19 | CB40: B | CC40: =CC34 -> 34 | CD40: L | CE40: =BX40 -> 280 | CH40: H | CI40: =CI34 -> 15 | CJ40: B | CK40: =CK34 -> 32 | CL40: L | CM40: =280*IF($X$4=1,1,IF($X$4=2,1/2.54)) -> 280 | CO40: H | CP40: =CP34 -> 15 | CQ40: B | CR40: =CR34 -> 32 | CS40: L | CT40: =CM40 -> 280
B41: 20% | C41: 2 | D41: =(X41*($T$11^$Q41))*Watts*CF_Altit -> 1246 | E41: =ROUND(((D41/Watts)/(($S$9-$S$10)*1.163))*$E$14,IF($X$4=1,0,IF($X$4=2,2))) -> 107 | F41: =($Y$42*(E41/$E$14)^$Y$44)*$F$14 -> 0.30 | G41: =(Z41*($W$11^R41))*Watts*CF_Altit -> 268 | H41: =((G41/Watts)/(IF((237.3*LN((RH*EXP(17.27*(Tl_cool/(Tl_cool+237.3))))))/(17.27-LN((RH*EXP(17.27*(Tl_cool/(Tl_cool+237.3))))))<Tavg_cold,1,IF(1/(1+((2258*((0.622/(($Z$11/(1*611*EXP(17.27*(Tavg_cold/(Tavg_cold+237.3))))))-1)*1000-(0.622/(($Z$11/(RH*611*EXP(17.27*(Tl_cool/(Tl_cool+237.3))))))-1)*1000))/(1005*(Tavg_cold-Tl_cool))))*1.039+((-0.000729*$C41+0.001448)*(Tl_cool-Tavg_cold)+(0.016908*$C41-0.033574))*1.039>1,1,1/(1+((2258*((0.622/(($Z$11/(1*611*EXP(17.27*(Tavg_cold/(Tavg_cold+237.3))))))-1)*1000-(0.622/(($Z$11/(RH*611*EXP(17.27*(Tl_cool/(Tl_cool+237.3))))))-1)*1000))/(1005*(Tavg_cold-Tl_cool))))*1.039+((-0.000729*$C41+0.001448)*(Tl_cool-Tavg_cold)+(0.016908*$C41-0.033574))*1.039))))*Watts -> 268 | I41: =ROUND(((H41/Watts)/((Tr_cool-Tv_cool)*1.163))*$I$14,IF($X$4=1,0,IF($X$4=2,2))) -> 115 | J41: =($AA$42*(I41/$I$14)^$AA$44)*$J$14 -> 0.34 | K41: =L41-8 -> 22.0 | L41: =AB41 -> 30.0 | M41: 2.4 | N41: =AD41*Cubics -> 84 | O41: =((($D41/Watts)/(((p_atm*0.028964)/(8.31447*(20+273.15)))*(($N41/3600)/Cubics)*(1005+1870*((0.622)/(((p_atm)/($E$12*Pvs_Heat_in))-1)))))+Tl_heat)*Celc1+Celc2 -> 64 | P41: =(Tl_cool-(($G41/Watts)/(1006*$N41*kgss)))*Celc1+Celc2 -> 18 | Q41: 1 | R41: 0.781 | S41: 0 | T41: 0 | U41: 0.781 | V41: 0 | W41: =(H41-G41)/H41 -> 0.0% | X41: 1246.455085 | Y41: a | Z41: 268.220915 | AA41: a | AB41: 30.0 | AC41: 2.4 | AD41: 84 | BD41: 1069.30563 | BE41: a | BF41: 257.5295012 | BG41: a | BH41: 30.0 | BI41: 2.4 | BJ41: 84 | BK41: 1246.455085 | BL41: a | BM41: 268.220915 | BN41: a | BO41: =BH41 -> 30.0 | BP41: 2.4 | BQ41: 84
B42: 40% | C42: 4 | D42: =(X42*($T$11^$Q42))*Watts*CF_Altit -> 2757 | E42: =ROUND(((D42/Watts)/(($S$9-$S$10)*1.163))*$E$14,IF($X$4=1,0,IF($X$4=2,2))) -> 237 | F42: =($Y$42*(E42/$E$14)^$Y$44)*$F$14 -> 1.31 | G42: =(Z42*($W$11^R42))*Watts*CF_Altit -> 487 | H42: =((G42/Watts)/(IF((237.3*LN((RH*EXP(17.27*(Tl_cool/(Tl_cool+237.3))))))/(17.27-LN((RH*EXP(17.27*(Tl_cool/(Tl_cool+237.3))))))<Tavg_cold,1,IF(1/(1+((2258*((0.622/(($Z$11/(1*611*EXP(17.27*(Tavg_cold/(Tavg_cold+237.3))))))-1)*1000-(0.622/(($Z$11/(RH*611*EXP(17.27*(Tl_cool/(Tl_cool+237.3))))))-1)*1000))/(1005*(Tavg_cold-Tl_cool))))*1.039+((-0.000729*$C42+0.001448)*(Tl_cool-Tavg_cold)+(0.016908*$C42-0.033574))*1.039>1,1,1/(1+((2258*((0.622/(($Z$11/(1*611*EXP(17.27*(Tavg_cold/(Tavg_cold+237.3))))))-1)*1000-(0.622/(($Z$11/(RH*611*EXP(17.27*(Tl_cool/(Tl_cool+237.3))))))-1)*1000))/(1005*(Tavg_cold-Tl_cool))))*1.039+((-0.000729*$C42+0.001448)*(Tl_cool-Tavg_cold)+(0.016908*$C42-0.033574))*1.039))))*Watts -> 487 | I42: =ROUND(((H42/Watts)/((Tr_cool-Tv_cool)*1.163))*$I$14,IF($X$4=1,0,IF($X$4=2,2))) -> 209 | J42: =($AA$42*(I42/$I$14)^$AA$44)*$J$14 -> 1.04 | K42: =L42-8 -> 27.0 | L42: 35.0 | M42: 4.0 | N42: =AD42*Cubics -> 158 | O42: =((($D42/Watts)/(((p_atm*0.028964)/(8.31447*(20+273.15)))*(($N42/3600)/Cubics)*(1005+1870*((0.622)/(((p_atm)/($E$12*Pvs_Heat_in))-1)))))+Tl_heat)*Celc1+Celc2 -> 71 | P42: =(Tl_cool-(($G42/Watts)/(1006*$N42*kgss)))*Celc1+Celc2 -> 18 | Q42: 1 | R42: 0.859 | S42: 0 | T42: 0 | U42: 0.859 | V42: 0 | W42: =(H42-G42)/H42 -> 0.0% | X42: 2756.748744 | Y42: 5.397374607e-05 | Z42: 487.021889 | AA42: 5.397374607e-05 | AB42: 35.0 | AC42: 4.0 | AD42: 158 | BD42: 2132.55837 | BE42: 6.89335e-05 | BF42: 467.6825162 | BG42: 1.639678788e-05 | BH42: 35.0 | BI42: 4.0 | BJ42: 158 | BK42: 2756.748744 | BL42: 5.397374607e-05 | BM42: 487.021889 | BN42: =BL42 -> 5.397374607e-05 | BO42: 35.0 | BP42: 4.0 | BQ42: 158
B43: 60% | C43: 6 | D43: =(X43*($T$11^$Q43))*Watts*CF_Altit -> 4110 | E43: =ROUND(((D43/Watts)/(($S$9-$S$10)*1.163))*$E$14,IF($X$4=1,0,IF($X$4=2,2))) -> 353 | F43: =($Y$42*(E43/$E$14)^$Y$44)*$F$14 -> 2.74 | G43: =(Z43*($W$11^R43))*Watts*CF_Altit -> 696 | H43: =((G43/Watts)/(IF((237.3*LN((RH*EXP(17.27*(Tl_cool/(Tl_cool+237.3))))))/(17.27-LN((RH*EXP(17.27*(Tl_cool/(Tl_cool+237.3))))))<Tavg_cold,1,IF(1/(1+((2258*((0.622/(($Z$11/(1*611*EXP(17.27*(Tavg_cold/(Tavg_cold+237.3))))))-1)*1000-(0.622/(($Z$11/(RH*611*EXP(17.27*(Tl_cool/(Tl_cool+237.3))))))-1)*1000))/(1005*(Tavg_cold-Tl_cool))))*1.039+((-0.000729*$C43+0.001448)*(Tl_cool-Tavg_cold)+(0.016908*$C43-0.033574))*1.039>1,1,1/(1+((2258*((0.622/(($Z$11/(1*611*EXP(17.27*(Tavg_cold/(Tavg_cold+237.3))))))-1)*1000-(0.622/(($Z$11/(RH*611*EXP(17.27*(Tl_cool/(Tl_cool+237.3))))))-1)*1000))/(1005*(Tavg_cold-Tl_cool))))*1.039+((-0.000729*$C43+0.001448)*(Tl_cool-Tavg_cold)+(0.016908*$C43-0.033574))*1.039))))*Watts -> 696 | I43: =ROUND(((H43/Watts)/((Tr_cool-Tv_cool)*1.163))*$I$14,IF($X$4=1,0,IF($X$4=2,2))) -> 299 | J43: =($AA$42*(I43/$I$14)^$AA$44)*$J$14 -> 2.01 | K43: =L43-8 -> 32.0 | L43: 40.0 | M43: 7.4 | N43: =AD43*Cubics -> 259 | O43: =((($D43/Watts)/(((p_atm*0.028964)/(8.31447*(20+273.15)))*(($N43/3600)/Cubics)*(1005+1870*((0.622)/(((p_atm)/($E$12*Pvs_Heat_in))-1)))))+Tl_heat)*Celc1+Celc2 -> 67 | P43: =(Tl_cool-(($G43/Watts)/(1006*$N43*kgss)))*Celc1+Celc2 -> 19 | Q43: 1 | R43: 0.883 | S43: 0 | T43: 0 | U43: 0.883 | V43: 0 | W43: =(H43-G43)/H43 -> 0.0% | X43: 4109.552037 | Y43: b | Z43: 695.5392839 | AA43: b | AB43: 40.0 | AC43: 7.4 | AD43: 259 | BD43: 3007.91787 | BE43: b | BF43: 672.3448596 | BG43: b | BH43: 40.0 | BI43: 7.4 | BJ43: 259 | BK43: 4109.552037 | BL43: b | BM43: 695.5392839 | BN43: b | BO43: 40.0 | BP43: 7.4 | BQ43: 259
B44: 80% | C44: 8 | D44: =(X44*($T$11^$Q44))*Watts*CF_Altit -> 5305 | E44: =ROUND(((D44/Watts)/(($S$9-$S$10)*1.163))*$E$14,IF($X$4=1,0,IF($X$4=2,2))) -> 456 | F44: =($Y$42*(E44/$E$14)^$Y$44)*$F$14 -> 4.39 | G44: =(Z44*($W$11^R44))*Watts*CF_Altit -> 894 | H44: =((G44/Watts)/(IF((237.3*LN((RH*EXP(17.27*(Tl_cool/(Tl_cool+237.3))))))/(17.27-LN((RH*EXP(17.27*(Tl_cool/(Tl_cool+237.3))))))<Tavg_cold,1,IF(1/(1+((2258*((0.622/(($Z$11/(1*611*EXP(17.27*(Tavg_cold/(Tavg_cold+237.3))))))-1)*1000-(0.622/(($Z$11/(RH*611*EXP(17.27*(Tl_cool/(Tl_cool+237.3))))))-1)*1000))/(1005*(Tavg_cold-Tl_cool))))*1.039+((-0.000729*$C44+0.001448)*(Tl_cool-Tavg_cold)+(0.016908*$C44-0.033574))*1.039>1,1,1/(1+((2258*((0.622/(($Z$11/(1*611*EXP(17.27*(Tavg_cold/(Tavg_cold+237.3))))))-1)*1000-(0.622/(($Z$11/(RH*611*EXP(17.27*(Tl_cool/(Tl_cool+237.3))))))-1)*1000))/(1005*(Tavg_cold-Tl_cool))))*1.039+((-0.000729*$C44+0.001448)*(Tl_cool-Tavg_cold)+(0.016908*$C44-0.033574))*1.039))))*Watts -> 894 | I44: =ROUND(((H44/Watts)/((Tr_cool-Tv_cool)*1.163))*$I$14,IF($X$4=1,0,IF($X$4=2,2))) -> 384 | J44: =($AA$42*(I44/$I$14)^$AA$44)*$J$14 -> 3.20 | K44: =L44-8 -> 39.0 | L44: 47.0 | M44: 13.1 | N44: =AD44*Cubics -> 352 | O44: =((($D44/Watts)/(((p_atm*0.028964)/(8.31447*(20+273.15)))*(($N44/3600)/Cubics)*(1005+1870*((0.622)/(((p_atm)/($E$12*Pvs_Heat_in))-1)))))+Tl_heat)*Celc1+Celc2 -> 64 | P44: =(Tl_cool-(($G44/Watts)/(1006*$N44*kgss)))*Celc1+Celc2 -> 19 | Q44: 1 | R44: 0.854 | S44: 0 | T44: 0 | U44: 0.854 | V44: 0 | W44: =(H44-G44)/H44 -> 0.0% | X44: 5304.864962 | Y44: 1.846625854 | Z44: 893.7730996 | AA44: 1.846625854 | AB44: 47.0 | AC44: 13.1 | AD44: 352 | BD44: 3695.38413 | BE44: 1.85702 | BF44: 871.5165312 | BG44: 1.927312081 | BH44: 47.0 | BI44: 13.1 | BJ44: 352 | BK44: 5304.864962 | BL44: 1.846625854 | BM44: 893.7730996 | BN44: =BL44 -> 1.846625854 | BO44: 47.0 | BP44: 13.1 | BQ44: 352
B45: 100% | C45: 10 | D45: =(X45*($T$11^$Q45))*Watts*CF_Altit -> 6343 | E45: =ROUND(((D45/Watts)/(($S$9-$S$10)*1.163))*$E$14,IF($X$4=1,0,IF($X$4=2,2))) -> 545 | F45: =($Y$42*(E45/$E$14)^$Y$44)*$F$14 -> 6.10 | G45: =(Z45*($W$11^R45))*Watts*CF_Altit -> 1082 | H45: =((G45/Watts)/(IF((237.3*LN((RH*EXP(17.27*(Tl_cool/(Tl_cool+237.3))))))/(17.27-LN((RH*EXP(17.27*(Tl_cool/(Tl_cool+237.3))))))<Tavg_cold,1,IF(1/(1+((2258*((0.622/(($Z$11/(1*611*EXP(17.27*(Tavg_cold/(Tavg_cold+237.3))))))-1)*1000-(0.622/(($Z$11/(RH*611*EXP(17.27*(Tl_cool/(Tl_cool+237.3))))))-1)*1000))/(1005*(Tavg_cold-Tl_cool))))*1.039+((-0.000729*$C45+0.001448)*(Tl_cool-Tavg_cold)+(0.016908*$C45-0.033574))*1.039>1,1,1/(1+((2258*((0.622/(($Z$11/(1*611*EXP(17.27*(Tavg_cold/(Tavg_cold+237.3))))))-1)*1000-(0.622/(($Z$11/(RH*611*EXP(17.27*(Tl_cool/(Tl_cool+237.3))))))-1)*1000))/(1005*(Tavg_cold-Tl_cool))))*1.039+((-0.000729*$C45+0.001448)*(Tl_cool-Tavg_cold)+(0.016908*$C45-0.033574))*1.039))))*Watts -> 1082 | I45: =ROUND(((H45/Watts)/((Tr_cool-Tv_cool)*1.163))*$I$14,IF($X$4=1,0,IF($X$4=2,2))) -> 465 | J45: =($AA$42*(I45/$I$14)^$AA$44)*$J$14 -> 4.55 | K45: =L45-8 -> 42.0 | L45: 50.0 | M45: 19.4 | N45: =AD45*Cubics -> 410 | O45: =((($D45/Watts)/(((p_atm*0.028964)/(8.31447*(20+273.15)))*(($N45/3600)/Cubics)*(1005+1870*((0.622)/(((p_atm)/($E$12*Pvs_Heat_in))-1)))))+Tl_heat)*Celc1+Celc2 -> 65 | P45: =(Tl_cool-(($G45/Watts)/(1006*$N45*kgss)))*Celc1+Celc2 -> 19 | Q45: 1 | R45: 0.771 | S45: 0 | T45: 0 | U45: 0.771 | V45: 0 | W45: =(H45-G45)/H45 -> 0.0% | X45: 6342.68752 | Y45: 0 | Z45: 1081.723336 | AA45: 0 | AB45: 50.0 | AC45: 19.4 | AD45: 410 | BD45: 4194.95715 | BF45: 1065.197531 | BH45: 50.0 | BI45: 19.4 | BJ45: 410 | BK45: 6342.68752 | BM45: 1081.723336 | BO45: 50.0 | BP45: 19.4 | BQ45: 410
B46: =IF($S$7=1,NL!A45,IF(cal!$S$7=2,EN!A45,IF(cal!$S$7=3,DE!A45,IF(cal!$S$7=4,FR!A45,IF(cal!$S$7=5,NR!A45,IF(cal!$S$7=6,SP!A45,IF(cal!$S$7=7,SW!A45,IF(cal!$S$7=8,TS!A45,IF(cal!$S$7=9,ExtraTaal1!A45,IF(cal!$S$7=10,ExtraTaal2!A45,IF(cal!$S$7=11,ExtraTaal3!A45,))))))))))) -> Clima Canal height 13 cm width 32 cm length 200 cm (Type 6) | C46: =IF($S$7=1,NL!B45,IF(cal!$S$7=2,EN!B45,IF(cal!$S$7=3,DE!B45,IF(cal!$S$7=4,FR!B45,IF(cal!$S$7=5,NR!B45,IF(cal!$S$7=6,SP!B45,IF(cal!$S$7=7,SW!B45,IF(cal!$S$7=8,TS!B45,IF(cal!$S$7=9,ExtraTaal1!B45,IF(cal!$S$7=10,ExtraTaal2!B45,IF(cal!$S$7=11,ExtraTaal3!B45,))))))))))) -> 0 | D46: =IF($S$7=1,NL!C45,IF(cal!$S$7=2,EN!C45,IF(cal!$S$7=3,DE!C45,IF(cal!$S$7=4,FR!C45,IF(cal!$S$7=5,NR!C45,IF(cal!$S$7=6,SP!C45,IF(cal!$S$7=7,SW!C45,IF(cal!$S$7=8,TS!C45,IF(cal!$S$7=9,ExtraTaal1!C45,IF(cal!$S$7=10,ExtraTaal2!C45,IF(cal!$S$7=11,ExtraTaal3!C45,))))))))))) -> 0 | E46: =IF($S$7=1,NL!D45,IF(cal!$S$7=2,EN!D45,IF(cal!$S$7=3,DE!D45,IF(cal!$S$7=4,FR!D45,IF(cal!$S$7=5,NR!D45,IF(cal!$S$7=6,SP!D45,IF(cal!$S$7=7,SW!D45,IF(cal!$S$7=8,TS!D45,IF(cal!$S$7=9,ExtraTaal1!D45,IF(cal!$S$7=10,ExtraTaal2!D45,IF(cal!$S$7=11,ExtraTaal3!D45,))))))))))) -> 0 | F46: =IF($S$7=1,NL!E45,IF(cal!$S$7=2,EN!E45,IF(cal!$S$7=3,DE!E45,IF(cal!$S$7=4,FR!E45,IF(cal!$S$7=5,NR!E45,IF(cal!$S$7=6,SP!E45,IF(cal!$S$7=7,SW!E45,IF(cal!$S$7=8,TS!E45,IF(cal!$S$7=9,ExtraTaal1!E45,IF(cal!$S$7=10,ExtraTaal2!E45,IF(cal!$S$7=11,ExtraTaal3!E45,))))))))))) -> 0 | G46: =IF($S$7=1,NL!F45,IF(cal!$S$7=2,EN!F45,IF(cal!$S$7=3,DE!F45,IF(cal!$S$7=4,FR!F45,IF(cal!$S$7=5,NR!F45,IF(cal!$S$7=6,SP!F45,IF(cal!$S$7=7,SW!F45,IF(cal!$S$7=8,TS!F45,IF(cal!$S$7=9,ExtraTaal1!F45,IF(cal!$S$7=10,ExtraTaal2!F45,IF(cal!$S$7=11,ExtraTaal3!F45,))))))))))) -> 0 | H46: =IF($S$7=1,NL!G45,IF(cal!$S$7=2,EN!G45,IF(cal!$S$7=3,DE!G45,IF(cal!$S$7=4,FR!G45,IF(cal!$S$7=5,NR!G45,IF(cal!$S$7=6,SP!G45,IF(cal!$S$7=7,SW!G45,IF(cal!$S$7=8,TS!G45,IF(cal!$S$7=9,ExtraTaal1!G45,IF(cal!$S$7=10,ExtraTaal2!G45,IF(cal!$S$7=11,ExtraTaal3!G45,))))))))))) -> 0 | I46: =IF($S$7=1,NL!H45,IF(cal!$S$7=2,EN!H45,IF(cal!$S$7=3,DE!H45,IF(cal!$S$7=4,FR!H45,IF(cal!$S$7=5,NR!H45,IF(cal!$S$7=6,SP!H45,IF(cal!$S$7=7,SW!H45,IF(cal!$S$7=8,TS!H45,IF(cal!$S$7=9,ExtraTaal1!H45,IF(cal!$S$7=10,ExtraTaal2!H45,IF(cal!$S$7=11,ExtraTaal3!H45,))))))))))) -> 0 | J46: =IF($S$7=1,NL!I45,IF(cal!$S$7=2,EN!I45,IF(cal!$S$7=3,DE!I45,IF(cal!$S$7=4,FR!I45,IF(cal!$S$7=5,NR!I45,IF(cal!$S$7=6,SP!I45,IF(cal!$S$7=7,SW!I45,IF(cal!$S$7=8,TS!I45,IF(cal!$S$7=9,ExtraTaal1!I45,IF(cal!$S$7=10,ExtraTaal2!I45,IF(cal!$S$7=11,ExtraTaal3!I45,))))))))))) -> 0 | K46: =IF($S$7=1,NL!J45,IF(cal!$S$7=2,EN!J45,IF(cal!$S$7=3,DE!J45,IF(cal!$S$7=4,FR!J45,IF(cal!$S$7=5,NR!J45,IF(cal!$S$7=6,SP!J45,IF(cal!$S$7=7,SW!J45,IF(cal!$S$7=8,TS!J45,IF(cal!$S$7=9,ExtraTaal1!J45,IF(cal!$S$7=10,ExtraTaal2!J45,IF(cal!$S$7=11,ExtraTaal3!J45,))))))))))) -> 0 | L46: =IF($S$7=1,NL!K45,IF(cal!$S$7=2,EN!K45,IF(cal!$S$7=3,DE!K45,IF(cal!$S$7=4,FR!K45,IF(cal!$S$7=5,NR!K45,IF(cal!$S$7=6,SP!K45,IF(cal!$S$7=7,SW!K45,IF(cal!$S$7=8,TS!K45,IF(cal!$S$7=9,ExtraTaal1!K45,IF(cal!$S$7=10,ExtraTaal2!K45,IF(cal!$S$7=11,ExtraTaal3!K45,))))))))))) -> 0 | M46: =IF($S$7=1,NL!L45,IF(cal!$S$7=2,EN!L45,IF(cal!$S$7=3,DE!L45,IF(cal!$S$7=4,FR!L45,IF(cal!$S$7=5,NR!L45,IF(cal!$S$7=6,SP!L45,IF(cal!$S$7=7,SW!L45,IF(cal!$S$7=8,TS!L45,IF(cal!$S$7=9,ExtraTaal1!L45,IF(cal!$S$7=10,ExtraTaal2!L45,IF(cal!$S$7=11,ExtraTaal3!L45,))))))))))) -> 0 | N46: =IF($S$7=1,NL!M45,IF(cal!$S$7=2,EN!M45,IF(cal!$S$7=3,DE!M45,IF(cal!$S$7=4,FR!M45,IF(cal!$S$7=5,NR!M45,IF(cal!$S$7=6,SP!M45,IF(cal!$S$7=7,SW!M45,IF(cal!$S$7=8,TS!M45,IF(cal!$S$7=9,ExtraTaal1!M45,IF(cal!$S$7=10,ExtraTaal2!M45,IF(cal!$S$7=11,ExtraTaal3!M45,))))))))))) -> 0 | O46: =IF($S$7=1,NL!N45,IF(cal!$S$7=2,EN!N45,IF(cal!$S$7=3,DE!N45,IF(cal!$S$7=4,FR!N45,IF(cal!$S$7=5,NR!N45,IF(cal!$S$7=6,SP!N45,IF(cal!$S$7=7,SW!N45,IF(cal!$S$7=8,TS!N45,IF(cal!$S$7=9,ExtraTaal1!N45,IF(cal!$S$7=10,ExtraTaal2!N45,IF(cal!$S$7=11,ExtraTaal3!N45,))))))))))) -> 0 | P46: =IF($S$7=1,NL!O45,IF(cal!$S$7=2,EN!O45,IF(cal!$S$7=3,DE!O45,IF(cal!$S$7=4,FR!O45,IF(cal!$S$7=5,NR!O45,IF(cal!$S$7=6,SP!O45,IF(cal!$S$7=7,SW!O45,IF(cal!$S$7=8,TS!O45,IF(cal!$S$7=9,ExtraTaal1!O45,IF(cal!$S$7=10,ExtraTaal2!O45,IF(cal!$S$7=11,ExtraTaal3!O45,))))))))))) -> 0 | Q46: n-value | R46: n-value | S46: n-value | T46: n-value | U46: n-value | V46: n-value | X46: H | Y46: 13 | Z46: B | AA46: 32 | AB46: L | AC46: 170 | AD46: 0 | BD46: H | BE46: =BE22 -> 13 | BF46: B | BG46: =BG22 -> 32 | BH46: L | BI46: =IF($X$4=1,170,170/2.54) -> 170 | BK46: H | BL46: =BL22 -> 13 | BM46: B | BN46: =BN22 -> 32 | BO46: L | BP46: =IF($X$4=1,170,170/2.54) -> 170
B47: 20% | C47: 2 | D47: =(X47*($T$11^$Q47))*Watts*CF_Altit -> 1527 | E47: =ROUND(((D47/Watts)/(($S$9-$S$10)*1.163))*$E$14,IF($X$4=1,0,IF($X$4=2,2))) -> 131 | F47: =($Y$48*(E47/$E$14)^$Y$50)*$F$14 -> 0.50 | G47: =(Z47*($W$11^R47))*Watts*CF_Altit -> 328 | H47: =((G47/Watts)/(IF((237.3*LN((RH*EXP(17.27*(Tl_cool/(Tl_cool+237.3))))))/(17.27-LN((RH*EXP(17.27*(Tl_cool/(Tl_cool+237.3))))))<Tavg_cold,1,IF(1/(1+((2258*((0.622/(($Z$11/(1*611*EXP(17.27*(Tavg_cold/(Tavg_cold+237.3))))))-1)*1000-(0.622/(($Z$11/(RH*611*EXP(17.27*(Tl_cool/(Tl_cool+237.3))))))-1)*1000))/(1005*(Tavg_cold-Tl_cool))))*1.039+((-0.000729*$C47+0.001448)*(Tl_cool-Tavg_cold)+(0.016908*$C47-0.033574))*1.039>1,1,1/(1+((2258*((0.622/(($Z$11/(1*611*EXP(17.27*(Tavg_cold/(Tavg_cold+237.3))))))-1)*1000-(0.622/(($Z$11/(RH*611*EXP(17.27*(Tl_cool/(Tl_cool+237.3))))))-1)*1000))/(1005*(Tavg_cold-Tl_cool))))*1.039+((-0.000729*$C47+0.001448)*(Tl_cool-Tavg_cold)+(0.016908*$C47-0.033574))*1.039))))*Watts -> 328 | I47: =ROUND(((H47/Watts)/((Tr_cool-Tv_cool)*1.163))*$I$14,IF($X$4=1,0,IF($X$4=2,2))) -> 141 | J47: =($AA$48*(I47/$I$14)^$AA$50)*$J$14 -> 0.57 | K47: =L47-8 -> 23.0 | L47: =AB47 -> 31.0 | M47: 2.4 | N47: =AD47*Cubics -> 93 | O47: =((($D47/Watts)/(((p_atm*0.028964)/(8.31447*(20+273.15)))*(($N47/3600)/Cubics)*(1005+1870*((0.622)/(((p_atm)/($E$12*Pvs_Heat_in))-1)))))+Tl_heat)*Celc1+Celc2 -> 68 | P47: =(Tl_cool-(($G47/Watts)/(1006*$N47*kgss)))*Celc1+Celc2 -> 17 | Q47: 1 | R47: 0.781 | S47: 0 | T47: 0 | U47: 0.781 | V47: 0 | W47: =(H47-G47)/H47 -> 0.0% | X47: 1526.557351 | Y47: a | Z47: 328.4952779 | AA47: a | AB47: 31.0 | AC47: 2.4 | AD47: 93 | BD47: 1309.59903 | BE47: a | BF47: 315.4012992 | BG47: a | BH47: 31.0 | BI47: 2.4 | BJ47: 93 | BK47: 1526.557351 | BL47: a | BM47: 328.4952779 | BN47: a | BO47: =BH47 -> 31.0 | BP47: 2.4 | BQ47: 93
B48: 40% | C48: 4 | D48: =(X48*($T$11^$Q48))*Watts*CF_Altit -> 3376 | E48: =ROUND(((D48/Watts)/(($S$9-$S$10)*1.163))*$E$14,IF($X$4=1,0,IF($X$4=2,2))) -> 290 | F48: =($Y$48*(E48/$E$14)^$Y$50)*$F$14 -> 2.15 | G48: =(Z48*($W$11^R48))*Watts*CF_Altit -> 596 | H48: =((G48/Watts)/(IF((237.3*LN((RH*EXP(17.27*(Tl_cool/(Tl_cool+237.3))))))/(17.27-LN((RH*EXP(17.27*(Tl_cool/(Tl_cool+237.3))))))<Tavg_cold,1,IF(1/(1+((2258*((0.622/(($Z$11/(1*611*EXP(17.27*(Tavg_cold/(Tavg_cold+237.3))))))-1)*1000-(0.622/(($Z$11/(RH*611*EXP(17.27*(Tl_cool/(Tl_cool+237.3))))))-1)*1000))/(1005*(Tavg_cold-Tl_cool))))*1.039+((-0.000729*$C48+0.001448)*(Tl_cool-Tavg_cold)+(0.016908*$C48-0.033574))*1.039>1,1,1/(1+((2258*((0.622/(($Z$11/(1*611*EXP(17.27*(Tavg_cold/(Tavg_cold+237.3))))))-1)*1000-(0.622/(($Z$11/(RH*611*EXP(17.27*(Tl_cool/(Tl_cool+237.3))))))-1)*1000))/(1005*(Tavg_cold-Tl_cool))))*1.039+((-0.000729*$C48+0.001448)*(Tl_cool-Tavg_cold)+(0.016908*$C48-0.033574))*1.039))))*Watts -> 596 | I48: =ROUND(((H48/Watts)/((Tr_cool-Tv_cool)*1.163))*$I$14,IF($X$4=1,0,IF($X$4=2,2))) -> 256 | J48: =($AA$48*(I48/$I$14)^$AA$50)*$J$14 -> 1.71 | K48: =L48-8 -> 28.5 | L48: 36.5 | M48: 4.2 | N48: =AD48*Cubics -> 199 | O48: =((($D48/Watts)/(((p_atm*0.028964)/(8.31447*(20+273.15)))*(($N48/3600)/Cubics)*(1005+1870*((0.622)/(((p_atm)/($E$12*Pvs_Heat_in))-1)))))+Tl_heat)*Celc1+Celc2 -> 70 | P48: =(Tl_cool-(($G48/Watts)/(1006*$N48*kgss)))*Celc1+Celc2 -> 18 | Q48: 1 | R48: 0.859 | S48: 0 | T48: 0 | U48: 0.859 | V48: 0 | W48: =(H48-G48)/H48 -> 0.0% | X48: 3376.242844 | Y48: 6.501910454e-05 | Z48: 596.4650101 | AA48: 6.501910454e-05 | AB48: 36.5 | AC48: 4.2 | AD48: 199 | BD48: 2611.78497 | BE48: =0.0000825244 -> 8.25244e-05 | BF48: 572.7797109 | BG48: 1.782133045e-05 | BH48: 36.5 | BI48: 4.2 | BJ48: 199 | BK48: 3376.242844 | BL48: 6.501910454e-05 | BM48: 596.4650101 | BN48: =BL48 -> 6.501910454e-05 | BO48: 36.5 | BP48: 4.2 | BQ48: 199
B49: 60% | C49: 6 | D49: =(X49*($T$11^$Q49))*Watts*CF_Altit -> 5033 | E49: =ROUND(((D49/Watts)/(($S$9-$S$10)*1.163))*$E$14,IF($X$4=1,0,IF($X$4=2,2))) -> 433 | F49: =($Y$48*(E49/$E$14)^$Y$50)*$F$14 -> 4.48 | G49: =(Z49*($W$11^R49))*Watts*CF_Altit -> 852 | H49: =((G49/Watts)/(IF((237.3*LN((RH*EXP(17.27*(Tl_cool/(Tl_cool+237.3))))))/(17.27-LN((RH*EXP(17.27*(Tl_cool/(Tl_cool+237.3))))))<Tavg_cold,1,IF(1/(1+((2258*((0.622/(($Z$11/(1*611*EXP(17.27*(Tavg_cold/(Tavg_cold+237.3))))))-1)*1000-(0.622/(($Z$11/(RH*611*EXP(17.27*(Tl_cool/(Tl_cool+237.3))))))-1)*1000))/(1005*(Tavg_cold-Tl_cool))))*1.039+((-0.000729*$C49+0.001448)*(Tl_cool-Tavg_cold)+(0.016908*$C49-0.033574))*1.039>1,1,1/(1+((2258*((0.622/(($Z$11/(1*611*EXP(17.27*(Tavg_cold/(Tavg_cold+237.3))))))-1)*1000-(0.622/(($Z$11/(RH*611*EXP(17.27*(Tl_cool/(Tl_cool+237.3))))))-1)*1000))/(1005*(Tavg_cold-Tl_cool))))*1.039+((-0.000729*$C49+0.001448)*(Tl_cool-Tavg_cold)+(0.016908*$C49-0.033574))*1.039))))*Watts -> 852 | I49: =ROUND(((H49/Watts)/((Tr_cool-Tv_cool)*1.163))*$I$14,IF($X$4=1,0,IF($X$4=2,2))) -> 366 | J49: =($AA$48*(I49/$I$14)^$AA$50)*$J$14 -> 3.29 | K49: =L49-8 -> 32.5 | L49: 40.5 | M49: 7.4 | N49: =AD49*Cubics -> 307 | O49: =((($D49/Watts)/(((p_atm*0.028964)/(8.31447*(20+273.15)))*(($N49/3600)/Cubics)*(1005+1870*((0.622)/(((p_atm)/($E$12*Pvs_Heat_in))-1)))))+Tl_heat)*Celc1+Celc2 -> 68 | P49: =(Tl_cool-(($G49/Watts)/(1006*$N49*kgss)))*Celc1+Celc2 -> 19 | Q49: 1 | R49: 0.883 | S49: 0 | T49: 0 | U49: 0.883 | V49: 0 | W49: =(H49-G49)/H49 -> 0.0% | X49: 5033.046876 | Y49: b | Z49: 851.8402465 | AA49: b | AB49: 40.5 | AC49: 7.4 | AD49: 307 | BD49: 3683.85447 | BE49: b | BF49: 823.4335921 | BG49: b | BH49: 40.5 | BI49: 7.4 | BJ49: 307 | BK49: 5033.046876 | BL49: b | BM49: 851.8402465 | BN49: b | BO49: 40.5 | BP49: 7.4 | BQ49: 307
B50: 80% | C50: 8 | D50: =(X50*($T$11^$Q50))*Watts*CF_Altit -> 6497 | E50: =ROUND(((D50/Watts)/(($S$9-$S$10)*1.163))*$E$14,IF($X$4=1,0,IF($X$4=2,2))) -> 559 | F50: =($Y$48*(E50/$E$14)^$Y$50)*$F$14 -> 7.16 | G50: =(Z50*($W$11^R50))*Watts*CF_Altit -> 1095 | H50: =((G50/Watts)/(IF((237.3*LN((RH*EXP(17.27*(Tl_cool/(Tl_cool+237.3))))))/(17.27-LN((RH*EXP(17.27*(Tl_cool/(Tl_cool+237.3))))))<Tavg_cold,1,IF(1/(1+((2258*((0.622/(($Z$11/(1*611*EXP(17.27*(Tavg_cold/(Tavg_cold+237.3))))))-1)*1000-(0.622/(($Z$11/(RH*611*EXP(17.27*(Tl_cool/(Tl_cool+237.3))))))-1)*1000))/(1005*(Tavg_cold-Tl_cool))))*1.039+((-0.000729*$C50+0.001448)*(Tl_cool-Tavg_cold)+(0.016908*$C50-0.033574))*1.039>1,1,1/(1+((2258*((0.622/(($Z$11/(1*611*EXP(17.27*(Tavg_cold/(Tavg_cold+237.3))))))-1)*1000-(0.622/(($Z$11/(RH*611*EXP(17.27*(Tl_cool/(Tl_cool+237.3))))))-1)*1000))/(1005*(Tavg_cold-Tl_cool))))*1.039+((-0.000729*$C50+0.001448)*(Tl_cool-Tavg_cold)+(0.016908*$C50-0.033574))*1.039))))*Watts -> 1095 | I50: =ROUND(((H50/Watts)/((Tr_cool-Tv_cool)*1.163))*$I$14,IF($X$4=1,0,IF($X$4=2,2))) -> 471 | J50: =($AA$48*(I50/$I$14)^$AA$50)*$J$14 -> 5.23 | K50: =L50-8 -> 39.5 | L50: 47.5 | M50: 13.6 | N50: =AD50*Cubics -> 403 | O50: =((($D50/Watts)/(((p_atm*0.028964)/(8.31447*(20+273.15)))*(($N50/3600)/Cubics)*(1005+1870*((0.622)/(((p_atm)/($E$12*Pvs_Heat_in))-1)))))+Tl_heat)*Celc1+Celc2 -> 67 | P50: =(Tl_cool-(($G50/Watts)/(1006*$N50*kgss)))*Celc1+Celc2 -> 19 | Q50: 1 | R50: 0.854 | S50: 0 | T50: 0 | U50: 0.854 | V50: 0 | W50: =(H50-G50)/H50 -> 0.0% | X50: 6496.969447 | Y50: 1.835111579 | Z50: 1094.620987 | AA50: 1.835111579 | AB50: 47.5 | AC50: 13.6 | AD50: 403 | BD50: 4525.80753 | BE50: 1.84541 | BF50: 1067.362943 | BG50: 1.92086369 | BH50: 47.5 | BI50: 13.6 | BJ50: 403 | BK50: 6496.969447 | BL50: 1.835111579 | BM50: 1094.620987 | BN50: =BL50 -> 1.835111579 | BO50: 47.5 | BP50: 13.6 | BQ50: 403
B51: 100% | C51: 10 | D51: =(X51*($T$11^$Q51))*Watts*CF_Altit -> 7768 | E51: =ROUND(((D51/Watts)/(($S$9-$S$10)*1.163))*$E$14,IF($X$4=1,0,IF($X$4=2,2))) -> 668 | F51: =($Y$48*(E51/$E$14)^$Y$50)*$F$14 -> 9.93 | G51: =(Z51*($W$11^R51))*Watts*CF_Altit -> 1325 | H51: =((G51/Watts)/(IF((237.3*LN((RH*EXP(17.27*(Tl_cool/(Tl_cool+237.3))))))/(17.27-LN((RH*EXP(17.27*(Tl_cool/(Tl_cool+237.3))))))<Tavg_cold,1,IF(1/(1+((2258*((0.622/(($Z$11/(1*611*EXP(17.27*(Tavg_cold/(Tavg_cold+237.3))))))-1)*1000-(0.622/(($Z$11/(RH*611*EXP(17.27*(Tl_cool/(Tl_cool+237.3))))))-1)*1000))/(1005*(Tavg_cold-Tl_cool))))*1.039+((-0.000729*$C51+0.001448)*(Tl_cool-Tavg_cold)+(0.016908*$C51-0.033574))*1.039>1,1,1/(1+((2258*((0.622/(($Z$11/(1*611*EXP(17.27*(Tavg_cold/(Tavg_cold+237.3))))))-1)*1000-(0.622/(($Z$11/(RH*611*EXP(17.27*(Tl_cool/(Tl_cool+237.3))))))-1)*1000))/(1005*(Tavg_cold-Tl_cool))))*1.039+((-0.000729*$C51+0.001448)*(Tl_cool-Tavg_cold)+(0.016908*$C51-0.033574))*1.039))))*Watts -> 1325 | I51: =ROUND(((H51/Watts)/((Tr_cool-Tv_cool)*1.163))*$I$14,IF($X$4=1,0,IF($X$4=2,2))) -> 570 | J51: =($AA$48*(I51/$I$14)^$AA$50)*$J$14 -> 7.42 | K51: =L51-8 -> 42.5 | L51: 50.5 | M51: 20.9 | N51: =AD51*Cubics -> 475 | O51: =((($D51/Watts)/(((p_atm*0.028964)/(8.31447*(20+273.15)))*(($N51/3600)/Cubics)*(1005+1870*((0.622)/(((p_atm)/($E$12*Pvs_Heat_in))-1)))))+Tl_heat)*Celc1+Celc2 -> 68 | P51: =(Tl_cool-(($G51/Watts)/(1006*$N51*kgss)))*Celc1+Celc2 -> 19 | Q51: 1 | R51: 0.771 | S51: 0 | T51: 0 | U51: 0.771 | V51: 0 | W51: =(H51-G51)/H51 -> 0.0% | X51: 7768.010558 | Y51: 0 | Z51: 1324.807232 | AA51: 0 | AB51: 50.5 | AC51: 20.9 | AD51: 475 | BD51: 5137.64415 | BF51: 1304.567763 | BH51: 50.5 | BI51: 20.9 | BJ51: 475 | BK51: 7768.010558 | BM51: 1324.807232 | BO51: 50.5 | BP51: 20.9 | BQ51: 475
B52: =IF($S$7=1,NL!A51,IF(cal!$S$7=2,EN!A51,IF(cal!$S$7=3,DE!A51,IF(cal!$S$7=4,FR!A51,IF(cal!$S$7=5,NR!A51,IF(cal!$S$7=6,SP!A51,IF(cal!$S$7=7,SW!A51,IF(cal!$S$7=8,TS!A51,IF(cal!$S$7=9,ExtraTaal1!A51,IF(cal!$S$7=10,ExtraTaal2!A51,IF(cal!$S$7=11,ExtraTaal3!A51,))))))))))) -> Clima Canal height 13 cm width 32 cm length 230 cm (Type 7) | C52: =IF($S$7=1,NL!B51,IF(cal!$S$7=2,EN!B51,IF(cal!$S$7=3,DE!B51,IF(cal!$S$7=4,FR!B51,IF(cal!$S$7=5,NR!B51,IF(cal!$S$7=6,SP!B51,IF(cal!$S$7=7,SW!B51,IF(cal!$S$7=8,TS!B51,IF(cal!$S$7=9,ExtraTaal1!B51,IF(cal!$S$7=10,ExtraTaal2!B51,IF(cal!$S$7=11,ExtraTaal3!B51,))))))))))) -> 0 | D52: =IF($S$7=1,NL!C51,IF(cal!$S$7=2,EN!C51,IF(cal!$S$7=3,DE!C51,IF(cal!$S$7=4,FR!C51,IF(cal!$S$7=5,NR!C51,IF(cal!$S$7=6,SP!C51,IF(cal!$S$7=7,SW!C51,IF(cal!$S$7=8,TS!C51,IF(cal!$S$7=9,ExtraTaal1!C51,IF(cal!$S$7=10,ExtraTaal2!C51,IF(cal!$S$7=11,ExtraTaal3!C51,))))))))))) -> 0 | E52: =IF($S$7=1,NL!D51,IF(cal!$S$7=2,EN!D51,IF(cal!$S$7=3,DE!D51,IF(cal!$S$7=4,FR!D51,IF(cal!$S$7=5,NR!D51,IF(cal!$S$7=6,SP!D51,IF(cal!$S$7=7,SW!D51,IF(cal!$S$7=8,TS!D51,IF(cal!$S$7=9,ExtraTaal1!D51,IF(cal!$S$7=10,ExtraTaal2!D51,IF(cal!$S$7=11,ExtraTaal3!D51,))))))))))) -> 0 | F52: =IF($S$7=1,NL!E51,IF(cal!$S$7=2,EN!E51,IF(cal!$S$7=3,DE!E51,IF(cal!$S$7=4,FR!E51,IF(cal!$S$7=5,NR!E51,IF(cal!$S$7=6,SP!E51,IF(cal!$S$7=7,SW!E51,IF(cal!$S$7=8,TS!E51,IF(cal!$S$7=9,ExtraTaal1!E51,IF(cal!$S$7=10,ExtraTaal2!E51,IF(cal!$S$7=11,ExtraTaal3!E51,))))))))))) -> 0 | G52: =IF($S$7=1,NL!F51,IF(cal!$S$7=2,EN!F51,IF(cal!$S$7=3,DE!F51,IF(cal!$S$7=4,FR!F51,IF(cal!$S$7=5,NR!F51,IF(cal!$S$7=6,SP!F51,IF(cal!$S$7=7,SW!F51,IF(cal!$S$7=8,TS!F51,IF(cal!$S$7=9,ExtraTaal1!F51,IF(cal!$S$7=10,ExtraTaal2!F51,IF(cal!$S$7=11,ExtraTaal3!F51,))))))))))) -> 0 | H52: =IF($S$7=1,NL!G51,IF(cal!$S$7=2,EN!G51,IF(cal!$S$7=3,DE!G51,IF(cal!$S$7=4,FR!G51,IF(cal!$S$7=5,NR!G51,IF(cal!$S$7=6,SP!G51,IF(cal!$S$7=7,SW!G51,IF(cal!$S$7=8,TS!G51,IF(cal!$S$7=9,ExtraTaal1!G51,IF(cal!$S$7=10,ExtraTaal2!G51,IF(cal!$S$7=11,ExtraTaal3!G51,))))))))))) -> 0 | I52: =IF($S$7=1,NL!H51,IF(cal!$S$7=2,EN!H51,IF(cal!$S$7=3,DE!H51,IF(cal!$S$7=4,FR!H51,IF(cal!$S$7=5,NR!H51,IF(cal!$S$7=6,SP!H51,IF(cal!$S$7=7,SW!H51,IF(cal!$S$7=8,TS!H51,IF(cal!$S$7=9,ExtraTaal1!H51,IF(cal!$S$7=10,ExtraTaal2!H51,IF(cal!$S$7=11,ExtraTaal3!H51,))))))))))) -> 0 | J52: =IF($S$7=1,NL!I51,IF(cal!$S$7=2,EN!I51,IF(cal!$S$7=3,DE!I51,IF(cal!$S$7=4,FR!I51,IF(cal!$S$7=5,NR!I51,IF(cal!$S$7=6,SP!I51,IF(cal!$S$7=7,SW!I51,IF(cal!$S$7=8,TS!I51,IF(cal!$S$7=9,ExtraTaal1!I51,IF(cal!$S$7=10,ExtraTaal2!I51,IF(cal!$S$7=11,ExtraTaal3!I51,))))))))))) -> 0 | K52: =IF($S$7=1,NL!J51,IF(cal!$S$7=2,EN!J51,IF(cal!$S$7=3,DE!J51,IF(cal!$S$7=4,FR!J51,IF(cal!$S$7=5,NR!J51,IF(cal!$S$7=6,SP!J51,IF(cal!$S$7=7,SW!J51,IF(cal!$S$7=8,TS!J51,IF(cal!$S$7=9,ExtraTaal1!J51,IF(cal!$S$7=10,ExtraTaal2!J51,IF(cal!$S$7=11,ExtraTaal3!J51,))))))))))) -> 0 | L52: =IF($S$7=1,NL!K51,IF(cal!$S$7=2,EN!K51,IF(cal!$S$7=3,DE!K51,IF(cal!$S$7=4,FR!K51,IF(cal!$S$7=5,NR!K51,IF(cal!$S$7=6,SP!K51,IF(cal!$S$7=7,SW!K51,IF(cal!$S$7=8,TS!K51,IF(cal!$S$7=9,ExtraTaal1!K51,IF(cal!$S$7=10,ExtraTaal2!K51,IF(cal!$S$7=11,ExtraTaal3!K51,))))))))))) -> 0 | M52: =IF($S$7=1,NL!L51,IF(cal!$S$7=2,EN!L51,IF(cal!$S$7=3,DE!L51,IF(cal!$S$7=4,FR!L51,IF(cal!$S$7=5,NR!L51,IF(cal!$S$7=6,SP!L51,IF(cal!$S$7=7,SW!L51,IF(cal!$S$7=8,TS!L51,IF(cal!$S$7=9,ExtraTaal1!L51,IF(cal!$S$7=10,ExtraTaal2!L51,IF(cal!$S$7=11,ExtraTaal3!L51,))))))))))) -> 0 | N52: =IF($S$7=1,NL!M51,IF(cal!$S$7=2,EN!M51,IF(cal!$S$7=3,DE!M51,IF(cal!$S$7=4,FR!M51,IF(cal!$S$7=5,NR!M51,IF(cal!$S$7=6,SP!M51,IF(cal!$S$7=7,SW!M51,IF(cal!$S$7=8,TS!M51,IF(cal!$S$7=9,ExtraTaal1!M51,IF(cal!$S$7=10,ExtraTaal2!M51,IF(cal!$S$7=11,ExtraTaal3!M51,))))))))))) -> 0 | O52: =IF($S$7=1,NL!N51,IF(cal!$S$7=2,EN!N51,IF(cal!$S$7=3,DE!N51,IF(cal!$S$7=4,FR!N51,IF(cal!$S$7=5,NR!N51,IF(cal!$S$7=6,SP!N51,IF(cal!$S$7=7,SW!N51,IF(cal!$S$7=8,TS!N51,IF(cal!$S$7=9,ExtraTaal1!N51,IF(cal!$S$7=10,ExtraTaal2!N51,IF(cal!$S$7=11,ExtraTaal3!N51,))))))))))) -> 0 | P52: =IF($S$7=1,NL!O51,IF(cal!$S$7=2,EN!O51,IF(cal!$S$7=3,DE!O51,IF(cal!$S$7=4,FR!O51,IF(cal!$S$7=5,NR!O51,IF(cal!$S$7=6,SP!O51,IF(cal!$S$7=7,SW!O51,IF(cal!$S$7=8,TS!O51,IF(cal!$S$7=9,ExtraTaal1!O51,IF(cal!$S$7=10,ExtraTaal2!O51,IF(cal!$S$7=11,ExtraTaal3!O51,))))))))))) -> 0 | Q52: n-value | R52: n-value | S52: n-value | T52: n-value | U52: n-value | V52: n-value | X52: H | Y52: 13 | Z52: B | AA52: 32 | AB52: L | AC52: 200 | AD52: 0 | BD52: H | BE52: =BE22 -> 13 | BF52: B | BG52: =BG22 -> 32 | BH52: L | BI52: =IF($X$4=1,200,200/2.54) -> 200 | BK52: H | BL52: =BL22 -> 13 | BM52: B | BN52: =BN22 -> 32 | BO52: L | BP52: =IF($X$4=1,200,200/2.54) -> 200
B53: 20% | C53: 2 | D53: =(X53*($T$11^$Q53))*Watts*CF_Altit -> 1807 | E53: =ROUND(((D53/Watts)/(($S$9-$S$10)*1.163))*$E$14,IF($X$4=1,0,IF($X$4=2,2))) -> 155 | F53: =($Y$54*(E53/$E$14)^$Y$56)*$F$14 -> 0.76 | G53: =(Z53*($W$11^R53))*Watts*CF_Altit -> 389 | H53: =((G53/Watts)/(IF((237.3*LN((RH*EXP(17.27*(Tl_cool/(Tl_cool+237.3))))))/(17.27-LN((RH*EXP(17.27*(Tl_cool/(Tl_cool+237.3))))))<Tavg_cold,1,IF(1/(1+((2258*((0.622/(($Z$11/(1*611*EXP(17.27*(Tavg_cold/(Tavg_cold+237.3))))))-1)*1000-(0.622/(($Z$11/(RH*611*EXP(17.27*(Tl_cool/(Tl_cool+237.3))))))-1)*1000))/(1005*(Tavg_cold-Tl_cool))))*1.039+((-0.000729*$C53+0.001448)*(Tl_cool-Tavg_cold)+(0.016908*$C53-0.033574))*1.039>1,1,1/(1+((2258*((0.622/(($Z$11/(1*611*EXP(17.27*(Tavg_cold/(Tavg_cold+237.3))))))-1)*1000-(0.622/(($Z$11/(RH*611*EXP(17.27*(Tl_cool/(Tl_cool+237.3))))))-1)*1000))/(1005*(Tavg_cold-Tl_cool))))*1.039+((-0.000729*$C53+0.001448)*(Tl_cool-Tavg_cold)+(0.016908*$C53-0.033574))*1.039))))*Watts -> 389 | I53: =ROUND(((H53/Watts)/((Tr_cool-Tv_cool)*1.163))*$I$14,IF($X$4=1,0,IF($X$4=2,2))) -> 167 | J53: =($AA$54*(I53/$I$14)^$AA$56)*$J$14 -> 0.87 | K53: =L53-8 -> 23.0 | L53: =AB53 -> 31.0 | M53: 2.8 | N53: =AD53*Cubics -> 98 | O53: =((($D53/Watts)/(((p_atm*0.028964)/(8.31447*(20+273.15)))*(($N53/3600)/Cubics)*(1005+1870*((0.622)/(((p_atm)/($E$12*Pvs_Heat_in))-1)))))+Tl_heat)*Celc1+Celc2 -> 74 | P53: =(Tl_cool-(($G53/Watts)/(1006*$N53*kgss)))*Celc1+Celc2 -> 15 | Q53: 1 | R53: 0.781 | S53: 0 | T53: 0 | U53: 0.781 | V53: 0 | W53: =(H53-G53)/H53 -> 0.0% | X53: 1806.659617 | Y53: a | Z53: 388.7696408 | AA53: a | AB53: 31.0 | AC53: 2.8 | AD53: 98 | BD53: 1549.89243 | BE53: a | BF53: 373.2730972 | BG53: a | BH53: 31.0 | BI53: 2.8 | BJ53: 98 | BK53: 1806.659617 | BL53: a | BM53: 388.7696408 | BN53: a | BO53: =BH53 -> 31.0 | BP53: 2.8 | BQ53: 98
B54: 40% | C54: 4 | D54: =(X54*($T$11^$Q54))*Watts*CF_Altit -> 3996 | E54: =ROUND(((D54/Watts)/(($S$9-$S$10)*1.163))*$E$14,IF($X$4=1,0,IF($X$4=2,2))) -> 344 | F54: =($Y$54*(E54/$E$14)^$Y$56)*$F$14 -> 3.27 | G54: =(Z54*($W$11^R54))*Watts*CF_Altit -> 706 | H54: =((G54/Watts)/(IF((237.3*LN((RH*EXP(17.27*(Tl_cool/(Tl_cool+237.3))))))/(17.27-LN((RH*EXP(17.27*(Tl_cool/(Tl_cool+237.3))))))<Tavg_cold,1,IF(1/(1+((2258*((0.622/(($Z$11/(1*611*EXP(17.27*(Tavg_cold/(Tavg_cold+237.3))))))-1)*1000-(0.622/(($Z$11/(RH*611*EXP(17.27*(Tl_cool/(Tl_cool+237.3))))))-1)*1000))/(1005*(Tavg_cold-Tl_cool))))*1.039+((-0.000729*$C54+0.001448)*(Tl_cool-Tavg_cold)+(0.016908*$C54-0.033574))*1.039>1,1,1/(1+((2258*((0.622/(($Z$11/(1*611*EXP(17.27*(Tavg_cold/(Tavg_cold+237.3))))))-1)*1000-(0.622/(($Z$11/(RH*611*EXP(17.27*(Tl_cool/(Tl_cool+237.3))))))-1)*1000))/(1005*(Tavg_cold-Tl_cool))))*1.039+((-0.000729*$C54+0.001448)*(Tl_cool-Tavg_cold)+(0.016908*$C54-0.033574))*1.039))))*Watts -> 706 | I54: =ROUND(((H54/Watts)/((Tr_cool-Tv_cool)*1.163))*$I$14,IF($X$4=1,0,IF($X$4=2,2))) -> 303 | J54: =($AA$54*(I54/$I$14)^$AA$56)*$J$14 -> 2.59 | K54: =L54-8 -> 29.0 | L54: 37.0 | M54: 4.8 | N54: =AD54*Cubics -> 228 | O54: =((($D54/Watts)/(((p_atm*0.028964)/(8.31447*(20+273.15)))*(($N54/3600)/Cubics)*(1005+1870*((0.622)/(((p_atm)/($E$12*Pvs_Heat_in))-1)))))+Tl_heat)*Celc1+Celc2 -> 71 | P54: =(Tl_cool-(($G54/Watts)/(1006*$N54*kgss)))*Celc1+Celc2 -> 18 | Q54: 1 | R54: 0.859 | S54: 0 | T54: 0 | U54: 0.859 | V54: 0 | W54: =(H54-G54)/H54 -> 0.0% | X54: 3995.736944 | Y54: 7.658368822e-05 | Z54: 705.9081312 | AA54: 7.658368822e-05 | AB54: 37.0 | AC54: 4.8 | AD54: 228 | BD54: 3091.01157 | BE54: 9.55869e-05 | BF54: 677.8769055 | BG54: 1.926963463e-05 | BH54: 37.0 | BI54: 4.8 | BJ54: 228 | BK54: 3995.736944 | BL54: 7.658368822e-05 | BM54: 705.9081312 | BN54: =BL54 -> 7.658368822e-05 | BO54: 37.0 | BP54: 4.8 | BQ54: 228
B55: 60% | C55: 6 | D55: =(X55*($T$11^$Q55))*Watts*CF_Altit -> 5957 | E55: =ROUND(((D55/Watts)/(($S$9-$S$10)*1.163))*$E$14,IF($X$4=1,0,IF($X$4=2,2))) -> 512 | F55: =($Y$54*(E55/$E$14)^$Y$56)*$F$14 -> 6.75 | G55: =(Z55*($W$11^R55))*Watts*CF_Altit -> 1008 | H55: =((G55/Watts)/(IF((237.3*LN((RH*EXP(17.27*(Tl_cool/(Tl_cool+237.3))))))/(17.27-LN((RH*EXP(17.27*(Tl_cool/(Tl_cool+237.3))))))<Tavg_cold,1,IF(1/(1+((2258*((0.622/(($Z$11/(1*611*EXP(17.27*(Tavg_cold/(Tavg_cold+237.3))))))-1)*1000-(0.622/(($Z$11/(RH*611*EXP(17.27*(Tl_cool/(Tl_cool+237.3))))))-1)*1000))/(1005*(Tavg_cold-Tl_cool))))*1.039+((-0.000729*$C55+0.001448)*(Tl_cool-Tavg_cold)+(0.016908*$C55-0.033574))*1.039>1,1,1/(1+((2258*((0.622/(($Z$11/(1*611*EXP(17.27*(Tavg_cold/(Tavg_cold+237.3))))))-1)*1000-(0.622/(($Z$11/(RH*611*EXP(17.27*(Tl_cool/(Tl_cool+237.3))))))-1)*1000))/(1005*(Tavg_cold-Tl_cool))))*1.039+((-0.000729*$C55+0.001448)*(Tl_cool-Tavg_cold)+(0.016908*$C55-0.033574))*1.039))))*Watts -> 1008 | I55: =ROUND(((H55/Watts)/((Tr_cool-Tv_cool)*1.163))*$I$14,IF($X$4=1,0,IF($X$4=2,2))) -> 433 | J55: =($AA$54*(I55/$I$14)^$AA$56)*$J$14 -> 4.97 | K55: =L55-8 -> 33.0 | L55: 41.0 | M55: 8.4 | N55: =AD55*Cubics -> 348 | O55: =((($D55/Watts)/(((p_atm*0.028964)/(8.31447*(20+273.15)))*(($N55/3600)/Cubics)*(1005+1870*((0.622)/(((p_atm)/($E$12*Pvs_Heat_in))-1)))))+Tl_heat)*Celc1+Celc2 -> 70 | P55: =(Tl_cool-(($G55/Watts)/(1006*$N55*kgss)))*Celc1+Celc2 -> 18 | Q55: 1 | R55: 0.883 | S55: 0 | T55: 0 | U55: 0.883 | V55: 0 | W55: =(H55-G55)/H55 -> 0.0% | X55: 5956.541716 | Y55: b | Z55: 1008.141209 | AA55: b | AB55: 41.0 | AC55: 8.4 | AD55: 348 | BD55: 4359.79107 | BE55: b | BF55: 974.5223246 | BG55: b | BH55: 41.0 | BI55: 8.4 | BJ55: 348 | BK55: 5956.541716 | BL55: b | BM55: 1008.141209 | BN55: b | BO55: 41.0 | BP55: 8.4 | BQ55: 348
B56: 80% | C56: 8 | D56: =(X56*($T$11^$Q56))*Watts*CF_Altit -> 7689 | E56: =ROUND(((D56/Watts)/(($S$9-$S$10)*1.163))*$E$14,IF($X$4=1,0,IF($X$4=2,2))) -> 661 | F56: =($Y$54*(E56/$E$14)^$Y$56)*$F$14 -> 10.76 | G56: =(Z56*($W$11^R56))*Watts*CF_Altit -> 1295 | H56: =((G56/Watts)/(IF((237.3*LN((RH*EXP(17.27*(Tl_cool/(Tl_cool+237.3))))))/(17.27-LN((RH*EXP(17.27*(Tl_cool/(Tl_cool+237.3))))))<Tavg_cold,1,IF(1/(1+((2258*((0.622/(($Z$11/(1*611*EXP(17.27*(Tavg_cold/(Tavg_cold+237.3))))))-1)*1000-(0.622/(($Z$11/(RH*611*EXP(17.27*(Tl_cool/(Tl_cool+237.3))))))-1)*1000))/(1005*(Tavg_cold-Tl_cool))))*1.039+((-0.000729*$C56+0.001448)*(Tl_cool-Tavg_cold)+(0.016908*$C56-0.033574))*1.039>1,1,1/(1+((2258*((0.622/(($Z$11/(1*611*EXP(17.27*(Tavg_cold/(Tavg_cold+237.3))))))-1)*1000-(0.622/(($Z$11/(RH*611*EXP(17.27*(Tl_cool/(Tl_cool+237.3))))))-1)*1000))/(1005*(Tavg_cold-Tl_cool))))*1.039+((-0.000729*$C56+0.001448)*(Tl_cool-Tavg_cold)+(0.016908*$C56-0.033574))*1.039))))*Watts -> 1295 | I56: =ROUND(((H56/Watts)/((Tr_cool-Tv_cool)*1.163))*$I$14,IF($X$4=1,0,IF($X$4=2,2))) -> 557 | J56: =($AA$54*(I56/$I$14)^$AA$56)*$J$14 -> 7.88 | K56: =L56-8 -> 40.0 | L56: 48.0 | M56: 14.4 | N56: =AD56*Cubics -> 470 | O56: =((($D56/Watts)/(((p_atm*0.028964)/(8.31447*(20+273.15)))*(($N56/3600)/Cubics)*(1005+1870*((0.622)/(((p_atm)/($E$12*Pvs_Heat_in))-1)))))+Tl_heat)*Celc1+Celc2 -> 68 | P56: =(Tl_cool-(($G56/Watts)/(1006*$N56*kgss)))*Celc1+Celc2 -> 19 | Q56: 1 | R56: 0.854 | S56: 0 | T56: 0 | U56: 0.854 | V56: 0 | W56: =(H56-G56)/H56 -> 0.0% | X56: 7689.073933 | Y56: 1.825356496 | Z56: 1295.468875 | AA56: 1.825356496 | AB56: 48.0 | AC56: 14.4 | AD56: 470 | BD56: 5356.23093 | BE56: 1.83729 | BF56: 1263.209354 | BG56: 1.914955939 | BH56: 48.0 | BI56: 14.4 | BJ56: 470 | BK56: 7689.073933 | BL56: 1.825356496 | BM56: 1295.468875 | BN56: =BL56 -> 1.825356496 | BO56: 48.0 | BP56: 14.4 | BQ56: 470
B57: 100% | C57: 10 | D57: =(X57*($T$11^$Q57))*Watts*CF_Altit -> 9193 | E57: =ROUND(((D57/Watts)/(($S$9-$S$10)*1.163))*$E$14,IF($X$4=1,0,IF($X$4=2,2))) -> 790 | F57: =($Y$54*(E57/$E$14)^$Y$56)*$F$14 -> 14.91 | G57: =(Z57*($W$11^R57))*Watts*CF_Altit -> 1568 | H57: =((G57/Watts)/(IF((237.3*LN((RH*EXP(17.27*(Tl_cool/(Tl_cool+237.3))))))/(17.27-LN((RH*EXP(17.27*(Tl_cool/(Tl_cool+237.3))))))<Tavg_cold,1,IF(1/(1+((2258*((0.622/(($Z$11/(1*611*EXP(17.27*(Tavg_cold/(Tavg_cold+237.3))))))-1)*1000-(0.622/(($Z$11/(RH*611*EXP(17.27*(Tl_cool/(Tl_cool+237.3))))))-1)*1000))/(1005*(Tavg_cold-Tl_cool))))*1.039+((-0.000729*$C57+0.001448)*(Tl_cool-Tavg_cold)+(0.016908*$C57-0.033574))*1.039>1,1,1/(1+((2258*((0.622/(($Z$11/(1*611*EXP(17.27*(Tavg_cold/(Tavg_cold+237.3))))))-1)*1000-(0.622/(($Z$11/(RH*611*EXP(17.27*(Tl_cool/(Tl_cool+237.3))))))-1)*1000))/(1005*(Tavg_cold-Tl_cool))))*1.039+((-0.000729*$C57+0.001448)*(Tl_cool-Tavg_cold)+(0.016908*$C57-0.033574))*1.039))))*Watts -> 1568 | I57: =ROUND(((H57/Watts)/((Tr_cool-Tv_cool)*1.163))*$I$14,IF($X$4=1,0,IF($X$4=2,2))) -> 674 | J57: =($AA$54*(I57/$I$14)^$AA$56)*$J$14 -> 11.15 | K57: =L57-8 -> 43.0 | L57: 51.0 | M57: 21.2 | N57: =AD57*Cubics -> 546 | O57: =((($D57/Watts)/(((p_atm*0.028964)/(8.31447*(20+273.15)))*(($N57/3600)/Cubics)*(1005+1870*((0.622)/(((p_atm)/($E$12*Pvs_Heat_in))-1)))))+Tl_heat)*Celc1+Celc2 -> 69 | P57: =(Tl_cool-(($G57/Watts)/(1006*$N57*kgss)))*Celc1+Celc2 -> 18 | Q57: 1 | R57: 0.771 | S57: 0 | T57: 0 | U57: 0.771 | V57: 0 | W57: =(H57-G57)/H57 -> 0.0% | X57: 9193.333596 | Y57: 0 | Z57: 1567.891128 | AA57: 0 | AB57: 51.0 | AC57: 21.2 | AD57: 546 | BD57: 6080.33115 | BF57: 1543.937995 | BH57: 51.0 | BI57: 21.2 | BJ57: 546 | BK57: 9193.333596 | BM57: 1567.891128 | BO57: 51.0 | BP57: 21.2 | BQ57: 546
B58: =IF($S$7=1,NL!A57,IF(cal!$S$7=2,EN!A57,IF(cal!$S$7=3,DE!A57,IF(cal!$S$7=4,FR!A57,IF(cal!$S$7=5,NR!A57,IF(cal!$S$7=6,SP!A57,IF(cal!$S$7=7,SW!A57,IF(cal!$S$7=8,TS!A57,IF(cal!$S$7=9,ExtraTaal1!A57,IF(cal!$S$7=10,ExtraTaal2!A57,IF(cal!$S$7=11,ExtraTaal3!A57,))))))))))) -> Clima Canal height 13 cm width 32 cm length 280 cm (Type 8) | C58: =IF($S$7=1,NL!B57,IF(cal!$S$7=2,EN!B57,IF(cal!$S$7=3,DE!B57,IF(cal!$S$7=4,FR!B57,IF(cal!$S$7=5,NR!B57,IF(cal!$S$7=6,SP!B57,IF(cal!$S$7=7,SW!B57,IF(cal!$S$7=8,TS!B57,IF(cal!$S$7=9,ExtraTaal1!B57,IF(cal!$S$7=10,ExtraTaal2!B57,IF(cal!$S$7=11,ExtraTaal3!B57,))))))))))) -> 0 | D58: =IF($S$7=1,NL!C57,IF(cal!$S$7=2,EN!C57,IF(cal!$S$7=3,DE!C57,IF(cal!$S$7=4,FR!C57,IF(cal!$S$7=5,NR!C57,IF(cal!$S$7=6,SP!C57,IF(cal!$S$7=7,SW!C57,IF(cal!$S$7=8,TS!C57,IF(cal!$S$7=9,ExtraTaal1!C57,IF(cal!$S$7=10,ExtraTaal2!C57,IF(cal!$S$7=11,ExtraTaal3!C57,))))))))))) -> 0 | E58: =IF($S$7=1,NL!D57,IF(cal!$S$7=2,EN!D57,IF(cal!$S$7=3,DE!D57,IF(cal!$S$7=4,FR!D57,IF(cal!$S$7=5,NR!D57,IF(cal!$S$7=6,SP!D57,IF(cal!$S$7=7,SW!D57,IF(cal!$S$7=8,TS!D57,IF(cal!$S$7=9,ExtraTaal1!D57,IF(cal!$S$7=10,ExtraTaal2!D57,IF(cal!$S$7=11,ExtraTaal3!D57,))))))))))) -> 0 | F58: =IF($S$7=1,NL!E57,IF(cal!$S$7=2,EN!E57,IF(cal!$S$7=3,DE!E57,IF(cal!$S$7=4,FR!E57,IF(cal!$S$7=5,NR!E57,IF(cal!$S$7=6,SP!E57,IF(cal!$S$7=7,SW!E57,IF(cal!$S$7=8,TS!E57,IF(cal!$S$7=9,ExtraTaal1!E57,IF(cal!$S$7=10,ExtraTaal2!E57,IF(cal!$S$7=11,ExtraTaal3!E57,))))))))))) -> 0 | G58: =IF($S$7=1,NL!F57,IF(cal!$S$7=2,EN!F57,IF(cal!$S$7=3,DE!F57,IF(cal!$S$7=4,FR!F57,IF(cal!$S$7=5,NR!F57,IF(cal!$S$7=6,SP!F57,IF(cal!$S$7=7,SW!F57,IF(cal!$S$7=8,TS!F57,IF(cal!$S$7=9,ExtraTaal1!F57,IF(cal!$S$7=10,ExtraTaal2!F57,IF(cal!$S$7=11,ExtraTaal3!F57,))))))))))) -> 0 | H58: =IF($S$7=1,NL!G57,IF(cal!$S$7=2,EN!G57,IF(cal!$S$7=3,DE!G57,IF(cal!$S$7=4,FR!G57,IF(cal!$S$7=5,NR!G57,IF(cal!$S$7=6,SP!G57,IF(cal!$S$7=7,SW!G57,IF(cal!$S$7=8,TS!G57,IF(cal!$S$7=9,ExtraTaal1!G57,IF(cal!$S$7=10,ExtraTaal2!G57,IF(cal!$S$7=11,ExtraTaal3!G57,))))))))))) -> 0 | I58: =IF($S$7=1,NL!H57,IF(cal!$S$7=2,EN!H57,IF(cal!$S$7=3,DE!H57,IF(cal!$S$7=4,FR!H57,IF(cal!$S$7=5,NR!H57,IF(cal!$S$7=6,SP!H57,IF(cal!$S$7=7,SW!H57,IF(cal!$S$7=8,TS!H57,IF(cal!$S$7=9,ExtraTaal1!H57,IF(cal!$S$7=10,ExtraTaal2!H57,IF(cal!$S$7=11,ExtraTaal3!H57,))))))))))) -> 0 | J58: =IF($S$7=1,NL!I57,IF(cal!$S$7=2,EN!I57,IF(cal!$S$7=3,DE!I57,IF(cal!$S$7=4,FR!I57,IF(cal!$S$7=5,NR!I57,IF(cal!$S$7=6,SP!I57,IF(cal!$S$7=7,SW!I57,IF(cal!$S$7=8,TS!I57,IF(cal!$S$7=9,ExtraTaal1!I57,IF(cal!$S$7=10,ExtraTaal2!I57,IF(cal!$S$7=11,ExtraTaal3!I57,))))))))))) -> 0 | K58: =IF($S$7=1,NL!J57,IF(cal!$S$7=2,EN!J57,IF(cal!$S$7=3,DE!J57,IF(cal!$S$7=4,FR!J57,IF(cal!$S$7=5,NR!J57,IF(cal!$S$7=6,SP!J57,IF(cal!$S$7=7,SW!J57,IF(cal!$S$7=8,TS!J57,IF(cal!$S$7=9,ExtraTaal1!J57,IF(cal!$S$7=10,ExtraTaal2!J57,IF(cal!$S$7=11,ExtraTaal3!J57,))))))))))) -> 0 | L58: =IF($S$7=1,NL!K57,IF(cal!$S$7=2,EN!K57,IF(cal!$S$7=3,DE!K57,IF(cal!$S$7=4,FR!K57,IF(cal!$S$7=5,NR!K57,IF(cal!$S$7=6,SP!K57,IF(cal!$S$7=7,SW!K57,IF(cal!$S$7=8,TS!K57,IF(cal!$S$7=9,ExtraTaal1!K57,IF(cal!$S$7=10,ExtraTaal2!K57,IF(cal!$S$7=11,ExtraTaal3!K57,))))))))))) -> 0 | M58: =IF($S$7=1,NL!L57,IF(cal!$S$7=2,EN!L57,IF(cal!$S$7=3,DE!L57,IF(cal!$S$7=4,FR!L57,IF(cal!$S$7=5,NR!L57,IF(cal!$S$7=6,SP!L57,IF(cal!$S$7=7,SW!L57,IF(cal!$S$7=8,TS!L57,IF(cal!$S$7=9,ExtraTaal1!L57,IF(cal!$S$7=10,ExtraTaal2!L57,IF(cal!$S$7=11,ExtraTaal3!L57,))))))))))) -> 0 | N58: =IF($S$7=1,NL!M57,IF(cal!$S$7=2,EN!M57,IF(cal!$S$7=3,DE!M57,IF(cal!$S$7=4,FR!M57,IF(cal!$S$7=5,NR!M57,IF(cal!$S$7=6,SP!M57,IF(cal!$S$7=7,SW!M57,IF(cal!$S$7=8,TS!M57,IF(cal!$S$7=9,ExtraTaal1!M57,IF(cal!$S$7=10,ExtraTaal2!M57,IF(cal!$S$7=11,ExtraTaal3!M57,))))))))))) -> 0 | O58: =IF($S$7=1,NL!N57,IF(cal!$S$7=2,EN!N57,IF(cal!$S$7=3,DE!N57,IF(cal!$S$7=4,FR!N57,IF(cal!$S$7=5,NR!N57,IF(cal!$S$7=6,SP!N57,IF(cal!$S$7=7,SW!N57,IF(cal!$S$7=8,TS!N57,IF(cal!$S$7=9,ExtraTaal1!N57,IF(cal!$S$7=10,ExtraTaal2!N57,IF(cal!$S$7=11,ExtraTaal3!N57,))))))))))) -> 0 | P58: =IF($S$7=1,NL!O57,IF(cal!$S$7=2,EN!O57,IF(cal!$S$7=3,DE!O57,IF(cal!$S$7=4,FR!O57,IF(cal!$S$7=5,NR!O57,IF(cal!$S$7=6,SP!O57,IF(cal!$S$7=7,SW!O57,IF(cal!$S$7=8,TS!O57,IF(cal!$S$7=9,ExtraTaal1!O57,IF(cal!$S$7=10,ExtraTaal2!O57,IF(cal!$S$7=11,ExtraTaal3!O57,))))))))))) -> 0 | Q58: n-value | R58: n-value | S58: n-value | T58: n-value | U58: n-value | V58: n-value | X58: H | Y58: 13 | Z58: B | AA58: 32 | AB58: L | AC58: 230 | AD58: 0 | BD58: H | BE58: =BE22 -> 13 | BF58: B | BG58: =BG22 -> 32 | BH58: L | BI58: =IF($X$4=1,230,230/2.54) -> 230 | BK58: H | BL58: =BL22 -> 13 | BM58: B | BN58: =BN22 -> 32 | BO58: L | BP58: =IF($X$4=1,230,230/2.54) -> 230
B59: 20% | C59: 2 | D59: =(X59*($T$11^$Q59))*Watts*CF_Altit -> 2273 | E59: =ROUND(((D59/Watts)/(($S$9-$S$10)*1.163))*$E$14,IF($X$4=1,0,IF($X$4=2,2))) -> 195 | F59: =($Y$66*(E59/$E$14)^$Y$68)*$F$14 -> 1.41 | G59: =(Z59*($W$11^R59))*Watts*CF_Altit -> 489 | H59: =((G59/Watts)/(IF((237.3*LN((RH*EXP(17.27*(Tl_cool/(Tl_cool+237.3))))))/(17.27-LN((RH*EXP(17.27*(Tl_cool/(Tl_cool+237.3))))))<Tavg_cold,1,IF(1/(1+((2258*((0.622/(($Z$11/(1*611*EXP(17.27*(Tavg_cold/(Tavg_cold+237.3))))))-1)*1000-(0.622/(($Z$11/(RH*611*EXP(17.27*(Tl_cool/(Tl_cool+237.3))))))-1)*1000))/(1005*(Tavg_cold-Tl_cool))))*1.039+((-0.000729*$C59+0.001448)*(Tl_cool-Tavg_cold)+(0.016908*$C59-0.033574))*1.039>1,1,1/(1+((2258*((0.622/(($Z$11/(1*611*EXP(17.27*(Tavg_cold/(Tavg_cold+237.3))))))-1)*1000-(0.622/(($Z$11/(RH*611*EXP(17.27*(Tl_cool/(Tl_cool+237.3))))))-1)*1000))/(1005*(Tavg_cold-Tl_cool))))*1.039+((-0.000729*$C59+0.001448)*(Tl_cool-Tavg_cold)+(0.016908*$C59-0.033574))*1.039))))*Watts -> 489 | I59: =ROUND(((H59/Watts)/((Tr_cool-Tv_cool)*1.163))*$I$14,IF($X$4=1,0,IF($X$4=2,2))) -> 210 | J59: =($AA$60*(I59/$I$14)^$AA$62)*$J$14 -> 1.56 | K59: =L59-8 -> 24.0 | L59: =AB59 -> 32.0 | M59: 3.8 | N59: =AD59*Cubics -> 133 | O59: =((($D59/Watts)/(((p_atm*0.028964)/(8.31447*(20+273.15)))*(($N59/3600)/Cubics)*(1005+1870*((0.622)/(((p_atm)/($E$12*Pvs_Heat_in))-1)))))+Tl_heat)*Celc1+Celc2 -> 70 | P59: =(Tl_cool-(($G59/Watts)/(1006*$N59*kgss)))*Celc1+Celc2 -> 16 | Q59: 1 | R59: 0.781 | S59: 0 | T59: 0 | U59: 0.781 | V59: 0 | W59: =(H59-G59)/H59 -> 0.0% | X59: 2273.496728 | Y59: a | Z59: 489.2269123 | AA59: a | AB59: 32.0 | AC59: 3.8 | AD59: 133 | BD59: 1950.38143 | BE59: a | BF59: 469.7260939 | BG59: a | BH59: 32.0 | BI59: 3.8 | BJ59: 133 | BK59: 2273.496728 | BL59: a | BM59: 489.2269123 | BN59: a | BO59: =BH59 -> 32.0 | BP59: 3.8 | BQ59: 133
B60: 40% | C60: 4 | D60: =(X60*($T$11^$Q60))*Watts*CF_Altit -> 5028 | E60: =ROUND(((D60/Watts)/(($S$9-$S$10)*1.163))*$E$14,IF($X$4=1,0,IF($X$4=2,2))) -> 432 | F60: =($Y$66*(E60/$E$14)^$Y$68)*$F$14 -> 5.97 | G60: =(Z60*($W$11^R60))*Watts*CF_Altit -> 888 | H60: =((G60/Watts)/(IF((237.3*LN((RH*EXP(17.27*(Tl_cool/(Tl_cool+237.3))))))/(17.27-LN((RH*EXP(17.27*(Tl_cool/(Tl_cool+237.3))))))<Tavg_cold,1,IF(1/(1+((2258*((0.622/(($Z$11/(1*611*EXP(17.27*(Tavg_cold/(Tavg_cold+237.3))))))-1)*1000-(0.622/(($Z$11/(RH*611*EXP(17.27*(Tl_cool/(Tl_cool+237.3))))))-1)*1000))/(1005*(Tavg_cold-Tl_cool))))*1.039+((-0.000729*$C60+0.001448)*(Tl_cool-Tavg_cold)+(0.016908*$C60-0.033574))*1.039>1,1,1/(1+((2258*((0.622/(($Z$11/(1*611*EXP(17.27*(Tavg_cold/(Tavg_cold+237.3))))))-1)*1000-(0.622/(($Z$11/(RH*611*EXP(17.27*(Tl_cool/(Tl_cool+237.3))))))-1)*1000))/(1005*(Tavg_cold-Tl_cool))))*1.039+((-0.000729*$C60+0.001448)*(Tl_cool-Tavg_cold)+(0.016908*$C60-0.033574))*1.039))))*Watts -> 888 | I60: =ROUND(((H60/Watts)/((Tr_cool-Tv_cool)*1.163))*$I$14,IF($X$4=1,0,IF($X$4=2,2))) -> 382 | J60: =($AA$60*(I60/$I$14)^$AA$62)*$J$14 -> 4.62 | K60: =L60-8 -> 29.5 | L60: 37.5 | M60: 6.4 | N60: =AD60*Cubics -> 272 | O60: =((($D60/Watts)/(((p_atm*0.028964)/(8.31447*(20+273.15)))*(($N60/3600)/Cubics)*(1005+1870*((0.622)/(((p_atm)/($E$12*Pvs_Heat_in))-1)))))+Tl_heat)*Celc1+Celc2 -> 74 | P60: =(Tl_cool-(($G60/Watts)/(1006*$N60*kgss)))*Celc1+Celc2 -> 17 | Q60: 1 | R60: 0.859 | S60: 0 | T60: 0 | U60: 0.859 | V60: 0 | W60: =(H60-G60)/H60 -> 0.0% | X60: 5028.22711 | Y60: 9.691093922e-05 | Z60: 888.3133331 | AA60: 9.691093922e-05 | AB60: 37.5 | AC60: 6.4 | AD60: 272 | BD60: 3889.72257 | BE60: 0.000118103 | BF60: 853.0388966 | BG60: 2.181142852e-05 | BH60: 37.5 | BI60: 6.4 | BJ60: 272 | BK60: 5028.22711 | BL60: 9.691093922e-05 | BM60: 888.3133331 | BN60: =BL60 -> 9.691093922e-05 | BO60: 37.5 | BP60: 6.4 | BQ60: 272
B61: 60% | C61: 6 | D61: =(X61*($T$11^$Q61))*Watts*CF_Altit -> 7496 | E61: =ROUND(((D61/Watts)/(($S$9-$S$10)*1.163))*$E$14,IF($X$4=1,0,IF($X$4=2,2))) -> 645 | F61: =($Y$66*(E61/$E$14)^$Y$68)*$F$14 -> 12.33 | G61: =(Z61*($W$11^R61))*Watts*CF_Altit -> 1269 | H61: =((G61/Watts)/(IF((237.3*LN((RH*EXP(17.27*(Tl_cool/(Tl_cool+237.3))))))/(17.27-LN((RH*EXP(17.27*(Tl_cool/(Tl_cool+237.3))))))<Tavg_cold,1,IF(1/(1+((2258*((0.622/(($Z$11/(1*611*EXP(17.27*(Tavg_cold/(Tavg_cold+237.3))))))-1)*1000-(0.622/(($Z$11/(RH*611*EXP(17.27*(Tl_cool/(Tl_cool+237.3))))))-1)*1000))/(1005*(Tavg_cold-Tl_cool))))*1.039+((-0.000729*$C61+0.001448)*(Tl_cool-Tavg_cold)+(0.016908*$C61-0.033574))*1.039>1,1,1/(1+((2258*((0.622/(($Z$11/(1*611*EXP(17.27*(Tavg_cold/(Tavg_cold+237.3))))))-1)*1000-(0.622/(($Z$11/(RH*611*EXP(17.27*(Tl_cool/(Tl_cool+237.3))))))-1)*1000))/(1005*(Tavg_cold-Tl_cool))))*1.039+((-0.000729*$C61+0.001448)*(Tl_cool-Tavg_cold)+(0.016908*$C61-0.033574))*1.039))))*Watts -> 1269 | I61: =ROUND(((H61/Watts)/((Tr_cool-Tv_cool)*1.163))*$I$14,IF($X$4=1,0,IF($X$4=2,2))) -> 545 | J61: =($AA$60*(I61/$I$14)^$AA$62)*$J$14 -> 8.80 | K61: =L61-8 -> 34.0 | L61: 42.0 | M61: 11.6 | N61: =AD61*Cubics -> 433 | O61: =((($D61/Watts)/(((p_atm*0.028964)/(8.31447*(20+273.15)))*(($N61/3600)/Cubics)*(1005+1870*((0.622)/(((p_atm)/($E$12*Pvs_Heat_in))-1)))))+Tl_heat)*Celc1+Celc2 -> 71 | P61: =(Tl_cool-(($G61/Watts)/(1006*$N61*kgss)))*Celc1+Celc2 -> 18 | Q61: 1 | R61: 0.883 | S61: 0 | T61: 0 | U61: 0.883 | V61: 0 | W61: =(H61-G61)/H61 -> 0.0% | X61: 7495.699782 | Y61: b | Z61: 1268.642814 | AA61: b | AB61: 42.0 | AC61: 11.6 | AD61: 433 | BD61: 5486.35207 | BE61: b | BF61: 1226.336879 | BG61: b | BH61: 42.0 | BI61: 11.6 | BJ61: 433 | BK61: 7495.699782 | BL61: b | BM61: 1268.642814 | BN61: b | BO61: 42.0 | BP61: 11.6 | BQ61: 433
B62: 80% | C62: 8 | D62: =(X62*($T$11^$Q62))*Watts*CF_Altit -> 9676 | E62: =ROUND(((D62/Watts)/(($S$9-$S$10)*1.163))*$E$14,IF($X$4=1,0,IF($X$4=2,2))) -> 832 | F62: =($Y$66*(E62/$E$14)^$Y$68)*$F$14 -> 19.54 | G62: =(Z62*($W$11^R62))*Watts*CF_Altit -> 1630 | H62: =((G62/Watts)/(IF((237.3*LN((RH*EXP(17.27*(Tl_cool/(Tl_cool+237.3))))))/(17.27-LN((RH*EXP(17.27*(Tl_cool/(Tl_cool+237.3))))))<Tavg_cold,1,IF(1/(1+((2258*((0.622/(($Z$11/(1*611*EXP(17.27*(Tavg_cold/(Tavg_cold+237.3))))))-1)*1000-(0.622/(($Z$11/(RH*611*EXP(17.27*(Tl_cool/(Tl_cool+237.3))))))-1)*1000))/(1005*(Tavg_cold-Tl_cool))))*1.039+((-0.000729*$C62+0.001448)*(Tl_cool-Tavg_cold)+(0.016908*$C62-0.033574))*1.039>1,1,1/(1+((2258*((0.622/(($Z$11/(1*611*EXP(17.27*(Tavg_cold/(Tavg_cold+237.3))))))-1)*1000-(0.622/(($Z$11/(RH*611*EXP(17.27*(Tl_cool/(Tl_cool+237.3))))))-1)*1000))/(1005*(Tavg_cold-Tl_cool))))*1.039+((-0.000729*$C62+0.001448)*(Tl_cool-Tavg_cold)+(0.016908*$C62-0.033574))*1.039))))*Watts -> 1630 | I62: =ROUND(((H62/Watts)/((Tr_cool-Tv_cool)*1.163))*$I$14,IF($X$4=1,0,IF($X$4=2,2))) -> 701 | J62: =($AA$60*(I62/$I$14)^$AA$62)*$J$14 -> 13.88 | K62: =L62-8 -> 41.0 | L62: 49.0 | M62: 20.3 | N62: =AD62*Cubics -> 587 | O62: =((($D62/Watts)/(((p_atm*0.028964)/(8.31447*(20+273.15)))*(($N62/3600)/Cubics)*(1005+1870*((0.622)/(((p_atm)/($E$12*Pvs_Heat_in))-1)))))+Tl_heat)*Celc1+Celc2 -> 68 | P62: =(Tl_cool-(($G62/Watts)/(1006*$N62*kgss)))*Celc1+Celc2 -> 19 | Q62: 1 | R62: 0.854 | S62: 0 | T62: 0 | U62: 0.854 | V62: 0 | W62: =(H62-G62)/H62 -> 0.0% | X62: 9675.914743 | Y62: 1.811880807 | Z62: 1630.215354 | AA62: 1.811880807 | AB62: 49.0 | AC62: 20.3 | AD62: 587 | BD62: 6740.26993 | BE62: 1.82623 | BF62: 1589.62004 | BG62: 1.905592616 | BH62: 49.0 | BI62: 20.3 | BJ62: 587 | BK62: 9675.914743 | BL62: 1.811880807 | BM62: 1630.215354 | BN62: =BL62 -> 1.811880807 | BO62: 49.0 | BP62: 20.3 | BQ62: 587
B63: 100% | C63: 10 | D63: =(X63*($T$11^$Q63))*Watts*CF_Altit -> 11569 | E63: =ROUND(((D63/Watts)/(($S$9-$S$10)*1.163))*$E$14,IF($X$4=1,0,IF($X$4=2,2))) -> 995 | F63: =($Y$66*(E63/$E$14)^$Y$68)*$F$14 -> 27.02 | G63: =(Z63*($W$11^R63))*Watts*CF_Altit -> 1973 | H63: =((G63/Watts)/(IF((237.3*LN((RH*EXP(17.27*(Tl_cool/(Tl_cool+237.3))))))/(17.27-LN((RH*EXP(17.27*(Tl_cool/(Tl_cool+237.3))))))<Tavg_cold,1,IF(1/(1+((2258*((0.622/(($Z$11/(1*611*EXP(17.27*(Tavg_cold/(Tavg_cold+237.3))))))-1)*1000-(0.622/(($Z$11/(RH*611*EXP(17.27*(Tl_cool/(Tl_cool+237.3))))))-1)*1000))/(1005*(Tavg_cold-Tl_cool))))*1.039+((-0.000729*$C63+0.001448)*(Tl_cool-Tavg_cold)+(0.016908*$C63-0.033574))*1.039>1,1,1/(1+((2258*((0.622/(($Z$11/(1*611*EXP(17.27*(Tavg_cold/(Tavg_cold+237.3))))))-1)*1000-(0.622/(($Z$11/(RH*611*EXP(17.27*(Tl_cool/(Tl_cool+237.3))))))-1)*1000))/(1005*(Tavg_cold-Tl_cool))))*1.039+((-0.000729*$C63+0.001448)*(Tl_cool-Tavg_cold)+(0.016908*$C63-0.033574))*1.039))))*Watts -> 1973 | I63: =ROUND(((H63/Watts)/((Tr_cool-Tv_cool)*1.163))*$I$14,IF($X$4=1,0,IF($X$4=2,2))) -> 848 | J63: =($AA$60*(I63/$I$14)^$AA$62)*$J$14 -> 19.60 | K63: =L63-8 -> 44.0 | L63: 52.0 | M63: 30.0 | N63: =AD63*Cubics -> 683 | O63: =((($D63/Watts)/(((p_atm*0.028964)/(8.31447*(20+273.15)))*(($N63/3600)/Cubics)*(1005+1870*((0.622)/(((p_atm)/($E$12*Pvs_Heat_in))-1)))))+Tl_heat)*Celc1+Celc2 -> 70 | P63: =(Tl_cool-(($G63/Watts)/(1006*$N63*kgss)))*Celc1+Celc2 -> 18 | Q63: 1 | R63: 0.771 | S63: 0 | T63: 0 | U63: 0.771 | V63: 0 | W63: =(H63-G63)/H63 -> 0.0% | X63: 11568.87199 | Y63: 0 | Z63: 1973.030954 | AA63: 0 | AB63: 52.0 | AC63: 30.0 | AD63: 683 | BD63: 7651.47615 | BF63: 1942.888381 | BH63: 52.0 | BI63: 30.0 | BJ63: 683 | BK63: 11568.87199 | BM63: 1973.030954 | BO63: 52.0 | BP63: 30.0 | BQ63: 683
B64: =IF($S$7=1,NL!A63,IF(cal!$S$7=2,EN!A63,IF(cal!$S$7=3,DE!A63,IF(cal!$S$7=4,FR!A63,IF(cal!$S$7=5,NR!A63,IF(cal!$S$7=6,SP!A63,IF(cal!$S$7=7,SW!A63,IF(cal!$S$7=8,TS!A63,IF(cal!$S$7=9,ExtraTaal1!A63,IF(cal!$S$7=10,ExtraTaal2!A63,IF(cal!$S$7=11,ExtraTaal3!A63,))))))))))) -> Clima Canal height 13 cm width 32 cm length 300 cm (Type 9) | C64: =IF($S$7=1,NL!B63,IF(cal!$S$7=2,EN!B63,IF(cal!$S$7=3,DE!B63,IF(cal!$S$7=4,FR!B63,IF(cal!$S$7=5,NR!B63,IF(cal!$S$7=6,SP!B63,IF(cal!$S$7=7,SW!B63,IF(cal!$S$7=8,TS!B63,IF(cal!$S$7=9,ExtraTaal1!B63,IF(cal!$S$7=10,ExtraTaal2!B63,IF(cal!$S$7=11,ExtraTaal3!B63,))))))))))) -> 0 | D64: =IF($S$7=1,NL!C63,IF(cal!$S$7=2,EN!C63,IF(cal!$S$7=3,DE!C63,IF(cal!$S$7=4,FR!C63,IF(cal!$S$7=5,NR!C63,IF(cal!$S$7=6,SP!C63,IF(cal!$S$7=7,SW!C63,IF(cal!$S$7=8,TS!C63,IF(cal!$S$7=9,ExtraTaal1!C63,IF(cal!$S$7=10,ExtraTaal2!C63,IF(cal!$S$7=11,ExtraTaal3!C63,))))))))))) -> 0 | E64: =IF($S$7=1,NL!D63,IF(cal!$S$7=2,EN!D63,IF(cal!$S$7=3,DE!D63,IF(cal!$S$7=4,FR!D63,IF(cal!$S$7=5,NR!D63,IF(cal!$S$7=6,SP!D63,IF(cal!$S$7=7,SW!D63,IF(cal!$S$7=8,TS!D63,IF(cal!$S$7=9,ExtraTaal1!D63,IF(cal!$S$7=10,ExtraTaal2!D63,IF(cal!$S$7=11,ExtraTaal3!D63,))))))))))) -> 0 | F64: =IF($S$7=1,NL!E63,IF(cal!$S$7=2,EN!E63,IF(cal!$S$7=3,DE!E63,IF(cal!$S$7=4,FR!E63,IF(cal!$S$7=5,NR!E63,IF(cal!$S$7=6,SP!E63,IF(cal!$S$7=7,SW!E63,IF(cal!$S$7=8,TS!E63,IF(cal!$S$7=9,ExtraTaal1!E63,IF(cal!$S$7=10,ExtraTaal2!E63,IF(cal!$S$7=11,ExtraTaal3!E63,))))))))))) -> 0 | G64: =IF($S$7=1,NL!F63,IF(cal!$S$7=2,EN!F63,IF(cal!$S$7=3,DE!F63,IF(cal!$S$7=4,FR!F63,IF(cal!$S$7=5,NR!F63,IF(cal!$S$7=6,SP!F63,IF(cal!$S$7=7,SW!F63,IF(cal!$S$7=8,TS!F63,IF(cal!$S$7=9,ExtraTaal1!F63,IF(cal!$S$7=10,ExtraTaal2!F63,IF(cal!$S$7=11,ExtraTaal3!F63,))))))))))) -> 0 | H64: =IF($S$7=1,NL!G63,IF(cal!$S$7=2,EN!G63,IF(cal!$S$7=3,DE!G63,IF(cal!$S$7=4,FR!G63,IF(cal!$S$7=5,NR!G63,IF(cal!$S$7=6,SP!G63,IF(cal!$S$7=7,SW!G63,IF(cal!$S$7=8,TS!G63,IF(cal!$S$7=9,ExtraTaal1!G63,IF(cal!$S$7=10,ExtraTaal2!G63,IF(cal!$S$7=11,ExtraTaal3!G63,))))))))))) -> 0 | I64: =IF($S$7=1,NL!H63,IF(cal!$S$7=2,EN!H63,IF(cal!$S$7=3,DE!H63,IF(cal!$S$7=4,FR!H63,IF(cal!$S$7=5,NR!H63,IF(cal!$S$7=6,SP!H63,IF(cal!$S$7=7,SW!H63,IF(cal!$S$7=8,TS!H63,IF(cal!$S$7=9,ExtraTaal1!H63,IF(cal!$S$7=10,ExtraTaal2!H63,IF(cal!$S$7=11,ExtraTaal3!H63,))))))))))) -> 0 | J64: =IF($S$7=1,NL!I63,IF(cal!$S$7=2,EN!I63,IF(cal!$S$7=3,DE!I63,IF(cal!$S$7=4,FR!I63,IF(cal!$S$7=5,NR!I63,IF(cal!$S$7=6,SP!I63,IF(cal!$S$7=7,SW!I63,IF(cal!$S$7=8,TS!I63,IF(cal!$S$7=9,ExtraTaal1!I63,IF(cal!$S$7=10,ExtraTaal2!I63,IF(cal!$S$7=11,ExtraTaal3!I63,))))))))))) -> 0 | K64: =IF($S$7=1,NL!J63,IF(cal!$S$7=2,EN!J63,IF(cal!$S$7=3,DE!J63,IF(cal!$S$7=4,FR!J63,IF(cal!$S$7=5,NR!J63,IF(cal!$S$7=6,SP!J63,IF(cal!$S$7=7,SW!J63,IF(cal!$S$7=8,TS!J63,IF(cal!$S$7=9,ExtraTaal1!J63,IF(cal!$S$7=10,ExtraTaal2!J63,IF(cal!$S$7=11,ExtraTaal3!J63,))))))))))) -> 0 | L64: =IF($S$7=1,NL!K63,IF(cal!$S$7=2,EN!K63,IF(cal!$S$7=3,DE!K63,IF(cal!$S$7=4,FR!K63,IF(cal!$S$7=5,NR!K63,IF(cal!$S$7=6,SP!K63,IF(cal!$S$7=7,SW!K63,IF(cal!$S$7=8,TS!K63,IF(cal!$S$7=9,ExtraTaal1!K63,IF(cal!$S$7=10,ExtraTaal2!K63,IF(cal!$S$7=11,ExtraTaal3!K63,))))))))))) -> 0 | M64: =IF($S$7=1,NL!L63,IF(cal!$S$7=2,EN!L63,IF(cal!$S$7=3,DE!L63,IF(cal!$S$7=4,FR!L63,IF(cal!$S$7=5,NR!L63,IF(cal!$S$7=6,SP!L63,IF(cal!$S$7=7,SW!L63,IF(cal!$S$7=8,TS!L63,IF(cal!$S$7=9,ExtraTaal1!L63,IF(cal!$S$7=10,ExtraTaal2!L63,IF(cal!$S$7=11,ExtraTaal3!L63,))))))))))) -> 0 | N64: =IF($S$7=1,NL!M63,IF(cal!$S$7=2,EN!M63,IF(cal!$S$7=3,DE!M63,IF(cal!$S$7=4,FR!M63,IF(cal!$S$7=5,NR!M63,IF(cal!$S$7=6,SP!M63,IF(cal!$S$7=7,SW!M63,IF(cal!$S$7=8,TS!M63,IF(cal!$S$7=9,ExtraTaal1!M63,IF(cal!$S$7=10,ExtraTaal2!M63,IF(cal!$S$7=11,ExtraTaal3!M63,))))))))))) -> 0 | O64: =IF($S$7=1,NL!N63,IF(cal!$S$7=2,EN!N63,IF(cal!$S$7=3,DE!N63,IF(cal!$S$7=4,FR!N63,IF(cal!$S$7=5,NR!N63,IF(cal!$S$7=6,SP!N63,IF(cal!$S$7=7,SW!N63,IF(cal!$S$7=8,TS!N63,IF(cal!$S$7=9,ExtraTaal1!N63,IF(cal!$S$7=10,ExtraTaal2!N63,IF(cal!$S$7=11,ExtraTaal3!N63,))))))))))) -> 0 | P64: =IF($S$7=1,NL!O63,IF(cal!$S$7=2,EN!O63,IF(cal!$S$7=3,DE!O63,IF(cal!$S$7=4,FR!O63,IF(cal!$S$7=5,NR!O63,IF(cal!$S$7=6,SP!O63,IF(cal!$S$7=7,SW!O63,IF(cal!$S$7=8,TS!O63,IF(cal!$S$7=9,ExtraTaal1!O63,IF(cal!$S$7=10,ExtraTaal2!O63,IF(cal!$S$7=11,ExtraTaal3!O63,))))))))))) -> 0 | Q64: n-value | R64: n-value | S64: n-value | T64: n-value | U64: n-value | V64: n-value | X64: H | Y64: 13 | Z64: B | AA64: 32 | AB64: L | AC64: 280 | AD64: 0 | BD64: H | BE64: =BE22 -> 13 | BF64: B | BG64: =BG22 -> 32 | BH64: L | BI64: =IF($X$4=1,280,280/2.54) -> 280 | BK64: H | BL64: =BL22 -> 13 | BM64: B | BN64: =BN22 -> 32 | BO64: L | BP64: =IF($X$4=1,280,280/2.54) -> 280
B65: 20% | C65: 2 | D65: =(X65*($T$11^$Q65))*Watts*CF_Altit -> 2460 | E65: =ROUND(((D65/Watts)/(($S$9-$S$10)*1.163))*$E$14,IF($X$4=1,0,IF($X$4=2,2))) -> 212 | F65: =($Y$66*(E65/$E$14)^$Y$68)*$F$14 -> 1.64 | G65: =(Z65*($W$11^R65))*Watts*CF_Altit -> 529 | H65: =((G65/Watts)/(IF((237.3*LN((RH*EXP(17.27*(Tl_cool/(Tl_cool+237.3))))))/(17.27-LN((RH*EXP(17.27*(Tl_cool/(Tl_cool+237.3))))))<Tavg_cold,1,IF(1/(1+((2258*((0.622/(($Z$11/(1*611*EXP(17.27*(Tavg_cold/(Tavg_cold+237.3))))))-1)*1000-(0.622/(($Z$11/(RH*611*EXP(17.27*(Tl_cool/(Tl_cool+237.3))))))-1)*1000))/(1005*(Tavg_cold-Tl_cool))))*1.039+((-0.000729*$C65+0.001448)*(Tl_cool-Tavg_cold)+(0.016908*$C65-0.033574))*1.039>1,1,1/(1+((2258*((0.622/(($Z$11/(1*611*EXP(17.27*(Tavg_cold/(Tavg_cold+237.3))))))-1)*1000-(0.622/(($Z$11/(RH*611*EXP(17.27*(Tl_cool/(Tl_cool+237.3))))))-1)*1000))/(1005*(Tavg_cold-Tl_cool))))*1.039+((-0.000729*$C65+0.001448)*(Tl_cool-Tavg_cold)+(0.016908*$C65-0.033574))*1.039))))*Watts -> 529 | I65: =ROUND(((H65/Watts)/((Tr_cool-Tv_cool)*1.163))*$I$14,IF($X$4=1,0,IF($X$4=2,2))) -> 228 | J65: =($AA$66*(I65/$I$14)^$AA$68)*$J$14 -> 1.88 | K65: =L65-8 -> 25.0 | L65: =AB65 -> 33.0 | M65: 4.8 | N65: =AD65*Cubics -> 142 | O65: =((($D65/Watts)/(((p_atm*0.028964)/(8.31447*(20+273.15)))*(($N65/3600)/Cubics)*(1005+1870*((0.622)/(((p_atm)/($E$12*Pvs_Heat_in))-1)))))+Tl_heat)*Celc1+Celc2 -> 71 | P65: =(Tl_cool-(($G65/Watts)/(1006*$N65*kgss)))*Celc1+Celc2 -> 16 | Q65: 1 | R65: 0.781 | S65: 0 | T65: 0 | U65: 0.781 | V65: 0 | W65: =(H65-G65)/H65 -> 0.0% | X65: 2460.22 | Y65: a | Z65: 529.396 | AA65: a | AB65: 33.0 | AC65: 4.8 | AD65: 142 | BD65: 2110.58 | BE65: a | BF65: 508.319 | BG65: a | BH65: 33.0 | BI65: 4.8 | BJ65: 142 | BK65: 2460.22 | BL65: a | BM65: 529.396 | BN65: a | BO65: =BH65 -> 33.0 | BP65: 4.8 | BQ65: 142
B66: 40% | C66: 4 | D66: =(X66*($T$11^$Q66))*Watts*CF_Altit -> 5441 | E66: =ROUND(((D66/Watts)/(($S$9-$S$10)*1.163))*$E$14,IF($X$4=1,0,IF($X$4=2,2))) -> 468 | F66: =($Y$66*(E66/$E$14)^$Y$68)*$F$14 -> 6.90 | G66: =(Z66*($W$11^R66))*Watts*CF_Altit -> 961 | H66: =((G66/Watts)/(IF((237.3*LN((RH*EXP(17.27*(Tl_cool/(Tl_cool+237.3))))))/(17.27-LN((RH*EXP(17.27*(Tl_cool/(Tl_cool+237.3))))))<Tavg_cold,1,IF(1/(1+((2258*((0.622/(($Z$11/(1*611*EXP(17.27*(Tavg_cold/(Tavg_cold+237.3))))))-1)*1000-(0.622/(($Z$11/(RH*611*EXP(17.27*(Tl_cool/(Tl_cool+237.3))))))-1)*1000))/(1005*(Tavg_cold-Tl_cool))))*1.039+((-0.000729*$C66+0.001448)*(Tl_cool-Tavg_cold)+(0.016908*$C66-0.033574))*1.039>1,1,1/(1+((2258*((0.622/(($Z$11/(1*611*EXP(17.27*(Tavg_cold/(Tavg_cold+237.3))))))-1)*1000-(0.622/(($Z$11/(RH*611*EXP(17.27*(Tl_cool/(Tl_cool+237.3))))))-1)*1000))/(1005*(Tavg_cold-Tl_cool))))*1.039+((-0.000729*$C66+0.001448)*(Tl_cool-Tavg_cold)+(0.016908*$C66-0.033574))*1.039))))*Watts -> 961 | I66: =ROUND(((H66/Watts)/((Tr_cool-Tv_cool)*1.163))*$I$14,IF($X$4=1,0,IF($X$4=2,2))) -> 413 | J66: =($AA$66*(I66/$I$14)^$AA$68)*$J$14 -> 5.50 | K66: =L66-8 -> 31.0 | L66: 39.0 | M66: 8.0 | N66: =AD66*Cubics -> 313 | O66: =((($D66/Watts)/(((p_atm*0.028964)/(8.31447*(20+273.15)))*(($N66/3600)/Cubics)*(1005+1870*((0.622)/(((p_atm)/($E$12*Pvs_Heat_in))-1)))))+Tl_heat)*Celc1+Celc2 -> 71 | P66: =(Tl_cool-(($G66/Watts)/(1006*$N66*kgss)))*Celc1+Celc2 -> 18 | Q66: 1 | R66: 0.859 | S66: 0 | T66: 0 | U66: 0.859 | V66: 0 | W66: =(H66-G66)/H66 -> 0.0% | X66: 5441.28 | Y66: 0.000101039 | Z66: 961.27 | AA66: 0.000101039 | AB66: 39.0 | AC66: 8.0 | AD66: 313 | BD66: 4209.14 | BE66: 0.000123339 | BF66: 923.09 | BG66: 2.462816134e-05 | BH66: 39.0 | BI66: 8.0 | BJ66: 313 | BK66: 5441.28 | BL66: 0.000101039 | BM66: 961.27 | BN66: =BL66 -> 0.000101039 | BO66: 39.0 | BP66: 8.0 | BQ66: 313
B67: 60% | C67: 6 | D67: =(X67*($T$11^$Q67))*Watts*CF_Altit -> 8111 | E67: =ROUND(((D67/Watts)/(($S$9-$S$10)*1.163))*$E$14,IF($X$4=1,0,IF($X$4=2,2))) -> 697 | F67: =($Y$66*(E67/$E$14)^$Y$68)*$F$14 -> 14.18 | G67: =(Z67*($W$11^R67))*Watts*CF_Altit -> 1373 | H67: =((G67/Watts)/(IF((237.3*LN((RH*EXP(17.27*(Tl_cool/(Tl_cool+237.3))))))/(17.27-LN((RH*EXP(17.27*(Tl_cool/(Tl_cool+237.3))))))<Tavg_cold,1,IF(1/(1+((2258*((0.622/(($Z$11/(1*611*EXP(17.27*(Tavg_cold/(Tavg_cold+237.3))))))-1)*1000-(0.622/(($Z$11/(RH*611*EXP(17.27*(Tl_cool/(Tl_cool+237.3))))))-1)*1000))/(1005*(Tavg_cold-Tl_cool))))*1.039+((-0.000729*$C67+0.001448)*(Tl_cool-Tavg_cold)+(0.016908*$C67-0.033574))*1.039>1,1,1/(1+((2258*((0.622/(($Z$11/(1*611*EXP(17.27*(Tavg_cold/(Tavg_cold+237.3))))))-1)*1000-(0.622/(($Z$11/(RH*611*EXP(17.27*(Tl_cool/(Tl_cool+237.3))))))-1)*1000))/(1005*(Tavg_cold-Tl_cool))))*1.039+((-0.000729*$C67+0.001448)*(Tl_cool-Tavg_cold)+(0.016908*$C67-0.033574))*1.039))))*Watts -> 1373 | I67: =ROUND(((H67/Watts)/((Tr_cool-Tv_cool)*1.163))*$I$14,IF($X$4=1,0,IF($X$4=2,2))) -> 590 | J67: =($AA$66*(I67/$I$14)^$AA$68)*$J$14 -> 10.49 | K67: =L67-8 -> 35.0 | L67: 43.0 | M67: 14.8 | N67: =AD67*Cubics -> 481 | O67: =((($D67/Watts)/(((p_atm*0.028964)/(8.31447*(20+273.15)))*(($N67/3600)/Cubics)*(1005+1870*((0.622)/(((p_atm)/($E$12*Pvs_Heat_in))-1)))))+Tl_heat)*Celc1+Celc2 -> 69 | P67: =(Tl_cool-(($G67/Watts)/(1006*$N67*kgss)))*Celc1+Celc2 -> 19 | Q67: 1 | R67: 0.883 | S67: 0 | T67: 0 | U67: 0.883 | V67: 0 | W67: =(H67-G67)/H67 -> 0.0% | X67: 8111.3 | Y67: b | Z67: 1372.83 | AA67: b | AB67: 43.0 | AC67: 14.8 | AD67: 481 | BD67: 5936.91 | BE67: b | BF67: 1327.07 | BG67: b | BH67: 43.0 | BI67: 14.8 | BJ67: 481 | BK67: 8111.3 | BL67: b | BM67: 1372.83 | BN67: b | BO67: 43.0 | BP67: 14.8 | BQ67: 481
B68: 80% | C68: 8 | D68: =(X68*($T$11^$Q68))*Watts*CF_Altit -> 10471 | E68: =ROUND(((D68/Watts)/(($S$9-$S$10)*1.163))*$E$14,IF($X$4=1,0,IF($X$4=2,2))) -> 900 | F68: =($Y$66*(E68/$E$14)^$Y$68)*$F$14 -> 22.53 | G68: =(Z68*($W$11^R68))*Watts*CF_Altit -> 1764 | H68: =((G68/Watts)/(IF((237.3*LN((RH*EXP(17.27*(Tl_cool/(Tl_cool+237.3))))))/(17.27-LN((RH*EXP(17.27*(Tl_cool/(Tl_cool+237.3))))))<Tavg_cold,1,IF(1/(1+((2258*((0.622/(($Z$11/(1*611*EXP(17.27*(Tavg_cold/(Tavg_cold+237.3))))))-1)*1000-(0.622/(($Z$11/(RH*611*EXP(17.27*(Tl_cool/(Tl_cool+237.3))))))-1)*1000))/(1005*(Tavg_cold-Tl_cool))))*1.039+((-0.000729*$C68+0.001448)*(Tl_cool-Tavg_cold)+(0.016908*$C68-0.033574))*1.039>1,1,1/(1+((2258*((0.622/(($Z$11/(1*611*EXP(17.27*(Tavg_cold/(Tavg_cold+237.3))))))-1)*1000-(0.622/(($Z$11/(RH*611*EXP(17.27*(Tl_cool/(Tl_cool+237.3))))))-1)*1000))/(1005*(Tavg_cold-Tl_cool))))*1.039+((-0.000729*$C68+0.001448)*(Tl_cool-Tavg_cold)+(0.016908*$C68-0.033574))*1.039))))*Watts -> 1764 | I68: =ROUND(((H68/Watts)/((Tr_cool-Tv_cool)*1.163))*$I$14,IF($X$4=1,0,IF($X$4=2,2))) -> 758 | J68: =($AA$66*(I68/$I$14)^$AA$68)*$J$14 -> 16.51 | K68: =L68-8 -> 42.0 | L68: 50.0 | M68: 26.2 | N68: =AD68*Cubics -> 638 | O68: =((($D68/Watts)/(((p_atm*0.028964)/(8.31447*(20+273.15)))*(($N68/3600)/Cubics)*(1005+1870*((0.622)/(((p_atm)/($E$12*Pvs_Heat_in))-1)))))+Tl_heat)*Celc1+Celc2 -> 68 | P68: =(Tl_cool-(($G68/Watts)/(1006*$N68*kgss)))*Celc1+Celc2 -> 19 | Q68: 1 | R68: 0.854 | S68: 0 | T68: 0 | U68: 0.854 | V68: 0 | W68: =(H68-G68)/H68 -> 0.0% | X68: 10470.7 | Y68: 1.81037 | Z68: 1764.11 | AA68: 1.81037 | AB68: 50.0 | AC68: 26.2 | AD68: 638 | BD68: 7294 | BE68: 1.82411 | BF68: 1720.18 | BG68: 1.89113341 | BH68: 50.0 | BI68: 26.2 | BJ68: 638 | BK68: 10470.7 | BL68: 1.81037 | BM68: 1764.11 | BN68: =BL68 -> 1.81037 | BO68: 50.0 | BP68: 26.2 | BQ68: 638
B69: 100% | C69: 10 | D69: =(X69*($T$11^$Q69))*Watts*CF_Altit -> 12519 | E69: =ROUND(((D69/Watts)/(($S$9-$S$10)*1.163))*$E$14,IF($X$4=1,0,IF($X$4=2,2))) -> 1076 | F69: =($Y$66*(E69/$E$14)^$Y$68)*$F$14 -> 31.13 | G69: =(Z69*($W$11^R69))*Watts*CF_Altit -> 2135 | H69: =((G69/Watts)/(IF((237.3*LN((RH*EXP(17.27*(Tl_cool/(Tl_cool+237.3))))))/(17.27-LN((RH*EXP(17.27*(Tl_cool/(Tl_cool+237.3))))))<Tavg_cold,1,IF(1/(1+((2258*((0.622/(($Z$11/(1*611*EXP(17.27*(Tavg_cold/(Tavg_cold+237.3))))))-1)*1000-(0.622/(($Z$11/(RH*611*EXP(17.27*(Tl_cool/(Tl_cool+237.3))))))-1)*1000))/(1005*(Tavg_cold-Tl_cool))))*1.039+((-0.000729*$C69+0.001448)*(Tl_cool-Tavg_cold)+(0.016908*$C69-0.033574))*1.039>1,1,1/(1+((2258*((0.622/(($Z$11/(1*611*EXP(17.27*(Tavg_cold/(Tavg_cold+237.3))))))-1)*1000-(0.622/(($Z$11/(RH*611*EXP(17.27*(Tl_cool/(Tl_cool+237.3))))))-1)*1000))/(1005*(Tavg_cold-Tl_cool))))*1.039+((-0.000729*$C69+0.001448)*(Tl_cool-Tavg_cold)+(0.016908*$C69-0.033574))*1.039))))*Watts -> 2135 | I69: =ROUND(((H69/Watts)/((Tr_cool-Tv_cool)*1.163))*$I$14,IF($X$4=1,0,IF($X$4=2,2))) -> 918 | J69: =($AA$66*(I69/$I$14)^$AA$68)*$J$14 -> 23.35 | K69: =L69-8 -> 45.0 | L69: 53.0 | M69: 38.8 | N69: =AD69*Cubics -> 748 | O69: =((($D69/Watts)/(((p_atm*0.028964)/(8.31447*(20+273.15)))*(($N69/3600)/Cubics)*(1005+1870*((0.622)/(((p_atm)/($E$12*Pvs_Heat_in))-1)))))+Tl_heat)*Celc1+Celc2 -> 69 | P69: =(Tl_cool-(($G69/Watts)/(1006*$N69*kgss)))*Celc1+Celc2 -> 19 | Q69: 1 | R69: 0.771 | S69: 0 | T69: 0 | U69: 0.771 | V69: 0 | W69: =(H69-G69)/H69 -> 0.0% | X69: 12519.2 | Y69: 0 | Z69: 2135.09 | AA69: 0 | AB69: 53.0 | AC69: 38.8 | AD69: 748 | BD69: 8280 | BF69: 2102.47 | BH69: 53.0 | BI69: 38.8 | BJ69: 748 | BK69: 12519.2 | BM69: 2135.09 | BO69: 53.0 | BP69: 38.8 | BQ69: 748
B70: =IF($S$7=1,NL!A69,IF(cal!$S$7=2,EN!A69,IF(cal!$S$7=3,DE!A69,IF(cal!$S$7=4,FR!A69,IF(cal!$S$7=5,NR!A69,IF(cal!$S$7=6,SP!A69,IF(cal!$S$7=7,SW!A69,IF(cal!$S$7=8,TS!A69,IF(cal!$S$7=9,ExtraTaal1!A69,IF(cal!$S$7=10,ExtraTaal2!A69,IF(cal!$S$7=11,ExtraTaal3!A69,))))))))))) -> *Values according to EN 16430 | N70: ='Clima Canal'!P71 -> v2022-12-13 | X70: H | Y70: 13 | Z70: B | AA70: 32 | AB70: L | AC70: 300 | AD70: 0 | BD70: H | BE70: =BE22 -> 13 | BF70: B | BG70: =BG22 -> 32 | BH70: L | BI70: =IF($X$4=1,300,300/2.54) -> 300 | BK70: H | BL70: =BL22 -> 13 | BM70: B | BN70: =BN22 -> 32 | BO70: L | BP70: =IF($X$4=1,300,300/2.54) -> 300
B71: =IF($S$7=1,NL!A70,IF(cal!$S$7=2,EN!A70,IF(cal!$S$7=3,DE!A70,IF(cal!$S$7=4,FR!A70,IF(cal!$S$7=5,NR!A70,IF(cal!$S$7=6,SP!A70,IF(cal!$S$7=7,SW!A70,IF(cal!$S$7=8,TS!A70,IF(cal!$S$7=9,ExtraTaal1!A70,IF(cal!$S$7=10,ExtraTaal2!A70,IF(cal!$S$7=11,ExtraTaal3!A70,))))))))))) -> **Sound power according to ISO 3741:2010
B72: =IF($S$7=1,NL!A71,IF(cal!$S$7=2,EN!A71,IF(cal!$S$7=3,DE!A71,IF(cal!$S$7=4,FR!A71,IF(cal!$S$7=5,NR!A71,IF(cal!$S$7=6,SP!A71,IF(cal!$S$7=7,SW!A71,IF(cal!$S$7=8,TS!A71,IF(cal!$S$7=9,ExtraTaal1!A71,IF(cal!$S$7=10,ExtraTaal2!A71,IF(cal!$S$7=11,ExtraTaal3!A71,))))))))))) -> ***Sound pressure with an assumed room damping of 8dB(A)

Sheet NL (hidden)
A2: Invulformulier
A4: Randvoorwaarden
A6: Temperaturen | L6: Geplaatste hoogte
A7: Verwarmen: | F7: Koelen: | Q7: Kopieer alle data
A8: ="Aanvoertemp." -> Aanvoertemp. | D8: =cal!E9 -> 75 | E8: =IF(cal!$X$4=1,"°C",IF(cal!$X$4=2,"°F")) -> °C | F8: =A8 -> Aanvoertemp. | J8: =cal!K9 -> 16 | K8: =E8 -> °C | L8: Eenheidsstelsel | Q8: SI-eenheden
A9: ="Retourtemp." -> Retourtemp. | D9: =cal!E10 -> 65 | E9: =E8 -> °C | F9: =A9 -> Retourtemp. | J9: =cal!K10 -> 18 | K9: =E8 -> °C | Q9: Imperiale-eenheden
A10: ="Ruimtetemp." -> Ruimtetemp. | D10: =cal!E11 -> 20 | E10: =E8 -> °C | F10: =A10 -> Ruimtetemp. | J10: =cal!K11 -> 27 | K10: =E8 -> °C
F11: Relatieve vochtigheid | J11: =cal!K12 -> 50%
A14: Snelheidsniveau: | B14: Stuurspanning: [V] | C14: =CONCATENATE("Warmteafgifte * ",ROUND(D8,0),"/",ROUND(D9,0),"/",ROUND(D10,0)," ["&IF(cal!$X$4=1,"W",IF(cal!$X$4=2,"Btu/h"))&"]") -> Warmteafgifte * 75/65/20 [W] | D14: ="Waterdebiet, verwarming ["&IF(cal!$X$4=1,"l/h",IF(cal!$X$4=2,"GPM"))&"]" -> Waterdebiet, verwarming [l/h] | E14: ="Waterzijdig drukverlies ["&IF(cal!$X$4=1,"kPa",IF(cal!$X$4=2,"inH2O"))&"]" -> Waterzijdig drukverlies [kPa] | F14: =CONCATENATE("Voelb. Koelcapaciteit * ",ROUND(J8,0),"/",,ROUND(J9,0),"/",,ROUND(J10,0)," ["&IF(cal!$X$4=1,"W",IF(cal!$X$4=2,"Btu/h"))&"]") -> Voelb. Koelcapaciteit * 16/18/27 [W] | G14: =CONCATENATE("Tot. koelcapaciteit ",,ROUND(J8,0),"/",,ROUND(J9,0),"/",,ROUND(J10,0)," ["&IF(cal!$X$4=1,"W",IF(cal!$X$4=2,"Btu/h"))&"]") -> Tot. koelcapaciteit 16/18/27 [W] | H14: ="Waterdebiet, koeling ["&IF(cal!$X$4=1,"l/h",IF(cal!$X$4=2,"GPM"))&"]" -> Waterdebiet, koeling [l/h] | I14: ="Waterzijdig drukverlies ["&IF(cal!$X$4=1,"kPa",IF(cal!$X$4=2,"inH2O"))&"]" -> Waterzijdig drukverlies [kPa] | J14: Geluidsdruk *** [dB(A)] | K14: Geluidsvermogen ** [dB(A)] | L14: Opgenomen elektr. vermogen [W] | M14: ="Luchtdebiet ["&IF(cal!$X$4=1,"m³/h",IF(cal!$X$4=2,"CFM"))&"]" -> Luchtdebiet [m³/h] | N14: ="Uitblaastemp. verwarming ["&IF(cal!$X$4=1,"°C",IF(cal!$X$4=2,"°F"))&"]" -> Uitblaastemp. verwarming [°C] | O14: ="Uitblaastemp. koeling ["&IF(cal!$X$4=1,"°C",IF(cal!$X$4=2,"°F"))&"]" -> Uitblaastemp. koeling [°C]
A15: =cal!$AF$1&" "&$R$15&" "&ROUND(cal!Y22,1)&IF(cal!$X$4=1," cm",IF(cal!$X$4=2," in"))&" "&$R$16&" "&ROUND(cal!AA22,1)&IF(cal!$X$4=1," cm",IF(cal!$X$4=2," in"))&" "&$R$17&" "&ROUND(cal!AC22,1)&IF(cal!$X$4=1," cm",IF(cal!$X$4=2," in"))&" (Type 1)" -> Clima Canal hoogte 13 cm breedte 32 cm lengte 70 cm (Type 1) | Q15: Temp. | R15: hoogte
Q16: verw.! | R16: breedte
Q17: koelen! | R17: lengte
A21: =cal!$AF$1&" "&$R$15&" "&ROUND(cal!Y28,1)&IF(cal!$X$4=1," cm",IF(cal!$X$4=2," in"))&" "&$R$16&" "&ROUND(cal!AA28,1)&IF(cal!$X$4=1," cm",IF(cal!$X$4=2," in"))&" "&$R$17&" "&ROUND(cal!AC28,1)&IF(cal!$X$4=1," cm",IF(cal!$X$4=2," in"))&" (Type 2)" -> Clima Canal hoogte 13 cm breedte 32 cm lengte 100 cm (Type 2)
A27: =cal!$AF$1&" "&$R$15&" "&ROUND(cal!Y34,1)&IF(cal!$X$4=1," cm",IF(cal!$X$4=2," in"))&" "&$R$16&" "&ROUND(cal!AA34,1)&IF(cal!$X$4=1," cm",IF(cal!$X$4=2," in"))&" "&$R$17&" "&ROUND(cal!AC34,1)&IF(cal!$X$4=1," cm",IF(cal!$X$4=2," in"))&" (Type 3)" -> Clima Canal hoogte 13 cm breedte 32 cm lengte 120 cm (Type 3)
A33: =cal!$AF$1&" "&$R$15&" "&ROUND(cal!Y40,1)&IF(cal!$X$4=1," cm",IF(cal!$X$4=2," in"))&" "&$R$16&" "&ROUND(cal!AA40,1)&IF(cal!$X$4=1," cm",IF(cal!$X$4=2," in"))&" "&$R$17&" "&ROUND(cal!AC40,1)&IF(cal!$X$4=1," cm",IF(cal!$X$4=2," in"))&" (Type 4)" -> Clima Canal hoogte 13 cm breedte 32 cm lengte 140 cm (Type 4)
A39: =cal!$AF$1&" "&$R$15&" "&ROUND(cal!Y46,1)&IF(cal!$X$4=1," cm",IF(cal!$X$4=2," in"))&" "&$R$16&" "&ROUND(cal!AA46,1)&IF(cal!$X$4=1," cm",IF(cal!$X$4=2," in"))&" "&$R$17&" "&ROUND(cal!AC46,1)&IF(cal!$X$4=1," cm",IF(cal!$X$4=2," in"))&" (Type 5)" -> Clima Canal hoogte 13 cm breedte 32 cm lengte 170 cm (Type 5)
A45: =cal!$AF$1&" "&$R$15&" "&ROUND(cal!Y52,1)&IF(cal!$X$4=1," cm",IF(cal!$X$4=2," in"))&" "&$R$16&" "&ROUND(cal!AA52,1)&IF(cal!$X$4=1," cm",IF(cal!$X$4=2," in"))&" "&$R$17&" "&ROUND(cal!AC52,1)&IF(cal!$X$4=1," cm",IF(cal!$X$4=2," in"))&" (Type 6)" -> Clima Canal hoogte 13 cm breedte 32 cm lengte 200 cm (Type 6)
A51: =cal!$AF$1&" "&$R$15&" "&ROUND(cal!Y58,1)&IF(cal!$X$4=1," cm",IF(cal!$X$4=2," in"))&" "&$R$16&" "&ROUND(cal!AA58,1)&IF(cal!$X$4=1," cm",IF(cal!$X$4=2," in"))&" "&$R$17&" "&ROUND(cal!AC58,1)&IF(cal!$X$4=1," cm",IF(cal!$X$4=2," in"))&" (Type 7)" -> Clima Canal hoogte 13 cm breedte 32 cm lengte 230 cm (Type 7)
A57: =cal!$AF$1&" "&$R$15&" "&ROUND(cal!Y64,1)&IF(cal!$X$4=1," cm",IF(cal!$X$4=2," in"))&" "&$R$16&" "&ROUND(cal!AA64,1)&IF(cal!$X$4=1," cm",IF(cal!$X$4=2," in"))&" "&$R$17&" "&ROUND(cal!AC64,1)&IF(cal!$X$4=1," cm",IF(cal!$X$4=2," in"))&" (Type 8)" -> Clima Canal hoogte 13 cm breedte 32 cm lengte 280 cm (Type 8)
A63: =cal!$AF$1&" "&$R$15&" "&ROUND(cal!Y70,1)&IF(cal!$X$4=1," cm",IF(cal!$X$4=2," in"))&" "&$R$16&" "&ROUND(cal!AA70,1)&IF(cal!$X$4=1," cm",IF(cal!$X$4=2," in"))&" "&$R$17&" "&ROUND(cal!AC70,1)&IF(cal!$X$4=1," cm",IF(cal!$X$4=2," in"))&" (Type 9)" -> Clima Canal hoogte 13 cm breedte 32 cm lengte 300 cm (Type 9)
A69: *Waardes gemeten volgens EN 16430 | M69: =cal!N70 -> v2022-12-13
A70: **Geluidsvermogen gemeten volgens ISO 3741:2010
A71: ***Geluidsdruk bij een aangenomen ruimtedemping van 8 dB(A)

Sheet EN (hidden)
A2: Formulary
A4: Conditions
A6: Temperatures | L6: Altitude
A7: Heating: | F7: Cooling: | Q7: Copy all data
A8: ="Inlet temp." -> Inlet temp. | D8: =cal!E9 -> 75 | E8: =IF(cal!$X$4=1,"°C",IF(cal!$X$4=2,"°F")) -> °C | F8: =A8 -> Inlet temp. | J8: =cal!K9 -> 16 | K8: =E8 -> °C | L8: Unit conversion | Q8: SI-units
A9: ="Return temp." -> Return temp. | D9: =cal!E10 -> 65 | E9: =E8 -> °C | F9: =A9 -> Return temp. | J9: =cal!K10 -> 18 | K9: =E8 -> °C | Q9: Imperial-units
A10: ="Room temp." -> Room temp. | D10: =cal!E11 -> 20 | E10: =E8 -> °C | F10: =A10 -> Room temp. | J10: =cal!K11 -> 27 | K10: =E8 -> °C
F11: Relative humidity | J11: =cal!K12 -> 50%
A14: Speed level: | B14: Control voltage [V] | C14: =CONCATENATE("Heat output * ",ROUND(D8,0),"/",ROUND(D9,0),"/",ROUND(D10,0)," ["&IF(cal!$X$4=1,"W",IF(cal!$X$4=2,"Btu/h"))&"]") -> Heat output * 75/65/20 [W] | D14: ="Water flowrate, heating ["&IF(cal!$X$4=1,"l/h",IF(cal!$X$4=2,"GPM"))&"]" -> Water flowrate, heating [l/h] | E14: ="Watersided pressure loss ["&IF(cal!$X$4=1,"kPa",IF(cal!$X$4=2,"inH2O"))&"]" -> Watersided pressure loss [kPa] | F14: =CONCATENATE("Sens. cooling capacity * ",ROUND(J8,0),"/",ROUND(J9,0),"/",ROUND(J10,0)," ["&IF(cal!$X$4=1,"W",IF(cal!$X$4=2,"Btu/h"))&"]") -> Sens. cooling capacity * 16/18/27 [W] | G14: =CONCATENATE("Tot. cooling capacity ",ROUND(J8,0),"/",ROUND(J9,0),"/",ROUND(J10,0)," ["&IF(cal!$X$4=1,"W",IF(cal!$X$4=2,"Btu/h"))&"]") -> Tot. cooling capacity 16/18/27 [W] | H14: ="Water flowrate, cooling ["&IF(cal!$X$4=1,"l/h",IF(cal!$X$4=2,"GPM"))&"]" -> Water flowrate, cooling [l/h] | I14: ="Watersided pressure loss ["&IF(cal!$X$4=1,"kPa",IF(cal!$X$4=2,"inH2O"))&"]" -> Watersided pressure loss [kPa] | J14: Sound pressure *** [dB(A)] | K14: Sound power ** [dB(A)] | L14: Electrical power [W] | M14: ="Air flowrate ["&IF(cal!$X$4=1,"m³/h",IF(cal!$X$4=2,"CFM"))&"]" -> Air flowrate [m³/h] | N14: ="Air exhaust temp. heating ["&IF(cal!$X$4=1,"°C",IF(cal!$X$4=2,"°F"))&"]" -> Air exhaust temp. heating [°C] | O14: ="Air exhaust temp. cooling ["&IF(cal!$X$4=1,"°C",IF(cal!$X$4=2,"°F"))&"]" -> Air exhaust temp. cooling [°C]
A15: =cal!$AF$1&" "&$R$15&" "&ROUND(cal!Y22,1)&IF(cal!$X$4=1," cm",IF(cal!$X$4=2," in"))&" "&$R$16&" "&ROUND(cal!AA22,1)&IF(cal!$X$4=1," cm",IF(cal!$X$4=2," in"))&" "&$R$17&" "&ROUND(cal!AC22,1)&IF(cal!$X$4=1," cm",IF(cal!$X$4=2," in"))&" (Type 1)" -> Clima Canal height 13 cm width 32 cm length 70 cm (Type 1) | Q15: Temp. | R15: height
Q16: heating! | R16: width
Q17: cooling! | R17: length
A21: =cal!$AF$1&" "&$R$15&" "&ROUND(cal!Y28,1)&IF(cal!$X$4=1," cm",IF(cal!$X$4=2," in"))&" "&$R$16&" "&ROUND(cal!AA28,1)&IF(cal!$X$4=1," cm",IF(cal!$X$4=2," in"))&" "&$R$17&" "&ROUND(cal!AC28,1)&IF(cal!$X$4=1," cm",IF(cal!$X$4=2," in"))&" (Type 2)" -> Clima Canal height 13 cm width 32 cm length 100 cm (Type 2)
A27: =cal!$AF$1&" "&$R$15&" "&ROUND(cal!Y34,1)&IF(cal!$X$4=1," cm",IF(cal!$X$4=2," in"))&" "&$R$16&" "&ROUND(cal!AA34,1)&IF(cal!$X$4=1," cm",IF(cal!$X$4=2," in"))&" "&$R$17&" "&ROUND(cal!AC34,1)&IF(cal!$X$4=1," cm",IF(cal!$X$4=2," in"))&" (Type 3)" -> Clima Canal height 13 cm width 32 cm length 120 cm (Type 3)
A33: =cal!$AF$1&" "&$R$15&" "&ROUND(cal!Y40,1)&IF(cal!$X$4=1," cm",IF(cal!$X$4=2," in"))&" "&$R$16&" "&ROUND(cal!AA40,1)&IF(cal!$X$4=1," cm",IF(cal!$X$4=2," in"))&" "&$R$17&" "&ROUND(cal!AC40,1)&IF(cal!$X$4=1," cm",IF(cal!$X$4=2," in"))&" (Type 4)" -> Clima Canal height 13 cm width 32 cm length 140 cm (Type 4)
A39: =cal!$AF$1&" "&$R$15&" "&ROUND(cal!Y46,1)&IF(cal!$X$4=1," cm",IF(cal!$X$4=2," in"))&" "&$R$16&" "&ROUND(cal!AA46,1)&IF(cal!$X$4=1," cm",IF(cal!$X$4=2," in"))&" "&$R$17&" "&ROUND(cal!AC46,1)&IF(cal!$X$4=1," cm",IF(cal!$X$4=2," in"))&" (Type 5)" -> Clima Canal height 13 cm width 32 cm length 170 cm (Type 5)
A45: =cal!$AF$1&" "&$R$15&" "&ROUND(cal!Y52,1)&IF(cal!$X$4=1," cm",IF(cal!$X$4=2," in"))&" "&$R$16&" "&ROUND(cal!AA52,1)&IF(cal!$X$4=1," cm",IF(cal!$X$4=2," in"))&" "&$R$17&" "&ROUND(cal!AC52,1)&IF(cal!$X$4=1," cm",IF(cal!$X$4=2," in"))&" (Type 6)" -> Clima Canal height 13 cm width 32 cm length 200 cm (Type 6)
A51: =cal!$AF$1&" "&$R$15&" "&ROUND(cal!Y58,1)&IF(cal!$X$4=1," cm",IF(cal!$X$4=2," in"))&" "&$R$16&" "&ROUND(cal!AA58,1)&IF(cal!$X$4=1," cm",IF(cal!$X$4=2," in"))&" "&$R$17&" "&ROUND(cal!AC58,1)&IF(cal!$X$4=1," cm",IF(cal!$X$4=2," in"))&" (Type 7)" -> Clima Canal height 13 cm width 32 cm length 230 cm (Type 7)
A57: =cal!$AF$1&" "&$R$15&" "&ROUND(cal!Y64,1)&IF(cal!$X$4=1," cm",IF(cal!$X$4=2," in"))&" "&$R$16&" "&ROUND(cal!AA64,1)&IF(cal!$X$4=1," cm",IF(cal!$X$4=2," in"))&" "&$R$17&" "&ROUND(cal!AC64,1)&IF(cal!$X$4=1," cm",IF(cal!$X$4=2," in"))&" (Type 8)" -> Clima Canal height 13 cm width 32 cm length 280 cm (Type 8)
A63: =cal!$AF$1&" "&$R$15&" "&ROUND(cal!Y70,1)&IF(cal!$X$4=1," cm",IF(cal!$X$4=2," in"))&" "&$R$16&" "&ROUND(cal!AA70,1)&IF(cal!$X$4=1," cm",IF(cal!$X$4=2," in"))&" "&$R$17&" "&ROUND(cal!AC70,1)&IF(cal!$X$4=1," cm",IF(cal!$X$4=2," in"))&" (Type 9)" -> Clima Canal height 13 cm width 32 cm length 300 cm (Type 9)
A69: *Values according to EN 16430 | M69: =cal!N70 -> v2022-12-13
A70: **Sound power according to ISO 3741:2010
A71: ***Sound pressure with an assumed room damping of 8dB(A)

Sheet DE (hidden)
A2: Eingabefelder
A4: Auslegungsrandbedingungen
A6: Temperaturen | L6: Platzierte Höhe
A7: Heizen: | F7: Kühlen: | Q7: Kopieren Sie alle daten
A8: ="Vorlauftemp." -> Vorlauftemp. | D8: =cal!E9 -> 75 | E8: =IF(cal!$X$4=1,"°C",IF(cal!$X$4=2,"°F")) -> °C | F8: =A8 -> Vorlauftemp. | J8: =cal!K9 -> 16 | K8: =E8 -> °C | L8: Einheiten | Q8: SI-einheiten
A9: ="Rücklauftemp." -> Rücklauftemp. | D9: =cal!E10 -> 65 | E9: =E8 -> °C | F9: =A9 -> Rücklauftemp. | J9: =cal!K10 -> 18 | K9: =E8 -> °C | Q9: Imperiale-einheiten
A10: ="Raumtemp." -> Raumtemp. | D10: =cal!E11 -> 20 | E10: =E8 -> °C | F10: =A10 -> Raumtemp. | J10: =cal!K11 -> 27 | K10: =E8 -> °C
F11: Relative Luftfeuchtigkeit | J11: =cal!K12 -> 50%
A14: Drehzahlstufe: | B14: Regelspannung: [V] | C14: =CONCATENATE("Wärmeleistung * ",ROUND(D8,0),"/",ROUND(D9,0),"/",ROUND(D10,0)," ["&IF(cal!$X$4=1,"W",IF(cal!$X$4=2,"Btu/h"))&"]") -> Wärmeleistung * 75/65/20 [W] | D14: ="Heizmittelstrom ["&IF(cal!$X$4=1,"l/h",IF(cal!$X$4=2,"GPM"))&"]" -> Heizmittelstrom [l/h] | E14: ="zug. wassers. Druckverlust ["&IF(cal!$X$4=1,"kPa",IF(cal!$X$4=2,"inH2O"))&"]" -> zug. wassers. Druckverlust [kPa] | F14: =CONCATENATE("Sens. Kälteleistung * ",ROUND(J8,0),"/",ROUND(J9,0),"/",ROUND(J10,0)," ["&IF(cal!$X$4=1,"W",IF(cal!$X$4=2,"Btu/h"))&"]") -> Sens. Kälteleistung * 16/18/27 [W] | G14: =CONCATENATE("Tot. Kälteleistung ",ROUND(J8,0),"/",ROUND(J9,0),"/",ROUND(J10,0)," ["&IF(cal!$X$4=1,"W",IF(cal!$X$4=2,"Btu/h"))&"]") -> Tot. Kälteleistung 16/18/27 [W] | H14: ="Kühlmittelstrom ["&IF(cal!$X$4=1,"l/h",IF(cal!$X$4=2,"GPM"))&"]" -> Kühlmittelstrom [l/h] | I14: ="zug. wassers. Druckverlust ["&IF(cal!$X$4=1,"kPa",IF(cal!$X$4=2,"inH2O"))&"]" -> zug. wassers. Druckverlust [kPa] | J14: Schalldruckpegel *** [dB(A)] | K14: Schallleistungspegel ** [dB(A)] | L14: Leistungsaufnahme [W] | M14: ="Luftvolumenstrom ["&IF(cal!$X$4=1,"m³/h",IF(cal!$X$4=2,"CFM"))&"]" -> Luftvolumenstrom [m³/h] | N14: ="Luftaustrittstemp. Heizung ["&IF(cal!$X$4=1,"°C",IF(cal!$X$4=2,"°F"))&"]" -> Luftaustrittstemp. Heizung [°C] | O14: ="Luftaustrittstemp. kühlung ["&IF(cal!$X$4=1,"°C",IF(cal!$X$4=2,"°F"))&"]" -> Luftaustrittstemp. kühlung [°C]
A15: =cal!$AF$1&" "&$R$15&" "&ROUND(cal!Y22,1)&IF(cal!$X$4=1," cm",IF(cal!$X$4=2," in"))&" "&$R$16&" "&ROUND(cal!AA22,1)&IF(cal!$X$4=1," cm",IF(cal!$X$4=2," in"))&" "&$R$17&" "&ROUND(cal!AC22,1)&IF(cal!$X$4=1," cm",IF(cal!$X$4=2," in"))&" (Type 1)" -> Clima Canal höhe 13 cm breite 32 cm länge 70 cm (Type 1) | Q15: Temp. | R15: höhe
Q16: heizen! | R16: breite
Q17: kühlen! | R17: länge
A21: =cal!$AF$1&" "&$R$15&" "&ROUND(cal!Y28,1)&IF(cal!$X$4=1," cm",IF(cal!$X$4=2," in"))&" "&$R$16&" "&ROUND(cal!AA28,1)&IF(cal!$X$4=1," cm",IF(cal!$X$4=2," in"))&" "&$R$17&" "&ROUND(cal!AC28,1)&IF(cal!$X$4=1," cm",IF(cal!$X$4=2," in"))&" (Type 2)" -> Clima Canal höhe 13 cm breite 32 cm länge 100 cm (Type 2)
A27: =cal!$AF$1&" "&$R$15&" "&ROUND(cal!Y34,1)&IF(cal!$X$4=1," cm",IF(cal!$X$4=2," in"))&" "&$R$16&" "&ROUND(cal!AA34,1)&IF(cal!$X$4=1," cm",IF(cal!$X$4=2," in"))&" "&$R$17&" "&ROUND(cal!AC34,1)&IF(cal!$X$4=1," cm",IF(cal!$X$4=2," in"))&" (Type 3)" -> Clima Canal höhe 13 cm breite 32 cm länge 120 cm (Type 3)
A33: =cal!$AF$1&" "&$R$15&" "&ROUND(cal!Y40,1)&IF(cal!$X$4=1," cm",IF(cal!$X$4=2," in"))&" "&$R$16&" "&ROUND(cal!AA40,1)&IF(cal!$X$4=1," cm",IF(cal!$X$4=2," in"))&" "&$R$17&" "&ROUND(cal!AC40,1)&IF(cal!$X$4=1," cm",IF(cal!$X$4=2," in"))&" (Type 4)" -> Clima Canal höhe 13 cm breite 32 cm länge 140 cm (Type 4)
A39: =cal!$AF$1&" "&$R$15&" "&ROUND(cal!Y46,1)&IF(cal!$X$4=1," cm",IF(cal!$X$4=2," in"))&" "&$R$16&" "&ROUND(cal!AA46,1)&IF(cal!$X$4=1," cm",IF(cal!$X$4=2," in"))&" "&$R$17&" "&ROUND(cal!AC46,1)&IF(cal!$X$4=1," cm",IF(cal!$X$4=2," in"))&" (Type 5)" -> Clima Canal höhe 13 cm breite 32 cm länge 170 cm (Type 5)
A45: =cal!$AF$1&" "&$R$15&" "&ROUND(cal!Y52,1)&IF(cal!$X$4=1," cm",IF(cal!$X$4=2," in"))&" "&$R$16&" "&ROUND(cal!AA52,1)&IF(cal!$X$4=1," cm",IF(cal!$X$4=2," in"))&" "&$R$17&" "&ROUND(cal!AC52,1)&IF(cal!$X$4=1," cm",IF(cal!$X$4=2," in"))&" (Type 6)" -> Clima Canal höhe 13 cm breite 32 cm länge 200 cm (Type 6)
A51: =cal!$AF$1&" "&$R$15&" "&ROUND(cal!Y58,1)&IF(cal!$X$4=1," cm",IF(cal!$X$4=2," in"))&" "&$R$16&" "&ROUND(cal!AA58,1)&IF(cal!$X$4=1," cm",IF(cal!$X$4=2," in"))&" "&$R$17&" "&ROUND(cal!AC58,1)&IF(cal!$X$4=1," cm",IF(cal!$X$4=2," in"))&" (Type 7)" -> Clima Canal höhe 13 cm breite 32 cm länge 230 cm (Type 7)
A57: =cal!$AF$1&" "&$R$15&" "&ROUND(cal!Y64,1)&IF(cal!$X$4=1," cm",IF(cal!$X$4=2," in"))&" "&$R$16&" "&ROUND(cal!AA64,1)&IF(cal!$X$4=1," cm",IF(cal!$X$4=2," in"))&" "&$R$17&" "&ROUND(cal!AC64,1)&IF(cal!$X$4=1," cm",IF(cal!$X$4=2," in"))&" (Type 8)" -> Clima Canal höhe 13 cm breite 32 cm länge 280 cm (Type 8)
A63: =cal!$AF$1&" "&$R$15&" "&ROUND(cal!Y70,1)&IF(cal!$X$4=1," cm",IF(cal!$X$4=2," in"))&" "&$R$16&" "&ROUND(cal!AA70,1)&IF(cal!$X$4=1," cm",IF(cal!$X$4=2," in"))&" "&$R$17&" "&ROUND(cal!AC70,1)&IF(cal!$X$4=1," cm",IF(cal!$X$4=2," in"))&" (Type 9)" -> Clima Canal höhe 13 cm breite 32 cm länge 300 cm (Type 9)
A69: *Leistungsangaben nach EN 16430 | M69: =cal!N70 -> v2022-12-13
A70: **Schallleistungspegel nach ISO 3741:2010
A71: ***Schalldruckpegel bei angenommener Raumdämpfung von 8dB(A)

Sheet FR (hidden)
A2: Formulaire
A4: Conditions
A6: Températures | L6: Hauteur placée
A7: Chauffer: | F7: Refroidir: | Q7: Copier toutes des données
A8: ="Temp. entrée" -> Temp. entrée | D8: =cal!E9 -> 75 | E8: =IF(cal!$X$4=1,"°C",IF(cal!$X$4=2,"°F")) -> °C | F8: =A8 -> Temp. entrée | J8: =cal!K9 -> 16 | K8: =E8 -> °C | L8: Système unitaire | Q8: Unités-SI
A9: ="Temp. retour" -> Temp. retour | D9: =cal!E10 -> 65 | E9: =E8 -> °C | F9: =A9 -> Temp. retour | J9: =cal!K10 -> 18 | K9: =E8 -> °C | Q9: Unités-Impériales
A10: ="Temp. ambiante" -> Temp. ambiante | D10: =cal!E11 -> 20 | E10: =E8 -> °C | F10: =A10 -> Temp. ambiante | J10: =cal!K11 -> 27 | K10: =E8 -> °C
F11: Humidité relative | J11: =cal!K12 -> 50%
A14: Niveau de vitesse | B14: Voltage [V] | C14: =CONCATENATE("Puissance de cha. * ",ROUND(D8,0),"/",ROUND(D9,0),"/",ROUND(D10,0)," ["&IF(cal!$X$4=1,"W",IF(cal!$X$4=2,"Btu/h"))&"]") -> Puissance de cha. * 75/65/20 [W] | D14: ="Débit d'eau, chauffer ["&IF(cal!$X$4=1,"l/h",IF(cal!$X$4=2,"GPM"))&"]" -> Débit d'eau, chauffer [l/h] | E14: ="Perte de charge ["&IF(cal!$X$4=1,"kPa",IF(cal!$X$4=2,"inH2O"))&"]" -> Perte de charge [kPa] | F14: =CONCATENATE("Puissance sens. de refr. * ",ROUND(J8,0),"/",ROUND(J9,0),"/",ROUND(J10,0)," ["&IF(cal!$X$4=1,"W",IF(cal!$X$4=2,"Btu/h"))&"]") -> Puissance sens. de refr. * 16/18/27 [W] | G14: =CONCATENATE("Puissance tot. de refr. ",ROUND(J8,0),"/",ROUND(J9,0),"/",ROUND(J10,0)," ["&IF(cal!$X$4=1,"W",IF(cal!$X$4=2,"Btu/h"))&"]") -> Puissance tot. de refr. 16/18/27 [W] | H14: ="Débit d'eau, refroidir ["&IF(cal!$X$4=1,"l/h",IF(cal!$X$4=2,"GPM"))&"]" -> Débit d'eau, refroidir [l/h] | I14: ="Perte de charge ["&IF(cal!$X$4=1,"kPa",IF(cal!$X$4=2,"inH2O"))&"]" -> Perte de charge [kPa] | J14: Pression sonore *** [dB(A)] | K14: Puissance sonore ** [dB(A)] | L14: Puissance absorbée [W] | M14: ="Débit d'air ["&IF(cal!$X$4=1,"m³/h",IF(cal!$X$4=2,"CFM"))&"]" -> Débit d'air [m³/h] | N14: ="Temp. de la sortie d'air cha. ["&IF(cal!$X$4=1,"°C",IF(cal!$X$4=2,"°F"))&"]" -> Temp. de la sortie d'air cha. [°C] | O14: ="Temp. de la sortie d'air refr. ["&IF(cal!$X$4=1,"°C",IF(cal!$X$4=2,"°F"))&"]" -> Temp. de la sortie d'air refr. [°C]
A15: =cal!$AF$1&" "&$R$15&" "&ROUND(cal!Y22,1)&IF(cal!$X$4=1," cm",IF(cal!$X$4=2," in"))&" "&$R$16&" "&ROUND(cal!AA22,1)&IF(cal!$X$4=1," cm",IF(cal!$X$4=2," in"))&" "&$R$17&" "&ROUND(cal!AC22,1)&IF(cal!$X$4=1," cm",IF(cal!$X$4=2," in"))&" (Type 1)" -> Clima Canal hauteur 13 cm largeur 32 cm longueur 70 cm (Type 1) | Q15: Temp. | R15: hauteur
Q16: chauf.! | R16: largeur
Q17: refr.! | R17: longueur
A21: =cal!$AF$1&" "&$R$15&" "&ROUND(cal!Y28,1)&IF(cal!$X$4=1," cm",IF(cal!$X$4=2," in"))&" "&$R$16&" "&ROUND(cal!AA28,1)&IF(cal!$X$4=1," cm",IF(cal!$X$4=2," in"))&" "&$R$17&" "&ROUND(cal!AC28,1)&IF(cal!$X$4=1," cm",IF(cal!$X$4=2," in"))&" (Type 2)" -> Clima Canal hauteur 13 cm largeur 32 cm longueur 100 cm (Type 2)
A27: =cal!$AF$1&" "&$R$15&" "&ROUND(cal!Y34,1)&IF(cal!$X$4=1," cm",IF(cal!$X$4=2," in"))&" "&$R$16&" "&ROUND(cal!AA34,1)&IF(cal!$X$4=1," cm",IF(cal!$X$4=2," in"))&" "&$R$17&" "&ROUND(cal!AC34,1)&IF(cal!$X$4=1," cm",IF(cal!$X$4=2," in"))&" (Type 3)" -> Clima Canal hauteur 13 cm largeur 32 cm longueur 120 cm (Type 3)
A33: =cal!$AF$1&" "&$R$15&" "&ROUND(cal!Y40,1)&IF(cal!$X$4=1," cm",IF(cal!$X$4=2," in"))&" "&$R$16&" "&ROUND(cal!AA40,1)&IF(cal!$X$4=1," cm",IF(cal!$X$4=2," in"))&" "&$R$17&" "&ROUND(cal!AC40,1)&IF(cal!$X$4=1," cm",IF(cal!$X$4=2," in"))&" (Type 4)" -> Clima Canal hauteur 13 cm largeur 32 cm longueur 140 cm (Type 4)
A39: =cal!$AF$1&" "&$R$15&" "&ROUND(cal!Y46,1)&IF(cal!$X$4=1," cm",IF(cal!$X$4=2," in"))&" "&$R$16&" "&ROUND(cal!AA46,1)&IF(cal!$X$4=1," cm",IF(cal!$X$4=2," in"))&" "&$R$17&" "&ROUND(cal!AC46,1)&IF(cal!$X$4=1," cm",IF(cal!$X$4=2," in"))&" (Type 5)" -> Clima Canal hauteur 13 cm largeur 32 cm longueur 170 cm (Type 5)
A45: =cal!$AF$1&" "&$R$15&" "&ROUND(cal!Y52,1)&IF(cal!$X$4=1," cm",IF(cal!$X$4=2," in"))&" "&$R$16&" "&ROUND(cal!AA52,1)&IF(cal!$X$4=1," cm",IF(cal!$X$4=2," in"))&" "&$R$17&" "&ROUND(cal!AC52,1)&IF(cal!$X$4=1," cm",IF(cal!$X$4=2," in"))&" (Type 6)" -> Clima Canal hauteur 13 cm largeur 32 cm longueur 200 cm (Type 6)
A51: =cal!$AF$1&" "&$R$15&" "&ROUND(cal!Y58,1)&IF(cal!$X$4=1," cm",IF(cal!$X$4=2," in"))&" "&$R$16&" "&ROUND(cal!AA58,1)&IF(cal!$X$4=1," cm",IF(cal!$X$4=2," in"))&" "&$R$17&" "&ROUND(cal!AC58,1)&IF(cal!$X$4=1," cm",IF(cal!$X$4=2," in"))&" (Type 7)" -> Clima Canal hauteur 13 cm largeur 32 cm longueur 230 cm (Type 7)
A57: =cal!$AF$1&" "&$R$15&" "&ROUND(cal!Y64,1)&IF(cal!$X$4=1," cm",IF(cal!$X$4=2," in"))&" "&$R$16&" "&ROUND(cal!AA64,1)&IF(cal!$X$4=1," cm",IF(cal!$X$4=2," in"))&" "&$R$17&" "&ROUND(cal!AC64,1)&IF(cal!$X$4=1," cm",IF(cal!$X$4=2," in"))&" (Type 8)" -> Clima Canal hauteur 13 cm largeur 32 cm longueur 280 cm (Type 8)
A63: =cal!$AF$1&" "&$R$15&" "&ROUND(cal!Y70,1)&IF(cal!$X$4=1," cm",IF(cal!$X$4=2," in"))&" "&$R$16&" "&ROUND(cal!AA70,1)&IF(cal!$X$4=1," cm",IF(cal!$X$4=2," in"))&" "&$R$17&" "&ROUND(cal!AC70,1)&IF(cal!$X$4=1," cm",IF(cal!$X$4=2," in"))&" (Type 9)" -> Clima Canal hauteur 13 cm largeur 32 cm longueur 300 cm (Type 9)
A69: *Testé selon EN 16430 | M69: =cal!N70 -> v2022-12-13
A70: **Puissance sonore testé selon ISO 3741:2010
A71: ***Pression sonore avec une atténuation ambiante du 8dB(A)

Sheet NR (hidden)
A2: Modell
A4: Conditions
A6: Temperaturer | L6: Plassert høyde
A7: Varme: | F7: Kjøling: | Q7: Kopier alle data
A8: Tur vanntemp. | B8: 0 | C8: 0 | D8: =cal!E9 -> 75 | E8: =IF(cal!$X$4=1,"°C",IF(cal!$X$4=2,"°F")) -> °C | F8: =A8 -> Tur vanntemp. | J8: =cal!K9 -> 16 | K8: =E8 -> °C | L8: Enhetssystem | Q8: SI-enheter
A9: Retur vanntemp. | B9: 0 | C9: 0 | D9: =cal!E10 -> 65 | E9: =E8 -> °C | F9: =A9 -> Retur vanntemp. | J9: =cal!K10 -> 18 | K9: =E8 -> °C | Q9: Imperiale-enheter
A10: Rom temp. | B10: 0 | C10: 0 | D10: =cal!E11 -> 20 | E10: =E8 -> °C | F10: =A10 -> Rom temp. | J10: =cal!K11 -> 27 | K10: =E8 -> °C
F11: Relativ fuktighet | J11: =cal!K12 -> 50%
A14: Hastighet: | B14: Styresignal[V] | C14: =CONCATENATE("Varme effekt * ",ROUND(D8,0),"/",ROUND(D9,0),"/",ROUND(D10,0)," ["&IF(cal!$X$4=1,"W",IF(cal!$X$4=2,"Btu/h"))&"]") -> Varme effekt * 75/65/20 [W] | D14: ="Vannmengde, varme ["&IF(cal!$X$4=1,"l/h",IF(cal!$X$4=2,"GPM"))&"]" -> Vannmengde, varme [l/h] | E14: ="Trykktap ["&IF(cal!$X$4=1,"kPa",IF(cal!$X$4=2,"ftH2O"))&"]" -> Trykktap [kPa] | F14: =CONCATENATE("Sens. Kjøling effekt * ",ROUND(J8,0),"/",ROUND(J9,0),"/",ROUND(J10,0)," ["&IF(cal!$X$4=1,"W",IF(cal!$X$4=2,"Btu/h"))&"]") -> Sens. Kjøling effekt * 16/18/27 [W] | G14: =CONCATENATE("Tot. Kjøle effekt * ",ROUND(J8,0),"/",ROUND(J9,0),"/",ROUND(J10,0)," ["&IF(cal!$X$4=1,"W",IF(cal!$X$4=2,"Btu/h"))&"]") -> Tot. Kjøle effekt * 16/18/27 [W] | H14: ="Vannmengde, kjøling ["&IF(cal!$X$4=1,"l/h",IF(cal!$X$4=2,"GPM"))&"]" -> Vannmengde, kjøling [l/h] | I14: =E14 -> Trykktap [kPa] | J14: Lydtrykk *** [dB(A)] | K14: Lydeffekt ** [dB(A)] | L14: Elektrisk effekt [W] | M14: ="Luftmengde ["&IF(cal!$X$4=1,"m³/h",IF(cal!$X$4=2,"CFM"))&"]" -> Luftmengde [m³/h] | N14: ="Utluft temperatur, Varme ["&IF(cal!$X$4=1,"°C",IF(cal!$X$4=2,"°F"))&"]" -> Utluft temperatur, Varme [°C] | O14: ="Utluft temperatur, Kjøling ["&IF(cal!$X$4=1,"°C",IF(cal!$X$4=2,"°F"))&"]" -> Utluft temperatur, Kjøling [°C]
A15: =cal!$AF$1&" "&$R$15&" "&ROUND(cal!Y22,1)&IF(cal!$X$4=1," cm",IF(cal!$X$4=2," in"))&" "&$R$16&" "&ROUND(cal!AA22,1)&IF(cal!$X$4=1," cm",IF(cal!$X$4=2," in"))&" "&$R$17&" "&ROUND(cal!AC22,1)&IF(cal!$X$4=1," cm",IF(cal!$X$4=2," in"))&" (Type 1)" -> Clima Canal høyde 13 cm bredde 32 cm lengde 70 cm (Type 1) | Q15: Temp. | R15: høyde
Q16: varme! | R16: bredde
Q17: kjøling! | R17: lengde
A21: =cal!$AF$1&" "&$R$15&" "&ROUND(cal!Y28,1)&IF(cal!$X$4=1," cm",IF(cal!$X$4=2," in"))&" "&$R$16&" "&ROUND(cal!AA28,1)&IF(cal!$X$4=1," cm",IF(cal!$X$4=2," in"))&" "&$R$17&" "&ROUND(cal!AC28,1)&IF(cal!$X$4=1," cm",IF(cal!$X$4=2," in"))&" (Type 2)" -> Clima Canal høyde 13 cm bredde 32 cm lengde 100 cm (Type 2)
A27: =cal!$AF$1&" "&$R$15&" "&ROUND(cal!Y34,1)&IF(cal!$X$4=1," cm",IF(cal!$X$4=2," in"))&" "&$R$16&" "&ROUND(cal!AA34,1)&IF(cal!$X$4=1," cm",IF(cal!$X$4=2," in"))&" "&$R$17&" "&ROUND(cal!AC34,1)&IF(cal!$X$4=1," cm",IF(cal!$X$4=2," in"))&" (Type 3)" -> Clima Canal høyde 13 cm bredde 32 cm lengde 120 cm (Type 3)
A33: =cal!$AF$1&" "&$R$15&" "&ROUND(cal!Y40,1)&IF(cal!$X$4=1," cm",IF(cal!$X$4=2," in"))&" "&$R$16&" "&ROUND(cal!AA40,1)&IF(cal!$X$4=1," cm",IF(cal!$X$4=2," in"))&" "&$R$17&" "&ROUND(cal!AC40,1)&IF(cal!$X$4=1," cm",IF(cal!$X$4=2," in"))&" (Type 4)" -> Clima Canal høyde 13 cm bredde 32 cm lengde 140 cm (Type 4)
A39: =cal!$AF$1&" "&$R$15&" "&ROUND(cal!Y46,1)&IF(cal!$X$4=1," cm",IF(cal!$X$4=2," in"))&" "&$R$16&" "&ROUND(cal!AA46,1)&IF(cal!$X$4=1," cm",IF(cal!$X$4=2," in"))&" "&$R$17&" "&ROUND(cal!AC46,1)&IF(cal!$X$4=1," cm",IF(cal!$X$4=2," in"))&" (Type 5)" -> Clima Canal høyde 13 cm bredde 32 cm lengde 170 cm (Type 5)
A45: =cal!$AF$1&" "&$R$15&" "&ROUND(cal!Y52,1)&IF(cal!$X$4=1," cm",IF(cal!$X$4=2," in"))&" "&$R$16&" "&ROUND(cal!AA52,1)&IF(cal!$X$4=1," cm",IF(cal!$X$4=2," in"))&" "&$R$17&" "&ROUND(cal!AC52,1)&IF(cal!$X$4=1," cm",IF(cal!$X$4=2," in"))&" (Type 6)" -> Clima Canal høyde 13 cm bredde 32 cm lengde 200 cm (Type 6)
A51: =cal!$AF$1&" "&$R$15&" "&ROUND(cal!Y58,1)&IF(cal!$X$4=1," cm",IF(cal!$X$4=2," in"))&" "&$R$16&" "&ROUND(cal!AA58,1)&IF(cal!$X$4=1," cm",IF(cal!$X$4=2," in"))&" "&$R$17&" "&ROUND(cal!AC58,1)&IF(cal!$X$4=1," cm",IF(cal!$X$4=2," in"))&" (Type 7)" -> Clima Canal høyde 13 cm bredde 32 cm lengde 230 cm (Type 7)
A57: =cal!$AF$1&" "&$R$15&" "&ROUND(cal!Y64,1)&IF(cal!$X$4=1," cm",IF(cal!$X$4=2," in"))&" "&$R$16&" "&ROUND(cal!AA64,1)&IF(cal!$X$4=1," cm",IF(cal!$X$4=2," in"))&" "&$R$17&" "&ROUND(cal!AC64,1)&IF(cal!$X$4=1," cm",IF(cal!$X$4=2," in"))&" (Type 8)" -> Clima Canal høyde 13 cm bredde 32 cm lengde 280 cm (Type 8)
A63: =cal!$AF$1&" "&$R$15&" "&ROUND(cal!Y70,1)&IF(cal!$X$4=1," cm",IF(cal!$X$4=2," in"))&" "&$R$16&" "&ROUND(cal!AA70,1)&IF(cal!$X$4=1," cm",IF(cal!$X$4=2," in"))&" "&$R$17&" "&ROUND(cal!AC70,1)&IF(cal!$X$4=1," cm",IF(cal!$X$4=2," in"))&" (Type 9)" -> Clima Canal høyde 13 cm bredde 32 cm lengde 300 cm (Type 9)
A69: *Testé selon EN 16430 | M69: =cal!N70 -> v2022-12-13
A70: **Puissance sonore testé selon ISO 3741:2010
A71: ***Pression sonore avec une atténuation ambiante du 8dB(A)

Sheet SP (hidden)
A2: Model
A4: Conditions
A6: Temperaturas | L6: Altitud
A7: Calefacción: | F7: Enfriamiento: | Q7: Copiar todos los datos
A8: Agua impulsión | B8: 0 | C8: 0 | D8: =cal!E9 -> 75 | E8: =IF(cal!$X$4=1,"°C",IF(cal!$X$4=2,"°F")) -> °C | F8: =A8 -> Agua impulsión | J8: =cal!K9 -> 16 | K8: =E8 -> °C | L8: Convers. de unidades | Q8: Unidades-SI
A9: Agua retorno | B9: 0 | C9: 0 | D9: =cal!E10 -> 65 | E9: =E8 -> °C | F9: =A9 -> Agua retorno | J9: =cal!K10 -> 18 | K9: =E8 -> °C | Q9: Unidades-Imperial
A10: Ambiente (bulbo seco) | B10: 0 | C10: 0 | D10: =cal!E11 -> 20 | E10: =E8 -> °C | F10: =A10 -> Ambiente (bulbo seco) | J10: =cal!K11 -> 27 | K10: =E8 -> °C
F11: Humedad relativa | J11: =cal!K12 -> 50%
A14: Nivel de velocidad: | B14: Voltaje control [V] | C14: =CONCATENATE("Emisión calefacción * ",ROUND(D8,0),"/",ROUND(D9,0),"/",ROUND(D10,0)," ["&IF(cal!$X$4=1,"W",IF(cal!$X$4=2,"Btu/h"))&"]") -> Emisión calefacción * 75/65/20 [W] | D14: ="Caudal de agua, calefacción ["&IF(cal!$X$4=1,"l/h",IF(cal!$X$4=2,"GPM"))&"]" -> Caudal de agua, calefacción [l/h] | E14: ="Pérdida de carga del agua ["&IF(cal!$X$4=1,"kPa",IF(cal!$X$4=2,"ftH2O"))&"]" -> Pérdida de carga del agua [kPa] | F14: =CONCATENATE("Emisión sensible Frío * ",ROUND(J8,0),"/",ROUND(J9,0),"/",ROUND(J10,0)," ["&IF(cal!$X$4=1,"W",IF(cal!$X$4=2,"Btu/h"))&"]") -> Emisión sensible Frío * 16/18/27 [W] | G14: =CONCATENATE("Emisión total Frío * ",ROUND(J8,0),"/",ROUND(J9,0),"/",ROUND(J10,0)," ["&IF(cal!$X$4=1,"W",IF(cal!$X$4=2,"Btu/h"))&"]") -> Emisión total Frío * 16/18/27 [W] | H14: ="Caudal de agua, calefacción ["&IF(cal!$X$4=1,"l/h",IF(cal!$X$4=2,"GPM"))&"]" -> Caudal de agua, calefacción [l/h] | I14: =E14 -> Pérdida de carga del agua [kPa] | J14: Presión sonora *** [dB(A)] | K14: Potencia sonora ** [dB(A)] | L14: Potencia eléctrica absorbida [W] | M14: ="Caudal de aire ["&IF(cal!$X$4=1,"m³/h",IF(cal!$X$4=2,"CFM"))&"]" -> Caudal de aire [m³/h] | N14: ="Temperatura salida de aire calefacción ["&IF(cal!$X$4=1,"°C",IF(cal!$X$4=2,"°F"))&"]" -> Temperatura salida de aire calefacción [°C] | O14: ="Temperatura salida de aire refrigeración ["&IF(cal!$X$4=1,"°C",IF(cal!$X$4=2,"°F"))&"]" -> Temperatura salida de aire refrigeración [°C]
A15: =cal!$AF$1&" "&$R$15&" "&ROUND(cal!Y22,1)&IF(cal!$X$4=1," cm",IF(cal!$X$4=2," in"))&" "&$R$16&" "&ROUND(cal!AA22,1)&IF(cal!$X$4=1," cm",IF(cal!$X$4=2," in"))&" "&$R$17&" "&ROUND(cal!AC22,1)&IF(cal!$X$4=1," cm",IF(cal!$X$4=2," in"))&" (Type 1)" -> Clima Canal altura 13 cm ancho 32 cm longitud 70 cm (Type 1) | Q15: Temp. | R15: altura
Q16: calefac. | R16: ancho
Q17: enfria. | R17: longitud
A21: =cal!$AF$1&" "&$R$15&" "&ROUND(cal!Y28,1)&IF(cal!$X$4=1," cm",IF(cal!$X$4=2," in"))&" "&$R$16&" "&ROUND(cal!AA28,1)&IF(cal!$X$4=1," cm",IF(cal!$X$4=2," in"))&" "&$R$17&" "&ROUND(cal!AC28,1)&IF(cal!$X$4=1," cm",IF(cal!$X$4=2," in"))&" (Type 2)" -> Clima Canal altura 13 cm ancho 32 cm longitud 100 cm (Type 2)
A27: =cal!$AF$1&" "&$R$15&" "&ROUND(cal!Y34,1)&IF(cal!$X$4=1," cm",IF(cal!$X$4=2," in"))&" "&$R$16&" "&ROUND(cal!AA34,1)&IF(cal!$X$4=1," cm",IF(cal!$X$4=2," in"))&" "&$R$17&" "&ROUND(cal!AC34,1)&IF(cal!$X$4=1," cm",IF(cal!$X$4=2," in"))&" (Type 3)" -> Clima Canal altura 13 cm ancho 32 cm longitud 120 cm (Type 3)
A33: =cal!$AF$1&" "&$R$15&" "&ROUND(cal!Y40,1)&IF(cal!$X$4=1," cm",IF(cal!$X$4=2," in"))&" "&$R$16&" "&ROUND(cal!AA40,1)&IF(cal!$X$4=1," cm",IF(cal!$X$4=2," in"))&" "&$R$17&" "&ROUND(cal!AC40,1)&IF(cal!$X$4=1," cm",IF(cal!$X$4=2," in"))&" (Type 4)" -> Clima Canal altura 13 cm ancho 32 cm longitud 140 cm (Type 4)
A39: =cal!$AF$1&" "&$R$15&" "&ROUND(cal!Y46,1)&IF(cal!$X$4=1," cm",IF(cal!$X$4=2," in"))&" "&$R$16&" "&ROUND(cal!AA46,1)&IF(cal!$X$4=1," cm",IF(cal!$X$4=2," in"))&" "&$R$17&" "&ROUND(cal!AC46,1)&IF(cal!$X$4=1," cm",IF(cal!$X$4=2," in"))&" (Type 5)" -> Clima Canal altura 13 cm ancho 32 cm longitud 170 cm (Type 5)
A45: =cal!$AF$1&" "&$R$15&" "&ROUND(cal!Y52,1)&IF(cal!$X$4=1," cm",IF(cal!$X$4=2," in"))&" "&$R$16&" "&ROUND(cal!AA52,1)&IF(cal!$X$4=1," cm",IF(cal!$X$4=2," in"))&" "&$R$17&" "&ROUND(cal!AC52,1)&IF(cal!$X$4=1," cm",IF(cal!$X$4=2," in"))&" (Type 6)" -> Clima Canal altura 13 cm ancho 32 cm longitud 200 cm (Type 6)
A51: =cal!$AF$1&" "&$R$15&" "&ROUND(cal!Y58,1)&IF(cal!$X$4=1," cm",IF(cal!$X$4=2," in"))&" "&$R$16&" "&ROUND(cal!AA58,1)&IF(cal!$X$4=1," cm",IF(cal!$X$4=2," in"))&" "&$R$17&" "&ROUND(cal!AC58,1)&IF(cal!$X$4=1," cm",IF(cal!$X$4=2," in"))&" (Type 7)" -> Clima Canal altura 13 cm ancho 32 cm longitud 230 cm (Type 7)
A57: =cal!$AF$1&" "&$R$15&" "&ROUND(cal!Y64,1)&IF(cal!$X$4=1," cm",IF(cal!$X$4=2," in"))&" "&$R$16&" "&ROUND(cal!AA64,1)&IF(cal!$X$4=1," cm",IF(cal!$X$4=2," in"))&" "&$R$17&" "&ROUND(cal!AC64,1)&IF(cal!$X$4=1," cm",IF(cal!$X$4=2," in"))&" (Type 8)" -> Clima Canal altura 13 cm ancho 32 cm longitud 280 cm (Type 8)
A63: =cal!$AF$1&" "&$R$15&" "&ROUND(cal!Y70,1)&IF(cal!$X$4=1," cm",IF(cal!$X$4=2," in"))&" "&$R$16&" "&ROUND(cal!AA70,1)&IF(cal!$X$4=1," cm",IF(cal!$X$4=2," in"))&" "&$R$17&" "&ROUND(cal!AC70,1)&IF(cal!$X$4=1," cm",IF(cal!$X$4=2," in"))&" (Type 9)" -> Clima Canal altura 13 cm ancho 32 cm longitud 300 cm (Type 9)
A69: *La potencia de enfriamiento se calcula según la norma EN 16430 con ventiladores de todas las alturas. | M69: =cal!N70 -> v2022-12-13
A70: **Potencia sonora según ISO 3741: 2010.
A71: ***Nivel de presión acústica con una amortiguación ambiental supuesta de 8 dB (A).

Sheet SW (hidden)
A2: Formulary
A4: Conditions
A6: Temperaturer | L6: Höjd över havet
A7: Värme: | F7: Kyla: | Q7: Kopiera all data
A8: Tillopp | D8: =cal!E9 -> 75 | E8: =IF(cal!$X$4=1,"°C",IF(cal!$X$4=2,"°F")) -> °C | F8: =A8 -> Tillopp | J8: =cal!K9 -> 16 | K8: =E8 -> °C | L8: Enhetssystem | Q8: SI-enheter
A9: Retur | D9: =cal!E10 -> 65 | E9: =E8 -> °C | F9: =A9 -> Retur | J9: =cal!K10 -> 18 | K9: =E8 -> °C | Q9: Imperiella-enheter
A10: Rum (torr) | D10: =cal!E11 -> 20 | E10: =E8 -> °C | F10: =A10 -> Rum (torr) | J10: =cal!K11 -> 27 | K10: =E8 -> °C
F11: rel. Fuktighet | J11: =cal!K12 -> 50%
A14: Fläkthastighet | B14: Spänning, Fläkt [V] | C14: =CONCATENATE("Värme effekt * ",ROUND(D8,0),"/",ROUND(D9,0),"/",ROUND(D10,0)," ["&IF(cal!$X$4=1,"W",IF(cal!$X$4=2,"Btu/h"))&"]") -> Värme effekt * 75/65/20 [W] | D14: ="Vattenflöde, värme ["&IF(cal!$X$4=1,"l/h",IF(cal!$X$4=2,"GPM"))&"]" -> Vattenflöde, värme [l/h] | E14: ="Tryckfall, vatten ["&IF(cal!$X$4=1,"kPa",IF(cal!$X$4=2,"inH2O"))&"]" -> Tryckfall, vatten [kPa] | F14: =CONCATENATE("Märkbar kylkapacitet * ",ROUND(J8,0),"/",ROUND(J9,0),"/",ROUND(J10,0)," ["&IF(cal!$X$4=1,"W",IF(cal!$X$4=2,"Btu/h"))&"]") -> Märkbar kylkapacitet * 16/18/27 [W] | G14: =CONCATENATE("Total kylkapacitet ",ROUND(J8,0),"/",ROUND(J9,0),"/",ROUND(J10,0)," ["&IF(cal!$X$4=1,"W",IF(cal!$X$4=2,"Btu/h"))&"]") -> Total kylkapacitet 16/18/27 [W] | H14: ="Vattenflöde, kyla ["&IF(cal!$X$4=1,"l/h",IF(cal!$X$4=2,"GPM"))&"]" -> Vattenflöde, kyla [l/h] | I14: =E14 -> Tryckfall, vatten [kPa] | J14: Ljudtryck *** [dB(A)] | K14: Ljudeffekt ** [dB(A)] | L14: Effektförbrukning [W] | M14: ="Luftflöde ["&IF(cal!$X$4=1,"m³/h",IF(cal!$X$4=2,"CFM"))&"]" -> Luftflöde [m³/h] | N14: ="Air exhaust temp. heating ["&IF(cal!$X$4=1,"°C",IF(cal!$X$4=2,"°F"))&"]" -> Air exhaust temp. heating [°C] | O14: ="Air exhaust temp. cooling ["&IF(cal!$X$4=1,"°C",IF(cal!$X$4=2,"°F"))&"]" -> Air exhaust temp. cooling [°C]
A15: =cal!$AF$1&" "&$R$15&" "&ROUND(cal!Y22,1)&IF(cal!$X$4=1," cm",IF(cal!$X$4=2," in"))&" "&$R$16&" "&ROUND(cal!AA22,1)&IF(cal!$X$4=1," cm",IF(cal!$X$4=2," in"))&" "&$R$17&" "&ROUND(cal!AC22,1)&IF(cal!$X$4=1," cm",IF(cal!$X$4=2," in"))&" (Typ 1)" -> Clima Canal höjd 13 cm djup 32 cm längd 70 cm (Typ 1) | Q15: Temp. | R15: höjd
Q16: värme! | R16: djup
Q17: kyla! | R17: längd
A21: =cal!$AF$1&" "&$R$15&" "&ROUND(cal!Y28,1)&IF(cal!$X$4=1," cm",IF(cal!$X$4=2," in"))&" "&$R$16&" "&ROUND(cal!AA28,1)&IF(cal!$X$4=1," cm",IF(cal!$X$4=2," in"))&" "&$R$17&" "&ROUND(cal!AC28,1)&IF(cal!$X$4=1," cm",IF(cal!$X$4=2," in"))&" (Typ 2)" -> Clima Canal höjd 13 cm djup 32 cm längd 100 cm (Typ 2)
A27: =cal!$AF$1&" "&$R$15&" "&ROUND(cal!Y34,1)&IF(cal!$X$4=1," cm",IF(cal!$X$4=2," in"))&" "&$R$16&" "&ROUND(cal!AA34,1)&IF(cal!$X$4=1," cm",IF(cal!$X$4=2," in"))&" "&$R$17&" "&ROUND(cal!AC34,1)&IF(cal!$X$4=1," cm",IF(cal!$X$4=2," in"))&" (Typ 3)" -> Clima Canal höjd 13 cm djup 32 cm längd 120 cm (Typ 3)
A33: =cal!$AF$1&" "&$R$15&" "&ROUND(cal!Y40,1)&IF(cal!$X$4=1," cm",IF(cal!$X$4=2," in"))&" "&$R$16&" "&ROUND(cal!AA40,1)&IF(cal!$X$4=1," cm",IF(cal!$X$4=2," in"))&" "&$R$17&" "&ROUND(cal!AC40,1)&IF(cal!$X$4=1," cm",IF(cal!$X$4=2," in"))&" (Typ 4)" -> Clima Canal höjd 13 cm djup 32 cm längd 140 cm (Typ 4)
A39: =cal!$AF$1&" "&$R$15&" "&ROUND(cal!Y46,1)&IF(cal!$X$4=1," cm",IF(cal!$X$4=2," in"))&" "&$R$16&" "&ROUND(cal!AA46,1)&IF(cal!$X$4=1," cm",IF(cal!$X$4=2," in"))&" "&$R$17&" "&ROUND(cal!AC46,1)&IF(cal!$X$4=1," cm",IF(cal!$X$4=2," in"))&" (Typ 5)" -> Clima Canal höjd 13 cm djup 32 cm längd 170 cm (Typ 5)
A45: =cal!$AF$1&" "&$R$15&" "&ROUND(cal!Y52,1)&IF(cal!$X$4=1," cm",IF(cal!$X$4=2," in"))&" "&$R$16&" "&ROUND(cal!AA52,1)&IF(cal!$X$4=1," cm",IF(cal!$X$4=2," in"))&" "&$R$17&" "&ROUND(cal!AC52,1)&IF(cal!$X$4=1," cm",IF(cal!$X$4=2," in"))&" (Typ 6)" -> Clima Canal höjd 13 cm djup 32 cm längd 200 cm (Typ 6)
A51: =cal!$AF$1&" "&$R$15&" "&ROUND(cal!Y58,1)&IF(cal!$X$4=1," cm",IF(cal!$X$4=2," in"))&" "&$R$16&" "&ROUND(cal!AA58,1)&IF(cal!$X$4=1," cm",IF(cal!$X$4=2," in"))&" "&$R$17&" "&ROUND(cal!AC58,1)&IF(cal!$X$4=1," cm",IF(cal!$X$4=2," in"))&" (Typ 7)" -> Clima Canal höjd 13 cm djup 32 cm längd 230 cm (Typ 7)
A57: =cal!$AF$1&" "&$R$15&" "&ROUND(cal!Y64,1)&IF(cal!$X$4=1," cm",IF(cal!$X$4=2," in"))&" "&$R$16&" "&ROUND(cal!AA64,1)&IF(cal!$X$4=1," cm",IF(cal!$X$4=2," in"))&" "&$R$17&" "&ROUND(cal!AC64,1)&IF(cal!$X$4=1," cm",IF(cal!$X$4=2," in"))&" (Typ 8)" -> Clima Canal höjd 13 cm djup 32 cm längd 280 cm (Typ 8)
A63: =cal!$AF$1&" "&$R$15&" "&ROUND(cal!Y70,1)&IF(cal!$X$4=1," cm",IF(cal!$X$4=2," in"))&" "&$R$16&" "&ROUND(cal!AA70,1)&IF(cal!$X$4=1," cm",IF(cal!$X$4=2," in"))&" "&$R$17&" "&ROUND(cal!AC70,1)&IF(cal!$X$4=1," cm",IF(cal!$X$4=2," in"))&" (Typ 9)" -> Clima Canal höjd 13 cm djup 32 cm längd 300 cm (Typ 9)
A69: *Värden enligt EN16430 | M69: =cal!N70 -> v2022-12-13
A70: **Ljudeffekt enligt ISO 3741: 2010
A71: ***Ljudtryck med en antagen rumsdämpning på 8dB (A),

Sheet TS (hidden)
A2: Formulary
A4: Conditions
A6: Teploty | L6: Výška umístění
A7: Topení: | F7: Chlazení: | Q7: Kopírovat všechna data
A8: Voda na přívodu | D8: =cal!E9 -> 75 | E8: =IF(cal!$X$4=1,"°C",IF(cal!$X$4=2,"°F")) -> °C | F8: =A8 -> Voda na přívodu | J8: =cal!K9 -> 16 | K8: =E8 -> °C | L8: Převod jednotek | Q8: Mezinárodní (Sl)
A9: Voda na zpátečce | D9: =cal!E10 -> 65 | E9: =E8 -> °C | F9: =A9 -> Voda na zpátečce | J9: =cal!K10 -> 18 | K9: =E8 -> °C | Q9: Imperiální
A10: "Suchá" Teplota vzduchu | D10: =cal!E11 -> 20 | E10: =E8 -> °C | F10: =A10 -> "Suchá" Teplota vzduchu | J10: =cal!K11 -> 27 | K10: =E8 -> °C
F11: Relativní vlhkost | J11: =cal!K12 -> 50%
A14: Rychlost | B14: Ovládací napětí [V] | C14: =CONCATENATE("Výkon Topení * ",ROUND(D8,0),"/",ROUND(D9,0),"/",ROUND(D10,0)," ["&IF(cal!$X$4=1,"W",IF(cal!$X$4=2,"Btu/h"))&"]") -> Výkon Topení * 75/65/20 [W] | D14: ="Průtok vody, topení ["&IF(cal!$X$4=1,"l/h",IF(cal!$X$4=2,"GPM"))&"]" -> Průtok vody, topení [l/h] | E14: ="Tlaková ztráta ["&IF(cal!$X$4=1,"kPa",IF(cal!$X$4=2,"inH2O"))&"]" -> Tlaková ztráta [kPa] | F14: =CONCATENATE("Výkon chlazení Znatelný * ",ROUND(J8,0),"/",ROUND(J9,0),"/",ROUND(J10,0)," ["&IF(cal!$X$4=1,"W",IF(cal!$X$4=2,"Btu/h"))&"]") -> Výkon chlazení Znatelný * 16/18/27 [W] | G14: =CONCATENATE("Výkon chlazení Celkový ",ROUND(J8,0),"/",ROUND(J9,0),"/",ROUND(J10,0)," ["&IF(cal!$X$4=1,"W",IF(cal!$X$4=2,"Btu/h"))&"]") -> Výkon chlazení Celkový 16/18/27 [W] | H14: ="Průtok vody,chlazení ["&IF(cal!$X$4=1,"l/h",IF(cal!$X$4=2,"GPM"))&"]" -> Průtok vody,chlazení [l/h] | I14: =E14 -> Tlaková ztráta [kPa] | J14: Akustický tlak *** [dB(A)] | K14: Akustický výkon ** [dB(A)] | L14: Elektrický výkon [W] | M14: ="Průtok vzduchu ["&IF(cal!$X$4=1,"m³/h",IF(cal!$X$4=2,"CFM"))&"]" -> Průtok vzduchu [m³/h] | N14: ="Air exhaust temp. heating ["&IF(cal!$X$4=1,"°C",IF(cal!$X$4=2,"°F"))&"]" -> Air exhaust temp. heating [°C] | O14: ="Air exhaust temp. cooling ["&IF(cal!$X$4=1,"°C",IF(cal!$X$4=2,"°F"))&"]" -> Air exhaust temp. cooling [°C]
A15: =cal!$AF$1&", "&$R$15&" "&ROUND(cal!Y22,1)&IF(cal!$X$4=1," cm",IF(cal!$X$4=2," in"))&", "&$R$16&" "&ROUND(cal!AA22,1)&IF(cal!$X$4=1," cm",IF(cal!$X$4=2," in"))&", "&$R$17&" "&ROUND(cal!AC22,1)&IF(cal!$X$4=1," cm",IF(cal!$X$4=2," in"))&" (Typ 1)" -> Clima Canal, Výška 13 cm, Šířka 32 cm, Délka 70 cm (Typ 1) | Q15: Teploty | R15: Výška
Q16: topení! | R16: Šířka
Q17: chlazení! | R17: Délka
A21: =cal!$AF$1&" "&$R$15&" "&ROUND(cal!Y28,1)&IF(cal!$X$4=1," cm",IF(cal!$X$4=2," in"))&" "&$R$16&" "&ROUND(cal!AA28,1)&IF(cal!$X$4=1," cm",IF(cal!$X$4=2," in"))&" "&$R$17&" "&ROUND(cal!AC28,1)&IF(cal!$X$4=1," cm",IF(cal!$X$4=2," in"))&" (Typ 2)" -> Clima Canal Výška 13 cm Šířka 32 cm Délka 100 cm (Typ 2)
A27: =cal!$AF$1&" "&$R$15&" "&ROUND(cal!Y34,1)&IF(cal!$X$4=1," cm",IF(cal!$X$4=2," in"))&" "&$R$16&" "&ROUND(cal!AA34,1)&IF(cal!$X$4=1," cm",IF(cal!$X$4=2," in"))&" "&$R$17&" "&ROUND(cal!AC34,1)&IF(cal!$X$4=1," cm",IF(cal!$X$4=2," in"))&" (Type 3)" -> Clima Canal Výška 13 cm Šířka 32 cm Délka 120 cm (Type 3)
A33: =cal!$AF$1&" "&$R$15&" "&ROUND(cal!Y40,1)&IF(cal!$X$4=1," cm",IF(cal!$X$4=2," in"))&" "&$R$16&" "&ROUND(cal!AA40,1)&IF(cal!$X$4=1," cm",IF(cal!$X$4=2," in"))&" "&$R$17&" "&ROUND(cal!AC40,1)&IF(cal!$X$4=1," cm",IF(cal!$X$4=2," in"))&" (Typ 4)" -> Clima Canal Výška 13 cm Šířka 32 cm Délka 140 cm (Typ 4)
A39: =cal!$AF$1&" "&$R$15&" "&ROUND(cal!Y46,1)&IF(cal!$X$4=1," cm",IF(cal!$X$4=2," in"))&" "&$R$16&" "&ROUND(cal!AA46,1)&IF(cal!$X$4=1," cm",IF(cal!$X$4=2," in"))&" "&$R$17&" "&ROUND(cal!AC46,1)&IF(cal!$X$4=1," cm",IF(cal!$X$4=2," in"))&" (Typ 5)" -> Clima Canal Výška 13 cm Šířka 32 cm Délka 170 cm (Typ 5)
A45: =cal!$AF$1&" "&$R$15&" "&ROUND(cal!Y52,1)&IF(cal!$X$4=1," cm",IF(cal!$X$4=2," in"))&" "&$R$16&" "&ROUND(cal!AA52,1)&IF(cal!$X$4=1," cm",IF(cal!$X$4=2," in"))&" "&$R$17&" "&ROUND(cal!AC52,1)&IF(cal!$X$4=1," cm",IF(cal!$X$4=2," in"))&" (Typ 6)" -> Clima Canal Výška 13 cm Šířka 32 cm Délka 200 cm (Typ 6)
A51: =cal!$AF$1&" "&$R$15&" "&ROUND(cal!Y58,1)&IF(cal!$X$4=1," cm",IF(cal!$X$4=2," in"))&" "&$R$16&" "&ROUND(cal!AA58,1)&IF(cal!$X$4=1," cm",IF(cal!$X$4=2," in"))&" "&$R$17&" "&ROUND(cal!AC58,1)&IF(cal!$X$4=1," cm",IF(cal!$X$4=2," in"))&" (Typ 7)" -> Clima Canal Výška 13 cm Šířka 32 cm Délka 230 cm (Typ 7)
A57: =cal!$AF$1&" "&$R$15&" "&ROUND(cal!Y64,1)&IF(cal!$X$4=1," cm",IF(cal!$X$4=2," in"))&" "&$R$16&" "&ROUND(cal!AA64,1)&IF(cal!$X$4=1," cm",IF(cal!$X$4=2," in"))&" "&$R$17&" "&ROUND(cal!AC64,1)&IF(cal!$X$4=1," cm",IF(cal!$X$4=2," in"))&" (Typ 8)" -> Clima Canal Výška 13 cm Šířka 32 cm Délka 280 cm (Typ 8)
A63: =cal!$AF$1&" "&$R$15&" "&ROUND(cal!Y70,1)&IF(cal!$X$4=1," cm",IF(cal!$X$4=2," in"))&" "&$R$16&" "&ROUND(cal!AA70,1)&IF(cal!$X$4=1," cm",IF(cal!$X$4=2," in"))&" "&$R$17&" "&ROUND(cal!AC70,1)&IF(cal!$X$4=1," cm",IF(cal!$X$4=2," in"))&" (Typ 9)" -> Clima Canal Výška 13 cm Šířka 32 cm Délka 300 cm (Typ 9)
A69: *Hodnoty podle EN16430 | M69: =cal!N70 -> v2022-12-13
A70: **Akustický tlak podle ISO 3741:2010
A71: ***Akustický výkon s předpokládaným útlumem místnosti 8 dB (A).

Sheet ExtraTaal1 (hidden)
A2: Formulary
A4: Conditions
A6: Temperatures | L6: Altitude
A7: Heating: | F7: Cooling: | Q7: Copy all data
A8: ="Inlet temp." -> Inlet temp. | D8: =cal!E9 -> 75 | E8: =IF(cal!$X$4=1,"°C",IF(cal!$X$4=2,"°F")) -> °C | F8: =A8 -> Inlet temp. | J8: =cal!K9 -> 16 | K8: =E8 -> °C | L8: Unit conversion | Q8: SI-units
A9: ="Return temp." -> Return temp. | D9: =cal!E10 -> 65 | E9: =E8 -> °C | F9: =A9 -> Return temp. | J9: =cal!K10 -> 18 | K9: =E8 -> °C | Q9: Imperial-units
A10: ="Room temp." -> Room temp. | D10: =cal!E11 -> 20 | E10: =E8 -> °C | F10: =A10 -> Room temp. | J10: =cal!K11 -> 27 | K10: =E8 -> °C
F11: Relative humidity | J11: =cal!K12 -> 50%
A14: Speed level: | B14: Control voltage [V] | C14: =CONCATENATE("Heat output * ",ROUND(D8,0),"/",ROUND(D9,0),"/",ROUND(D10,0)," ["&IF(cal!$X$4=1,"W",IF(cal!$X$4=2,"Btu/h"))&"]") -> Heat output * 75/65/20 [W] | D14: ="Water flowrate, heating ["&IF(cal!$X$4=1,"l/h",IF(cal!$X$4=2,"GPM"))&"]" -> Water flowrate, heating [l/h] | E14: ="Watersided pressure loss ["&IF(cal!$X$4=1,"kPa",IF(cal!$X$4=2,"inH2O"))&"]" -> Watersided pressure loss [kPa] | F14: =CONCATENATE("Sens. cooling capacity * ",ROUND(J8,0),"/",ROUND(J9,0),"/",ROUND(J10,0)," ["&IF(cal!$X$4=1,"W",IF(cal!$X$4=2,"Btu/h"))&"]") -> Sens. cooling capacity * 16/18/27 [W] | G14: =CONCATENATE("Tot. cooling capacity ",ROUND(J8,0),"/",ROUND(J9,0),"/",ROUND(J10,0)," ["&IF(cal!$X$4=1,"W",IF(cal!$X$4=2,"Btu/h"))&"]") -> Tot. cooling capacity 16/18/27 [W] | H14: ="Water flowrate, cooling ["&IF(cal!$X$4=1,"l/h",IF(cal!$X$4=2,"GPM"))&"]" -> Water flowrate, cooling [l/h] | I14: ="Watersided pressure loss ["&IF(cal!$X$4=1,"kPa",IF(cal!$X$4=2,"inH2O"))&"]" -> Watersided pressure loss [kPa] | J14: Sound pressure *** [dB(A)] | K14: Sound power ** [dB(A)] | L14: Electrical power [W] | M14: ="Air flowrate ["&IF(cal!$X$4=1,"m³/h",IF(cal!$X$4=2,"CFM"))&"]" -> Air flowrate [m³/h] | N14: ="Air exhaust temp. heating ["&IF(cal!$X$4=1,"°C",IF(cal!$X$4=2,"°F"))&"]" -> Air exhaust temp. heating [°C] | O14: ="Air exhaust temp. cooling ["&IF(cal!$X$4=1,"°C",IF(cal!$X$4=2,"°F"))&"]" -> Air exhaust temp. cooling [°C]
A15: =cal!$AF$1&" "&$R$15&" "&ROUND(cal!Y22,1)&IF(cal!$X$4=1," cm",IF(cal!$X$4=2," in"))&" "&$R$16&" "&ROUND(cal!AA22,1)&IF(cal!$X$4=1," cm",IF(cal!$X$4=2," in"))&" "&$R$17&" "&ROUND(cal!AC22,1)&IF(cal!$X$4=1," cm",IF(cal!$X$4=2," in"))&" (Type 1)" -> Clima Canal height 13 cm width 32 cm length 70 cm (Type 1) | Q15: Temp. | R15: height
Q16: heating! | R16: width
Q17: cooling! | R17: length
A21: =cal!$AF$1&" "&$R$15&" "&ROUND(cal!Y28,1)&IF(cal!$X$4=1," cm",IF(cal!$X$4=2," in"))&" "&$R$16&" "&ROUND(cal!AA28,1)&IF(cal!$X$4=1," cm",IF(cal!$X$4=2," in"))&" "&$R$17&" "&ROUND(cal!AC28,1)&IF(cal!$X$4=1," cm",IF(cal!$X$4=2," in"))&" (Type 2)" -> Clima Canal height 13 cm width 32 cm length 100 cm (Type 2)
A27: =cal!$AF$1&" "&$R$15&" "&ROUND(cal!Y34,1)&IF(cal!$X$4=1," cm",IF(cal!$X$4=2," in"))&" "&$R$16&" "&ROUND(cal!AA34,1)&IF(cal!$X$4=1," cm",IF(cal!$X$4=2," in"))&" "&$R$17&" "&ROUND(cal!AC34,1)&IF(cal!$X$4=1," cm",IF(cal!$X$4=2," in"))&" (Type 3)" -> Clima Canal height 13 cm width 32 cm length 120 cm (Type 3)
A33: =cal!$AF$1&" "&$R$15&" "&ROUND(cal!Y40,1)&IF(cal!$X$4=1," cm",IF(cal!$X$4=2," in"))&" "&$R$16&" "&ROUND(cal!AA40,1)&IF(cal!$X$4=1," cm",IF(cal!$X$4=2," in"))&" "&$R$17&" "&ROUND(cal!AC40,1)&IF(cal!$X$4=1," cm",IF(cal!$X$4=2," in"))&" (Type 4)" -> Clima Canal height 13 cm width 32 cm length 140 cm (Type 4)
A39: =cal!$AF$1&" "&$R$15&" "&ROUND(cal!Y46,1)&IF(cal!$X$4=1," cm",IF(cal!$X$4=2," in"))&" "&$R$16&" "&ROUND(cal!AA46,1)&IF(cal!$X$4=1," cm",IF(cal!$X$4=2," in"))&" "&$R$17&" "&ROUND(cal!AC46,1)&IF(cal!$X$4=1," cm",IF(cal!$X$4=2," in"))&" (Type 5)" -> Clima Canal height 13 cm width 32 cm length 170 cm (Type 5)
A45: =cal!$AF$1&" "&$R$15&" "&ROUND(cal!Y52,1)&IF(cal!$X$4=1," cm",IF(cal!$X$4=2," in"))&" "&$R$16&" "&ROUND(cal!AA52,1)&IF(cal!$X$4=1," cm",IF(cal!$X$4=2," in"))&" "&$R$17&" "&ROUND(cal!AC52,1)&IF(cal!$X$4=1," cm",IF(cal!$X$4=2," in"))&" (Type 6)" -> Clima Canal height 13 cm width 32 cm length 200 cm (Type 6)
A51: =cal!$AF$1&" "&$R$15&" "&ROUND(cal!Y58,1)&IF(cal!$X$4=1," cm",IF(cal!$X$4=2," in"))&" "&$R$16&" "&ROUND(cal!AA58,1)&IF(cal!$X$4=1," cm",IF(cal!$X$4=2," in"))&" "&$R$17&" "&ROUND(cal!AC58,1)&IF(cal!$X$4=1," cm",IF(cal!$X$4=2," in"))&" (Type 7)" -> Clima Canal height 13 cm width 32 cm length 230 cm (Type 7)
A57: =cal!$AF$1&" "&$R$15&" "&ROUND(cal!Y64,1)&IF(cal!$X$4=1," cm",IF(cal!$X$4=2," in"))&" "&$R$16&" "&ROUND(cal!AA64,1)&IF(cal!$X$4=1," cm",IF(cal!$X$4=2," in"))&" "&$R$17&" "&ROUND(cal!AC64,1)&IF(cal!$X$4=1," cm",IF(cal!$X$4=2," in"))&" (Type 8)" -> Clima Canal height 13 cm width 32 cm length 280 cm (Type 8)
A63: =cal!$AF$1&" "&$R$15&" "&ROUND(cal!Y70,1)&IF(cal!$X$4=1," cm",IF(cal!$X$4=2," in"))&" "&$R$16&" "&ROUND(cal!AA70,1)&IF(cal!$X$4=1," cm",IF(cal!$X$4=2," in"))&" "&$R$17&" "&ROUND(cal!AC70,1)&IF(cal!$X$4=1," cm",IF(cal!$X$4=2," in"))&" (Type 9)" -> Clima Canal height 13 cm width 32 cm length 300 cm (Type 9)
A69: *Values according to EN 16430 | M69: =cal!N70 -> v2022-12-13
A70: **Sound power according to ISO 3741:2010
A71: ***Sound pressure with an assumed room damping of 8dB(A)

Sheet ExtraTaal2 (hidden)
A2: Formulary
A4: Conditions
A6: Temperatures | L6: Altitude
A7: Heating: | F7: Cooling: | Q7: Copy all data
A8: ="Inlet temp." -> Inlet temp. | D8: =cal!E9 -> 75 | E8: =IF(cal!$X$4=1,"°C",IF(cal!$X$4=2,"°F")) -> °C | F8: =A8 -> Inlet temp. | J8: =cal!K9 -> 16 | K8: =E8 -> °C | L8: Unit conversion | Q8: SI-units
A9: ="Return temp." -> Return temp. | D9: =cal!E10 -> 65 | E9: =E8 -> °C | F9: =A9 -> Return temp. | J9: =cal!K10 -> 18 | K9: =E8 -> °C | Q9: Imperial-units
A10: ="Room temp." -> Room temp. | D10: =cal!E11 -> 20 | E10: =E8 -> °C | F10: =A10 -> Room temp. | J10: =cal!K11 -> 27 | K10: =E8 -> °C
F11: Relative humidity | J11: =cal!K12 -> 50%
A14: Speed level: | B14: Control voltage [V] | C14: =CONCATENATE("Heat output * ",ROUND(D8,0),"/",ROUND(D9,0),"/",ROUND(D10,0)," ["&IF(cal!$X$4=1,"W",IF(cal!$X$4=2,"Btu/h"))&"]") -> Heat output * 75/65/20 [W] | D14: ="Water flowrate, heating ["&IF(cal!$X$4=1,"l/h",IF(cal!$X$4=2,"GPM"))&"]" -> Water flowrate, heating [l/h] | E14: ="Watersided pressure loss ["&IF(cal!$X$4=1,"kPa",IF(cal!$X$4=2,"inH2O"))&"]" -> Watersided pressure loss [kPa] | F14: =CONCATENATE("Sens. cooling capacity * ",ROUND(J8,0),"/",ROUND(J9,0),"/",ROUND(J10,0)," ["&IF(cal!$X$4=1,"W",IF(cal!$X$4=2,"Btu/h"))&"]") -> Sens. cooling capacity * 16/18/27 [W] | G14: =CONCATENATE("Tot. cooling capacity ",ROUND(J8,0),"/",ROUND(J9,0),"/",ROUND(J10,0)," ["&IF(cal!$X$4=1,"W",IF(cal!$X$4=2,"Btu/h"))&"]") -> Tot. cooling capacity 16/18/27 [W] | H14: ="Water flowrate, cooling ["&IF(cal!$X$4=1,"l/h",IF(cal!$X$4=2,"GPM"))&"]" -> Water flowrate, cooling [l/h] | I14: ="Watersided pressure loss ["&IF(cal!$X$4=1,"kPa",IF(cal!$X$4=2,"inH2O"))&"]" -> Watersided pressure loss [kPa] | J14: Sound pressure *** [dB(A)] | K14: Sound power ** [dB(A)] | L14: Electrical power [W] | M14: ="Air flowrate ["&IF(cal!$X$4=1,"m³/h",IF(cal!$X$4=2,"CFM"))&"]" -> Air flowrate [m³/h] | N14: ="Air exhaust temp. heating ["&IF(cal!$X$4=1,"°C",IF(cal!$X$4=2,"°F"))&"]" -> Air exhaust temp. heating [°C] | O14: ="Air exhaust temp. cooling ["&IF(cal!$X$4=1,"°C",IF(cal!$X$4=2,"°F"))&"]" -> Air exhaust temp. cooling [°C]
A15: =cal!$AF$1&" "&$R$15&" "&ROUND(cal!Y22,1)&IF(cal!$X$4=1," cm",IF(cal!$X$4=2," in"))&" "&$R$16&" "&ROUND(cal!AA22,1)&IF(cal!$X$4=1," cm",IF(cal!$X$4=2," in"))&" "&$R$17&" "&ROUND(cal!AC22,1)&IF(cal!$X$4=1," cm",IF(cal!$X$4=2," in"))&" (Type 1)" -> Clima Canal height 13 cm width 32 cm length 70 cm (Type 1) | Q15: Temp. | R15: height
Q16: heating! | R16: width
Q17: cooling! | R17: length
A21: =cal!$AF$1&" "&$R$15&" "&ROUND(cal!Y28,1)&IF(cal!$X$4=1," cm",IF(cal!$X$4=2," in"))&" "&$R$16&" "&ROUND(cal!AA28,1)&IF(cal!$X$4=1," cm",IF(cal!$X$4=2," in"))&" "&$R$17&" "&ROUND(cal!AC28,1)&IF(cal!$X$4=1," cm",IF(cal!$X$4=2," in"))&" (Type 2)" -> Clima Canal height 13 cm width 32 cm length 100 cm (Type 2)
A27: =cal!$AF$1&" "&$R$15&" "&ROUND(cal!Y34,1)&IF(cal!$X$4=1," cm",IF(cal!$X$4=2," in"))&" "&$R$16&" "&ROUND(cal!AA34,1)&IF(cal!$X$4=1," cm",IF(cal!$X$4=2," in"))&" "&$R$17&" "&ROUND(cal!AC34,1)&IF(cal!$X$4=1," cm",IF(cal!$X$4=2," in"))&" (Type 3)" -> Clima Canal height 13 cm width 32 cm length 120 cm (Type 3)
A33: =cal!$AF$1&" "&$R$15&" "&ROUND(cal!Y40,1)&IF(cal!$X$4=1," cm",IF(cal!$X$4=2," in"))&" "&$R$16&" "&ROUND(cal!AA40,1)&IF(cal!$X$4=1," cm",IF(cal!$X$4=2," in"))&" "&$R$17&" "&ROUND(cal!AC40,1)&IF(cal!$X$4=1," cm",IF(cal!$X$4=2," in"))&" (Type 4)" -> Clima Canal height 13 cm width 32 cm length 140 cm (Type 4)
A39: =cal!$AF$1&" "&$R$15&" "&ROUND(cal!Y46,1)&IF(cal!$X$4=1," cm",IF(cal!$X$4=2," in"))&" "&$R$16&" "&ROUND(cal!AA46,1)&IF(cal!$X$4=1," cm",IF(cal!$X$4=2," in"))&" "&$R$17&" "&ROUND(cal!AC46,1)&IF(cal!$X$4=1," cm",IF(cal!$X$4=2," in"))&" (Type 5)" -> Clima Canal height 13 cm width 32 cm length 170 cm (Type 5)
A45: =cal!$AF$1&" "&$R$15&" "&ROUND(cal!Y52,1)&IF(cal!$X$4=1," cm",IF(cal!$X$4=2," in"))&" "&$R$16&" "&ROUND(cal!AA52,1)&IF(cal!$X$4=1," cm",IF(cal!$X$4=2," in"))&" "&$R$17&" "&ROUND(cal!AC52,1)&IF(cal!$X$4=1," cm",IF(cal!$X$4=2," in"))&" (Type 6)" -> Clima Canal height 13 cm width 32 cm length 200 cm (Type 6)
A51: =cal!$AF$1&" "&$R$15&" "&ROUND(cal!Y58,1)&IF(cal!$X$4=1," cm",IF(cal!$X$4=2," in"))&" "&$R$16&" "&ROUND(cal!AA58,1)&IF(cal!$X$4=1," cm",IF(cal!$X$4=2," in"))&" "&$R$17&" "&ROUND(cal!AC58,1)&IF(cal!$X$4=1," cm",IF(cal!$X$4=2," in"))&" (Type 7)" -> Clima Canal height 13 cm width 32 cm length 230 cm (Type 7)
A57: =cal!$AF$1&" "&$R$15&" "&ROUND(cal!Y64,1)&IF(cal!$X$4=1," cm",IF(cal!$X$4=2," in"))&" "&$R$16&" "&ROUND(cal!AA64,1)&IF(cal!$X$4=1," cm",IF(cal!$X$4=2," in"))&" "&$R$17&" "&ROUND(cal!AC64,1)&IF(cal!$X$4=1," cm",IF(cal!$X$4=2," in"))&" (Type 8)" -> Clima Canal height 13 cm width 32 cm length 280 cm (Type 8)
A63: =cal!$AF$1&" "&$R$15&" "&ROUND(cal!Y70,1)&IF(cal!$X$4=1," cm",IF(cal!$X$4=2," in"))&" "&$R$16&" "&ROUND(cal!AA70,1)&IF(cal!$X$4=1," cm",IF(cal!$X$4=2," in"))&" "&$R$17&" "&ROUND(cal!AC70,1)&IF(cal!$X$4=1," cm",IF(cal!$X$4=2," in"))&" (Type 9)" -> Clima Canal height 13 cm width 32 cm length 300 cm (Type 9)
A69: *Values according to EN 16430 | M69: =cal!N70 -> v2022-12-13
A70: **Sound power according to ISO 3741:2010
A71: ***Sound pressure with an assumed room damping of 8dB(A)

Sheet ExtraTaal3 (hidden)
A2: Formulary
A4: Conditions
A6: Temperatures | L6: Altitude
A7: Heating: | F7: Cooling: | Q7: Copy all data
A8: ="Inlet temp." -> Inlet temp. | D8: =cal!E9 -> 75 | E8: =IF(cal!$X$4=1,"°C",IF(cal!$X$4=2,"°F")) -> °C | F8: =A8 -> Inlet temp. | J8: =cal!K9 -> 16 | K8: =E8 -> °C | L8: Unit conversion | Q8: SI-units
A9: ="Return temp." -> Return temp. | D9: =cal!E10 -> 65 | E9: =E8 -> °C | F9: =A9 -> Return temp. | J9: =cal!K10 -> 18 | K9: =E8 -> °C | Q9: Imperial-units
A10: ="Room temp." -> Room temp. | D10: =cal!E11 -> 20 | E10: =E8 -> °C | F10: =A10 -> Room temp. | J10: =cal!K11 -> 27 | K10: =E8 -> °C
F11: Relative humidity | J11: =cal!K12 -> 50%
A14: Speed level: | B14: Control voltage [V] | C14: =CONCATENATE("Heat output * ",ROUND(D8,0),"/",ROUND(D9,0),"/",ROUND(D10,0)," ["&IF(cal!$X$4=1,"W",IF(cal!$X$4=2,"Btu/h"))&"]") -> Heat output * 75/65/20 [W] | D14: ="Water flowrate, heating ["&IF(cal!$X$4=1,"l/h",IF(cal!$X$4=2,"GPM"))&"]" -> Water flowrate, heating [l/h] | E14: ="Watersided pressure loss ["&IF(cal!$X$4=1,"kPa",IF(cal!$X$4=2,"inH2O"))&"]" -> Watersided pressure loss [kPa] | F14: =CONCATENATE("Sens. cooling capacity * ",ROUND(J8,0),"/",ROUND(J9,0),"/",ROUND(J10,0)," ["&IF(cal!$X$4=1,"W",IF(cal!$X$4=2,"Btu/h"))&"]") -> Sens. cooling capacity * 16/18/27 [W] | G14: =CONCATENATE("Tot. cooling capacity ",ROUND(J8,0),"/",ROUND(J9,0),"/",ROUND(J10,0)," ["&IF(cal!$X$4=1,"W",IF(cal!$X$4=2,"Btu/h"))&"]") -> Tot. cooling capacity 16/18/27 [W] | H14: ="Water flowrate, cooling ["&IF(cal!$X$4=1,"l/h",IF(cal!$X$4=2,"GPM"))&"]" -> Water flowrate, cooling [l/h] | I14: ="Watersided pressure loss ["&IF(cal!$X$4=1,"kPa",IF(cal!$X$4=2,"inH2O"))&"]" -> Watersided pressure loss [kPa] | J14: Sound pressure *** [dB(A)] | K14: Sound power ** [dB(A)] | L14: Electrical power [W] | M14: ="Air flowrate ["&IF(cal!$X$4=1,"m³/h",IF(cal!$X$4=2,"CFM"))&"]" -> Air flowrate [m³/h] | N14: ="Air exhaust temp. heating ["&IF(cal!$X$4=1,"°C",IF(cal!$X$4=2,"°F"))&"]" -> Air exhaust temp. heating [°C] | O14: ="Air exhaust temp. cooling ["&IF(cal!$X$4=1,"°C",IF(cal!$X$4=2,"°F"))&"]" -> Air exhaust temp. cooling [°C]
A15: =cal!$AF$1&" "&$R$15&" "&ROUND(cal!Y22,1)&IF(cal!$X$4=1," cm",IF(cal!$X$4=2," in"))&" "&$R$16&" "&ROUND(cal!AA22,1)&IF(cal!$X$4=1," cm",IF(cal!$X$4=2," in"))&" "&$R$17&" "&ROUND(cal!AC22,1)&IF(cal!$X$4=1," cm",IF(cal!$X$4=2," in"))&" (Type 1)" -> Clima Canal height 13 cm width 32 cm length 70 cm (Type 1) | Q15: Temp. | R15: height
Q16: heating! | R16: width
Q17: cooling! | R17: length
A21: =cal!$AF$1&" "&$R$15&" "&ROUND(cal!Y28,1)&IF(cal!$X$4=1," cm",IF(cal!$X$4=2," in"))&" "&$R$16&" "&ROUND(cal!AA28,1)&IF(cal!$X$4=1," cm",IF(cal!$X$4=2," in"))&" "&$R$17&" "&ROUND(cal!AC28,1)&IF(cal!$X$4=1," cm",IF(cal!$X$4=2," in"))&" (Type 2)" -> Clima Canal height 13 cm width 32 cm length 100 cm (Type 2)
A27: =cal!$AF$1&" "&$R$15&" "&ROUND(cal!Y34,1)&IF(cal!$X$4=1," cm",IF(cal!$X$4=2," in"))&" "&$R$16&" "&ROUND(cal!AA34,1)&IF(cal!$X$4=1," cm",IF(cal!$X$4=2," in"))&" "&$R$17&" "&ROUND(cal!AC34,1)&IF(cal!$X$4=1," cm",IF(cal!$X$4=2," in"))&" (Type 3)" -> Clima Canal height 13 cm width 32 cm length 120 cm (Type 3)
A33: =cal!$AF$1&" "&$R$15&" "&ROUND(cal!Y40,1)&IF(cal!$X$4=1," cm",IF(cal!$X$4=2," in"))&" "&$R$16&" "&ROUND(cal!AA40,1)&IF(cal!$X$4=1," cm",IF(cal!$X$4=2," in"))&" "&$R$17&" "&ROUND(cal!AC40,1)&IF(cal!$X$4=1," cm",IF(cal!$X$4=2," in"))&" (Type 4)" -> Clima Canal height 13 cm width 32 cm length 140 cm (Type 4)
A39: =cal!$AF$1&" "&$R$15&" "&ROUND(cal!Y46,1)&IF(cal!$X$4=1," cm",IF(cal!$X$4=2," in"))&" "&$R$16&" "&ROUND(cal!AA46,1)&IF(cal!$X$4=1," cm",IF(cal!$X$4=2," in"))&" "&$R$17&" "&ROUND(cal!AC46,1)&IF(cal!$X$4=1," cm",IF(cal!$X$4=2," in"))&" (Type 5)" -> Clima Canal height 13 cm width 32 cm length 170 cm (Type 5)
A45: =cal!$AF$1&" "&$R$15&" "&ROUND(cal!Y52,1)&IF(cal!$X$4=1," cm",IF(cal!$X$4=2," in"))&" "&$R$16&" "&ROUND(cal!AA52,1)&IF(cal!$X$4=1," cm",IF(cal!$X$4=2," in"))&" "&$R$17&" "&ROUND(cal!AC52,1)&IF(cal!$X$4=1," cm",IF(cal!$X$4=2," in"))&" (Type 6)" -> Clima Canal height 13 cm width 32 cm length 200 cm (Type 6)
A51: =cal!$AF$1&" "&$R$15&" "&ROUND(cal!Y58,1)&IF(cal!$X$4=1," cm",IF(cal!$X$4=2," in"))&" "&$R$16&" "&ROUND(cal!AA58,1)&IF(cal!$X$4=1," cm",IF(cal!$X$4=2," in"))&" "&$R$17&" "&ROUND(cal!AC58,1)&IF(cal!$X$4=1," cm",IF(cal!$X$4=2," in"))&" (Type 7)" -> Clima Canal height 13 cm width 32 cm length 230 cm (Type 7)
A57: =cal!$AF$1&" "&$R$15&" "&ROUND(cal!Y64,1)&IF(cal!$X$4=1," cm",IF(cal!$X$4=2," in"))&" "&$R$16&" "&ROUND(cal!AA64,1)&IF(cal!$X$4=1," cm",IF(cal!$X$4=2," in"))&" "&$R$17&" "&ROUND(cal!AC64,1)&IF(cal!$X$4=1," cm",IF(cal!$X$4=2," in"))&" (Type 8)" -> Clima Canal height 13 cm width 32 cm length 280 cm (Type 8)
A63: =cal!$AF$1&" "&$R$15&" "&ROUND(cal!Y70,1)&IF(cal!$X$4=1," cm",IF(cal!$X$4=2," in"))&" "&$R$16&" "&ROUND(cal!AA70,1)&IF(cal!$X$4=1," cm",IF(cal!$X$4=2," in"))&" "&$R$17&" "&ROUND(cal!AC70,1)&IF(cal!$X$4=1," cm",IF(cal!$X$4=2," in"))&" (Type 9)" -> Clima Canal height 13 cm width 32 cm length 300 cm (Type 9)
A69: *Values according to EN 16430 | M69: =cal!N70 -> v2022-12-13
A70: **Sound power according to ISO 3741:2010
A71: ***Sound pressure with an assumed room damping of 8dB(A)
